Workbook

Sheet Revision Notes (hidden)
B1: Revisions made in model since sending initial draft to Enoch.
A3: 1 | B3: Calculations worksheet, cell H143: formula revised.
A4: =A3+1 -> 2 | B4: ProjectData worksheet, cells Q797 to Y810, added section on Regions - states included in each region. This is currently not referenced in model but probably will be used a some time for reference.
A5: =A4+1 -> 3 | B5: ProjectData worksheet, cells O809-O816, added region names to state list (this is referenced in th Project location control box drop down list in cell B12.
A6: 4 | B6: FAQ worksheet, cell A31, revised/corrected the spelling of the word "consumption."
A7: 5 | B7: ProjectData worksheet, cells P750 and T749, revised/corrected spelling of word "silicon."
A8: 6 | B8: ProjectData worksheet, cells X753 and X754, revised formula.
A9: 7 | B9: ProjectData worksheet, cell X757, revise formula.
A10: 8 | B10: Multipliers worksheet, after column AR (Pennsylvania), add in 8 additional columns for region name and data.
A11: 9 | B11: Household Exp worksheet, after column AQ (Pennsylvania) add in 8 columns for Region names and data.
A12: 10 | B12: Calculation worksheet, cell L145, revised formula.
A13: 11 | B13: DefaultData worksheet, cells AM66-AM68 (California), revised values (property tax exemptions) to 100%.
B15: Revisions made in model since sending second draft to Enoch.
A16: 1 | B16: User Add-in location worksheet inserted complete list of industry sectors (names) into each multiplier type (direct, indirect and induced or jobs, earnings, and output)
A17: 2 | B17: DefaultData cell D32 inserted formula
A18: 3 | B18: SummaryResults moved formula in cell C1 to D2
A19: 4 | B19: SummaryResults inserted formulas in cells AD40, AD41, and AD42
A20: 5 | B20: SummaryResults cell A1 inserted formula
A21: 6 | B21: SummaryResults deleted formula in cell BC1
A22: 7 | B22: SummaryResults inserted formula in cell BA1
A23: 8 | B23: SummaryResults inserted formula in cell BG1
A24: 9 | B24: ProjectData cell A12 revised comment.
A25: 10 | B25: FAQ, revised the answer to question on line 30.
A26: 11 | B26: FAQ, inserted a new question (line 59 - before final question) and 8 additional lines for answer (states in defined regions).
A27: 12 | B27: User Add-in location worksheet cells C6 and C7, revised wording in formulas.
B29: Revisions made in model since sending third draft (4 25 11) to Enoch.
A30: 1 | B30: ProjectData worksheet, revised formula in cell T48.
A31: =A30+1 -> 2 | B31: ProjectData worksheet, blued out cell E48 and locked cell (no longer accepts editting/revision). Also added comment to cell.
A32: 3 | B32: ProjectData worksheet, revised macro for "Restore Default Values", no longer restores cell E48 with AB48 (this cut and paste function was deleted)
A33: 4 | B33: Calculations worksheet, revised formulas in E152, E160, and G15
A34: 5 | B34: Deflator worksheet, inserted (revised) new deflator data, text note below table and table below note (cells B11..AL43). These updated and expanded deflators have the same format, although more years are added, with a new source and new data in the ref. table below source.
A35: 6 | B35: Deflator worksheet, revised formulas in cells E7 and E8.
A36: 7 | B36: ProjectData worksheet, revised text in A26…A28.
A37: 8 | B37: ProjectData worksheet, added conditional formating related to cell B26 (Y or N - using default values in analysis). Default data/costs are greyed out if Y is chosen, available for viewing and editting if N is choosen. To do this I saved the file in Excel 2007 version instead of the previous 2003.
B39: Revisions made in model since sending fourth draft (Draft JEDI…..5 25 11) to Enoch.
A40: 1 | B40: DefaultData worksheet, delete data in cells BE:2:BD8.
A41: =A40+1 -> 2 | B41: DefaultData worksheet, delete data in cells BH:14:BW16.
A42: 3 | B42: DefaultData worksheet, delete data in cells AH16:BG16
A43: 4 | B43: DefaultData worksheet, delete data in cells AH11:AH13.
A44: 5 | B44: DefaultData worksheet, delete data in cell AH33.
A45: 6 | B45: DefaultData worksheet, insert new values in cells AE51:CI54.
A46: 7 | B46: DefaultData worksheet, revise formulas in cells AI59, AI61, and AI62.
A47: 8 | B47: DefaultData worksheet, insert new values in cells AJ14:BF43
A48: 9 | B48: ProjectData worksheet, insert comment in cell A24.
A49: 10 | B49: ProjectData worksheet, insert and/or revise comments in cells A18, A22, A23, A31, E31, A71, A75, A77, A78..
A50: 11 | B50: ProjectData worksheet, revise formulas in cells C26, B22, X753.
A51: 12 | B51: ProjectData worksheet, insert new value in cell B24.
A52: 13 | B52: Calculations worksheet, revise formula in cell E27.
A53: 14 | B53: SummaryResults worksheet, format (center) cell C2.
A54: 15 | B54: SummaryResults worksheet, revise formula in cell AD42.
A55: 16 | B55: SummaryResults worksheet, delete cells AD40 and AD41.
A56: 17 | B56: User Add-in Location worksheet, insert comment in cell C9.
A57: 18 | B57: FAQ worksheet, revise answer to security settings question, cells C14:C17.
B59: Revisions made in model since sending fifth draft (Draft JEDI…..6 28 11) to Enoch.
A60: =A59+1 -> 1 | B60: DefaultData worksheet, insert new values in cells C52, C53, and C54.
A61: 2 | B61: DefaultData worksheet, insert new values in cells AJ14:BF43
A62: 3 | B62: ProjectData worksheet, insert text in cells B82 and D82.
A63: 4 | B63: ProjectData worksheet, format cells B71:B73 to 1 decimal place.
A64: 5 | B64: ProjectData worksheet, delete cell T37
A65: 6 | B65: Calculations worksheet, insert new formulas (used to be values only) in cells H7:H10.
A66: 7 | B66: Calculations worksheet, insert new formulas in cells I7:I10.
A67: 8 | B67: FAQ worksheet, insert an additional question and answer in cells A70:A77.
A68: 9
B70: Revisions made in model since sending sixth draft (Draft JEDI…..7 5 11) to Enoch.
A71: =A70+1 -> 1 | B71: DefaultData worksheet, delete data in cells CR50:CV59.
A72: 2 | B72: DefaultData worksheet, insert 8 columns after Pennsylvania (BW50) - move Rhode Island to Wyoming (names and data below down to row 76, then add location names (for Regions 1-8) and data into columns (BX50:CE76) in lookup area.
A73: 3 | B73: DefaultData worksheet, insert new formulas in cells AI61, AI69, AI72, and AI77 (these reference the expanded lookup area).
A74: 4
B76: Revisions made in model since sending seventh draft (Draft JEDI…..7 7 11) to Enoch.
A77: =A76+1 -> 1 | B77: User Add-in Location worksheet, revise formula in E3 and E4.
A78: 2 | B78: Calculations worksheet, revise format in cell H27.
A79: 3 | B79: Calculations worksheet, revise formula in cell E27 and replace value in E29 with formula.
A80: 4 | B80: Calculations worksheet, insert additional sectors, revise formulas in whole section AG37:AJ57.
A81: 5 | B81: ProjectData worksheet, revise comment in A45.
A82: 6 | B82: FAQ worksheet, insert an additional question and answer in cells A79:A83.
A83: 7 | B83: SummaryResults worksheet, insert additional sectors, revise formulas in whole section A27:D40 and BA27:BD40.
B86: New Revisions
A87: =A86+1 -> 1 | B87: Calculations worksheet, revise value in cell H71
A88: 2 | B88: Calculations worksheet, revise values in cells AJ43 and AJ44
A89: 3 | B89: DefaultData worksheet, revise formula in cell AI73
A90: 4 | B90: DefaultData worksheet, revise values in cells AJ14:BF32
A91: 5 | B91: DefaultData worksheet, revise values in cells AI51:CQ54
A92: 6 | B92: DefaultData worksheet, delete text/values in cells CR50:CV59
A93: 7 | B93: DefaultData worksheet, revise formula in cell AI59
A94: 8 | B94: DefaultData worksheet, revise text in cells AH53:AH54
A95: 9 | B95: ProjectData worksheet, add comment to cell A43
A96: 10 | B96: ProjectData worksheet, added values (for years list) in cells N755-N776

Sheet About JEDI
A2: JEDI - PHOTOVOLTAICS
A4: Jobs and Economic Development Impact Model (JEDI)
A6: Release Number: PV3.24.14

Sheet FAQ
A2: JEDI - PHOTOVOLTAICS
A4: Jobs and Economic Development Impact Model (JEDI)
A6: Frequently Asked Questions (FAQ)

Sheet Start
A2: JEDI - PHOTOVOLTAICS
A3: Jobs and Economic Development Impact Model

Sheet ProjectData
A1: Photovoltaic Project Data
A2: Please read instructions before getting started
A4: INSTRUCTIONS:
A5: 1. Begin by entering Project Location (from pull-down list) and other Project Descriptive Data relevant to your particular project. After inputting Descriptive Data press enter (or cursor to the next cell) to continue.
A6: 2. Once Descriptive Data is complete, you may choose to utilize the detailed model default values for Project Cost (based on your Descriptive Data) by choosing "Y" on line 26 OR you may choose to use your own values entered (modified) under Project Cost Data by choosing "N" on line 26. Choose "Y" to accept Project Cost default values or "N" to over-ride Project Cost default values and use your own inputs.
A7: 3. Press 'Go To Summary Impacts' Button
A8: NOTES: Additional information is available by pointing to the red triangles located in cell corners. Only those cells with a white background can accept new values.
A11: Project Descriptive Data | T11: =IF(B12="MYCOUNTY",IF(B13="",2,1),IF(B12="MYREGION",IF(B13="",2,1),0)) -> 0
A12: Project Location | B12: KENTUCKY | D12: =IF(B12="MYREGION",IF('User Add-in Location'!F33=0,"Error - No Regional multiplier data in User Add-in Location",""),IF(B12="MYCOUNTY",IF('User Add-in Location'!E33=0,"Error - No County multiplier data in User Add-in Location",""),"")) -> 
A13: Population (only required for County/Region analysis) | D13: =IF(B12="MYREGION",IF('User Add-in Location'!F33=0,"",IF(B12="MYREGION","Enter Region Population","")),IF(B12="MYCOUNTY",IF('User Add-in Location'!E33=0,"",IF(B12="MYCOUNTY","Enter County Population","")),"")) -> 
A14: Year of Construction or Installation | B14: 2023 | C14: =IF(D13="","",IF(B13<1,"**Error - Population Data Missing**","")) -> 
A15: System Application | B15: Utility
A16: Solar Cell/Module Material | B16: Thin Film
A17: System Tracking | B17: Fixed Mount
A18: Average System Size - DC Nameplate Capacity (kW) | B18: 208000 | D18: =DefaultData!AH14 -> Typically 1 MW or larger
A19: Number of Systems Installed | B19: 1
A20: Total Project Size - DC Nameplate Capacity (kW) | B20: =B18*B19 -> 208000
A22: Base Installed System Cost ($/kWDC) | B22: 1300 | C22: =IF(B26="N"," User Revised System Cost ($/kW)","") -> User Revised System Cost ($/kW) | F22: =IF(B26="N",C47,"") -> 1170 | Q22: Y
A23: Annual Direct Operations and Maintenance Cost ($/kW) | B23: 10 | C23: =IF(B26="N"," User Revised O&M Cost ($/kW)","") -> User Revised O&M Cost ($/kW) | F23: =IF(B26="N",(C62-C61),"") -> 10 | Q23: N
A24: Money Value (Dollar Year) | B24: 2020
A26: Utilize Project Cost Data default values? Choose "Y" to accept model default values or "N" to view the default values and utilize new user defined values (entered below). | B26: N | C26: =IF(B26="y"," Press 'Go To Summary Impacts' Button",IF(B26="N","Modify System Cost Data (below).","Error - Re-enter 'Y' or 'N'")) -> Modify System Cost Data (below).
A29: If desired, default values (in cells below - based on Project Descriptive Data entered above) may be restored by pressing the 'Restore Default Values' button. Note: it is not necessary to restore defaults to incorporate default Project Cost Data in system analysis (simply enter a "Y" in cell B26 above).
A30: Project Cost Data
A31: =DefaultData!B14 -> Installation Costs | B31: Cost | C31: Cost | D31: Percent of | E31: Purchased | F31: Manufactured
A32: =DefaultData!B15 -> Materials & Equipment | C32: Per kW | D32: Total Cost | E32: Locally (%) | F32: Locally (Y or N)
A33: =DefaultData!B16 -> Mounting (rails, clamps, fittings, etc.) | B33: =C33*$B$20 -> 41600000 | C33: 200 | D33: =B33/(B$49) -> 0.1636393389 | E33: 0.05 | F33: =DefaultData!$AG17 -> N | T33: =IF(T$11=0,DefaultData!$F16,IF(T$11=2,"Pop. Data Missing",IF($B$13<DefaultData!$G$13,DefaultData!$G16,IF($B$13<DefaultData!$H$13,DefaultData!$N16,IF($B$13<DefaultData!$I$13,DefaultData!$Q16,DefaultData!$T16))))) -> 1 | Y33: =Z33*$B$20 -> 10842132.99 | Z33: =DefaultData!$D16 -> 52.12563936 | AA33: =Y33/(Y$47) -> 0.04009664567 | AB33: =$T33 -> 1 | AC33: =DefaultData!$AG17 -> N
A34: =DefaultData!B17 -> Modules | B34: =C34*$B$20 -> 72800000 | C34: 350 | D34: =B34/(B$49) -> 0.2863688431 | E34: 0 | F34: =DefaultData!$AG18 -> N | T34: =IF(T$11=0,DefaultData!$F17,IF(T$11=2,"Pop. Data Missing",IF($B$13<DefaultData!$G$13,DefaultData!$G17,IF($B$13<DefaultData!$H$13,DefaultData!$N17,IF($B$13<DefaultData!$I$13,DefaultData!$Q17,DefaultData!$T17))))) -> 1 | Y34: =Z34*$B$20 -> 97553975.78 | Z34: =DefaultData!$D17 -> 469.009499 | AA34: =Y34/(Y$47) -> 0.3607765377 | AB34: =$T34 -> 1 | AC34: =DefaultData!$AG18 -> N
A35: =DefaultData!B18 -> Electrical (wire, connectors, breakers, etc.) | B35: =C35*$B$20 -> 58240000 | C35: 280 | D35: =B35/(B$49) -> 0.2290950745 | E35: 0.2 | F35: =DefaultData!$AG19 -> N | T35: =IF(T$11=0,DefaultData!$F18,IF(T$11=2,"Pop. Data Missing",IF($B$13<DefaultData!$G$13,DefaultData!$G18,IF($B$13<DefaultData!$H$13,DefaultData!$N18,IF($B$13<DefaultData!$I$13,DefaultData!$Q18,DefaultData!$T18))))) -> 1 | Y35: =Z35*$B$20 -> 12361875.87 | Z35: =DefaultData!$D18 -> 59.43209552 | AA35: =Y35/(Y$47) -> 0.04571699655 | AB35: =$T35 -> 1 | AC35: =DefaultData!$AG19 -> N
A36: =DefaultData!B19 -> Inverter | B36: =C36*$B$20 -> 8320000 | C36: 40 | D36: =B36/(B$49) -> 0.03272786778 | E36: 0.05 | F36: =DefaultData!$AG20 -> N | T36: =IF(T$11=0,DefaultData!$F19,IF(T$11=2,"Pop. Data Missing",IF($B$13<DefaultData!$G$13,DefaultData!$G19,IF($B$13<DefaultData!$H$13,DefaultData!$N19,IF($B$13<DefaultData!$I$13,DefaultData!$Q19,DefaultData!$T19))))) -> 1 | Y36: =Z36*$B$20 -> 17708322.55 | Z36: =DefaultData!$D19 -> 85.1361661 | AA36: =Y36/(Y$47) -> 0.06548935854 | AB36: =$T36 -> 1 | AC36: =DefaultData!$AG20 -> N
A37: =DefaultData!B20 -> Subtotal | B37: =SUM(B33:B36) -> 180960000 | C37: =SUM(C33:C36) -> 870 | D37: =SUM(D33:D36) -> 0.7118311242 | Y37: =SUM(Y33:Y36) -> 138466307.2 | Z37: =SUM(Z33:Z36) -> 665.7033999 | AA37: =SUM(AA33:AA36) -> 0.5120795384
A38: =DefaultData!B21 -> Labor
A39: =DefaultData!B22 -> Installation | B39: =C39*$B$20 -> 12480000 | C39: 60 | D39: =B39/(B$49) -> 0.04909180167 | E39: 0.2 | T39: =IF(T$11=0,DefaultData!$F22,IF(T$11=2,"Pop. Data Missing",IF($B$13<DefaultData!$G$13,DefaultData!$G22,IF($B$13<DefaultData!$H$13,DefaultData!$N22,IF($B$13<DefaultData!$I$13,DefaultData!$Q22,DefaultData!$T22))))) -> 1 | Y39: =Z39*$B$20 -> 27090088.4 | Z39: =DefaultData!$D22 -> 130.2408096 | AA39: =Y39/(Y$47) -> 0.1001852382 | AB39: =$T39 -> 1
A40: =DefaultData!B23 -> Subtotal | B40: =SUM(B39:B39) -> 12480000 | C40: =C39 -> 60 | D40: =D39 -> 0.04909180167 | Y40: =SUM(Y39:Y39) -> 27090088.4 | Z40: =Z39 -> 130.2408096 | AA40: =AA39 -> 0.1001852382
A41: =DefaultData!B24 -> Total | B41: =+B40+B37 -> 193440000 | C41: =+C40+C37 -> 930 | D41: =D40+D37 -> 0.7609229259 | Y41: =+Y40+Y37 -> 165556395.6 | Z41: =+Z40+Z37 -> 795.9442095 | AA41: =AA40+AA37 -> 0.6122647766
A42: =DefaultData!B25 -> Other Costs
A43: =DefaultData!B26 -> Permitting | B43: =C43*$B$20 -> 2080000 | C43: 10 | D43: =B43/(B$49) -> 0.008181966945 | E43: 0.8 | T43: =IF(T$11=0,DefaultData!$F26,IF(T$11=2,"Pop. Data Missing",IF($B$13<DefaultData!$G$13,DefaultData!$G26,IF($B$13<DefaultData!$H$13,DefaultData!$N26,IF($B$13<DefaultData!$I$13,DefaultData!$Q26,DefaultData!$T26))))) -> 1 | Y43: =Z43*$B$20 -> 1236049.527 | Z43: =DefaultData!$D26 -> 5.942545805 | AA43: =Y43/(Y$47) -> 0.00457118908 | AB43: =$T43 -> 1
A44: =DefaultData!B27 -> Other Costs | B44: =C44*$B$20 -> 31200000 | C44: 150 | D44: =B44/(B$49) -> 0.1227295042 | E44: 0.6 | T44: =IF(T$11=0,DefaultData!$F27,IF(T$11=2,"Pop. Data Missing",IF($B$13<DefaultData!$G$13,DefaultData!$G27,IF($B$13<DefaultData!$H$13,DefaultData!$N27,IF($B$13<DefaultData!$I$13,DefaultData!$Q27,DefaultData!$T27))))) -> 1 | Y44: =Z44*$B$20 -> 27316694.55 | Z44: =DefaultData!$D27 -> 131.3302623 | AA44: 0.1010232787 | AB44: =$T44 -> 1
A45: =DefaultData!B28 -> Business Overhead | B45: =C45*$B$20 -> 16640000 | C45: 80 | D45: =B45/(B$49) -> 0.06545573556 | E45: 0.1 | T45: =IF(T$11=0,DefaultData!$F28,IF(T$11=2,"Pop. Data Missing",IF($B$13<DefaultData!$G$13,DefaultData!$G28,IF($B$13<DefaultData!$H$13,DefaultData!$N28,IF($B$13<DefaultData!$I$13,DefaultData!$Q28,DefaultData!$T28))))) -> 1 | Y45: =Z45*$B$20 -> 76290860.33 | Z45: =DefaultData!$D28 -> 366.7829824 | AA45: 0.2821407557 | AB45: =$T45 -> 1
A46: =DefaultData!B29 -> Subtotal | B46: =SUM(B43:B45) -> 49920000 | C46: =SUM(C43:C45) -> 240 | D46: =B46/(B$49) -> 0.1963672067 | Y46: =SUM(Y43:Y45) -> 104843604.4 | Z46: =SUM(Z43:Z45) -> 504.0557905 | AA46: 0.3877352234
A47: Subtotal | B47: =B46+B41 -> 243360000 | C47: =C46+C41 -> 1170 | D47: =D46+D41 -> 0.9572901325 | Y47: =Y46+Y41 -> 270400000 | Z47: =Z46+Z41 -> 1300 | AA47: 1
A48: Sales Tax (Materials & Equipment Purchases) | B48: =B37*(B77*(1-B78)) -> 10857600 | C48: =B48/B$20 -> 52.2 | D48: =B48/(B$49) -> 0.04270986745 | E48: =$T48 -> 0 | T48: =D$77 -> 0 | Y48: =Y37*(Y77*(1-Y78)) -> 8307978.431 | Z48: =DefaultData!$D31 -> 39.942204 | AA48: 0.0307247723 | AB48: =$T48 -> 0
A49: Total | B49: =B48+B47 -> 254217600 | C49: =B49/B$20 -> 1222.2 | D49: =D48+D47 -> 1
A51: =DefaultData!B33 -> PV System Annual Operating and Maintenance Costs
B52: Cost | C52: Cost | D52: Percent of | E52: Local
A53: =DefaultData!B34 -> Labor | C53: Per kW | D53: Total Cost | E53: Share (%)
A54: =DefaultData!B35 -> Technicians | B54: =C54*$B$20 -> 1560000 | C54: 7.5 | D54: =B54/B$62 -> 0.7389162562 | E54: 0.9 | T54: =IF(T$11=0,DefaultData!$F35,IF(T$11=2,"Pop. Data Missing",IF($B$13<DefaultData!$G$13,DefaultData!$G35,IF($B$13<DefaultData!$H$13,DefaultData!$N35,IF($B$13<DefaultData!$I$13,DefaultData!$Q35,DefaultData!$T35))))) -> 1 | Y54: =Z54*$B$20 -> 1248000 | Z54: =DefaultData!$D35 -> 6 | AA54: =Y54/Y$62 -> 0.6 | AB54: =$T54 -> 1
A55: =DefaultData!B36 -> Subtotal | B55: =SUM(B54:B54) -> 1560000 | C55: =C54 -> 7.5 | D55: =SUM(D54:D54) -> 0.7389162562 | Y55: =SUM(Y54:Y54) -> 1248000 | Z55: =Z54 -> 6 | AA55: =SUM(AA54:AA54) -> 0.6
E56: Purchased | F56: Manufactured
A57: =DefaultData!B37 -> Materials and Services | E57: Locally (%) | F57: Locally (Y or N)
A58: =DefaultData!B38 -> Materials & Equipment | B58: =C58*$B$20 -> 520000 | C58: 2.5 | D58: =B58/B$62 -> 0.2463054187 | E58: 0.9 | F58: =DefaultData!$AG38 -> N | T58: =IF(T$11=0,DefaultData!$F38,IF(T$11=2,"Pop. Data Missing",IF($B$13<DefaultData!$G$13,DefaultData!$G38,IF($B$13<DefaultData!$H$13,DefaultData!$N38,IF($B$13<DefaultData!$I$13,DefaultData!$Q38,DefaultData!$T38))))) -> 1 | Y58: =Z58*$B$20 -> 832000 | Z58: =DefaultData!$D38 -> 4 | AA58: =Y58/Y$62 -> 0.4 | AB58: =$T58 -> 1 | AC58: =DefaultData!$AG38 -> N
A59: =DefaultData!B39 -> Services | B59: =C59*$B$20 -> 0 | C59: =DefaultData!$D39 -> 0 | D59: =B59/B$62 -> 0 | E59: 0.9 | T59: =IF(T$11=0,DefaultData!$F39,IF(T$11=2,"Pop. Data Missing",IF($B$13<DefaultData!$G$13,DefaultData!$G39,IF($B$13<DefaultData!$H$13,DefaultData!$N39,IF($B$13<DefaultData!$I$13,DefaultData!$Q39,DefaultData!$T39))))) -> 1 | Y59: =Z59*$B$20 -> 0 | Z59: =DefaultData!$D39 -> 0 | AA59: =Y59/Y$62 -> 0 | AB59: =$T59 -> 1
A60: =DefaultData!B40 -> Subtotal | B60: =SUM(B58:B59) -> 520000 | C60: =C59+C58 -> 2.5 | D60: =SUM(D58:D59) -> 0.2463054187 | Y60: =SUM(Y58:Y59) -> 832000 | Z60: =Z59+Z58 -> 4 | AA60: =SUM(AA58:AA59) -> 0.4
A61: Sales Tax (Materials & Equipment Purchases) | B61: =B58*(B$77*(1-B$78)) -> 31200 | C61: =B61/B$20 -> 0.15 | D61: =B61/(B$62) -> 0.01477832512 | E61: =$T61 -> 0 | T61: =D$77 -> 0 | Y61: =Y58*(Y$77*(1-Y$78)) -> 49920
A62: Total | B62: =B61+B60+B55 -> 2111200 | C62: =C61+C60+C55 -> 10.15 | D62: =D61+D60+D55 -> 1 | Y62: =Y60+Y55 -> 2080000 | Z62: =Z60+Z55 -> 10 | AA62: =AA60+AA55 -> 1
A64: =DefaultData!B44 -> Other Parameters
A65: =DefaultData!B45 -> Financial Parameters | D65: Local Share
A66: =DefaultData!B46 -> Debt Financing
A67: =DefaultData!B47 -> Percentage financed | B67: =DefaultData!$C47 -> 0.8 | D67: =DefaultData!$E47 -> 0 | Y67: =DefaultData!$C47 -> 0.8 | AA67: =DefaultData!$E47 -> 0
A68: =DefaultData!B48 -> Years financed (term) | B68: =DefaultData!$C48 -> 10 | Y68: =DefaultData!$C48 -> 10
A69: =DefaultData!B49 -> Interest rate | B69: =DefaultData!$C49 -> 0.1 | Y69: =DefaultData!$C49 -> 0.1
A70: =DefaultData!B51 -> Tax Parameters
A71: =DefaultData!B52 -> Local Property Tax (percent of taxable value) | B71: =DefaultData!$C52 -> 0 | Y71: =DefaultData!$C52 -> 0
A72: =DefaultData!B53 -> Assessed Value (percent of construction cost) | B72: =DefaultData!$C53 -> 0 | Y72: =DefaultData!$C53 -> 0
A73: =DefaultData!B54 -> Taxable Value (percent of assessed value) | B73: =DefaultData!$C54 -> 0 | Y73: =DefaultData!$C54 -> 0
A74: =DefaultData!B55 -> Taxable Value | B74: =+B73*B72*B47 -> 0 | Y74: =+Y73*Y72*Y47 -> 0
A75: Property Tax Exemption (percent of local taxes) | B75: =DefaultData!$C56 -> 0 | Y75: =DefaultData!$C56 -> 0
A76: Local Property Taxes | B76: 7659 | D76: 0 | Y76: =Y74*Y71*(1-Y75) -> 0 | AA76: =DefaultData!$E57 -> 1
A77: Local Sales Tax Rate | B77: =DefaultData!$C58 -> 0.06 | D77: 0 | Y77: =DefaultData!$C58 -> 0.06 | AA77: =DefaultData!$E58 -> 1
A78: Sales Tax Exemption (percent of local taxes) | B78: 0 | Y78: =DefaultData!$C59 -> 0
A79: Payroll Parameters
A80: Construction and Installation Labor | B80: Wage per hour | D80: Employer Payroll Overhead
A81: Construction Workers / Installers | B81: =Calculations!$E27 -> 21.39 | D81: =Calculations!$K24 -> 0.4557 | Y81: =Calculations!$E27 -> 21.39 | AA81: =Calculations!$K24 -> 0.4557
A82: O & M Labor | B82: Wage per hour | D82: Employer Payroll Overhead
A83: Technicians | B83: =Calculations!$E29 -> 21.39 | D83: =Calculations!$K24 -> 0.4557 | Y83: =Calculations!$E29 -> 21.39 | AA83: =Calculations!$K24 -> 0.4557
P742: Residential New Construction | S742: Large Commercial | T742: Residential New Construction | U742: Residential Retrofit | V742: Small Commercial | W742: Utility
P743: Residential Retrofit | S743: LC | T743: RN | U743: RR | V743: SC | W743: UT | X743: =HLOOKUP($B15,S742:W743,2) -> UT
P744: Small Commercial
P745: Large Commercial
P746: Utility
P749: Thin Film | S749: Crystalline Silicon | T749: Thin Film | X749: =B16 -> Thin Film
P750: Crystalline Silicon | S750: CS | T750: TF | X750: =HLOOKUP(B$16,S749:U750,2) -> TF
P752: Large Commercial | Q752: Residential New Construction | R752: Residential Retrofit | S752: Small Commercial | T752: Utility | W752: =B15 -> Utility
P753: Fixed Mount | Q753: Fixed Mount | R753: Fixed Mount | S753: Fixed Mount | T753: Fixed Mount | W753: =HLOOKUP(B15,P$752:T$755,2) -> Fixed Mount | X753: =IF(X$750="TF",W753,IF(W753=0,"",W753)) -> Fixed Mount
P754: Single Axis | Q754: Single Axis | R754: Single Axis | S754: Single Axis | T754: Single Axis | W754: =HLOOKUP(B$15,P$752:T$755,3) -> Single Axis | X754: =IF(X$750="TF","",IF(W754=0,"",W754)) -> 
N755: Years | W755: =HLOOKUP(B$15,P$752:T$755,4) -> 0 | X755: =IF(W755=0,"",W755) -> 
N756: 2010 | O756: =UPPER('User Add-in Location'!B10) -> MYCOUNTY | S756: Fixed Mount | T756: Single Axis | U756: Double Axis
N757: =N756+1 -> 2011 | O757: =UPPER('User Add-in Location'!C10) -> MYREGION | S757: FM | T757: SA | U757: DA | X757: =IF(X750="TF","FM",HLOOKUP(B17,S756:U757,2)) -> FM
N758: =N757+1 -> 2012 | O758: ALABAMA
N759: 2013 | O759: ALASKA | X759: =CONCATENATE(X743,X750,X757) -> UTTFFM
N760: 2014 | O760: ARIZONA
N761: 2015 | O761: ARKANSAS
N762: 2016 | O762: CALIFORNIA
N763: 2017 | O763: COLORADO
N764: 2018 | O764: CONNECTICUT
N765: 2019 | O765: DELAWARE
N766: 2020 | O766: DISTRICT OF COLUMBIA
N767: 2021 | O767: FLORIDA
N768: 2022 | O768: GEORGIA
N769: 2023 | O769: HAWAII
N770: 2024 | O770: IDAHO
N771: 2025 | O771: ILLINOIS
N772: 2026 | O772: INDIANA
N773: 2027 | O773: IOWA
N774: 2028 | O774: KANSAS
N775: 2029 | O775: KENTUCKY
N776: =N775+1 -> 2030 | O776: LOUISIANA
O777: MAINE
O778: MARYLAND
O779: MASSACHUSETTS
O780: MICHIGAN
O781: MINNESOTA
O782: MISSISSIPPI
O783: MISSOURI
O784: MONTANA
O785: NEBRASKA
O786: NEVADA
O787: NEW HAMPSHIRE
O788: NEW JERSEY
O789: NEW MEXICO
O790: NEW YORK
O791: NORTH CAROLINA
O792: NORTH DAKOTA
O793: OHIO
O794: OKLAHOMA
O795: OREGON
O796: PENNSYLVANIA
O797: RHODE ISLAND | Q797: 1 | R797: REGION1 | S797: REGION2 | T797: REGION3 | U797: REGION4 | V797: REGION5 | W797: REGION6 | X797: REGION7 | Y797: REGION8
O798: SOUTH CAROLINA | Q798: 2 | R798: Connecticut | S798: Delaware | T798: District of Columbia | U798: Alabama | V798: Illinois | W798: Arkansas | X798: Alaska | Y798: California
O799: SOUTH DAKOTA | Q799: 3 | R799: Maine | S799: New Jersy | T799: Maryland | U799: Florida | V799: Indiana | W799: Louisiana | X799: Arizona | Y799: Hawaii
O800: TENNESSEE | Q800: 4 | R800: Massachusetts | S800: Pennsylvania | T800: North Carolina | U800: Georgia | V800: Iowa | W800: Missouri | X800: Colorado
O801: TEXAS | Q801: 5 | R801: New Hampshire | S801: West Virginia | T801: Virginia | U801: Kentucky | V801: Michigan | W801: New Mexico | X801: Idaho
O802: UTAH | Q802: 6 | R802: New York | U802: Mississippi | V802: Minnesota | W802: Oklahoma | X802: Kansas
O803: VERMONT | Q803: 7 | R803: Rhode Island | U803: Tenessee | V803: Ohio | W803: Texan | X803: Montana
O804: VIRGINIA | Q804: 8 | R804: Vermont | V804: Wisconsin | X804: Nebraska
O805: WASHINGTON | Q805: =Q804+1 -> 9 | X805: Nevada
O806: WEST VIRGINIA | Q806: =Q805+1 -> 10 | X806: North Dakota
O807: WISCONSIN | Q807: 11 | X807: Oregon
O808: WYOMING | Q808: 12 | X808: South Dakota
O809: REGION1 | Q809: 13 | X809: Utah
O810: REGION2 | Q810: 14 | X810: Washington
O811: REGION3 | Q811: 15
O812: REGION4
O813: REGION5
O814: REGION6
O815: REGION7
O816: REGION8

Sheet SummaryResults
A1: =CONCATENATE("Photovoltaic - Project Data Summary based on ",$AD$48, " values") -> Photovoltaic - Project Data Summary based on User modifications to default values | BA1: =Summary_Results -> Photovoltaic - Project Data Summary based on User modifications to default values | BG1: =Summary_Results -> Photovoltaic - Project Data Summary based on User modifications to default values
A2: Project Location | C2: =IF(ProjectData!B12="MyCounty",'User Add-in Location'!B3,IF(ProjectData!B12="MyRegion",'User Add-in Location'!B4,ProjectData!B12)) -> KENTUCKY | D2: =ProjectData!C14 ->  | BA2: Project Location | BC2: =C2 -> KENTUCKY | BG2: Project Location | BH2: =ProjectData!B12 -> KENTUCKY | BJ2: =IF(BH2="MYREGION",IF('User Add-in Location'!BL14=0,"Error - No Regional multiplier data in User Add-in Location",""),IF(BH2="MYCOUNTY",IF('User Add-in Location'!BK14=0,"Error - No County multiplier data in User Add-in Location",""),"")) -> 
A3: Year of Construction or Installation | C3: =ProjectData!B14 -> 2023 | BA3: Year of Construction or Installation | BC3: 2023 | BG3: =IF(ProjectData!$B13>0,"Population","") ->  | BH3: =IF(ProjectData!$B13>0,ProjectData!B13,"") -> 
A4: Average System Size - DC Nameplate Capacity (KW) | C4: =ProjectData!B18 -> 208000 | D4: =ProjectData!D12 ->  | BA4: Average System Size - DC Nameplate Capacity (KW) | BC4: 208000 | BG4: Year of Construction or Installation | BH4: =ProjectData!B14 -> 2023 | BI4: =IF(BJ3="","",IF(BH3<1,"**Error - Population Data Missing**","")) -> 
A5: Number of Systems Installed | C5: =ProjectData!B19 -> 1 | BA5: Number of Systems Installed | BC5: 1 | BG5: System Type | BH5: =ProjectData!B15 -> Utility
A6: Project Size - DC Nameplate Capacity (KW) | C6: =ProjectData!B20 -> 208000 | BA6: Total Project Size - DC Nameplate Capacity (KW) | BC6: 208000 | BG6: System Application | BH6: =ProjectData!B16 -> Thin Film
A7: System Application | C7: =ProjectData!B15 -> Utility | BA7: System Application | BC7: Utility | BG7: Solar Cell/Module Material | BH7: =ProjectData!B17 -> Fixed Mount
A8: Solar Cell/Module Material | C8: =ProjectData!B16 -> Thin Film | BA8: Solar Cell/Module Material | BC8: Thin Film | BG8: System Tracking | BH8: =ProjectData!B18 -> 208000
A9: System Tracking | C9: =ProjectData!B17 -> Fixed Mount | BA9: System Tracking | BC9: Fixed Mount | BG9: Number of Systems Installed | BH9: =ProjectData!B19 -> 1
A10: Total System Base Cost ($/KWDC) | C10: =C13/C6 -> 1222.2 | BA10: Base Installed System Cost ($/KWDC) | BC10: =C10 -> 1222.2 | BG10: Total Project Size - DC Nameplate Capacity (KW) | BH10: =ProjectData!B20 -> 208000
A11: Annual Direct Operations and Maintenance Cost ($/kW) | C11: =C16/C6 -> 10 | BA11: Annual Direct Operations and Maintenance Cost ($/kW) | BC11: 10 | BG11: Base Installed System Cost ($/KWDC) | BH11: =BC10 -> 1222.2
A12: Money Value - Current or Constant (Dollar Year) | C12: =ProjectData!B24 -> 2020 | BA12: Money Value - Current or Constant (Dollar Year) | BC12: 2020 | BG12: Annual Direct Operations and Maintenance Cost ($/kW) | BH12: =BC11 -> 10
A13: Project Construction or Installation Cost | C13: =Calculations!D23 -> 254217600 | BA13: Project Construction or Installation Cost | BC13: 254217600 | BG13: Money Value - Current or Constant (Dollar Year) | BH13: =ProjectData!B24 -> 2020
A14: Local Spending | C14: =+Calculations!F61 -> 24544000 | BA14: Local Spending | BC14: 24544000
A15: Total Annual Operational Expenses | C15: =C16+C18 -> 30348619 | BA15: Total Annual Operational Expenses | BC15: 30348619 | BG15: Project Cost Data
A16: Direct Operating and Maintenance Costs | C16: =Calculations!D78 -> 2080000 | BA16: Direct Operating and Maintenance Costs | BC16: 2080000 | BG16: =ProjectData!A31 -> Installation Costs | BH16: =ProjectData!B31 -> Cost | BI16: =ProjectData!C31 -> Cost | BJ16: =ProjectData!D31 -> Percent of | BK16: =ProjectData!E31 -> Purchased | BL16: =ProjectData!F31 -> Manufactured
A17: Local Spending | C17: =Calculations!G78 -> 1778400 | BA17: Local Spending | BC17: 1778400 | BG17: =ProjectData!A32 -> Materials & Equipment | BI17: =ProjectData!C32 -> Per kW | BJ17: =ProjectData!D32 -> Total Cost | BK17: =ProjectData!E32 -> Locally (%) | BL17: =ProjectData!F32 -> Locally (Y or N)
A18: Other Annual Costs | C18: =Calculations!E78 -> 28268619 | BA18: Other Annual Costs | BC18: 28268619 | BG18: =ProjectData!A33 -> Mounting (rails, clamps, fittings, etc.) | BH18: =BB59 -> 41600000 | BI18: =BH18/BH$10 -> 200 | BJ18: =BH18/BH$34 -> 0.1636393389 | BK18: =BC59 -> 0.05 | BL18: N
A19: Local Spending | C19: =Calculations!H78 -> 0 | BA19: Local Spending | BC19: 0 | BG19: =ProjectData!A34 -> Modules | BH19: =BB60 -> 72800000 | BI19: =BH19/BH$10 -> 350 | BJ19: =BH19/BH$34 -> 0.2863688431 | BK19: 0 | BL19: N
A20: Debt Payments | C20: =SUM(Calculations!G75:G75) -> 0 | BA20: Debt Payments | BC20: 0 | BG20: =ProjectData!A35 -> Electrical (wire, connectors, breakers, etc.) | BH20: =BB61 -> 58240000 | BI20: 280 | BJ20: =BH20/BH$34 -> 0.2290950745 | BK20: 0.2 | BL20: N
A21: Property Taxes | C21: =Calculations!G76 -> 0 | BA21: Property Taxes | BC21: 0 | BG21: =ProjectData!A36 -> Inverter | BH21: =BB62 -> 8320000 | BI21: 40 | BJ21: =BH21/BH$34 -> 0.03272786778 | BK21: 0.05 | BL21: N
BG22: =ProjectData!A37 -> Subtotal | BH22: =BB63 -> 180960000 | BI22: 870 | BJ22: =BH22/BH$34 -> 0.7118311242
BG23: =ProjectData!A38 -> Labor
A24: Local Economic Impacts - Summary Results | BA24: Local Economic Impacts - Summary Results | BG24: =ProjectData!A39 -> Installation | BH24: =BB65 -> 12480000 | BI24: 60 | BJ24: =BH24/BH$34 -> 0.04909180167 | BK24: =BC65 -> 0.2
B25: Jobs | C25: Earnings | D25: Output | BB25: Jobs | BC25: Earnings | BD25: Output | BG25: =ProjectData!A40 -> Subtotal | BH25: =BB66 -> 12480000 | BI25: =BH25/BH$10 -> 60 | BJ25: =BH25/BH$34 -> 0.04909180167
A26: During construction and installation period | C26: =CONCATENATE("$000 (",$C12,")") -> $000 (2020) | D26: =CONCATENATE("$000 (",$C12,")") -> $000 (2020) | BA26: During construction and installation period | BC26: =C26 -> $000 (2020) | BD26: $000 (2020) | BG26: =ProjectData!A41 -> Total | BH26: =BB67 -> 193440000 | BI26: =BH26/BH$10 -> 930 | BJ26: =BH26/BH$34 -> 0.7609229259
A27: Project Development and Onsite Labor Impacts | BA27: Project Development and Onsite Labor Impacts | BG27: =ProjectData!A42 -> Other Costs
A28: Construction and Installation Labor | B28: =Calculations!AH38 -> 38.53883476 | C28: =Calculations!AI38 -> 2496 | BA28: Construction and Installation Labor | BB28: =B28 -> 38.53883476 | BC28: 2496 | BG28: =ProjectData!A43 -> Permitting | BH28: =BB69 -> 2080000 | BI28: =BH28/BH$10 -> 10 | BJ28: =BH28/BH$34 -> 0.008181966945 | BK28: =BC69 -> 0.8
A29: Construction and Installation Related Services | B29: =Calculations!AH39 -> 91.71909646 | C29: =Calculations!AI39 -> 6413.944316 | BA29: Construction and Installation Related Services | BB29: 91.71909646 | BC29: =C29 -> 6413.944316 | BG29: =ProjectData!A44 -> Other Costs | BH29: 31200000 | BI29: 150 | BJ29: 0.1227295042 | BK29: =BC70 -> 0.6
A30: Subtotal | B30: =Calculations!AH40 -> 130.2579312 | C30: =Calculations!AI40 -> 8909.944316 | D30: =Calculations!AJ40 -> 14019.2 | BA30: Subtotal | BB30: =B30 -> 130.2579312 | BC30: =C30 -> 8909.944316 | BD30: =D30 -> 14019.2 | BG30: =ProjectData!A45 -> Business Overhead | BH30: 16640000 | BI30: =BH30/BH$10 -> 80 | BJ30: 0.06545573556 | BK30: =BC71 -> 0.1
A31: Module and Supply Chain Impacts | BA31: Module and Supply Chain Impacts | BG31: =ProjectData!A46 -> Subtotal | BH31: 49920000 | BI31: =BH31/BH$10 -> 240 | BJ31: 0.1963672067
A32: Manufacturing Impacts | B32: =Calculations!AH42 -> 0 | C32: =Calculations!AI42 -> 0 | D32: =Calculations!AJ42 -> 0 | BA32: Manufacturing | BB32: =B32 -> 0 | BC32: 0 | BD32: 0 | BG32: =ProjectData!A47 -> Subtotal | BH32: 243360000 | BI32: =BH32/BH$10 -> 1170 | BJ32: 0.9572901325
A33: Trade (Wholesale and Retail) | B33: =Calculations!AH43 -> 14.14126425 | C33: =Calculations!AI43 -> 970.3101747 | D33: =Calculations!AJ43 -> 2799.092763 | BA33: Trade (Wholesale and Retail) | BB33: =B33 -> 14.14126425 | BC33: =C33 -> 970.3101747 | BD33: =D33 -> 2799.092763 | BG33: =ProjectData!A48 -> Sales Tax (Materials & Equipment Purchases) | BH33: 10857600 | BI33: =BH33/BH$10 -> 52.2 | BJ33: 0.04270986745 | BK33: =BC74 -> 0
A34: Finance, Insurance and Real Estate | B34: =Calculations!AH44 -> 0 | C34: =Calculations!AI44 -> 0 | D34: =Calculations!AJ44 -> 0 | BA34: Finance, Insurance and Real Estate | BB34: 0 | BC34: 0 | BD34: 0 | BG34: =ProjectData!A49 -> Total | BH34: 254217600 | BI34: =BH34/BH$10 -> 1222.2 | BJ34: 1
A35: Professional Services | B35: =Calculations!AH45 -> 11.64728971 | C35: =Calculations!AI45 -> 634.2463805 | D35: =Calculations!AJ45 -> 1766.639524 | BA35: Professional Services | BB35: 11.64728971 | BC35: 634.2463805 | BD35: 1766.639524
A36: Other Services | B36: =Calculations!AH46 -> 26.8325842 | C36: =Calculations!AI46 -> 3578.673217 | D36: =Calculations!AJ46 -> 9583.388886 | BA36: Other Services | BB36: 26.8325842 | BC36: 3578.673217 | BD36: 9583.388886 | BG36: =ProjectData!A51 -> PV System Annual Operating and Maintenance Costs
A37: Other Sectors | B37: =Calculations!AH47 -> 52.17299388 | C37: =Calculations!AI47 -> 541.3106704 | D37: =Calculations!AJ47 -> 1397.52793 | BA37: Other Sectors | BB37: 52.17299388 | BC37: 541.3106704 | BD37: 1397.52793 | BH37: =ProjectData!B52 -> Cost | BI37: =ProjectData!C52 -> Cost | BJ37: =ProjectData!D52 -> Percent of | BK37: =ProjectData!E52 -> Local | BL37: =ProjectData!F56 -> Manufactured
A38: Subtotal | B38: =Calculations!AH48 -> 104.794132 | C38: =Calculations!AI48 -> 5724.540443 | D38: =Calculations!AJ48 -> 15546.6491 | BA38: Subtotal | BB38: 104.794132 | BC38: 5724.540443 | BD38: 15546.6491 | BG38: =ProjectData!A53 -> Labor | BI38: =ProjectData!C53 -> Per kW | BJ38: =ProjectData!D53 -> Total Cost | BK38: =ProjectData!E53 -> Share (%) | BL38: =ProjectData!F57 -> Locally (Y or N)
A39: Induced Impacts | B39: =Calculations!AH49 -> 58.75039884 | C39: =Calculations!AI49 -> 2863.629485 | D39: =Calculations!AJ49 -> 8134.029829 | BA39: Induced Impacts | BB39: 58.75039884 | BC39: 2863.629485 | BD39: 8134.029829 | BG39: =ProjectData!A54 -> Technicians | BH39: =BB79 -> 1560000 | BI39: =BH39/BH$10 -> 7.5 | BJ39: =BH39/BH$46 -> 0.7389162562 | BK39: =BC80 -> 0
A40: Total Impacts | B40: =Calculations!AH50 -> 293.8024621 | C40: =Calculations!AI50 -> 17498.11424 | D40: =Calculations!AJ50 -> 37699.87893 | BA40: Total Impacts | BB40: 293.8024621 | BC40: 17498.11424 | BD40: 37699.87893 | BG40: =ProjectData!A55 -> Subtotal | BH40: =BB80 -> 1560000 | BI40: =BH40/BH$10 -> 7.5 | BJ40: =BH40/BH$46 -> 0.7389162562
BG41: =ProjectData!A57 -> Materials and Services
C42: Annual | D42: Annual | BC42: =C42 -> Annual | BD42: Annual | BG42: =ProjectData!A58 -> Materials & Equipment | BH42: =BB82 -> 520000 | BI42: =BH42/BH$10 -> 2.5 | BJ42: =BH42/BH$46 -> 0.2463054187 | BK42: =BC83 -> 0.9 | BL42: =ProjectData!F58 -> N
B43: Annual | C43: Earnings | D43: Output | BB43: =B43 -> Annual | BC43: Earnings | BD43: Output | BG43: =ProjectData!A59 -> Services | BH43: =BB83 -> 0 | BI43: =BH43/BH$10 -> 0 | BJ43: =BH43/BH$46 -> 0 | BK43: =BC84 -> 0
A44: During operating years | B44: Jobs | C44: =CONCATENATE("$000 (",$C12,")") -> $000 (2020) | D44: =CONCATENATE("$000 (",$C12,")") -> $000 (2020) | BA44: During operating years | BB44: =B44 -> Jobs | BC44: $000 (2020) | BD44: $000 (2020) | BG44: =ProjectData!A60 -> Subtotal | BH44: =BB84 -> 520000 | BI44: =BH44/BH$10 -> 2.5 | BJ44: =BH44/BH$46 -> 0.2463054187
A45: Onsite Labor Impacts | BA45: Onsite Labor Impacts | BG45: =ProjectData!A61 -> Sales Tax (Materials & Equipment Purchases) | BH45: =BB85 -> 31200 | BI45: =BH45/BH$10 -> 0.15 | BJ45: =BH45/BH$46 -> 0.01477832512
A46: PV Project Labor Only | B46: =Calculations!AH54 -> 21.67809456 | C46: =Calculations!AI54 -> 1304.053528 | D46: =Calculations!AJ54 -> 1304.053528 | BA46: PV Project Labor Only | BB46: =B46 -> 21.67809456 | BC46: =C46 -> 1304.053528 | BD46: =D46 -> 1304.053528 | BG46: =ProjectData!A62 -> Total | BH46: =BH45+BH44+BH40 -> 2111200 | BI46: =BI45+BI44+BI40 -> 10.15 | BJ46: =BJ45+BJ44+BJ40 -> 1
A47: Local Revenue and Supply Chain Impacts | B47: =Calculations!AH55 -> 3.515521318 | C47: =Calculations!AI55 -> 222.3524036 | D47: =Calculations!AJ55 -> 686.4703674 | BA47: Local Revenue and Supply Chain Impacts | BB47: 3.515521318 | BC47: 222.3524036 | BD47: 686.4703674
A48: Induced Impacts | B48: =Calculations!AH56 -> 2.816114703 | C48: =Calculations!AI56 -> 138.1225659 | D48: =Calculations!AJ56 -> 392.3854044 | AD48: =IF(ProjectData!B26="Y","model default","User modifications to default") -> User modifications to default | BA48: Induced Impacts | BB48: =B48 -> 2.816114703 | BC48: 138.1225659 | BD48: 392.3854044 | BG48: =ProjectData!A64 -> Other Parameters
A49: Total Impacts | B49: =Calculations!AH57 -> 28.00973058 | C49: =Calculations!AI57 -> 1664.528498 | D49: =Calculations!AJ57 -> 2382.9093 | BA49: Total Impacts | BB49: 28.00973058 | BC49: 1664.528498 | BD49: 2382.9093 | BG49: =ProjectData!A65 -> Financial Parameters | BJ49: =ProjectData!D65 -> Local Share
A50: =CONCATENATE("Notes: Earnings and Output values are thousands of dollars in year ",C12, " dollars. Construction and") -> Notes: Earnings and Output values are thousands of dollars in year 2020 dollars. Construction and | BA50: =CONCATENATE("Notes: Earnings and Output values are thousands of dollars in year ",BC12, " dollars. Construction and") -> Notes: Earnings and Output values are thousands of dollars in year 2020 dollars. Construction and | BG50: =ProjectData!A66 -> Debt Financing
A51: operating period jobs are full-time equivalent for one year (1 FTE = 2,080 hours). Economic impacts "During | BA51: operating period jobs are full-time equivalent for one year (1 FTE = 2,080 hours). Economic impacts "During | BG51: =ProjectData!A67 -> Percentage financed | BH51: =BB93 -> 0.8 | BJ51: =BC93 -> 0
A52: operating years" represent impacts that occur from system/plant operations/expenditures. Totals may not | BA52: operating years" represent impacts that occur from system/plant operations/expenditures. Totals may not | BG52: =ProjectData!A68 -> Years financed (term) | BH52: =BB94 -> 10
A53: add up due to independent rounding. | BA53: add up due to independent rounding. | BG53: =ProjectData!A69 -> Interest rate | BH53: =BB95 -> 0.1
BG54: =ProjectData!A70 -> Tax Parameters
A55: Detailed PV Project Data Costs | B55: =Calculations!AC3 -> KENTUCKY | BA55: Detailed PV Project Data Costs | BG55: =ProjectData!A71 -> Local Property Tax (percent of taxable value) | BH55: =BB97 -> 0
C56: Purchased | D56: Manufactured | BC56: Purchased | BD56: Manufactured | BG56: =ProjectData!A72 -> Assessed Value (percent of construction cost) | BH56: 0
A57: Installation Costs | B57: =Calculations!AC5 -> Cost | C57: Locally (%) | D57: Locally (Y or N) | BA57: Installation Costs | BB57: Cost | BC57: Locally (%) | BD57: Locally (Y or N) | BG57: =ProjectData!A73 -> Taxable Value (percent of assessed value) | BH57: 0
A58: Materials & Equipment | BA58: Materials & Equipment | BG58: =ProjectData!A74 -> Taxable Value | BH58: 0
A59: Mounting (rails, clamps, fittings, etc.) | B59: =Calculations!AC7 -> 41600000 | C59: =Calculations!AD7 -> 0.05 | D59: =Calculations!AE7 -> N | BA59: Mounting (rails, clamps, fittings, etc.) | BB59: =B59 -> 41600000 | BC59: 0.05 | BD59: N | BG59: Property Tax Exemption (percent of local taxes) | BH59: 0
A60: Modules | B60: =Calculations!AC8 -> 72800000 | C60: =Calculations!AD8 -> 0 | D60: =Calculations!AE8 -> N | BA60: Modules | BB60: 72800000 | BC60: 0 | BD60: N | BG60: =ProjectData!A76 -> Local Property Taxes | BH60: 7659 | BJ60: =BC102 -> 0
A61: Electrical (wire, connectors, breakers, etc.) | B61: =Calculations!AC9 -> 58240000 | C61: =Calculations!AD9 -> 0.2 | D61: =Calculations!AE9 -> N | BA61: Electrical (wire, connectors, breakers, etc.) | BB61: 58240000 | BC61: 0.2 | BD61: N | BG61: =ProjectData!A77 -> Local Sales Tax Rate | BH61: 0.06 | BJ61: =BC103 -> 0
A62: Inverter | B62: =Calculations!AC10 -> 8320000 | C62: =Calculations!AD10 -> 0.05 | D62: =Calculations!AE10 -> N | BA62: Inverter | BB62: 8320000 | BC62: 0.05 | BD62: N | BG62: Sales Tax Exemption (percent of local taxes)
A63: Subtotal | B63: =Calculations!AC11 -> 180960000 | BA63: Subtotal | BB63: =B63 -> 180960000 | BG63: =ProjectData!A79 -> Payroll Parameters
A64: Labor | BA64: Labor | BG64: =ProjectData!A80 -> Construction and Installation Labor | BH64: =ProjectData!B80 -> Wage per hour | BJ64: =ProjectData!D80 -> Employer Payroll Overhead
A65: Installation | B65: =Calculations!AC13 -> 12480000 | C65: =Calculations!AD13 -> 0.2 | BA65: Installation | BB65: =B65 -> 12480000 | BC65: =C65 -> 0.2 | BG65: =ProjectData!A81 -> Construction Workers / Installers | BH65: =BB107 -> 21.39 | BJ65: =BC107 -> 0.4557
A66: Subtotal | B66: =Calculations!AC14 -> 12480000 | BA66: Subtotal | BB66: =B66 -> 12480000 | BG66: =ProjectData!A82 -> O & M Labor
A67: Subtotal | B67: =Calculations!AC15 -> 193440000 | BA67: Subtotal | BB67: =B67 -> 193440000 | BG67: =ProjectData!A83 -> Technicians | BH67: =BB109 -> 21.39 | BJ67: =BC109 -> 0.4557
A68: Other Costs | BA68: Other Costs
A69: Permitting | B69: =Calculations!AC17 -> 2080000 | C69: =Calculations!AD17 -> 0.8 | BA69: Permitting | BB69: =B69 -> 2080000 | BC69: 0.8
A70: Other Costs | B70: =Calculations!AC18 -> 31200000 | C70: =Calculations!AD18 -> 0.6 | BA70: Other Costs | BB70: 31200000 | BC70: 0.6
A71: Business Overhead | B71: =Calculations!AC19 -> 16640000 | C71: =Calculations!AD19 -> 0.1 | BA71: Business Overhead | BB71: 16640000 | BC71: 0.1
A72: Subtotal | B72: =Calculations!AC20 -> 49920000 | BA72: Subtotal | BB72: =B72 -> 49920000
A73: Subtotal | B73: =Calculations!AC21 -> 243360000 | BA73: Subtotal | BB73: =B73 -> 243360000
A74: Sales Tax (Materials & Equipment Purchases) | B74: =Calculations!AC22 -> 10857600 | C74: =Calculations!AD22 -> 0 | BA74: Sales Tax (Materials & Equipment Purchases) | BB74: =B74 -> 10857600 | BC74: =C74 -> 0
A75: Total | B75: =Calculations!AC23 -> 254217600 | BA75: Total | BB75: =B75 -> 254217600
A77: PV System Annual Operating and Maintenance Costs | D77: =D56 -> Manufactured | BA77: PV System Annual Operating and Maintenance Costs | BB77: Cost | BC77: Local Share
B78: =Calculations!AC26 -> Cost | C78: =Calculations!AD26 -> Local Share | D78: =D57 -> Locally (Y or N) | BA78: Labor
A79: Labor | BA79: Technicians | BB79: =B80 -> 1560000 | BC79: =C80 -> 0.9
A80: Technicians | B80: =Calculations!AC28 -> 1560000 | C80: =Calculations!AD28 -> 0.9 | BA80: Subtotal | BB80: =B81 -> 1560000
A81: Subtotal | B81: =Calculations!AC29 -> 1560000 | BA81: Materials and Services
A82: Materials and Services | BA82: Materials & Equipment | BB82: =B83 -> 520000 | BC82: =C83 -> 0.9
A83: Materials & Equipment | B83: =Calculations!AC31 -> 520000 | C83: =Calculations!AD31 -> 0.9 | D83: =Calculations!AE31 -> N | BA83: Services | BB83: =B84 -> 0 | BC83: =C84 -> 0.9
A84: Services | B84: =Calculations!AC32 -> 0 | C84: =Calculations!AD32 -> 0.9 | BA84: Subtotal | BB84: =B85 -> 520000
A85: Subtotal | B85: =Calculations!AC33 -> 520000 | BA85: Sales Tax (Materials & Equipment Purchases) | BB85: =B86 -> 31200 | BC85: =C86 -> 0
A86: Sales Tax (Materials & Equipment Purchases) | B86: =Calculations!AC34 -> 31200 | C86: =Calculations!AD34 -> 0 | BA86: Average Annual Payment (Interest and Principal) | BB86: =B87 -> 28229760 | BC86: =C87 -> 0
A87: Average Annual Payment (Interest and Principal) | B87: =Calculations!AC35 -> 28229760 | C87: =Calculations!AD35 -> 0 | BA87: Property Taxes | BB87: =B88 -> 7659 | BC87: =C88 -> 0
A88: Property Taxes | B88: =Calculations!AC36 -> 7659 | C88: =Calculations!AD36 -> 0 | BA88: Total | BB88: =B89 -> 30348619
A89: Total | B89: =Calculations!AC37 -> 30348619
BA90: Other Parameters
A91: Other Parameters | BA91: Financial Parameters
A92: Financial Parameters | BA92: Debt Financing
A93: Debt Financing | BA93: Percentage financed | BB93: =B94 -> 0.8 | BC93: =C94 -> 0
A94: Percentage financed | B94: =Calculations!AC43 -> 0.8 | C94: =Calculations!AD43 -> 0 | BA94: Years financed (term) | BB94: =B95 -> 10
A95: Years financed (term) | B95: =Calculations!AC44 -> 10 | BA95: Interest rate | BB95: =B96 -> 0.1
A96: Interest rate | B96: =Calculations!AC45 -> 0.1 | BA96: Tax Parameters
A97: Tax Parameters | BA97: Local Property Tax (percent of taxable value) | BB97: =B98 -> 0
A98: Local Property Tax (percent of taxable value) | B98: =Calculations!AC47 -> 0 | BA98: Assessed Value (percent of construction cost) | BB98: 0
A99: Assessed Value (percent of construction cost) | B99: =Calculations!AC48 -> 0 | BA99: Taxable Value (percent of assessed value) | BB99: 0
A100: Taxable Value (percent of assessed value) | B100: =Calculations!AC49 -> 0 | BA100: Taxable Value | BB100: 0
A101: Taxable Value | B101: =Calculations!AC50 -> 0 | BA101: Property Tax Exemption (percent of local taxes) | BB101: 0
A102: Property Tax Exemption (percent of local taxes) | B102: =Calculations!AC51 -> 0 | BA102: Local Property Taxes | BB102: 7659 | BC102: =C103 -> 0
A103: Local Property Taxes | B103: =Calculations!AC52 -> 7659 | C103: =Calculations!AD52 -> 0 | BA103: Local Sales Tax Rate | BB103: 0.06 | BC103: =C104 -> 0
A104: Local Sales Tax Rate | B104: =Calculations!AC53 -> 0.06 | C104: =Calculations!AD53 -> 0 | BA104: Sales Tax Exemption (percent of local taxes) | BB104: 0
A105: Sales Tax Exemption (percent of local taxes) | B105: =Calculations!AC54 -> 0 | BA105: Payroll Parameters | BB105: Wage per hour | BC105: Employer Payroll Overhead
A106: Payroll Parameters | B106: Wage per hour | C106: Employer Payroll Overhead | BA106: Construction and Installation Labor
A107: Construction and Installation Labor | BA107: Construction Workers / Installers | BB107: =B108 -> 21.39 | BC107: =C108 -> 0.4557
A108: Construction Workers / Installers | B108: =Calculations!E27 -> 21.39 | C108: =Calculations!G27 -> 0.4557 | BA108: O&M Labor
A109: O&M Labor | BA109: Technicians | BB109: =B110 -> 21.39 | BC109: =C110 -> 0.4557
A110: Technicians | B110: =Calculations!E29 -> 21.39 | C110: =Calculations!G29 -> 0.4557

Sheet User Add-in Location
A1: Multipliers For Economic Input-Output Analysis
A3: MyCounty (name) | C3: Year of Data | E3: =IF(B3="","",IF(D3=""," Enter Year of Data",IF(D3>2007,IF(D3<2016,""," ERROR - Deflators Data Not Current")," ERROR - Deflators Data Not Current"))) -> 
A4: MyRegion (includes) | C4: Year of Data | E4: =IF(B4="","",IF(D4=""," Enter Year of Data",IF(D4>2007,IF(D4<2016,""," ERROR - Deflators Data Not Current")," ERROR - Deflators Data Not Current"))) -> 
A5: Sales Tax Rate (%) | C5: =IF(B$5=""," To incorporate Sales Tax in analysis Enter Sales Tax Rate","") -> To incorporate Sales Tax in analysis Enter Sales Tax Rate
A6: Sales Tax Exemption (%) | C6: =IF(B$5=""," To incorporate Sales Tax Exemption in analysis Enter Exemption as percent of total","") -> To incorporate Sales Tax Exemption in analysis Enter Exemption as percent of total
A7: Property Tax Exemption (%) | C7: =IF(B$7=""," To incorporate Property Tax Exemption in analysis Enter Exemption as percent of total","") -> To incorporate Property Tax Exemption in analysis Enter Exemption as percent of total
A9: Jobs Per Million Dollars Change in Final Demand | D9: Personal Consumption Expenditures (PCE)
A10: Jobs Direct Multipliers | B10: MyCounty | C10: MyRegion | E10: =B10 -> MyCounty | F10: =C10 -> MyRegion
A11: Ag, Forestry, Fish & Hunting | B11: 0 | C11: 0 | E11: 0 | F11: 0
A12: Mining | B12: 0 | C12: 0 | E12: 0 | F12: 0
A13: Construction | B13: 0 | C13: 0 | E13: 0 | F13: 0
A14: Construction/Installations - Non Residential | B14: 0 | C14: 0 | E14: 0 | F14: 0
A15: Construction/Installation Residential | B15: 0 | C15: 0 | E15: 0 | F15: 0
A16: Manufacturing | B16: 0 | C16: 0 | E16: 0 | F16: 0
A17: Fabricated Metals | B17: 0 | C17: 0 | E17: 0 | F17: 0
A18: Machinery | B18: 0 | C18: 0 | E18: 0 | F18: 0
A19: Electrical Equip | B19: 0 | C19: 0 | E19: 0 | F19: 0
A20: Battery Manufacturing | B20: 0 | C20: 0 | E20: 0 | F20: 0
A21: Energy Wire Manufacturing | B21: 0 | C21: 0 | E21: 0 | F21: 0
A22: Wholesale Trade | B22: 0 | C22: 0 | E22: 0 | F22: 0
A23: Retail trade | B23: 0 | C23: 0 | E23: 0 | F23: 0
A24: TCPU | B24: 0 | C24: 0 | E24: 0 | F24: 0
A25: Insurance and Real Estate | B25: 0 | C25: 0 | E25: 0 | F25: 0
A26: Finance | B26: 0 | C26: 0 | E26: 0 | F26: 0
A27: Other Professional Services | B27: 0 | C27: 0 | E27: 0 | F27: 0
A28: Office Services | B28: 0 | C28: 0 | E28: 0 | F28: 0
A29: Architectural and Engineering Services | B29: 0 | C29: 0 | E29: 0 | F29: 0
A30: Other services | B30: 0 | C30: 0 | E30: 0 | F30: 0
A31: Government | B31: 0 | C31: 0 | E31: 0 | F31: 0
A32: Semiconductor (solar cell/module) manufacturing | B32: 0 | C32: 0 | E32: 0 | F32: 0
D33: Total | E33: =SUM(E11:E32) -> 0 | F33: =SUM(F11:F32) -> 0
A34: Jobs Per Million Dollars Change in Final Demand
A35: Jobs Indirect Multipliers | B35: =B10 -> MyCounty | C35: =C10 -> MyRegion
A36: Ag, Forestry, Fish & Hunting | B36: 0 | C36: 0
A37: Mining | B37: 0 | C37: 0
A38: Construction | B38: 0 | C38: 0
A39: Construction/Installations - Non Residential | B39: 0 | C39: 0
A40: Construction/Installation Residential | B40: 0 | C40: 0
A41: Manufacturing | B41: 0 | C41: 0
A42: Fabricated Metals | B42: 0 | C42: 0
A43: Machinery | B43: 0 | C43: 0
A44: Electrical Equip | B44: 0 | C44: 0
A45: Battery Manufacturing | B45: 0 | C45: 0
A46: Energy Wire Manufacturing | B46: 0 | C46: 0
A47: Wholesale Trade | B47: 0 | C47: 0
A48: Retail trade | B48: 0 | C48: 0
A49: TCPU | B49: 0 | C49: 0
A50: Insurance and Real Estate | B50: 0 | C50: 0
A51: Finance | B51: 0 | C51: 0
A52: Other Professional Services | B52: 0 | C52: 0
A53: Office Services | B53: 0 | C53: 0
A54: Architectural and Engineering Services | B54: 0 | C54: 0
A55: Other services | B55: 0 | C55: 0
A56: Government | B56: 0 | C56: 0
A57: Semiconductor (solar cell/module) manufacturing | B57: 0 | C57: 0
A59: Jobs Per Million Dollars Change in Final Demand
A60: Jobs Induced Multipliers | B60: =B35 -> MyCounty | C60: =C35 -> MyRegion
A61: Ag, Forestry, Fish & Hunting | B61: 0 | C61: 0
A62: Mining | B62: 0 | C62: 0
A63: Construction | B63: 0 | C63: 0
A64: Construction/Installations - Non Residential | B64: 0 | C64: 0
A65: Construction/Installation Residential | B65: 0 | C65: 0
A66: Manufacturing | B66: 0 | C66: 0
A67: Fabricated Metals | B67: 0 | C67: 0
A68: Machinery | B68: 0 | C68: 0
A69: Electrical Equip | B69: 0 | C69: 0
A70: Battery Manufacturing | B70: 0 | C70: 0
A71: Energy Wire Manufacturing | B71: 0 | C71: 0
A72: Wholesale Trade | B72: 0 | C72: 0
A73: Retail trade | B73: 0 | C73: 0
A74: TCPU | B74: 0 | C74: 0
A75: Insurance and Real Estate | B75: 0 | C75: 0
A76: Finance | B76: 0 | C76: 0
A77: Other Professional Services | B77: 0 | C77: 0
A78: Office Services | B78: 0 | C78: 0
A79: Architectural and Engineering Services | B79: 0 | C79: 0
A80: Other services | B80: 0 | C80: 0
A81: Government | B81: 0 | C81: 0
A82: Semiconductor (solar cell/module) manufacturing | B82: 0 | C82: 0
A84: Earnings Per Million Dollars Change in Final Demand
A85: Earnings Direct Multipliers | B85: =B60 -> MyCounty | C85: =C60 -> MyRegion
A86: Ag, Forestry, Fish & Hunting | B86: 0 | C86: 0
A87: Mining | B87: 0 | C87: 0
A88: Construction | B88: 0 | C88: 0
A89: Construction/Installations - Non Residential | B89: 0 | C89: 0
A90: Construction/Installation Residential | B90: 0 | C90: 0
A91: Manufacturing | B91: 0 | C91: 0
A92: Fabricated Metals | B92: 0 | C92: 0
A93: Machinery | B93: 0 | C93: 0
A94: Electrical Equip | B94: 0 | C94: 0
A95: Battery Manufacturing | B95: 0 | C95: 0
A96: Energy Wire Manufacturing | B96: 0 | C96: 0
A97: Wholesale Trade | B97: 0 | C97: 0
A98: Retail trade | B98: 0 | C98: 0
A99: TCPU | B99: 0 | C99: 0
A100: Insurance and Real Estate | B100: 0 | C100: 0
A101: Finance | B101: 0 | C101: 0
A102: Other Professional Services | B102: 0 | C102: 0
A103: Office Services | B103: 0 | C103: 0
A104: Architectural and Engineering Services | B104: 0 | C104: 0
A105: Other services | B105: 0 | C105: 0
A106: Government | B106: 0 | C106: 0
A107: Semiconductor (solar cell/module) manufacturing | B107: 0 | C107: 0
A109: Earnings Per Million Dollars Change in Final Demand
A110: Earnings Indirect Multipliers | B110: =B85 -> MyCounty | C110: =C85 -> MyRegion
A111: Ag, Forestry, Fish & Hunting | B111: 0 | C111: 0
A112: Mining | B112: 0 | C112: 0
A113: Construction | B113: 0 | C113: 0
A114: Construction/Installations - Non Residential | B114: 0 | C114: 0
A115: Construction/Installation Residential | B115: 0 | C115: 0
A116: Manufacturing | B116: 0 | C116: 0
A117: Fabricated Metals | B117: 0 | C117: 0
A118: Machinery | B118: 0 | C118: 0
A119: Electrical Equip | B119: 0 | C119: 0
A120: Battery Manufacturing | B120: 0 | C120: 0
A121: Energy Wire Manufacturing | B121: 0 | C121: 0
A122: Wholesale Trade | B122: 0 | C122: 0
A123: Retail trade | B123: 0 | C123: 0
A124: TCPU | B124: 0 | C124: 0
A125: Insurance and Real Estate | B125: 0 | C125: 0
A126: Finance | B126: 0 | C126: 0
A127: Other Professional Services | B127: 0 | C127: 0
A128: Office Services | B128: 0 | C128: 0
A129: Architectural and Engineering Services | B129: 0 | C129: 0
A130: Other services | B130: 0 | C130: 0
A131: Government | B131: 0 | C131: 0
A132: Semiconductor (solar cell/module) manufacturing | B132: 0 | C132: 0
A134: Earnings Per Million Dollars Change in Final Demand
A135: Earnings Induced Multipliers | B135: =B110 -> MyCounty | C135: =C110 -> MyRegion
A136: Ag, Forestry, Fish & Hunting | B136: 0 | C136: 0
A137: Mining | B137: 0 | C137: 0
A138: Construction | B138: 0 | C138: 0
A139: Construction/Installations - Non Residential | B139: 0 | C139: 0
A140: Construction/Installation Residential | B140: 0 | C140: 0
A141: Manufacturing | B141: 0 | C141: 0
A142: Fabricated Metals | B142: 0 | C142: 0
A143: Machinery | B143: 0 | C143: 0
A144: Electrical Equip | B144: 0 | C144: 0
A145: Battery Manufacturing | B145: 0 | C145: 0
A146: Energy Wire Manufacturing | B146: 0 | C146: 0
A147: Wholesale Trade | B147: 0 | C147: 0
A148: Retail trade | B148: 0 | C148: 0
A149: TCPU | B149: 0 | C149: 0
A150: Insurance and Real Estate | B150: 0 | C150: 0
A151: Finance | B151: 0 | C151: 0
A152: Other Professional Services | B152: 0 | C152: 0
A153: Office Services | B153: 0 | C153: 0
A154: Architectural and Engineering Services | B154: 0 | C154: 0
A155: Other services | B155: 0 | C155: 0
A156: Government | B156: 0 | C156: 0
A157: Semiconductor (solar cell/module) manufacturing | B157: 0 | C157: 0
A159: Output Per Million Dollars Change in Final Demand
A160: Output Direct Multipliers | B160: =B135 -> MyCounty | C160: =C135 -> MyRegion
A161: Ag, Forestry, Fish & Hunting | B161: 0 | C161: 0
A162: Mining | B162: 0 | C162: 0
A163: Construction | B163: 0 | C163: 0
A164: Construction/Installations - Non Residential | B164: 0 | C164: 0
A165: Construction/Installation Residential | B165: 0 | C165: 0
A166: Manufacturing | B166: 0 | C166: 0
A167: Fabricated Metals | B167: 0 | C167: 0
A168: Machinery | B168: 0 | C168: 0
A169: Electrical Equip | B169: 0 | C169: 0
A170: Battery Manufacturing | B170: 0 | C170: 0
A171: Energy Wire Manufacturing | B171: 0 | C171: 0
A172: Wholesale Trade | B172: 0 | C172: 0
A173: Retail trade | B173: 0 | C173: 0
A174: TCPU | B174: 0 | C174: 0
A175: Insurance and Real Estate | B175: 0 | C175: 0
A176: Finance | B176: 0 | C176: 0
A177: Other Professional Services | B177: 0 | C177: 0
A178: Office Services | B178: 0 | C178: 0
A179: Architectural and Engineering Services | B179: 0 | C179: 0
A180: Other services | B180: 0 | C180: 0
A181: Government | B181: 0 | C181: 0
A182: Semiconductor (solar cell/module) manufacturing | B182: 0 | C182: 0
A184: Output Per Million Dollars Change in Final Demand
A185: Output Indirect Multipliers | B185: =B160 -> MyCounty | C185: =C160 -> MyRegion
A186: Ag, Forestry, Fish & Hunting | B186: 0 | C186: 0
A187: Mining | B187: 0 | C187: 0
A188: Construction | B188: 0 | C188: 0
A189: Construction/Installations - Non Residential | B189: 0 | C189: 0
A190: Construction/Installation Residential | B190: 0 | C190: 0
A191: Manufacturing | B191: 0 | C191: 0
A192: Fabricated Metals | B192: 0 | C192: 0
A193: Machinery | B193: 0 | C193: 0
A194: Electrical Equip | B194: 0 | C194: 0
A195: Battery Manufacturing | B195: 0 | C195: 0
A196: Energy Wire Manufacturing | B196: 0 | C196: 0
A197: Wholesale Trade | B197: 0 | C197: 0
A198: Retail trade | B198: 0 | C198: 0
A199: TCPU | B199: 0 | C199: 0
A200: Insurance and Real Estate | B200: 0 | C200: 0
A201: Finance | B201: 0 | C201: 0
A202: Other Professional Services | B202: 0 | C202: 0
A203: Office Services | B203: 0 | C203: 0
A204: Architectural and Engineering Services | B204: 0 | C204: 0
A205: Other services | B205: 0 | C205: 0
A206: Government | B206: 0 | C206: 0
A207: Semiconductor (solar cell/module) manufacturing | B207: 0 | C207: 0
A209: Output Per Million Dollars Change in Final Demand
... 23 more rows

Sheet DefaultData
C1: System Type
C2: =ProjectData!B15 -> Utility | E2: =IF(C2="Residential New Construction",1,IF(C2="Residential Retrofit",1,2)) -> 2 | N2: 1 | O2: 2 | P2: 3 | Q2: 4 | R2: 5 | S2: 6 | CJ2: Residential New Construction
N3: 1 | O3: 2 | P3: 3 | Q3: 4 | R3: 5 | S3: 6 | CJ3: Fixed
C4: Number of Systems Installed | D4: KW | E4: Total KW Installed
A5: Warning | C5: =ProjectData!B19 -> 1 | D5: =ProjectData!B18 -> 208000 | E5: =D5*C5 -> 208000
A7: This Worksheet contains Data and Formulas that are an integral part of the JEDI model. | C7: Construction | E7: O&M
C8: Cost Per KW | D8: Project Cost | E8: Cost Per KW
A9: Although the data and formulas are available for review they must not be changed. | C9: =ProjectData!B22 -> 1300 | D9: =+C9*E5 -> 270400000 | E9: =ProjectData!B23 -> 10 | AH9: =ProjectData!X759 -> UTTFFM
AI10: 1 | AJ10: LCCSFM | AK10: LCCSSA | AL10: LCTFFM | AM10: LCTFSA | AP10: RNCSFM | AQ10: RNCSSA | AR10: RNTFFM | AS10: RNTFSA | AT10: RRCSFM | AU10: RRCSSA | AV10: RRTFFM | AW10: RRTFSA | AX10: SCCSFM | AY10: SCCSSA | AZ10: SCTFFM | BA10: SCTFSA | BD10: UTCSFM | BE10: UTCSSA | BF10: UTTFFM | BG10: UTTFSA
A11: Any changes to the data or formulas will impact the analysis and may invalidate the model results. | B11: Project Data | C11: Default Values - Based on Cost Per KW from Project Data sheet | AG11: Manufactured | AI11: =AI10+1 -> 2
G12: Very Small | H12: Small | I12: Medium | J12: Large | AI12: 3
G13: 30000 | H13: 100000 | I13: 300000 | J13: 400000 | L13: =ProjectData!B13 -> 0 | AI13: 4
B14: Installation Costs | C14: Cost | D14: Cost | E14: Percent | F14: State | G14: County | H14: County | I14: County | J14: County | N14: 30000 | AG14: Locally | AH14: =HLOOKUP(AH$9,AJ$10:BO$43,AI14) -> Typically 1 MW or larger | AI14: 5 | AJ14: Typically 100 kW - 1 MW | AK14: Typically 100 kW - 1 MW | AL14: Typically 100 kW - 1 MW | AM14: Typically 100 kW - 1 MW | AN14: Typically 100 kW - 1 MW | AO14: Typically 100 kW - 1 MW | AP14: Typically less than 10 kW | AQ14: Typically less than 10 kW | AR14: Typically less than 10 kW | AS14: Typically less than 10 kW | AT14: Typically less than 10 kW | AU14: Typically less than 10 kW | AV14: Typically less than 10 kW | AW14: Typically less than 10 kW | AX14: Typically 10 kW - 100 kW | AY14: Typically 10 kW - 100 kW | AZ14: Typically 10 kW - 100 kW | BA14: Typically 10 kW - 100 kW | BB14: Typically 10 kW - 100 kW | BC14: Typically 10 kW - 100 kW | BD14: Typically 1 MW or larger | BE14: Typically 1 MW or larger | BF14: Typically 1 MW or larger | BG14: Typically 100 KW - 2 MW
B15: Materials & Equipment | D15: Per KW | E15: of Cost | F15: Local Share | G15: Local Share | H15: Local Share | I15: Local Share | J15: Local Share | N15: 100000 | Q15: 300000 | T15: 400000 | AH15: 1000 | AI15: 6 | AJ15: 150 | AK15: 150 | AL15: 150 | AM15: 150 | AP15: 3.5 | AQ15: 3.5 | AR15: 3.5 | AS15: 3.5 | AT15: 5 | AU15: 5 | AV15: 5 | AW15: 5 | AX15: 20 | AY15: 20 | AZ15: 20 | BA15: 20 | BD15: 1000 | BE15: 1000 | BF15: 1000 | BG15: 1000
B16: Mounting (rails, clamps, fittings, etc.) | C16: =D$9*E16 -> 10842132.99 | D16: =C16/E$5 -> 52.12563936 | E16: =AH17 -> 0.04009664567 | F16: 1 | G16: 0 | H16: 1 | I16: 1 | J16: =F16 -> 1 | L16: =(L$13-G$13)/(H$13-G$13) -> -0.4285714286 | M16: =+H16-G16 -> 1 | N16: =G16+(M16*L16) -> -0.4285714286 | O16: =(L$13-H$13)/(I$13-H$13) -> -0.5 | P16: =I16-H16 -> 0 | Q16: =H16+(O16*P16) -> 1 | R16: =IF((L$13-I$13)/(J$13-I$13)>1,1,(L$13-I$13)/(J$13-I$13)) -> -3 | S16: =J16-I16 -> 0 | T16: =I16+(R16*S16) -> 1 | AI16: 7 | BX16: Materials and Services
B17: Modules | C17: =D$9*E17 -> 97553975.78 | D17: =C17/E$5 -> 469.009499 | E17: =AH18 -> 0.3607765377 | F17: 1 | G17: 0 | H17: 1 | I17: 1 | J17: =F17 -> 1 | L17: =(L$13-G$13)/(H$13-G$13) -> -0.4285714286 | M17: =+H17-G17 -> 1 | N17: =G17+(M17*L17) -> -0.4285714286 | O17: =(L$13-H$13)/(I$13-H$13) -> -0.5 | P17: =I17-H17 -> 0 | Q17: =H17+(O17*P17) -> 1 | R17: =IF((L$13-I$13)/(J$13-I$13)>1,1,(L$13-I$13)/(J$13-I$13)) -> -3 | S17: =J17-I17 -> 0 | T17: =I17+(R17*S17) -> 1 | AG17: N | AH17: 0.04009664567 | AI17: 8 | AJ17: 0.04367313543 | AK17: 0.05460118814 | AL17: 0.04554398748 | AP17: 0.03297501375 | AQ17: 0.05420105715 | AR17: 0.02723565329 | AT17: 0.03505063053 | AU17: 0.05801576271 | AV17: 0.02863627439 | AX17: 0.03953998123 | AY17: 0.04847778354 | AZ17: 0.03530523563 | BD17: 0.03646778418 | BE17: 0.05356659794 | BF17: 0.04009664567 | BX17: Mounting (rails, clamps, fittings, etc.)
A18: To view the data and formulas simply scroll over to the adjacent columns to the right. | B18: Electrical (wire, connectors, breakers, etc.) | C18: =D$9*E18 -> 12361875.87 | D18: =C18/E$5 -> 59.43209552 | E18: =AH19 -> 0.04571699655 | F18: 1 | G18: 0 | H18: 1 | I18: 1 | J18: 1 | L18: =(L$13-G$13)/(H$13-G$13) -> -0.4285714286 | M18: =+H18-G18 -> 1 | N18: =G18+(M18*L18) -> -0.4285714286 | O18: =(L$13-H$13)/(I$13-H$13) -> -0.5 | P18: =I18-H18 -> 0 | Q18: =H18+(O18*P18) -> 1 | R18: =IF((L$13-I$13)/(J$13-I$13)>1,1,(L$13-I$13)/(J$13-I$13)) -> -3 | S18: =J18-I18 -> 0 | T18: =I18+(R18*S18) -> 1 | AG18: N | AH18: 0.3607765377 | AI18: =AI17+1 -> 9 | AJ18: 0.3626476362 | AK18: 0.309803262 | AL18: 0.2687076939 | AP18: 0.3082446938 | AQ18: 0.2625641088 | AR18: 0.3628219794 | AT18: 0.3276471984 | AU18: 0.2790912427 | AV18: 0.3814804677 | AX18: 0.3171761193 | AY18: 0.2709577744 | AZ18: 0.3438479546 | BD18: 0.4005056833 | BE18: 0.3421447012 | BF18: 0.3607765377 | BX18: Modules
B19: Inverter | C19: =D$9*E19 -> 17708322.55 | D19: =C19/E$5 -> 85.1361661 | E19: =AH20 -> 0.06548935854 | F19: 1 | G19: 0 | H19: 1 | I19: 1 | J19: 1 | L19: =(L$13-G$13)/(H$13-G$13) -> -0.4285714286 | M19: =+H19-G19 -> 1 | N19: =G19+(M19*L19) -> -0.4285714286 | O19: =(L$13-H$13)/(I$13-H$13) -> -0.5 | P19: =I19-H19 -> 0 | Q19: =H19+(O19*P19) -> 1 | R19: =IF((L$13-I$13)/(J$13-I$13)>1,1,(L$13-I$13)/(J$13-I$13)) -> -3 | S19: =J19-I19 -> 0 | T19: =I19+(R19*S19) -> 1 | AG19: N | AH19: 0.04571699655 | AI19: 10 | AJ19: 0.03062540467 | AK19: 0.008870699677 | AL19: 0.03193732333 | AP19: 0.03297501375 | AQ19: 0.00197544984 | AR19: 0.02723565329 | AT19: 0.03505063053 | AU19: 0.001696782232 | AV19: 0.02863627439 | AX19: 0.02544244321 | AY19: 0.00703551657 | AZ19: 0.02271754878 | BD19: 0.04157947719 | BE19: 0.01310775409 | BF19: 0.04571699655 | BX19: Electrical (wire, connectors, breakers, etc.)
B20: Subtotal | C20: =SUM(C16:C19) -> 138466307.2 | D20: =SUM(D16:D19) -> 665.7033999 | E20: =SUM(E16:E19) -> 0.5120795384 | AG20: N | AH20: 0.06548935854 | AI20: 11 | AJ20: 0.0654534758 | AK20: 0.0559157107 | AL20: 0.06825734523 | AP20: 0.0602152425 | AQ20: 0.05129159334 | AR20: 0.04973467123 | AT20: 0.06400549922 | AU20: 0.05452014973 | AV20: 0.05229232715 | AX20: 0.05724642153 | AY20: 0.04890457391 | AZ20: 0.05111531008 | BD20: 0.05956238368 | BE20: 0.05088305813 | BF20: 0.06548935854 | BX20: Inverter
B21: Labor | AH21: 0.5120795384 | AI21: 12 | AJ21: 0.5023996521 | AK21: 0.4291908605 | AL21: 0.41444635 | AP21: 0.4344099638 | AQ21: 0.3700322091 | AR21: 0.4670279572 | AT21: 0.4617539587 | AU21: 0.3933239374 | AV21: 0.4910453436 | AX21: 0.4394049653 | AY21: 0.3753756484 | AZ21: 0.452986049 | BD21: 0.5381153284 | BE21: 0.4597021114 | BF21: 0.5120795384 | BX21: Subtotal
B22: Installation | C22: =D$9*E22 -> 27090088.4 | D22: =C22/E$5 -> 130.2408096 | E22: =AH23 -> 0.1001852382 | F22: 1 | G22: 0.1 | H22: 0.1 | I22: 0.5 | J22: 0.5 | L22: =(L$13-G$13)/(H$13-G$13) -> -0.4285714286 | M22: =+H22-G22 -> 0 | N22: =G22+(M22*L22) -> 0.1 | O22: =(L$13-H$13)/(I$13-H$13) -> -0.5 | P22: =I22-H22 -> 0.4 | Q22: =H22+(O22*P22) -> -0.1 | R22: =IF((L$13-I$13)/(J$13-I$13)>1,1,(L$13-I$13)/(J$13-I$13)) -> -3 | S22: =J22-I22 -> 0 | T22: =I22+(R22*S22) -> 0.5 | AI22: 13 | BX22: Labor
B23: Subtotal | C23: =SUM(C22:C22) -> 27090088.4 | D23: =SUM(D22:D22) -> 130.2408096 | E23: =E22 -> 0.1001852382 | AH23: =HLOOKUP(AH$9,AJ$10:BO$43,AI23) -> 0.1001852382 | AI23: 14 | AJ23: 0.09488349848 | AK23: 0.08105724235 | AL23: 0.1121573604 | AP23: 0.09884719352 | AQ23: 0.08419844946 | AR23: 0.08164266168 | AT23: 0.08385793092 | AU23: 0.0714305334 | AV23: 0.0692623072 | AX23: 0.09015051665 | AY23: 0.07679058403 | AZ23: 0.07365273869 | BD23: 0.09111818664 | BE23: 0.07755520978 | BF23: 0.1001852382 | BX23: Installation
B24: Total | C24: =+C23+C20 -> 165556395.6 | D24: =+D23+D20 -> 795.9442095 | E24: =+E23+E20 -> 0.6122647766 | AH24: =HLOOKUP(AH$9,AJ$10:BO$43,AI24) -> 0.1001852382 | AI24: 15 | AJ24: 0.09488349848 | AK24: 0.08105724235 | AL24: 0.1121573604 | AP24: 0.09884719352 | AQ24: 0.08419844946 | AR24: 0.08164266168 | AT24: 0.08385793092 | AU24: 0.0714305334 | AV24: 0.0692623072 | AX24: 0.09015051665 | AY24: 0.07679058403 | AZ24: 0.07365273869 | BD24: 0.09111818664 | BE24: 0.07755520978 | BF24: 0.1001852382 | BX24: Subtotal
B25: Other Costs | AH25: =HLOOKUP(AH$9,AJ$10:BO$43,AI25) -> 0.6122647766 | AI25: 16 | AJ25: 0.5972831506 | AK25: 0.5102481028 | AL25: 0.5266037104 | AP25: 0.5332571573 | AQ25: 0.4542306585 | AR25: 0.5486706189 | AT25: 0.5456118896 | AU25: 0.4647544708 | AV25: 0.5603076508 | AX25: 0.5295554819 | AY25: 0.4521662324 | AZ25: 0.5266387877 | BD25: 0.629233515 | BE25: 0.5372573212 | BF25: 0.6122647766 | BX25: Total
B26: Permitting | C26: =D$9*E26 -> 1236049.527 | D26: =C26/E$5 -> 5.942545805 | E26: =AH27 -> 0.00457118908 | F26: 1 | G26: 1 | H26: 1 | I26: 1 | J26: 1 | L26: =(L$13-G$13)/(H$13-G$13) -> -0.4285714286 | M26: =+H26-G26 -> 0 | N26: =G26+(M26*L26) -> 1 | O26: =(L$13-H$13)/(I$13-H$13) -> -0.5 | P26: =I26-H26 -> 0 | Q26: =H26+(O26*P26) -> 1 | R26: =IF((L$13-I$13)/(J$13-I$13)>1,1,(L$13-I$13)/(J$13-I$13)) -> -3 | S26: =J26-I26 -> 0 | T26: =I26+(R26*S26) -> 1 | AI26: 17 | BX26: Other Costs
B27: Other Costs | C27: =D$9*E27 -> 27316694.55 | D27: =C27/E$5 -> 131.3302623 | E27: =AH28 -> 0.1010232787 | F27: 1 | G27: 0 | H27: 1 | I27: 1 | J27: 1 | L27: =(L$13-G$13)/(H$13-G$13) -> -0.4285714286 | M27: =+H27-G27 -> 1 | N27: =G27+(M27*L27) -> -0.4285714286 | O27: =(L$13-H$13)/(I$13-H$13) -> -0.5 | P27: =I27-H27 -> 0 | Q27: =H27+(O27*P27) -> 1 | R27: =IF((L$13-I$13)/(J$13-I$13)>1,1,(L$13-I$13)/(J$13-I$13)) -> -3 | S27: =J27-I27 -> 0 | T27: =I27+(R27*S27) -> 1 | AH27: =HLOOKUP(AH$9,AJ$10:BO$43,AI27) -> 0.00457118908 | AI27: 18 | AJ27: 0.1082743776 | AK27: 0.1316746044 | AL27: 0.1272772388 | AP27: 0.02876246142 | AQ27: 0.03363237353 | AR27: 0.02781262555 | AT27: 0.02800111603 | AU27: 0.03298385637 | AV27: 0.02709550758 | AX27: 0.1264836261 | AY27: 0.1472904854 | AZ27: 0.1272678079 | BD27: 0.004210448545 | BE27: 0.005455486509 | BF27: 0.00457118908 | BX27: Permitting
B28: Business Overhead | C28: =D$9*E28 -> 76290860.33 | D28: =C28/E$5 -> 366.7829824 | E28: =AH29 -> 0.2821407557 | F28: 1 | G28: 0 | H28: 1 | I28: 1 | J28: 1 | L28: =(L$13-G$13)/(H$13-G$13) -> -0.4285714286 | M28: =+H28-G28 -> 1 | N28: =G28+(M28*L28) -> -0.4285714286 | O28: =(L$13-H$13)/(I$13-H$13) -> -0.5 | P28: =I28-H28 -> 0 | Q28: =H28+(O28*P28) -> 1 | R28: =IF((L$13-I$13)/(J$13-I$13)>1,1,(L$13-I$13)/(J$13-I$13)) -> -3 | S28: =J28-I28 -> 0 | T28: =I28+(R28*S28) -> 1 | AH28: 0.1010232787 | AI28: 19 | AJ28: 0.04419362351 | AK28: 0.0537447365 | AL28: 0.05194989339 | AP28: 0.05752492284 | AQ28: 0.06726474706 | AR28: 0.0556252511 | AT28: 0.05600223206 | AU28: 0.06596771274 | AV28: 0.05419101515 | AX28: 0.05162596982 | AY28: 0.06011856545 | AZ28: 0.05194604405 | BD28: 0.09305091286 | BE28: 0.1205662519 | BF28: 0.1010232787 | BX28: Other Costs
B29: Subtotal | C29: =SUM(C26:C28) -> 104843604.4 | D29: =SUM(D26:D28) -> 504.0557905 | E29: =SUM(E26:E28) -> 0.3877352234 | AH29: 0.2821407557 | AI29: 20 | AJ29: 0.2502488483 | AK29: 0.3043325562 | AL29: 0.2941691574 | AP29: 0.3804554585 | AQ29: 0.4448722209 | AR29: 0.3678915045 | AT29: 0.3703847623 | AU29: 0.4362939601 | AV29: 0.3584058265 | AX29: 0.2923349222 | AY29: 0.3404247168 | AZ29: 0.2941473603 | BD29: 0.2735051236 | BE29: 0.3367209405 | BF29: 0.2821407557 | BX29: Business Overhead
B30: Subtotal | C30: =C29+C24 -> 270400000 | D30: =D29+D24 -> 1300 | E30: =E29+E24 -> 1 | G30: Very Small | H30: Small | I30: Medium | J30: Large | AH30: 0.3877352234 | AI30: 21 | AJ30: 0.4027168494 | AK30: 0.4897518972 | AL30: 0.4733962896 | AP30: 0.4667428427 | AQ30: 0.5457693415 | AR30: 0.4513293811 | AT30: 0.4543881104 | AU30: 0.5352455292 | AV30: 0.4396923492 | AX30: 0.4704445181 | AY30: 0.5478337676 | AZ30: 0.4733612123 | BD30: 0.370766485 | BE30: 0.4627426788 | BF30: 0.3877352234 | BX30: Subtotal
B31: Sales Tax (Materials & Equipment Purchases) | C31: =C20*(C$58*(1-C$59)) -> 8307978.431 | D31: =C31/E$5 -> 39.942204 | G31: 30000 | H31: 100000 | I31: 300000 | J31: 400000 | AH31: 1 | AI31: 22 | AJ31: 1 | AK31: 1 | AL31: 1 | AP31: 1 | AQ31: 1 | AR31: 1 | AT31: 1 | AU31: 1 | AV31: 1 | AX31: 1 | AY31: 1 | AZ31: 1 | BD31: 1 | BE31: 1 | BF31: 1 | BX31: Total
B32: Total | C32: =C31+C30 -> 278707978.4 | D32: =D31+D30 -> 1339.942204 | G32: County | H32: County | I32: County | J32: County | AH32: 4.428200344 | AI32: 23 | AJ32: 5.652870157 | AK32: 6.617102696 | AL32: 5.420662036 | AP32: 6.974978138 | AQ32: 8.188476369 | AR32: 8.444813037 | AT32: 6.561936163 | AU32: 7.703573854 | AV32: 8.031771063 | AX32: 6.46328609 | AY32: 7.565754497 | AZ32: 7.238535762 | BD32: 4.868844766 | BE32: 5.699342977 | BF32: 4.428200344 | BX32: Base system cost
B33: PV System Annual Operating and Maintenance Costs | C33: Cost | D33: Cost | E33: Percent | F33: Local Share | G33: Local Share | H33: Local Share | I33: Local Share | J33: Local Share | AI33: 24 | BX33: Operations and Maintenance
B34: Labor | D34: Per KW | E34: of Cost | AI34: 25 | BX34: Labor
B35: Technicians | C35: =+D35*(ProjectData!B$20) -> 1248000 | D35: =E35*E$9 -> 6 | E35: =AH35 -> 0.6 | F35: 1 | G35: 1 | H35: 1 | I35: 1 | J35: 1 | AH35: =HLOOKUP(AH$9,AJ$10:BO$43,AI35) -> 0.6 | AI35: 26 | AJ35: 0.6 | AK35: 0.6 | AL35: 0.6 | AP35: 0.5466666667 | AQ35: 0.5466666667 | AR35: 0.5466666667 | AT35: 0.5466666667 | AU35: 0.5466666667 | AV35: 0.5466666667 | AX35: 0.5466666667 | AY35: 0.5466666667 | AZ35: 0.5466666667 | BD35: 0.6 | BE35: 0.6 | BF35: 0.6 | BX35: Technicians
B36: Subtotal | C36: =SUM(C35:C35) -> 1248000 | D36: =SUM(D35:D35) -> 6 | E36: =SUM(E35:E35) -> 0.6 | AG36: =AG11 -> Manufactured | AH36: =HLOOKUP(AH$9,AJ$10:BO$43,AI36) -> 0.6 | AI36: 27 | AJ36: 0.6 | AK36: 0.6 | AL36: 0.6 | AP36: 0.5466666667 | AQ36: 0.5466666667 | AR36: 0.5466666667 | AT36: 0.5466666667 | AU36: 0.5466666667 | AV36: 0.5466666667 | AX36: 0.5466666667 | AY36: 0.5466666667 | AZ36: 0.5466666667 | BD36: 0.6 | BE36: 0.6 | BF36: 0.6 | BX36: Subtotal
B37: Materials and Services | AG37: =AG14 -> Locally | AI37: 28 | BX37: Materials and Services
B38: Materials & Equipment | C38: =+D38*(ProjectData!B$20) -> 832000 | D38: =E38*E$9 -> 4 | E38: =AH38 -> 0.4 | F38: 1 | G38: 0 | H38: 1 | I38: 1 | J38: 1 | AG38: N | AH38: =HLOOKUP(AH$9,AJ$10:BO$43,AI38) -> 0.4 | AI38: 29 | AJ38: 0.4 | AK38: 0.4 | AL38: 0.4 | AP38: 0.4533333333 | AQ38: 0.4533333333 | AR38: 0.4533333333 | AT38: 0.4533333333 | AU38: 0.4533333333 | AV38: 0.4533333333 | AX38: 0.4533333333 | AY38: 0.4533333333 | AZ38: 0.4533333333 | BD38: 0.4 | BE38: 0.4 | BF38: 0.4 | BX38: Materials & Equipment
B39: Services | C39: =+D39*(ProjectData!B$20) -> 0 | D39: =E39*E$9 -> 0 | E39: =AH39 -> 0 | F39: 1 | G39: 0 | H39: 1 | I39: 1 | J39: 1 | AI39: 30 | AJ39: 0 | AK39: 0 | AL39: 0 | AP39: 0 | AQ39: 0 | AR39: 0 | AT39: 0 | AU39: 0 | AV39: 0 | AX39: 0 | AY39: 0 | AZ39: 0 | BD39: 0 | BE39: 0 | BF39: 0 | BX39: Services
B40: Subtotal | C40: =SUM(C38:C39) -> 832000 | D40: =SUM(D38:D39) -> 4 | E40: =SUM(E38:E39) -> 0.4 | AH40: =HLOOKUP(AH$9,AJ$10:BO$43,AI40) -> 0.4 | AI40: 31 | AJ40: 0.4 | AK40: 0.4 | AL40: 0.4 | AP40: 0.4533333333 | AQ40: 0.4533333333 | AR40: 0.4533333333 | AT40: 0.4533333333 | AU40: 0.4533333333 | AV40: 0.4533333333 | AX40: 0.4533333333 | AY40: 0.4533333333 | AZ40: 0.4533333333 | BD40: 0.4 | BE40: 0.4 | BF40: 0.4 | BX40: Subtotal
B41: Sales Tax (Materials & Equipment Purchases) | C41: =C38*(C$58*(1-C$59)) -> 49920 | D41: =E41*E$9 -> 0 | AI41: 32
B42: Total | C42: =C40+C41+C36 -> 2129920 | D42: =D40+D41+D36 -> 10 | E42: =E40+E36 -> 1 | AH42: =HLOOKUP(AH$9,AJ$10:BO$43,AI42) -> 1 | AI42: 33 | AJ42: 1 | AK42: 1 | AL42: 1 | AP42: 1 | AQ42: 1 | AR42: 1 | AT42: 1 | AU42: 1 | AV42: 1 | AX42: 1 | AY42: 1 | AZ42: 1 | BD42: 1 | BE42: 1 | BF42: 1 | BX42: Total
AH43: =HLOOKUP(AH$9,AJ$10:BO$43,AI43) -> 19.93 | AI43: 34 | AJ43: 19.93 | AK43: 19.93 | AL43: 19.93 | AP43: 32.8 | AQ43: 32.8 | AR43: 32.8 | AT43: 32.8 | AU43: 32.8 | AV43: 32.8 | AX43: 23.5 | AY43: 23.5 | AZ43: 23.5 | BD43: 19.93 | BE43: 19.93 | BF43: 19.93 | BX43: O&M Cost
B44: Other Parameters
B45: Financial Parameters | E45: Local Share | G45: 23951776.02 | H45: =G45/G46 -> 0.0492606389
B46: Debt Financing | G46: 486225444.1
B47: Percentage financed | C47: 0.8 | E47: 0
B48: Years financed (term) | C48: 10
B49: Interest rate | C49: 0.1 | CM49: Simple Avg Cost
B50: Average Annual Payment (Interest and Principal) | C50: =Calculations!F211 -> 31366400 | AI50: Alabama | AJ50: Alaska | AK50: Arizona | AL50: Arkansas | AM50: California | AN50: Colorado | AO50: Connecticut | AP50: Delaware | AQ50: District of Columbia | AR50: Florida | AS50: Georgia | AT50: Hawaii | AU50: Idaho | AV50: Illinois | AW50: Indiana | AX50: Iowa | AY50: Kansas | AZ50: Kentucky | BA50: Louisiana | BB50: Maine | BC50: Maryland | BD50: Massachusetts | BE50: Michigan | BF50: Minnesota | BG50: Mississippi | BH50: Missouri | BI50: Montana | BJ50: MyCounty | BK50: MyRegion | BL50: Nebraska | BM50: Nevada | BN50: New Hampshire | BO50: New Jersey | BP50: New Mexico | BQ50: New York | BR50: North Carolina | BS50: North Dakota | BT50: Ohio | BU50: Oklahoma | BV50: Oregon | BW50: Pennsylvania | BX50: REGION1 | BY50: REGION2 | BZ50: REGION3 | CA50: REGION4 | CB50: REGION5 | CC50: REGION6 | CD50: REGION7 | CE50: REGION8 | CF50: Rhode Island | CG50: South Carolina | CH50: South Dakota | CI50: Tennessee | CJ50: Texas | CK50: Utah | CL50: Vermont | CM50: Virginia | CN50: Washington | CO50: West Virginia | CP50: Wisconsin | CQ50: Wyoming
B51: Tax Parameters | AE51: 0 | AG51: 2 | AH51: 0-10 kw | AI51: 0 | AJ51: 0 | AK51: 0.9607306224 | AL51: 0 | AM51: 0.9999184422 | AN51: 0 | AO51: 1.080845124 | AP51: 0 | AQ51: 0.9457909615 | AR51: 1.07821242 | AS51: 0 | AT51: 0 | AU51: 0 | AV51: 1.015263574 | AW51: 0 | AX51: 0 | AY51: 0 | AZ51: 0 | BA51: 0 | BB51: 0 | BC51: 0.9323425873 | BD51: 1.001614757 | BE51: 0 | BF51: 1.107563651 | BG51: 0 | BH51: 0 | BI51: 0 | BJ51: 0 | BK51: 0 | BL51: 0 | BM51: 0.9163031737 | BN51: 0.8406143295 | BO51: 1.051227043 | BP51: 0 | BQ51: 1.073479103 | BR51: 0 | BS51: 0 | BT51: 0 | BU51: 0 | BV51: 0 | BW51: 0.9930742697 | BX51: 0 | BY51: 0 | BZ51: 0 | CA51: 0 | CB51: 0 | CC51: 0 | CD51: 0 | CE51: 0 | CF51: 0 | CG51: 0 | CH51: 0 | CI51: 0 | CJ51: 0.9355041396 | CK51: 0 | CL51: 0.9405966612 | CM51: 0 | CN51: 0 | CO51: 0 | CP51: 1.134623535 | CQ51: 0
B52: Local Property Tax (percent of taxable value) | C52: 0 | AE52: 10 | AG52: =AG51+1 -> 3 | AH52: 10-100 kw | AI52: 0 | AJ52: 0 | AK52: 1.008272381 | AL52: 0 | AM52: 0.9839727806 | AN52: 0 | AO52: 1.065126707 | AP52: 0 | AQ52: 0 | AR52: 0.7113356392 | AS52: 0 | AT52: 0 | AU52: 0 | AV52: 0 | AW52: 0 | AX52: 0 | AY52: 0 | AZ52: 0 | BA52: 0 | BB52: 0 | BC52: 0.847151735 | BD52: 1.097185888 | BE52: 0 | BF52: 0 | BG52: 0 | BH52: 0 | BI52: 0 | BJ52: 0 | BK52: 0 | BL52: 0 | BM52: 0.8741673856 | BN52: 0 | BO52: 1.028314551 | BP52: 0 | BQ52: 1.145866243 | BR52: 0 | BS52: 0 | BT52: 1.032039996 | BU52: 0 | BV52: 0 | BW52: 0.9624592341 | BX52: 0 | BY52: 0 | BZ52: 0 | CA52: 0 | CB52: 0 | CC52: 0 | CD52: 0 | CE52: 0 | CF52: 0 | CG52: 0 | CH52: 0 | CI52: 0 | CJ52: 0.9018211975 | CK52: 0 | CL52: 0 | CM52: 0 | CN52: 0 | CO52: 0 | CP52: 1.104013003 | CQ52: 0
B53: Assessed Value (percent of construction cost) | C53: 0 | AE53: 100 | AG53: =AG52+1 -> 4 | AH53: 100-1000 kw | AI53: 0 | AJ53: 0 | AK53: 0 | AL53: 0 | AM53: 1.076993821 | AN53: 0 | AO53: 0 | AP53: 0 | AQ53: 0 | AR53: 0 | AS53: 0 | AT53: 0 | AU53: 0 | AV53: 0 | AW53: 0 | AX53: 0 | AY53: 0 | AZ53: 0 | BA53: 0 | BB53: 0 | BC53: 0 | BD53: 1.010536815 | BE53: 0 | BF53: 0 | BG53: 0 | BH53: 0 | BI53: 0 | BJ53: 0 | BK53: 0 | BL53: 0 | BM53: 0 | BN53: 0 | BO53: 0.9396749038 | BP53: 0 | BQ53: 0 | BR53: 0 | BS53: 0 | BT53: 0 | BU53: 0 | BV53: 0 | BW53: 0.9706794771 | BX53: 0 | BY53: 0 | BZ53: 0 | CA53: 0 | CB53: 0 | CC53: 0 | CD53: 0 | CE53: 0 | CF53: 0 | CG53: 0 | CH53: 0 | CI53: 0 | CJ53: 0 | CK53: 0 | CL53: 0 | CM53: 0 | CN53: 0 | CO53: 0 | CP53: 0 | CQ53: 0
B54: Taxable Value (percent of assessed value) | C54: 0 | AE54: 1000 | AG54: 5 | AH54: 1000+ kW | AI54: 0 | AJ54: 0 | AK54: 0 | AL54: 0 | AM54: 0 | AN54: 0 | AO54: 0 | AP54: 0 | AQ54: 0 | AR54: 0 | AS54: 0 | AT54: 0 | AU54: 0 | AV54: 0 | AW54: 0 | AX54: 0 | AY54: 0 | AZ54: 0 | BA54: 0 | BB54: 0 | BC54: 0 | BD54: 0 | BE54: 0 | BF54: 0 | BG54: 0 | BH54: 0 | BI54: 0 | BJ54: 0 | BK54: 0 | BL54: 0 | BM54: 0 | BN54: 0 | BO54: 0 | BP54: 0 | BQ54: 0 | BR54: 0 | BS54: 0 | BT54: 0 | BU54: 0 | BV54: 0 | BW54: 0 | BX54: 0 | BY54: 0 | BZ54: 0 | CA54: 0 | CB54: 0 | CC54: 0 | CD54: 0 | CE54: 0 | CF54: 0 | CG54: 0 | CH54: 0 | CI54: 0 | CJ54: 0 | CK54: 0 | CL54: 0 | CM54: 0 | CN54: 0 | CO54: 0 | CP54: 0 | CQ54: 0
B55: Taxable Value | C55: =+C30*C53*C54 -> 0 | AG55: 6
B56: Property Tax Exemption (percent of local taxes) | C56: =AI69 -> 0 | AG56: 7
B57: Local Property Taxes | C57: =+C52*C55*(1-C56) -> 0 | E57: 1 | AG57: 8 | AH57: State | AI57: =ProjectData!B12 -> KENTUCKY
B58: Local Sales Tax Rate | C58: =AI72 -> 0.06 | E58: 1 | AG58: 9 | AH58: System Size | AI58: =ProjectData!B18 -> 208000
B59: Sales Tax Exemption (percent of local taxes) | C59: =AI77 -> 0 | E59: 1 | AG59: 10 | AH59: Offset | AI59: =IF($AI58<$AE52,AG51,IF($AI58<$AE53,AG52,IF($AI58<1000,$AG53,AG54))) -> 5
B60: Margins | AG60: 11
C61: Ag, Forestry, Fish & Hunting | D61: Mining | E61: Construction | F61: Construction/Installations - Non Residential | G61: Construction/Installation Residential | H61: Manufacturing | I61: Fabricated Metals | J61: Machinery | K61: Electrical Equip | L61: Battery Manufacturing | M61: Energy Wire Manufacturing | N61: Wholesale Trade | O61: Retail trade | P61: TCPU | Q61: Insurance and Real Estate | R61: Finance | S61: Other Professional Services | T61: Office Services | U61: Architectural and Engineering Services | V61: Other services | W61: Government | X61: Semiconductor (solar cell/module) manufacturing | AG61: 12 | AH61: Base Cost | AI61: =HLOOKUP(AI57,AI50:CQ54,AI59) -> 0
B62: Ag, Forestry, Fish & Hunting | C62: 0.84764 | D62: 0 | E62: 0 | F62: 0 | G62: 0 | H62: 0 | I62: 0 | J62: 0 | K62: 0 | L62: 0 | M62: 0 | N62: 0.086214 | O62: 0.001213 | P62: 0.064933 | Q62: 0 | R62: 0 | S62: 0 | T62: 0 | U62: 0 | V62: 0 | W62: 0 | X62: 0 | AG62: 13 | AH62: State Cost | AI62: =IF(AI61=0,AH32,AH32*AI61)*1000 -> 4428.200344
B63: Mining | C63: 0 | D63: 0.68282 | E63: 0 | F63: 0 | G63: 0 | H63: 0 | I63: 0 | J63: 0 | K63: 0 | L63: 0 | M63: 0 | N63: 0.01289 | O63: 0.008771 | P63: 0.295518 | Q63: 0 | R63: 0 | S63: 0 | T63: 0 | U63: 0 | V63: 0 | W63: 0 | X63: 0 | AG63: 14
B64: Construction | C64: 0 | D64: 0 | E64: 1 | F64: 0 | G64: 0 | H64: 0 | I64: 0 | J64: 0 | K64: 0 | L64: 0 | M64: 0 | N64: 0 | O64: 0 | P64: 0 | Q64: 0 | R64: 0 | S64: 0 | T64: 0 | U64: 0 | V64: 0 | W64: 0 | X64: 0 | AG64: 15 | AH64: Sales Tax Rate - Res | AI64: 0.04 | AJ64: 0 | AK64: 0.066 | AL64: 0.06 | AM64: 0.0825 | AN64: 0.029 | AO64: 0.06 | AP64: 0 | AQ64: 0.06 | AR64: 0.06 | AS64: 0.04 | AT64: 0.04 | AU64: 0.06 | AV64: 0.0625 | AW64: 0.07 | AX64: 0.06 | AY64: 0.063 | AZ64: 0.06 | BA64: 0.04 | BB64: 0.05 | BC64: 0.06 | BD64: 0.0625 | BE64: 0.06 | BF64: 0.06875 | BG64: 0.07 | BH64: 0.04225 | BI64: 0 | BJ64: ='User Add-in Location'!B5 -> 0 | BK64: ='User Add-in Location'!$B$5 -> 0 | BL64: 0.055 | BM64: 0.0685 | BN64: 0 | BO64: 0.07 | BP64: 0.05125 | BQ64: 0.04 | BR64: 0.0575 | BS64: 0.05 | BT64: 0.055 | BU64: 0.045 | BV64: 0 | BW64: 0.06 | CF64: 0.07 | CG64: 0.06 | CH64: 0.04 | CI64: 0.07 | CJ64: 0.0625 | CK64: 0.047 | CL64: 0.06 | CM64: 0.04 | CN64: 0.065 | CO64: 0.06 | CP64: 0.05 | CQ64: 0.04
B65: Construction/Installations - Non Residential | C65: 0 | D65: 0 | E65: 0 | F65: 1 | G65: 0 | H65: 0 | I65: 0 | J65: 0 | K65: 0 | L65: 0 | M65: 0 | N65: 0 | O65: 0 | P65: 0 | Q65: 0 | R65: 0 | S65: 0 | T65: 0 | U65: 0 | V65: 0 | W65: 0 | X65: 0 | AG65: 16 | AH65: Comm | AI65: 0.04 | AJ65: 0 | AK65: 0.066 | AL65: 0.06 | AM65: 0.0825 | AN65: 0.029 | AO65: 0.06 | AP65: 0 | AQ65: 0.06 | AR65: 0.06 | AS65: 0.04 | AT65: 0.04 | AU65: 0.06 | AV65: 0.0625 | AW65: 0.07 | AX65: 0.06 | AY65: 0.063 | AZ65: 0.06 | BA65: 0.04 | BB65: 0.05 | BC65: 0.06 | BD65: 0.0625 | BE65: 0.06 | BF65: 0.06875 | BG65: 0.07 | BH65: 0.04225 | BI65: 0 | BJ65: ='User Add-in Location'!$B$5 -> 0 | BK65: ='User Add-in Location'!$B$5 -> 0 | BL65: 0.055 | BM65: 0.0685 | BN65: 0 | BO65: 0.07 | BP65: 0.05125 | BQ65: 0.04 | BR65: 0.0575 | BS65: 0.05 | BT65: 0.055 | BU65: 0.045 | BV65: 0 | BW65: 0.06 | CF65: 0.07 | CG65: 0.06 | CH65: 0.04 | CI65: 0.07 | CJ65: 0.0625 | CK65: 0.047 | CL65: 0.06 | CM65: 0.04 | CN65: 0.065 | CO65: 0.06 | CP65: 0.05 | CQ65: 0.04
B66: Construction/Installation Residential | C66: 0 | D66: 0 | E66: 0 | F66: 0 | G66: 1 | H66: 0 | I66: 0 | J66: 0 | K66: 0 | L66: 0 | M66: 0 | N66: 0 | O66: 0 | P66: 0 | Q66: 0 | R66: 0 | S66: 0 | T66: 0 | U66: 0 | V66: 0 | W66: 0 | X66: 0 | AG66: 17 | AH66: PropertyTax Exemption-Res | AK66: 1 | AM66: 1 | AN66: 1 | AO66: 1 | AW66: 1 | AX66: 1 | AY66: 1 | BA66: 1 | BC66: 1 | BD66: 1 | BF66: 1 | BI66: 1 | BJ66: ='User Add-in Location'!$B$7 -> 0 | BK66: ='User Add-in Location'!$B$7 -> 0 | BM66: 1 | BO66: 1 | BP66: 1 | BQ66: 1 | BR66: 0.8 | BS66: 1 | BT66: 1 | BV66: 1 | CH66: 0.7 | CJ66: 1 | CP66: 1
B67: Manufacturing | C67: 0 | D67: 0 | E67: 0 | F67: 0 | G67: 0 | H67: 0.841996 | I67: 0 | J67: 0 | K67: 0 | L67: 0 | M67: 0 | N67: 0.107789 | O67: 0.018333 | P67: 0.031882 | Q67: 0 | R67: 0 | S67: 0 | T67: 0 | U67: 0 | V67: 0 | W67: 0 | X67: 0 | AG67: 18 | AH67: Comm | AK67: 1 | AM67: 1 | AO67: 1 | AU67: 1 | AW67: 1 | AX67: 1 | AY67: 1 | BC67: 1 | BD67: 1 | BE67: 1 | BF67: 1 | BI67: 1 | BJ67: ='User Add-in Location'!$B$7 -> 0 | BK67: ='User Add-in Location'!$B$7 -> 0 | BM67: 1 | BO67: 1 | BQ67: 1 | BR67: 0.8 | BS67: 1 | BT67: 1 | BV67: 1 | CH67: 0.7 | CJ67: 1 | CP67: 1
B68: Fabricated Metals | C68: 0 | D68: 0 | E68: 0 | F68: 0 | G68: 0 | H68: 0 | I68: 0.720028 | J68: 0 | K68: 0 | L68: 0 | M68: 0 | N68: 0.170125 | O68: 0.098636 | P68: 0.011211 | Q68: 0 | R68: 0 | S68: 0 | T68: 0 | U68: 0 | V68: 0 | W68: 0 | X68: 0 | AG68: 19 | AH68: Indus | AK68: 1 | AM68: 1 | AO68: 1 | AW68: 1 | AX68: 1 | AY68: 1 | BC68: 1 | BD68: 1 | BE68: 1 | BF68: 1 | BI68: 1 | BJ68: ='User Add-in Location'!$B$7 -> 0 | BK68: ='User Add-in Location'!$B$7 -> 0 | BM68: 1 | BO68: 1 | BQ68: 1 | BR68: 0.8 | BS68: 1 | BT68: 1 | BV68: 1 | CH68: 0.7 | CJ68: 1 | CP68: 1
B69: Machinery | C69: 0 | D69: 0 | E69: 0 | F69: 0 | G69: 0 | H69: 0 | I69: 0 | J69: 0.833286 | K69: 0 | L69: 0 | M69: 0 | N69: 0.111651 | O69: 0.023139 | P69: 0.031925 | Q69: 0 | R69: 0 | S69: 0 | T69: 0 | U69: 0 | V69: 0 | W69: 0 | X69: 0 | AG69: 20 | AH69: Prop Tax Exemption | AI69: =HLOOKUP(AI$57,AI$50:CQ$68,AI70) -> 0 | AJ69: Tax Rate | AK69: =1-AI69 -> 1
B70: Electrical Equip | C70: 0 | D70: 0 | E70: 0 | F70: 0 | G70: 0 | H70: 0 | I70: 0 | J70: 0 | K70: 0.821259 | L70: 0 | M70: 0 | N70: 0.144205 | O70: 0.019375 | P70: 0.01516 | Q70: 0 | R70: 0 | S70: 0 | T70: 0 | U70: 0 | V70: 0 | W70: 0 | X70: 0 | AG70: 21 | AH70: Offset | AI70: =IF(AI$58<10,AG66,IF(AI$58<100,AG67,AG68)) -> 19
B71: Battery Manufacturing | C71: 0 | D71: 0 | E71: 0 | F71: 0 | G71: 0 | H71: 0 | I71: 0 | J71: 0 | K71: 0 | L71: 0.700021 | M71: 0 | N71: 0.291319 | O71: 0 | P71: 0.00866 | Q71: 0 | R71: 0 | S71: 0 | T71: 0 | U71: 0 | V71: 0 | W71: 0 | X71: 0 | AG71: 22
B72: Energy Wire Manufacturing | C72: 0 | D72: 0 | E72: 0 | F72: 0 | G72: 0 | H72: 0 | I72: 0 | J72: 0 | K72: 0 | L72: 0 | M72: 0.877624 | N72: 0.113977 | O72: 0 | P72: 0.008398 | Q72: 0 | R72: 0 | S72: 0 | T72: 0 | U72: 0 | V72: 0 | W72: 0 | X72: 0 | AG72: 23 | AH72: Sales Tax Rate | AI72: =HLOOKUP(AI$57,AI$50:CQ$68,AI73) -> 0.06
B73: Wholesale Trade | C73: 0 | D73: 0 | E73: 0 | F73: 0 | G73: 0 | H73: 0 | I73: 0 | J73: 0 | K73: 0 | L73: 0 | M73: 0 | N73: 0.722331 | O73: 0 | P73: 0.277669 | Q73: 0 | R73: 0 | S73: 0 | T73: 0 | U73: 0 | V73: 0 | W73: 0 | X73: 0 | AG73: 24 | AH73: Offset | AI73: =IF(AI58<10,AG64,AG65) -> 16
B74: Retail trade | C74: 0 | D74: 0 | E74: 0 | F74: 0 | G74: 0 | H74: 0 | I74: 0 | J74: 0 | K74: 0 | L74: 0 | M74: 0 | N74: 0 | O74: 1 | P74: 0 | Q74: 0 | R74: 0 | S74: 0 | T74: 0 | U74: 0 | V74: 0 | W74: 0 | X74: 0 | AG74: 25 | AH74: Sales Tax Exemption - Res | AK74: 1 | AN74: 1 | AO74: 1 | AR74: 1 | AX74: 1 | BC74: 1 | BD74: 1 | BF74: 1 | BJ74: ='User Add-in Location'!$B$6 -> 0 | BK74: ='User Add-in Location'!$B$6 -> 0 | BO74: 1 | BQ74: 1 | CF74: 1 | CL74: 1 | CN74: 1 | CP74: 1 | CQ74: 1
B75: TCPU | C75: 0 | D75: 0 | E75: 0 | F75: 0 | G75: 0 | H75: 0 | I75: 0 | J75: 0 | K75: 0 | L75: 0 | M75: 0 | N75: 0 | O75: 0 | P75: 1 | Q75: 0 | R75: 0 | S75: 0 | T75: 0 | U75: 0 | V75: 0 | W75: 0 | X75: 0 | AD75: Sales and Property Tax Rates updated 2010 | AG75: 26 | AH75: Comm | AK75: 1 | AN75: 1 | AO75: 1 | AR75: 1 | AU75: 1 | AX75: 1 | AZ75: 1 | BC75: 1 | BF75: 1 | BJ75: ='User Add-in Location'!$B$6 -> 0 | BK75: ='User Add-in Location'!$B$6 -> 0 | BO75: 1 | BQ75: 1 | BT75: 1 | CF75: 1 | CK75: 1 | CL75: 1 | CN75: 1 | CP75: 1 | CQ75: 1
B76: Insurance and Real Estate | C76: 0 | D76: 0 | E76: 0 | F76: 0 | G76: 0 | H76: 0 | I76: 0 | J76: 0 | K76: 0 | L76: 0 | M76: 0 | N76: 0 | O76: 0 | P76: 0 | Q76: 1 | R76: 0 | S76: 0 | T76: 0 | U76: 0 | V76: 0 | W76: 0 | X76: 0 | AG76: 27 | AH76: Indus | AK76: 1 | AN76: 1 | AO76: 1 | AR76: 1 | AX76: 1 | BC76: 1 | BF76: 1 | BJ76: ='User Add-in Location'!$B$6 -> 0 | BK76: ='User Add-in Location'!$B$6 -> 0 | BT76: 1 | CF76: 1 | CK76: 1 | CL76: 1 | CN76: 1 | CP76: 1 | CQ76: 1
B77: Finance | C77: 0 | D77: 0 | E77: 0 | F77: 0 | G77: 0 | H77: 0 | I77: 0 | J77: 0 | K77: 0 | L77: 0 | M77: 0 | N77: 0 | O77: 0.000423 | P77: 0 | Q77: 0 | R77: 0.999577 | S77: 0 | T77: 0 | U77: 0 | V77: 0 | W77: 0 | X77: 0 | AH77: Sales Tax Exemption | AI77: =HLOOKUP(AI$57,AI$50:CQ$76,AI78) -> 0 | AJ77: Tax Rate | AK77: =1-AI77 -> 1
B78: Other Professional Services | C78: 0 | D78: 0 | E78: 0 | F78: 0 | G78: 0 | H78: 0 | I78: 0 | J78: 0 | K78: 0 | L78: 0 | M78: 0 | N78: 0 | O78: 0 | P78: 0 | Q78: 0 | R78: 0 | S78: 1 | T78: 0 | U78: 0 | V78: 0 | W78: 0 | X78: 0 | AH78: Offset | AI78: =IF(AI$58<10,AG74,IF(AI$58<100,AG75,AG76)) -> 27
B79: Office Services | C79: 0 | D79: 0 | E79: 0 | F79: 0 | G79: 0 | H79: 0 | I79: 0 | J79: 0 | K79: 0 | L79: 0 | M79: 0 | N79: 0 | O79: 0 | P79: 0 | Q79: 0 | R79: 0 | S79: 0 | T79: 1 | U79: 0 | V79: 0 | W79: 0 | X79: 0
B80: Architectural and Engineering Services | C80: 0 | D80: 0 | E80: 0 | F80: 0 | G80: 0 | H80: 0 | I80: 0 | J80: 0 | K80: 0 | L80: 0 | M80: 0 | N80: 0 | O80: 0 | P80: 0 | Q80: 0 | R80: 0 | S80: 0 | T80: 0 | U80: 1 | V80: 0 | W80: 0 | X80: 0
B81: Other services | C81: 0 | D81: 0 | E81: 0 | F81: 0 | G81: 0 | H81: 0 | I81: 0 | J81: 0 | K81: 0 | L81: 0 | M81: 0 | N81: 0.201746 | O81: 0.018611 | P81: 0.025811 | Q81: 0 | R81: 0 | S81: 0 | T81: 0 | U81: 0 | V81: 0.753832 | W81: 0 | X81: 0
B82: Government | C82: 0 | D82: 0 | E82: 0 | F82: 0 | G82: 0 | H82: 0 | I82: 0 | J82: 0 | K82: 0 | L82: 0 | M82: 0 | N82: 0 | O82: 0.056099 | P82: 0 | Q82: 0 | R82: 0 | S82: 0 | T82: 0 | U82: 0 | V82: 0 | W82: 0.943901 | X82: 0
B83: Semiconductor (solar cell/module) manufacturing | C83: 0 | D83: 0 | E83: 0 | F83: 0 | G83: 0 | H83: 0 | I83: 0 | J83: 0 | K83: 0 | L83: 0 | M83: 0 | N83: 0.105274 | O83: 0 | P83: 0.010964 | Q83: 0 | R83: 0 | S83: 0 | T83: 0 | U83: 0 | V83: 0 | W83: 0 | X83: 0.883762

Sheet Calculations
C1: Economic Impact Analysis for | E1: =ProjectData!B12 -> KENTUCKY | F1: =Project_Data -> Photovoltaic Project Data
I3: Manufactured | AB3: Detailed PV Project Data Costs | AC3: =IF(ProjectData!B$12="MyCounty",'User Add-in Location'!B$3,IF(ProjectData!B$12="MyRegion",'User Add-in Location'!B4,ProjectData!B$12)) -> KENTUCKY | AD3: =ProjectData!_xlnm.Print_Area -> 2023
C4: Project Construction Costs | F4: Manufactured | I4: Locally | AE4: Manufactured
A5: Warning | C5: =DefaultData!B14 -> Installation Costs | D5: Cost | E5: Local Share | F5: Locally | G5: Local $ Spending | H5: Mfg Share | I5: To Wholesale | J5: To Mfg. | AB5: Construction Costs | AC5: Cost | AD5: Local Share | AE5: Locally
C6: =DefaultData!B15 -> Materials & Equipment | I6: N | J6: Y | AB6: =C6 -> Materials & Equipment
A7: This Worksheet contains Data and Formulas that are an integral part of the JEDI model. | C7: =DefaultData!B16 -> Mounting (rails, clamps, fittings, etc.) | D7: =IF(ProjectData!$B$26="y",DefaultData!C16,ProjectData!B33) -> 41600000 | E7: =IF(ProjectData!$B$26="y",ProjectData!T33,ProjectData!E33) -> 0.05 | F7: =IF(ProjectData!$B$26="y",DefaultData!AG17,ProjectData!F33) -> N | G7: =IF(F7="y",J7,I7) -> 0 | H7: =IF(ProjectData!B$15="Utility",0,0.8) -> 0 | I7: =IF(ProjectData!B$15="Utility",0,IF(F7="N",D7*E7*(1-H7),)) -> 0 | J7: =IF(F7="Y",D7*E7,) -> 0 | AB7: =C7 -> Mounting (rails, clamps, fittings, etc.) | AC7: =D7 -> 41600000 | AD7: 0.05 | AE7: N
C8: =DefaultData!B17 -> Modules | D8: =IF(ProjectData!$B$26="y",DefaultData!C17,ProjectData!B34) -> 72800000 | E8: =IF(ProjectData!$B$26="y",ProjectData!T34,ProjectData!E34) -> 0 | F8: =IF(ProjectData!$B$26="y",DefaultData!AG18,ProjectData!F34) -> N | G8: =IF(F8="y",J8,I8) -> 0 | H8: =IF(ProjectData!B$15="Utility",0,0.8) -> 0 | I8: =IF(ProjectData!B$15="Utility",0,IF(F8="N",D8*E8*(1-H8),)) -> 0 | J8: =IF(F8="Y",D8*E8,) -> 0 | AB8: Modules | AC8: 72800000 | AD8: 0 | AE8: N
A9: Although the data and formulas are available for review they must not be changed. | C9: =DefaultData!B18 -> Electrical (wire, connectors, breakers, etc.) | D9: =IF(ProjectData!$B$26="y",DefaultData!C18,ProjectData!B35) -> 58240000 | E9: =IF(ProjectData!$B$26="y",ProjectData!T35,ProjectData!E35) -> 0.2 | F9: =IF(ProjectData!$B$26="y",DefaultData!AG19,ProjectData!F35) -> N | G9: =IF(F9="y",J9,I9) -> 0 | H9: =IF(ProjectData!B$15="Utility",0,0.8) -> 0 | I9: =IF(ProjectData!B$15="Utility",0,IF(F9="N",D9*E9*(1-H9),)) -> 0 | J9: =IF(F9="Y",D9*E9,) -> 0 | AB9: Electrical (wire, connectors, breakers, etc.) | AC9: 58240000 | AD9: 0.2 | AE9: N
C10: =DefaultData!B19 -> Inverter | D10: =IF(ProjectData!$B$26="y",DefaultData!C19,ProjectData!B36) -> 8320000 | E10: =IF(ProjectData!$B$26="y",ProjectData!T36,ProjectData!E36) -> 0.05 | F10: =IF(ProjectData!$B$26="y",DefaultData!AG20,ProjectData!F36) -> N | G10: =IF(F10="y",J10,I10) -> 0 | H10: =IF(ProjectData!B$15="Utility",0,0.8) -> 0 | I10: =IF(ProjectData!B$15="Utility",0,IF(F10="N",D10*E10*(1-H10),)) -> 0 | J10: =IF(F10="Y",D10*E10,) -> 0 | AB10: Inverter | AC10: 8320000 | AD10: 0.05 | AE10: N
A11: Any changes to the data or formulas will impact the analysis and may invalidate the model results. | C11: =DefaultData!B20 -> Subtotal | D11: =SUM(D7:D10) -> 180960000 | G11: =SUM(G7:G10) -> 0 | I11: =SUM(I7:I10) -> 0 | J11: =SUM(J7:J10) -> 0 | AB11: Subtotal | AC11: =D11 -> 180960000
C12: =DefaultData!B21 -> Labor | AB12: Labor
C13: =DefaultData!B22 -> Installation | D13: =IF(ProjectData!$B$26="y",DefaultData!C22,ProjectData!B39) -> 12480000 | E13: =IF(ProjectData!$B$26="y",ProjectData!T39,ProjectData!E39) -> 0.2 | G13: =+E13*D13 -> 2496000 | AB13: Installation | AC13: =D13 -> 12480000 | AD13: 0.2
C14: =DefaultData!B23 -> Subtotal | D14: =IF(ProjectData!$B$26="y",DefaultData!C23,ProjectData!B40) -> 12480000 | G14: =G13 -> 2496000 | AB14: Subtotal | AC14: 12480000 | AD14: 0
C15: =DefaultData!B24 -> Total | D15: =IF(ProjectData!$B$26="y",DefaultData!C24,ProjectData!B41) -> 193440000 | G15: =G14+G11 -> 2496000 | AB15: Total | AC15: 193440000 | AD15: 0
C16: =DefaultData!B25 -> Other Costs | AB16: Other Costs
C17: =DefaultData!B26 -> Permitting | D17: =IF(ProjectData!$B$26="y",DefaultData!C26,ProjectData!B43) -> 2080000 | E17: =IF(ProjectData!$B$26="y",ProjectData!T43,ProjectData!E43) -> 0.8 | G17: =+E17*D17 -> 1664000 | AB17: Permitting | AC17: =D17 -> 2080000 | AD17: 0.8
A18: To view the data and formulas simply scroll over to the adjacent columns to the right. | C18: =DefaultData!B27 -> Other Costs | D18: =IF(ProjectData!$B$26="y",DefaultData!C27,ProjectData!B44) -> 31200000 | E18: =IF(ProjectData!$B$26="y",ProjectData!T44,ProjectData!E44) -> 0.6 | G18: =+E18*D18 -> 18720000 | AB18: =C18 -> Other Costs | AC18: 31200000 | AD18: 0.6
C19: =DefaultData!B28 -> Business Overhead | D19: =IF(ProjectData!$B$26="y",DefaultData!C28,ProjectData!B45) -> 16640000 | E19: =IF(ProjectData!$B$26="y",ProjectData!T45,ProjectData!E45) -> 0.1 | G19: =+E19*D19 -> 1664000 | AB19: =C19 -> Business Overhead | AC19: 16640000 | AD19: 0.1
C20: =DefaultData!B29 -> Subtotal | D20: =IF(ProjectData!$B$26="y",DefaultData!C29,ProjectData!B46) -> 49920000 | G20: =SUM(G17:G19) -> 22048000 | AB20: Subtotal | AC20: =D20 -> 49920000
C21: Subtotal | D21: =IF(ProjectData!$B$26="y",DefaultData!C30,ProjectData!B47) -> 243360000 | G21: =G20+G15+G11 -> 24544000 | J21: Payroll expense | L21: User Revised | AB21: =C21 -> Subtotal | AC21: =AC20+AC15 -> 243360000
C22: Sales Tax (Materials & Equipment Purchases) | D22: =IF(ProjectData!$B$26="y",DefaultData!$C31,ProjectData!B48) -> 10857600 | E22: =IF(ProjectData!$B$26="y",DefaultData!E58,ProjectData!D77) -> 0 | G22: =+E22*D22 -> 0 | J22: Govt | K22: 0.07118694551 | L22: =(K22/K$24)*ProjectData!D81 -> 0.07118694551 | AB22: =C22 -> Sales Tax (Materials & Equipment Purchases) | AC22: 10857600 | AD22: 0
C23: Total | D23: =D22+D21 -> 254217600 | G23: =G22+G21 -> 24544000 | J23: Health/Ins/Misc | K23: =0.4557-K22 -> 0.3845130545 | L23: =(K23/K$24)*ProjectData!D81 -> 0.3845130545 | N23: User | AB23: Total | AC23: =AC22+AC21 -> 254217600
D24: =D21/(DefaultData!E5) -> 1170 | J24: Total | K24: =K23+K22 -> 0.4557 | L24: =L23+L22 -> 0.4557 | N24: Revised Data
C25: Payroll Parameters | D25: Payroll Cost | E25: wage/hour | F25: Payroll expense | G25: Payroll expense | H25: Default | I25: User Revised | N25: Payroll Cost | O25: wage/hour | P25: Payroll expense | Q25: Payroll expense | AB25: =C66 -> PV System Annual Operating and Maintenance Costs | AE25: =AE4 -> Manufactured
C26: Construction Labor | K26: Default | AC26: Cost | AD26: Local Share | AE26: =AE5 -> Locally
C27: Construction workers / Installers | D27: =(E27+F27) -> 31.137423 | E27: =IF(DefaultData!AI61=0,21.39,21.39*DefaultData!AI61) -> 21.39 | F27: =+E27*G27 -> 9.747423 | G27: =K$24 -> 0.4557 | H27: =(G13)/(D27*(52*40)) -> 38.53883476 | I27: =(ProjectData!B39*ProjectData!E39)/(N27*40*52) -> 38.53883476 | K27: =D27*52*40 -> 64765.83984 | L27: =IF(ProjectData!B$26="Y",Calculations!H27,Calculations!I27) -> 38.53883476 | N27: =(O27+P27) -> 31.137423 | O27: =ProjectData!B81 -> 21.39 | P27: =+O27*Q27 -> 9.747423 | Q27: =ProjectData!D81 -> 0.4557 | R27: =N27*52*40 -> 64765.83984 | AB27: =C67 -> Labor
C28: O&M Labor | AB28: Technicians | AC28: =D68 -> 1560000 | AD28: =E68 -> 0.9
C29: Technicians | D29: =(E29+F29) -> 31.137423 | E29: =E27 -> 21.39 | F29: =+E29*G29 -> 9.747423 | G29: =K$24 -> 0.4557 | H29: =(G69)/(D29*(52*40)) -> 21.67809456 | I29: =(ProjectData!B55*ProjectData!E54)/(N29*40*52) -> 21.67809456 | K29: =D29*52*40 -> 64765.83984 | L29: =IF(ProjectData!B$26="Y",Calculations!H29,Calculations!I29) -> 21.67809456 | N29: =(O29+P29) -> 31.137423 | O29: =ProjectData!B83 -> 21.39 | P29: =+O29*Q29 -> 9.747423 | Q29: =ProjectData!D83 -> 0.4557 | R29: =N29*52*40 -> 64765.83984 | AB29: Subtotal | AC29: =D69 -> 1560000
AB30: Materials and Services
H31: Eng., Prof., & Misc. Svcs. | I31: =I55+I57+I56 -> 91.71909646 | L31: Eng. & Prof. Svcs. | M31: =(M55+M56+M57)*$G64 -> 6.413944316 | P31: Eng. & Prof. Svcs. | Q31: =(Q55+Q56+Q57)*$G64 -> 11.5232 | AB31: Materials & Equipment | AC31: =D71 -> 520000 | AD31: =E71 -> 0.9 | AE31: =F71 -> N
H32: Other Sectors (not Construction) | I32: =I61-I34-I33-I31 -> 73.3593808 | L32: Other Sectors (not Construction) | M32: =((M61-M34)*G64)-M33-M31 -> 3.98486252 | P32: Other Sectors (not Construction) | Q32: =((Q61-Q34)*G64)-Q33-Q31 -> 10.5248 | AB32: Services | AC32: =D72 -> 0 | AD32: =E72 -> 0.9
H33: Manufacturing Jobs | I33: =SUM(I44:I49)+I60 -> 0 | J33: =SUM(J44:J49)+J60 -> 0 | L33: Mfg W&S Earnings | M33: =(SUM(M44:M49)+M60)*$G64 -> 0 | N33: =(SUM(N44:N49)+N60)*$G64 -> 0 | P33: Mfg Output | Q33: =(SUM(Q44:Q49)+Q60)*$G64 -> 0 | R33: =(SUM(R44:R49)+R60)*$G64 -> 0 | AB33: Subtotal | AC33: =D73 -> 520000
H34: Construction | I34: =I41+I42+I43 -> 38.53883476 | L34: Construction | M34: =M41+M42+M43 -> 2.150829002 | P34: Construction | Q34: =Q41+Q42+Q43 -> 2.150829002 | AB34: =C74 -> Sales Tax (Materials & Equipment Purchases) | AC34: =D74 -> 31200 | AD34: =E74 -> 0 | AG34: Local Economic Impacts - Summary Results
C35: Year | D35: =+ProjectData!B24 -> 2020 | F35: =CONCATENATE("Convert to ",Deflators!D4, " dollars") -> Convert to 2012 dollars | G35: =Deflators!E7 -> 0.8617103373 | AB35: =C75 -> Average Annual Payment (Interest and Principal) | AC35: =D75 -> 28229760 | AD35: =E75 -> 0 | AH35: Jobs | AI35: Earnings | AJ35: Output
C36: Installation Costs Local Demand - margined | M36: =Deflators!D4 -> 2012 | N36: Dollars | AB36: =C76 -> Property Taxes | AC36: =D76 -> 7659 | AD36: =E76 -> 0 | AG36: During construction and installation period
D37: Demand | F37: Total | G37: Adj Demand | I37: Jobs | J37: Jobs | K37: Jobs | L37: Jobs | M37: Earnings | Q37: Output | AB37: =C77 -> Total | AC37: =D77 -> 30348619 | AG37: Project Development and Onsite Labor Impacts
I38: Direct | J38: Indirect | K38: Induced | L38: Total | M38: Direct | N38: Indirect | O38: Induced | P38: Total | Q38: Direct | R38: Indirect | S38: Induced | T38: Total | AG38: Construction and Installation Labor | AH38: =I34 -> 38.53883476 | AI38: =M34*G64*1000 -> 2496 | AJ38: =Q34*G64*1000 -> 2496
C39: Ag, Forestry, Fish & Hunting | D39: =$E$147*DefaultData!C62+$E$148*DefaultData!C63+$E$149*DefaultData!C64+$E$150*DefaultData!C65+$E$151*DefaultData!C66+$E$152*DefaultData!C67+$E$153*DefaultData!C68+$E$154*DefaultData!C69+$E$155*DefaultData!C70+$E$156*DefaultData!C71+$E$157*DefaultData!C72+$E$158*DefaultData!C73+$E$159*DefaultData!C74+$E$160*DefaultData!C75+$E$161*DefaultData!C76+$E$162*DefaultData!C77+$E$163*DefaultData!C78+$E$164*DefaultData!C79+$E$165*DefaultData!C80+$E$166*DefaultData!C81+$E$167*DefaultData!C82+$E$168*DefaultData!C83 -> 0 | F39: =D39 -> 0 | G39: =F39*G$35/10^6 -> 0 | I39: =+G39*Multipliers!D308 -> 0 | J39: =+$G39*Multipliers!E308 -> 0 | K39: =+$G39*Multipliers!F308 -> 0 | L39: =+K39+J39+I39 -> 0 | M39: =+$G39*Multipliers!H308 -> 0 | N39: =+$G39*Multipliers!I308 -> 0 | O39: =+$G39*Multipliers!J308 -> 0 | P39: =+O39+N39+M39 -> 0 | Q39: =+$G39*Multipliers!L308 -> 0 | R39: =+$G39*Multipliers!M308 -> 0 | S39: =+$G39*Multipliers!N308 -> 0 | T39: =+S39+R39+Q39 -> 0 | AB39: Other Parameters | AG39: Construction and Installation Related Services | AH39: =I31 -> 91.71909646 | AI39: =M31*1000 -> 6413.944316 | AJ39: =Q31*1000 -> 11523.2
C40: Mining | D40: =$E$147*DefaultData!D62+$E$148*DefaultData!D63+$E$149*DefaultData!D64+$E$150*DefaultData!D65+$E$151*DefaultData!D66+$E$152*DefaultData!D67+$E$153*DefaultData!D68+$E$154*DefaultData!D69+$E$155*DefaultData!D70+$E$156*DefaultData!D71+$E$157*DefaultData!D72+$E$158*DefaultData!D73+$E$159*DefaultData!D74+$E$160*DefaultData!D75+$E$161*DefaultData!D76+$E$162*DefaultData!D77+$E$163*DefaultData!D78+$E$164*DefaultData!D79+$E$165*DefaultData!D80+$E$166*DefaultData!D81+$E$167*DefaultData!D82+$E$168*DefaultData!D83 -> 0 | F40: =D40 -> 0 | G40: 0 | I40: =+G40*Multipliers!D309 -> 0 | J40: =+$G40*Multipliers!E309 -> 0 | K40: =+$G40*Multipliers!F309 -> 0 | L40: 0 | M40: =+$G40*Multipliers!H309 -> 0 | N40: =+$G40*Multipliers!I309 -> 0 | O40: =+$G40*Multipliers!J309 -> 0 | P40: 0 | Q40: =+$G40*Multipliers!L309 -> 0 | R40: =+$G40*Multipliers!M309 -> 0 | S40: =+$G40*Multipliers!N309 -> 0 | T40: 0 | AD40: Local Share | AG40: Subtotal | AH40: =AH38+AH39 -> 130.2579312 | AI40: =AI38+AI39 -> 8909.944316 | AJ40: =AJ38+AJ39 -> 14019.2
C41: Construction | D41: =$E$147*DefaultData!E62+$E$148*DefaultData!E63+$E$149*DefaultData!E64+$E$150*DefaultData!E65+$E$151*DefaultData!E66+$E$152*DefaultData!E67+$E$153*DefaultData!E68+$E$154*DefaultData!E69+$E$155*DefaultData!E70+$E$156*DefaultData!E71+$E$157*DefaultData!E72+$E$158*DefaultData!E73+$E$159*DefaultData!E74+$E$160*DefaultData!E75+$E$161*DefaultData!E76+$E$162*DefaultData!E77+$E$163*DefaultData!E78+$E$164*DefaultData!E79+$E$165*DefaultData!E80+$E$166*DefaultData!E81+$E$167*DefaultData!E82+$E$168*DefaultData!E83 -> 0 | F41: 0 | G41: 0 | H41: =G13*G35/10^6 -> 2.150829002 | I41: =+G41*Multipliers!D310 -> 0 | J41: =+$G41*Multipliers!E310 -> 0 | K41: =+$G41*Multipliers!F310 -> 0 | L41: 0 | M41: =+$G41*Multipliers!H310 -> 0 | N41: =+$G41*Multipliers!I310 -> 0 | O41: =+$G41*Multipliers!J310 -> 0 | P41: 0 | Q41: =+$G41*Multipliers!L310 -> 0 | R41: =+$G41*Multipliers!M310 -> 0 | S41: =+$G41*Multipliers!N310 -> 0 | T41: 0 | AB41: Financial Parameters | AG41: Module and Supply Chain Impacts
C42: Construction/Installations - Non Residential | D42: =$E$147*DefaultData!F62+$E$148*DefaultData!F63+$E$149*DefaultData!F64+$E$150*DefaultData!F65+$E$151*DefaultData!F66+$E$152*DefaultData!F67+$E$153*DefaultData!F68+$E$154*DefaultData!F69+$E$155*DefaultData!F70+$E$156*DefaultData!F71+$E$157*DefaultData!F72+$E$158*DefaultData!F73+$E$159*DefaultData!F74+$E$160*DefaultData!F75+$E$161*DefaultData!F76+$E$162*DefaultData!F77+$E$163*DefaultData!F78+$E$164*DefaultData!F79+$E$165*DefaultData!F80+$E$166*DefaultData!F81+$E$167*DefaultData!F82+$E$168*DefaultData!F83 -> 2496000 | F42: 2496000 | G42: 2.150829002 | H42: =G42-H$41 -> 0 | I42: =IF(F42>0,(H$42*Multipliers!D311)+L27,0) -> 38.53883476 | J42: =+$G42*Multipliers!E311 -> 4.559081007 | K42: =+$G42*Multipliers!F311 -> 5.512178367 | L42: 48.61009414 | M42: =IF(F42>0,H$41+($H42*Multipliers!H311),0) -> 2.150829002 | N42: =+$G42*Multipliers!I311 -> 0.21653505 | O42: =+$G42*Multipliers!J311 -> 0.2258892153 | P42: 2.593253267 | Q42: =+$G42*Multipliers!L311 -> 2.150829002 | R42: =+$G42*Multipliers!M311 -> 0.639526546 | S42: =+$G42*Multipliers!N311 -> 0.6416130553 | T42: 3.431968603 | AB42: =DefaultData!B46 -> Debt Financing | AG42: Manufacturing | AH42: =I33+J33 -> 0 | AI42: =(M33+N33)*1000*G64 -> 0 | AJ42: =(Q33+R33)*1000 -> 0
C43: Construction/Installation Residential | D43: =$E$147*DefaultData!G62+$E$148*DefaultData!G63+$E$149*DefaultData!G64+$E$150*DefaultData!G65+$E$151*DefaultData!G66+$E$152*DefaultData!G67+$E$153*DefaultData!G68+$E$154*DefaultData!G69+$E$155*DefaultData!G70+$E$156*DefaultData!G71+$E$157*DefaultData!G72+$E$158*DefaultData!G73+$E$159*DefaultData!G74+$E$160*DefaultData!G75+$E$161*DefaultData!G76+$E$162*DefaultData!G77+$E$163*DefaultData!G78+$E$164*DefaultData!G79+$E$165*DefaultData!G80+$E$166*DefaultData!G81+$E$167*DefaultData!G82+$E$168*DefaultData!G83 -> 0 | F43: 0 | G43: 0 | H43: =G43-H$41 -> -2.150829002 | I43: =IF(F43>0,(H$43*Multipliers!D312)+L27,0) -> 0 | J43: =+$G43*Multipliers!E312 -> 0 | K43: =+$G43*Multipliers!F312 -> 0 | L43: 0 | M43: =IF(F43>0,H$41+($H43*Multipliers!H312),0) -> 0 | N43: =+$G43*Multipliers!I312 -> 0 | O43: =+$G43*Multipliers!J312 -> 0 | P43: 0 | Q43: =+$G43*Multipliers!L312 -> 0 | R43: =+$G43*Multipliers!M312 -> 0 | S43: =+$G43*Multipliers!N312 -> 0 | T43: 0 | AB43: =DefaultData!B47 -> Percentage financed | AC43: =IF(ProjectData!$B$26="y",DefaultData!C47,ProjectData!B67) -> 0.8 | AD43: =IF(ProjectData!$B$26="y",DefaultData!E47,ProjectData!D67) -> 0 | AG43: Trade (Wholesale and Retail) | AH43: =I50+I51+J50+J51 -> 14.14126425 | AI43: =(M50+M51+N50+N51)*1000*G64 -> 970.3101747 | AJ43: =(Q50+R50+Q51+R51)*1000*G64 -> 2799.092763
C44: Manufacturing | D44: =$E$147*DefaultData!H62+$E$148*DefaultData!H63+$E$149*DefaultData!H64+$E$150*DefaultData!H65+$E$151*DefaultData!H66+$E$152*DefaultData!H67+$E$153*DefaultData!H68+$E$154*DefaultData!H69+$E$155*DefaultData!H70+$E$156*DefaultData!H71+$E$157*DefaultData!H72+$E$158*DefaultData!H73+$E$159*DefaultData!H74+$E$160*DefaultData!H75+$E$161*DefaultData!H76+$E$162*DefaultData!H77+$E$163*DefaultData!H78+$E$164*DefaultData!H79+$E$165*DefaultData!H80+$E$166*DefaultData!H81+$E$167*DefaultData!H82+$E$168*DefaultData!H83 -> 0 | F44: 0 | G44: 0 | I44: =+G44*Multipliers!D313 -> 0 | J44: =+$G44*Multipliers!E313 -> 0 | K44: =+$G44*Multipliers!F313 -> 0 | L44: 0 | M44: =+$G44*Multipliers!H313 -> 0 | N44: =+$G44*Multipliers!I313 -> 0 | O44: =+$G44*Multipliers!J313 -> 0 | P44: 0 | Q44: =+$G44*Multipliers!L313 -> 0 | R44: =+$G44*Multipliers!M313 -> 0 | S44: =+$G44*Multipliers!N313 -> 0 | T44: 0 | AB44: =DefaultData!B48 -> Years financed (term) | AC44: =IF(ProjectData!$B$26="y",DefaultData!C48,ProjectData!B68) -> 10 | AG44: Finance, Insurance and Real Estate | AH44: =I53+I54+J53+J54 -> 0 | AI44: =(M53+M54+N53+N54)*1000*G64 -> 0 | AJ44: =(Q53+R53+Q54+R54)*1000*G64 -> 0
C45: Fabricated Metals | D45: =$E$147*DefaultData!I62+$E$148*DefaultData!I63+$E$149*DefaultData!I64+$E$150*DefaultData!I65+$E$151*DefaultData!I66+$E$152*DefaultData!I67+$E$153*DefaultData!I68+$E$154*DefaultData!I69+$E$155*DefaultData!I70+$E$156*DefaultData!I71+$E$157*DefaultData!I72+$E$158*DefaultData!I73+$E$159*DefaultData!I74+$E$160*DefaultData!I75+$E$161*DefaultData!I76+$E$162*DefaultData!I77+$E$163*DefaultData!I78+$E$164*DefaultData!I79+$E$165*DefaultData!I80+$E$166*DefaultData!I81+$E$167*DefaultData!I82+$E$168*DefaultData!I83 -> 0 | F45: 0 | G45: 0 | I45: =+G45*Multipliers!D314 -> 0 | J45: =+$G45*Multipliers!E314 -> 0 | K45: =+$G45*Multipliers!F314 -> 0 | L45: =+K45+J45+I45 -> 0 | M45: =+$G45*Multipliers!H314 -> 0 | N45: =+$G45*Multipliers!I314 -> 0 | O45: =+$G45*Multipliers!J314 -> 0 | P45: =+O45+N45+M45 -> 0 | Q45: =+$G45*Multipliers!L314 -> 0 | R45: =+$G45*Multipliers!M314 -> 0 | S45: =+$G45*Multipliers!N314 -> 0 | T45: =+S45+R45+Q45 -> 0 | AB45: =DefaultData!B49 -> Interest rate | AC45: =IF(ProjectData!$B$26="y",DefaultData!C49,ProjectData!B69) -> 0.1 | AG45: Professional Services | AH45: =J55+J56+J57 -> 11.64728971 | AI45: =(N55+N56+N57)*1000*G64 -> 634.2463805 | AJ45: =(R55+R56+R57)*1000*G64 -> 1766.639524
C46: Machinery | D46: =$E$147*DefaultData!J62+$E$148*DefaultData!J63+$E$149*DefaultData!J64+$E$150*DefaultData!J65+$E$151*DefaultData!J66+$E$152*DefaultData!J67+$E$153*DefaultData!J68+$E$154*DefaultData!J69+$E$155*DefaultData!J70+$E$156*DefaultData!J71+$E$157*DefaultData!J72+$E$158*DefaultData!J73+$E$159*DefaultData!J74+$E$160*DefaultData!J75+$E$161*DefaultData!J76+$E$162*DefaultData!J77+$E$163*DefaultData!J78+$E$164*DefaultData!J79+$E$165*DefaultData!J80+$E$166*DefaultData!J81+$E$167*DefaultData!J82+$E$168*DefaultData!J83 -> 0 | F46: 0 | G46: 0 | I46: =+G46*Multipliers!D315 -> 0 | J46: =+$G46*Multipliers!E315 -> 0 | K46: =+$G46*Multipliers!F315 -> 0 | L46: 0 | M46: =+$G46*Multipliers!H315 -> 0 | N46: =+$G46*Multipliers!I315 -> 0 | O46: =+$G46*Multipliers!J315 -> 0 | P46: 0 | Q46: =+$G46*Multipliers!L315 -> 0 | R46: =+$G46*Multipliers!M315 -> 0 | S46: =+$G46*Multipliers!N315 -> 0 | T46: 0 | AB46: =DefaultData!B51 -> Tax Parameters | AG46: Other Services | AH46: =J58+K58 -> 26.8325842 | AI46: =(M58+N58)*1000*G64 -> 3578.673217 | AJ46: =(Q58+R58)*1000*G64 -> 9583.388886
C47: Electrical Equip | D47: =$E$147*DefaultData!K62+$E$148*DefaultData!K63+$E$149*DefaultData!K64+$E$150*DefaultData!K65+$E$151*DefaultData!K66+$E$152*DefaultData!K67+$E$153*DefaultData!K68+$E$154*DefaultData!K69+$E$155*DefaultData!K70+$E$156*DefaultData!K71+$E$157*DefaultData!K72+$E$158*DefaultData!K73+$E$159*DefaultData!K74+$E$160*DefaultData!K75+$E$161*DefaultData!K76+$E$162*DefaultData!K77+$E$163*DefaultData!K78+$E$164*DefaultData!K79+$E$165*DefaultData!K80+$E$166*DefaultData!K81+$E$167*DefaultData!K82+$E$168*DefaultData!K83 -> 0 | F47: 0 | G47: 0 | I47: =+G47*Multipliers!D316 -> 0 | J47: =+$G47*Multipliers!E316 -> 0 | K47: =+$G47*Multipliers!F316 -> 0 | L47: 0 | M47: =+$G47*Multipliers!H316 -> 0 | N47: =+$G47*Multipliers!I316 -> 0 | O47: =+$G47*Multipliers!J316 -> 0 | P47: 0 | Q47: =+$G47*Multipliers!L316 -> 0 | R47: =+$G47*Multipliers!M316 -> 0 | S47: =+$G47*Multipliers!N316 -> 0 | T47: 0 | AB47: =DefaultData!B52 -> Local Property Tax (percent of taxable value) | AC47: =IF(ProjectData!$B$26="y",DefaultData!C52,ProjectData!B71) -> 0 | AG47: Other Sectors | AH47: =(I61+J61)-(SUM(AH42:AH46)+AH40) -> 52.17299388 | AI47: =((M61+N61)*1000*G64)-(SUM(AI42:AI46)+AI40) -> 541.3106704 | AJ47: =((Q61+R61)*1000*G64)-(SUM(AJ42:AJ46)+AJ40) -> 1397.52793
C48: Battery Manufacturing | D48: =$E$147*DefaultData!L62+$E$148*DefaultData!L63+$E$149*DefaultData!L64+$E$150*DefaultData!L65+$E$151*DefaultData!L66+$E$152*DefaultData!L67+$E$153*DefaultData!L68+$E$154*DefaultData!L69+$E$155*DefaultData!L70+$E$156*DefaultData!L71+$E$157*DefaultData!L72+$E$158*DefaultData!L73+$E$159*DefaultData!L74+$E$160*DefaultData!L75+$E$161*DefaultData!L76+$E$162*DefaultData!L77+$E$163*DefaultData!L78+$E$164*DefaultData!L79+$E$165*DefaultData!L80+$E$166*DefaultData!L81+$E$167*DefaultData!L82+$E$168*DefaultData!L83 -> 0 | F48: 0 | G48: 0 | I48: =+G48*Multipliers!D317 -> 0 | J48: =+$G48*Multipliers!E317 -> 0 | K48: =+$G48*Multipliers!F317 -> 0 | L48: 0 | M48: =+$G48*Multipliers!H317 -> 0 | N48: =+$G48*Multipliers!I317 -> 0 | O48: =+$G48*Multipliers!J317 -> 0 | P48: 0 | Q48: =+$G48*Multipliers!L317 -> 0 | R48: =+$G48*Multipliers!M317 -> 0 | S48: =+$G48*Multipliers!N317 -> 0 | T48: 0 | AB48: =DefaultData!B53 -> Assessed Value (percent of construction cost) | AC48: =IF(ProjectData!$B$26="y",DefaultData!C53,ProjectData!B72) -> 0 | AG48: Subtotal | AH48: =SUM(AH42:AH47) -> 104.794132 | AI48: =SUM(AI42:AI47) -> 5724.540443 | AJ48: =SUM(AJ42:AJ47) -> 15546.6491
C49: Energy Wire Manufacturing | D49: =$E$147*DefaultData!M62+$E$148*DefaultData!M63+$E$149*DefaultData!M64+$E$150*DefaultData!M65+$E$151*DefaultData!M66+$E$152*DefaultData!M67+$E$153*DefaultData!M68+$E$154*DefaultData!M69+$E$155*DefaultData!M70+$E$156*DefaultData!M71+$E$157*DefaultData!M72+$E$158*DefaultData!M73+$E$159*DefaultData!M74+$E$160*DefaultData!M75+$E$161*DefaultData!M76+$E$162*DefaultData!M77+$E$163*DefaultData!M78+$E$164*DefaultData!M79+$E$165*DefaultData!M80+$E$166*DefaultData!M81+$E$167*DefaultData!M82+$E$168*DefaultData!M83 -> 0 | F49: 0 | G49: 0 | I49: =+G49*Multipliers!D318 -> 0 | J49: =+$G49*Multipliers!E318 -> 0 | K49: =+$G49*Multipliers!F318 -> 0 | L49: 0 | M49: =+$G49*Multipliers!H318 -> 0 | N49: =+$G49*Multipliers!I318 -> 0 | O49: =+$G49*Multipliers!J318 -> 0 | P49: 0 | Q49: =+$G49*Multipliers!L318 -> 0 | R49: =+$G49*Multipliers!M318 -> 0 | S49: =+$G49*Multipliers!N318 -> 0 | T49: 0 | AB49: =DefaultData!B54 -> Taxable Value (percent of assessed value) | AC49: =IF(ProjectData!$B$26="y",DefaultData!C54,ProjectData!B73) -> 0 | AG49: Induced Impacts | AH49: =K61 -> 58.75039884 | AI49: =O64*1000 -> 2863.629485 | AJ49: =S64*1000 -> 8134.029829
C50: Wholesale Trade | D50: =$E$147*DefaultData!N62+$E$148*DefaultData!N63+$E$149*DefaultData!N64+$E$150*DefaultData!N65+$E$151*DefaultData!N66+$E$152*DefaultData!N67+$E$153*DefaultData!N68+$E$154*DefaultData!N69+$E$155*DefaultData!N70+$E$156*DefaultData!N71+$E$157*DefaultData!N72+$E$158*DefaultData!N73+$E$159*DefaultData!N74+$E$160*DefaultData!N75+$E$161*DefaultData!N76+$E$162*DefaultData!N77+$E$163*DefaultData!N78+$E$164*DefaultData!N79+$E$165*DefaultData!N80+$E$166*DefaultData!N81+$E$167*DefaultData!N82+$E$168*DefaultData!N83 -> 2056195.232 | F50: 2056195.232 | G50: 1.771844687 | I50: =+G50*Multipliers!D319 -> 8.151480954 | J50: =+$G50*Multipliers!E319 -> 3.213244086 | K50: =+$G50*Multipliers!F319 -> 3.972292396 | L50: 15.33701744 | M50: =+$G50*Multipliers!H319 -> 0.5840756897 | N50: =+$G50*Multipliers!I319 -> 0.1523544635 | O50: =+$G50*Multipliers!J319 -> 0.1611204247 | P50: 0.8975505779 | Q50: =+$G50*Multipliers!L319 -> 1.771844687 | R50: =+$G50*Multipliers!M319 -> 0.4223952802 | S50: =+$G50*Multipliers!N319 -> 0.4577340283 | T50: 2.651973995 | AB50: =DefaultData!B55 -> Taxable Value | AC50: =IF(ProjectData!$B$26="y",DefaultData!C55,ProjectData!B74) -> 0 | AG50: Total Impacts (Direct, Indirect, Induced) | AH50: =AH49+AH48+AH40 -> 293.8024621 | AI50: =AI49+AI48+AI40 -> 17498.11424 | AJ50: =AJ49+AJ48+AJ40 -> 37699.87893
C51: Retail trade | D51: =$E$147*DefaultData!O62+$E$148*DefaultData!O63+$E$149*DefaultData!O64+$E$150*DefaultData!O65+$E$151*DefaultData!O66+$E$152*DefaultData!O67+$E$153*DefaultData!O68+$E$154*DefaultData!O69+$E$155*DefaultData!O70+$E$156*DefaultData!O71+$E$157*DefaultData!O72+$E$158*DefaultData!O73+$E$159*DefaultData!O74+$E$160*DefaultData!O75+$E$161*DefaultData!O76+$E$162*DefaultData!O77+$E$163*DefaultData!O78+$E$164*DefaultData!O79+$E$165*DefaultData!O80+$E$166*DefaultData!O81+$E$167*DefaultData!O82+$E$168*DefaultData!O83 -> 208353.0592 | F51: 208353.0592 | G51: 0.1795399849 | I51: =+G51*Multipliers!D320 -> 2.518132898 | J51: =+$G51*Multipliers!E320 -> 0.258406315 | K51: =+$G51*Multipliers!F320 -> 0.4793841641 | L51: 3.255923377 | M51: =+$G51*Multipliers!H320 -> 0.0868046298 | N51: =+$G51*Multipliers!I320 -> 0.01289152489 | O51: =+$G51*Multipliers!J320 -> 0.02180597114 | P51: 0.1215021258 | Q51: =+$G51*Multipliers!L320 -> 0.1795399849 | R51: =+$G51*Multipliers!M320 -> 0.03822721664 | S51: =+$G51*Multipliers!N320 -> 0.06194531296 | T51: 0.2797125145 | AB51: =DefaultData!B56 -> Property Tax Exemption (percent of local taxes) | AC51: =IF(ProjectData!$B$26="y",DefaultData!C56,ProjectData!B75) -> 0
C52: TCPU | D52: =$E$147*DefaultData!P62+$E$148*DefaultData!P63+$E$149*DefaultData!P64+$E$150*DefaultData!P65+$E$151*DefaultData!P66+$E$152*DefaultData!P67+$E$153*DefaultData!P68+$E$154*DefaultData!P69+$E$155*DefaultData!P70+$E$156*DefaultData!P71+$E$157*DefaultData!P72+$E$158*DefaultData!P73+$E$159*DefaultData!P74+$E$160*DefaultData!P75+$E$161*DefaultData!P76+$E$162*DefaultData!P77+$E$163*DefaultData!P78+$E$164*DefaultData!P79+$E$165*DefaultData!P80+$E$166*DefaultData!P81+$E$167*DefaultData!P82+$E$168*DefaultData!P83 -> 263065.712 | F52: 263065.712 | G52: 0.2266864434 | I52: =+G52*Multipliers!D321 -> 0.7589424144 | J52: =+$G52*Multipliers!E321 -> 0.3933525299 | K52: =+$G52*Multipliers!F321 -> 0.3805442581 | L52: 1.532839202 | M52: =+$G52*Multipliers!H321 -> 0.05303612501 | N52: =+$G52*Multipliers!I321 -> 0.01929750585 | O52: =+$G52*Multipliers!J321 -> 0.0158286328 | P52: 0.08816226366 | Q52: =+$G52*Multipliers!L321 -> 0.2266864434 | R52: =+$G52*Multipliers!M321 -> 0.05968452769 | S52: =+$G52*Multipliers!N321 -> 0.04496830203 | T52: 0.3313392731 | AB52: =DefaultData!B57 -> Local Property Taxes | AC52: =IF(ProjectData!$B$26="y",DefaultData!C57,ProjectData!B76) -> 7659 | AD52: =IF(ProjectData!$B$26="y",DefaultData!E57,ProjectData!D76) -> 0 | AG52: During operating years (annual)
C53: Insurance and Real Estate | D53: =$E$147*DefaultData!Q62+$E$148*DefaultData!Q63+$E$149*DefaultData!Q64+$E$150*DefaultData!Q65+$E$151*DefaultData!Q66+$E$152*DefaultData!Q67+$E$153*DefaultData!Q68+$E$154*DefaultData!Q69+$E$155*DefaultData!Q70+$E$156*DefaultData!Q71+$E$157*DefaultData!Q72+$E$158*DefaultData!Q73+$E$159*DefaultData!Q74+$E$160*DefaultData!Q75+$E$161*DefaultData!Q76+$E$162*DefaultData!Q77+$E$163*DefaultData!Q78+$E$164*DefaultData!Q79+$E$165*DefaultData!Q80+$E$166*DefaultData!Q81+$E$167*DefaultData!Q82+$E$168*DefaultData!Q83 -> 0 | F53: 0 | G53: 0 | I53: =+G53*Multipliers!D322 -> 0 | J53: =+$G53*Multipliers!E322 -> 0 | K53: =+$G53*Multipliers!F322 -> 0 | L53: 0 | M53: =+$G53*Multipliers!H322 -> 0 | N53: =+$G53*Multipliers!I322 -> 0 | O53: =+$G53*Multipliers!J322 -> 0 | P53: 0 | Q53: =+$G53*Multipliers!L322 -> 0 | R53: =+$G53*Multipliers!M322 -> 0 | S53: =+$G53*Multipliers!N322 -> 0 | T53: 0 | AB53: =DefaultData!B58 -> Local Sales Tax Rate | AC53: =IF(ProjectData!$B$26="y",DefaultData!C58,ProjectData!B77) -> 0.06 | AD53: =IF(ProjectData!$B$26="y",DefaultData!E58,ProjectData!D77) -> 0 | AG53: Onsite Labor Impacts
C54: Finance | D54: =$E$147*DefaultData!R62+$E$148*DefaultData!R63+$E$149*DefaultData!R64+$E$150*DefaultData!R65+$E$151*DefaultData!R66+$E$152*DefaultData!R67+$E$153*DefaultData!R68+$E$154*DefaultData!R69+$E$155*DefaultData!R70+$E$156*DefaultData!R71+$E$157*DefaultData!R72+$E$158*DefaultData!R73+$E$159*DefaultData!R74+$E$160*DefaultData!R75+$E$161*DefaultData!R76+$E$162*DefaultData!R77+$E$163*DefaultData!R78+$E$164*DefaultData!R79+$E$165*DefaultData!R80+$E$166*DefaultData!R81+$E$167*DefaultData!R82+$E$168*DefaultData!R83 -> 0 | F54: 0 | G54: 0 | I54: =+G54*Multipliers!D323 -> 0 | J54: =+$G54*Multipliers!E323 -> 0 | K54: =+$G54*Multipliers!F323 -> 0 | L54: 0 | M54: =+$G54*Multipliers!H323 -> 0 | N54: =+$G54*Multipliers!I323 -> 0 | O54: =+$G54*Multipliers!J323 -> 0 | P54: 0 | Q54: =+$G54*Multipliers!L323 -> 0 | R54: =+$G54*Multipliers!M323 -> 0 | S54: =+$G54*Multipliers!N323 -> 0 | T54: 0 | AB54: Sales Tax Exemption (percent of local taxes) | AC54: =IF(ProjectData!$B$26="y",DefaultData!C59,ProjectData!B78) -> 0 | AG54: PV Project Labor Only | AH54: =L143 -> 21.67809456 | AI54: =P145*1000 -> 1304.053528 | AJ54: =T145*1000 -> 1304.053528
C55: Other Professional Services | D55: =$E$147*DefaultData!S62+$E$148*DefaultData!S63+$E$149*DefaultData!S64+$E$150*DefaultData!S65+$E$151*DefaultData!S66+$E$152*DefaultData!S67+$E$153*DefaultData!S68+$E$154*DefaultData!S69+$E$155*DefaultData!S70+$E$156*DefaultData!S71+$E$157*DefaultData!S72+$E$158*DefaultData!S73+$E$159*DefaultData!S74+$E$160*DefaultData!S75+$E$161*DefaultData!S76+$E$162*DefaultData!S77+$E$163*DefaultData!S78+$E$164*DefaultData!S79+$E$165*DefaultData!S80+$E$166*DefaultData!S81+$E$167*DefaultData!S82+$E$168*DefaultData!S83 -> 0 | F55: 0 | G55: 0 | I55: =+G55*Multipliers!D324 -> 0 | J55: =+$G55*Multipliers!E324 -> 0 | K55: =+$G55*Multipliers!F324 -> 0 | L55: 0 | M55: =+$G55*Multipliers!H324 -> 0 | N55: =+$G55*Multipliers!I324 -> 0 | O55: =+$G55*Multipliers!J324 -> 0 | P55: 0 | Q55: =+$G55*Multipliers!L324 -> 0 | R55: =+$G55*Multipliers!M324 -> 0 | S55: =+$G55*Multipliers!N324 -> 0 | T55: 0 | AG55: Local Revenue and Supply Chain Impacts | AH55: =(L173-AH54)+M173 -> 3.515521318 | AI55: =((P174+Q174)*1000)-AI54 -> 222.3524036 | AJ55: =((T174+U174)*1000)-AJ54 -> 686.4703674
C56: Office Services | D56: =$E$147*DefaultData!T62+$E$148*DefaultData!T63+$E$149*DefaultData!T64+$E$150*DefaultData!T65+$E$151*DefaultData!T66+$E$152*DefaultData!T67+$E$153*DefaultData!T68+$E$154*DefaultData!T69+$E$155*DefaultData!T70+$E$156*DefaultData!T71+$E$157*DefaultData!T72+$E$158*DefaultData!T73+$E$159*DefaultData!T74+$E$160*DefaultData!T75+$E$161*DefaultData!T76+$E$162*DefaultData!T77+$E$163*DefaultData!T78+$E$164*DefaultData!T79+$E$165*DefaultData!T80+$E$166*DefaultData!T81+$E$167*DefaultData!T82+$E$168*DefaultData!T83 -> 10192000 | F56: 10192000 | G56: 8.782551757 | I56: =+G56*Multipliers!D325 -> 81.5372864 | J56: =+$G56*Multipliers!E325 -> 9.221278348 | K56: =+$G56*Multipliers!F325 -> 27.96082807 | L56: 118.7193928 | M56: =+$G56*Multipliers!H325 -> 4.865142809 | N56: =+$G56*Multipliers!I325 -> 0.4310904289 | O56: =+$G56*Multipliers!J325 -> 1.159363831 | P56: 6.455597069 | Q56: =+$G56*Multipliers!L325 -> 8.782551757 | R56: =+$G56*Multipliers!M325 -> 1.20738247 | S56: =+$G56*Multipliers!N325 -> 3.292796014 | T56: 13.28273024 | AG56: Induced Impacts | AH56: =N173 -> 2.816114703 | AI56: =R174*1000 -> 138.1225659 | AJ56: =V174*1000 -> 392.3854044
C57: Architectural and Engineering Services | D57: =$E$147*DefaultData!U62+$E$148*DefaultData!U63+$E$149*DefaultData!U64+$E$150*DefaultData!U65+$E$151*DefaultData!U66+$E$152*DefaultData!U67+$E$153*DefaultData!U68+$E$154*DefaultData!U69+$E$155*DefaultData!U70+$E$156*DefaultData!U71+$E$157*DefaultData!U72+$E$158*DefaultData!U73+$E$159*DefaultData!U74+$E$160*DefaultData!U75+$E$161*DefaultData!U76+$E$162*DefaultData!U77+$E$163*DefaultData!U78+$E$164*DefaultData!U79+$E$165*DefaultData!U80+$E$166*DefaultData!U81+$E$167*DefaultData!U82+$E$168*DefaultData!U83 -> 1331200 | F57: 1331200 | G57: 1.147108801 | I57: =+G57*Multipliers!D326 -> 10.18181005 | J57: =+$G57*Multipliers!E326 -> 2.426011362 | K57: =+$G57*Multipliers!F326 -> 4.103105476 | L57: 16.71092689 | M57: =+$G57*Multipliers!H326 -> 0.6618193104 | N57: =+$G57*Multipliers!I326 -> 0.1154462336 | O57: =+$G57*Multipliers!J326 -> 0.1701385328 | P57: 0.9474040767 | Q57: =+$G57*Multipliers!L326 -> 1.147108801 | R57: =+$G57*Multipliers!M326 -> 0.3149490694 | S57: =+$G57*Multipliers!N326 -> 0.4832754267 | T57: 1.945333297 | AG57: Total Impacts (Direct, Indirect, Induced) | AH57: =SUM(AH54:AH56) -> 28.00973058 | AI57: =SUM(AI54:AI56) -> 1664.528498 | AJ57: =SUM(AJ54:AJ56) -> 2382.9093
C58: Other services | D58: =$E$147*DefaultData!V62+$E$148*DefaultData!V63+$E$149*DefaultData!V64+$E$150*DefaultData!V65+$E$151*DefaultData!V66+$E$152*DefaultData!V67+$E$153*DefaultData!V68+$E$154*DefaultData!V69+$E$155*DefaultData!V70+$E$156*DefaultData!V71+$E$157*DefaultData!V72+$E$158*DefaultData!V73+$E$159*DefaultData!V74+$E$160*DefaultData!V75+$E$161*DefaultData!V76+$E$162*DefaultData!V77+$E$163*DefaultData!V78+$E$164*DefaultData!V79+$E$165*DefaultData!V80+$E$166*DefaultData!V81+$E$167*DefaultData!V82+$E$168*DefaultData!V83 -> 7683055.744 | F58: 7683055.744 | G58: 6.620568556 | I58: =+G58*Multipliers!D327 -> 59.41810044 | J58: =+$G58*Multipliers!E327 -> 11.31989469 | K58: =+$G58*Multipliers!F327 -> 15.51268951 | L58: 86.25068464 | M58: =+$G58*Multipliers!H327 -> 2.534824901 | N58: =+$G58*Multipliers!I327 -> 0.5489548046 | O58: =+$G58*Multipliers!J327 -> 0.6747455661 | P58: 3.758525271 | Q58: =+$G58*Multipliers!L327 -> 6.620568556 | R58: =+$G58*Multipliers!M327 -> 1.637536712 | S58: =+$G58*Multipliers!N327 -> 1.916798028 | T58: 10.1749033
C59: Government | D59: =$E$147*DefaultData!W62+$E$148*DefaultData!W63+$E$149*DefaultData!W64+$E$150*DefaultData!W65+$E$151*DefaultData!W66+$E$152*DefaultData!W67+$E$153*DefaultData!W68+$E$154*DefaultData!W69+$E$155*DefaultData!W70+$E$156*DefaultData!W71+$E$157*DefaultData!W72+$E$158*DefaultData!W73+$E$159*DefaultData!W74+$E$160*DefaultData!W75+$E$161*DefaultData!W76+$E$162*DefaultData!W77+$E$163*DefaultData!W78+$E$164*DefaultData!W79+$E$165*DefaultData!W80+$E$166*DefaultData!W81+$E$167*DefaultData!W82+$E$168*DefaultData!W83 -> 314130.2528 | F59: 314130.2528 | G59: 0.2706892861 | I59: =+G59*Multipliers!D328 -> 2.512724088 | J59: =+$G59*Multipliers!E328 -> 0.04348290519 | K59: =+$G59*Multipliers!F328 -> 0.8293766032 | L59: 3.385583597 | M59: =+$G59*Multipliers!H328 -> 0.1750558812 | N59: =+$G59*Multipliers!I328 -> 0.00252843819 | O59: =+$G59*Multipliers!J328 -> 0.0387269548 | P59: 0.2163112742 | Q59: =+$G59*Multipliers!L328 -> 0.2706892861 | R59: =+$G59*Multipliers!M328 -> 0.007677460553 | S59: =+$G59*Multipliers!N328 -> 0.1100474197 | T59: 0.3884141663
C60: Semiconductor (solar cell/module) manufacturing | D60: =$E$147*DefaultData!X62+$E$148*DefaultData!X63+$E$149*DefaultData!X64+$E$150*DefaultData!X65+$E$151*DefaultData!X66+$E$152*DefaultData!X67+$E$153*DefaultData!X68+$E$154*DefaultData!X69+$E$155*DefaultData!X70+$E$156*DefaultData!X71+$E$157*DefaultData!X72+$E$158*DefaultData!X73+$E$159*DefaultData!X74+$E$160*DefaultData!X75+$E$161*DefaultData!X76+$E$162*DefaultData!X77+$E$163*DefaultData!X78+$E$164*DefaultData!X79+$E$165*DefaultData!X80+$E$166*DefaultData!X81+$E$167*DefaultData!X82+$E$168*DefaultData!X83 -> 0 | F60: 0 | G60: 0 | I60: =+G60*Multipliers!D329 -> 0 | J60: =+$G60*Multipliers!E329 -> 0 | K60: =+$G60*Multipliers!F329 -> 0 | L60: 0 | M60: =+$G60*Multipliers!H329 -> 0 | N60: =+$G60*Multipliers!I329 -> 0 | O60: =+$G60*Multipliers!J329 -> 0 | P60: 0 | Q60: =+$G60*Multipliers!L329 -> 0 | R60: =+$G60*Multipliers!M329 -> 0 | S60: =+$G60*Multipliers!N329 -> 0 | T60: 0
C61: Total | D61: =SUM(D39:D60) -> 24544000 | F61: =SUM(F39:F60) -> 24544000 | G61: =SUM(G39:G60) -> 21.14981852 | I61: =SUM(I39:I60) -> 203.617312 | J61: =SUM(J39:J60) -> 31.43475124 | K61: =SUM(K39:K60) -> 58.75039884 | L61: =SUM(L39:L60) -> 293.8024621 | M61: =SUM(M39:M60) -> 11.11158835 | N61: =SUM(N39:N60) -> 1.49909845 | O61: 2.467619129 | P61: 15.07830593 | Q61: 21.14981852 | R61: 4.327379283 | S61: 7.009177587 | T61: 32.48637539
F63: Inflator to | G63: =D35 -> 2020 | H63: Dollars
G64: =Deflators!E8 -> 1.160482771 | I64: Manufactured | M64: =M61*$G64 -> 12.89480684 | N64: 1.739677923 | O64: 2.863629485 | P64: 17.49811424 | Q64: 24.544 | R64: 5.021849102 | S64: 8.134029829 | T64: 37.69987893
I65: Locally
C66: =DefaultData!B33 -> PV System Annual Operating and Maintenance Costs | I66: To Wholesale | J66: To Mfg.
C67: =DefaultData!B34 -> Labor | D67: Cost | E67: Local Share | F67: Manufactured | G67: Local $ Spending | H67: Wholesale Share | I67: N | J67: Y
C68: =DefaultData!B35 -> Technicians | D68: =IF(ProjectData!$B$26="y",DefaultData!C35,ProjectData!B54) -> 1560000 | E68: =IF(ProjectData!$B$26="y",ProjectData!T54,ProjectData!E54) -> 0.9 | F68: Locally | G68: =D68*E68 -> 1404000
C69: =DefaultData!B36 -> Subtotal | D69: =D68 -> 1560000 | G69: =G68 -> 1404000
C70: =DefaultData!B37 -> Materials and Services
C71: =DefaultData!B38 -> Materials & Equipment | D71: =IF(ProjectData!$B$26="y",DefaultData!C38,ProjectData!B58) -> 520000 | E71: =IF(ProjectData!$B$26="y",ProjectData!T58,ProjectData!E58) -> 0.9 | F71: =IF(ProjectData!$B$26="y",DefaultData!AG38,ProjectData!F58) -> N | G71: =IF(F71="y",J71,I71) -> 374400 | H71: 0.2 | I71: =IF(F71="N",D71*E71*(1-H71),) -> 374400 | J71: =IF(F71="Y",D71*E71,) -> 0
C72: =DefaultData!B39 -> Services | D72: =IF(ProjectData!$B$26="y",DefaultData!C39,ProjectData!B59) -> 0 | E72: =IF(ProjectData!$B$26="y",ProjectData!T59,ProjectData!E59) -> 0.9 | G72: =D72*E72 -> 0
C73: =DefaultData!B40 -> Subtotal | D73: =SUM(D71:D72) -> 520000 | G73: =SUM(G71:G72) -> 374400
C74: =DefaultData!B41 -> Sales Tax (Materials & Equipment Purchases) | D74: =IF(ProjectData!$B$26="y",DefaultData!C41,ProjectData!B61) -> 31200 | E74: =IF(ProjectData!$B$26="y",ProjectData!T61,ProjectData!D77) -> 0 | G74: =D74*E74 -> 0
C75: Average Annual Payment (Interest and Principal) | D75: =IF(ProjectData!$B$26="y",F211,Calculations!F247) -> 28229760 | E75: =IF(ProjectData!$B$26="y",DefaultData!E47,ProjectData!D67) -> 0 | G75: =D75*E75 -> 0 | H75: =IF(ProjectData!$B$26="y",Calculations!D211,D247)*E75 -> 0 | I75: Debt Pmt - Local share Avg Ann Interest
C76: Property Taxes | D76: =IF(ProjectData!$B$26="y",DefaultData!C57,ProjectData!B76) -> 7659 | E76: =IF(ProjectData!$B$26="y",DefaultData!E57,ProjectData!D76) -> 0 | G76: =D76*E76 -> 0
C77: Total | D77: =D69+SUM(D73:D76) -> 30348619 | G77: =G69+SUM(G73:G76) -> 1778400
C78: Total (without debt, equity,taxes, lease pmts) | D78: =D73+D69 -> 2080000 | E78: =D77-D78 -> 28268619 | G78: =G73+G69 -> 1778400 | H78: =G77-G78 -> 0
C79: Total cost per KW | D79: =D78/(ProjectData!B18*1000) -> 0.01
D84: Local Share | E84: 1 | F84: 0.5 | L84: Without Plant Employees
C85: Annual Operations and Maintenance Costs Local Demand - margined | O85: =M36 -> 2012 | P85: =N36 -> Dollars
D86: Demand | G86: Total | H86: Adj Demand - Million | L86: Jobs | P86: Earnings | T86: Output
H87: =M36 -> 2012 | I87: Dollars | L87: Direct | M87: Indirect | N87: Induced | O87: Total | P87: Direct | Q87: Indirect | R87: Induced | S87: Total | T87: Direct | U87: Indirect | V87: Induced | W87: Total
C88: Ag, Forestry, Fish & Hunting | D88: =$D$147*DefaultData!C62+$D$148*DefaultData!C63+$D$149*DefaultData!C64+$D$150*DefaultData!C65+$D$151*DefaultData!C66+$D$152*DefaultData!C67+$D$153*DefaultData!C68+$D$154*DefaultData!C69+$D$155*DefaultData!C70+$D$156*DefaultData!C71+$D$157*DefaultData!C72+$D$158*DefaultData!C73+$D$159*DefaultData!C74+$D$160*DefaultData!C75+$D$161*DefaultData!C76+$D$162*DefaultData!C77+$D$163*DefaultData!C78+$D$164*DefaultData!C79+$D$165*DefaultData!C80+$D$166*DefaultData!C81+$D$167*DefaultData!C82+$D$168*DefaultData!C83 -> 0 | G88: =D88 -> 0 | H88: =G88*G$35/10^6 -> 0 | L88: =$H88*Multipliers!D308 -> 0 | M88: =$H88*Multipliers!E308 -> 0 | N88: =$H88*Multipliers!F308 -> 0 | O88: =+N88+M88+L88 -> 0 | P88: =$H88*Multipliers!H308 -> 0 | Q88: =$H88*Multipliers!I308 -> 0 | R88: =$H88*Multipliers!J308 -> 0 | S88: =+R88+Q88+P88 -> 0 | T88: =$H88*Multipliers!L308 -> 0 | U88: =$H88*Multipliers!M308 -> 0 | V88: =$H88*Multipliers!N308 -> 0 | W88: =+V88+U88+T88 -> 0
C89: Mining | D89: =$D$147*DefaultData!D62+$D$148*DefaultData!D63+$D$149*DefaultData!D64+$D$150*DefaultData!D65+$D$151*DefaultData!D66+$D$152*DefaultData!D67+$D$153*DefaultData!D68+$D$154*DefaultData!D69+$D$155*DefaultData!D70+$D$156*DefaultData!D71+$D$157*DefaultData!D72+$D$158*DefaultData!D73+$D$159*DefaultData!D74+$D$160*DefaultData!D75+$D$161*DefaultData!D76+$D$162*DefaultData!D77+$D$163*DefaultData!D78+$D$164*DefaultData!D79+$D$165*DefaultData!D80+$D$166*DefaultData!D81+$D$167*DefaultData!D82+$D$168*DefaultData!D83 -> 0 | G89: =D89 -> 0 | H89: 0 | L89: =$H89*Multipliers!D309 -> 0 | M89: =$H89*Multipliers!E309 -> 0 | N89: =$H89*Multipliers!F309 -> 0 | O89: =+N89+M89+L89 -> 0 | P89: =$H89*Multipliers!H309 -> 0 | Q89: =$H89*Multipliers!I309 -> 0 | R89: =$H89*Multipliers!J309 -> 0 | S89: =+R89+Q89+P89 -> 0 | T89: =$H89*Multipliers!L309 -> 0 | U89: =$H89*Multipliers!M309 -> 0 | V89: =$H89*Multipliers!N309 -> 0 | W89: =+V89+U89+T89 -> 0
C90: Construction | D90: =$D$147*DefaultData!E62+$D$148*DefaultData!E63+$D$149*DefaultData!E64+$D$150*DefaultData!E65+$D$151*DefaultData!E66+$D$152*DefaultData!E67+$D$153*DefaultData!E68+$D$154*DefaultData!E69+$D$155*DefaultData!E70+$D$156*DefaultData!E71+$D$157*DefaultData!E72+$D$158*DefaultData!E73+$D$159*DefaultData!E74+$D$160*DefaultData!E75+$D$161*DefaultData!E76+$D$162*DefaultData!E77+$D$163*DefaultData!E78+$D$164*DefaultData!E79+$D$165*DefaultData!E80+$D$166*DefaultData!E81+$D$167*DefaultData!E82+$D$168*DefaultData!E83 -> 0 | G90: 0 | H90: 0 | L90: =$H90*Multipliers!D310 -> 0 | M90: =$H90*Multipliers!E310 -> 0 | N90: =$H90*Multipliers!F310 -> 0 | O90: 0 | P90: =$H90*Multipliers!H310 -> 0 | Q90: =$H90*Multipliers!I310 -> 0 | R90: =$H90*Multipliers!J310 -> 0 | S90: 0 | T90: =$H90*Multipliers!L310 -> 0 | U90: =$H90*Multipliers!M310 -> 0 | V90: =$H90*Multipliers!N310 -> 0 | W90: 0
C91: Construction/Installations - Non Residential | D91: =$D$147*DefaultData!F62+$D$148*DefaultData!F63+$D$149*DefaultData!F64+$D$150*DefaultData!F65+$D$151*DefaultData!F66+$D$152*DefaultData!F67+$D$153*DefaultData!F68+$D$154*DefaultData!F69+$D$155*DefaultData!F70+$D$156*DefaultData!F71+$D$157*DefaultData!F72+$D$158*DefaultData!F73+$D$159*DefaultData!F74+$D$160*DefaultData!F75+$D$161*DefaultData!F76+$D$162*DefaultData!F77+$D$163*DefaultData!F78+$D$164*DefaultData!F79+$D$165*DefaultData!F80+$D$166*DefaultData!F81+$D$167*DefaultData!F82+$D$168*DefaultData!F83 -> 0 | G91: 0 | H91: 0 | L91: =$H91*Multipliers!D311 -> 0 | M91: =$H91*Multipliers!E311 -> 0 | N91: =$H91*Multipliers!F311 -> 0 | O91: 0 | P91: =$H91*Multipliers!H311 -> 0 | Q91: =$H91*Multipliers!I311 -> 0 | R91: =$H91*Multipliers!J311 -> 0 | S91: 0 | T91: =$H91*Multipliers!L311 -> 0 | U91: =$H91*Multipliers!M311 -> 0 | V91: =$H91*Multipliers!N311 -> 0 | W91: 0
C92: Construction/Installation Residential | D92: =$D$147*DefaultData!G62+$D$148*DefaultData!G63+$D$149*DefaultData!G64+$D$150*DefaultData!G65+$D$151*DefaultData!G66+$D$152*DefaultData!G67+$D$153*DefaultData!G68+$D$154*DefaultData!G69+$D$155*DefaultData!G70+$D$156*DefaultData!G71+$D$157*DefaultData!G72+$D$158*DefaultData!G73+$D$159*DefaultData!G74+$D$160*DefaultData!G75+$D$161*DefaultData!G76+$D$162*DefaultData!G77+$D$163*DefaultData!G78+$D$164*DefaultData!G79+$D$165*DefaultData!G80+$D$166*DefaultData!G81+$D$167*DefaultData!G82+$D$168*DefaultData!G83 -> 0 | G92: 0 | H92: 0 | L92: =$H92*Multipliers!D312 -> 0 | M92: =$H92*Multipliers!E312 -> 0 | N92: =$H92*Multipliers!F312 -> 0 | O92: 0 | P92: =$H92*Multipliers!H312 -> 0 | Q92: =$H92*Multipliers!I312 -> 0 | R92: =$H92*Multipliers!J312 -> 0 | S92: 0 | T92: =$H92*Multipliers!L312 -> 0 | U92: =$H92*Multipliers!M312 -> 0 | V92: =$H92*Multipliers!N312 -> 0 | W92: 0
C93: Manufacturing | D93: =$D$147*DefaultData!H62+$D$148*DefaultData!H63+$D$149*DefaultData!H64+$D$150*DefaultData!H65+$D$151*DefaultData!H66+$D$152*DefaultData!H67+$D$153*DefaultData!H68+$D$154*DefaultData!H69+$D$155*DefaultData!H70+$D$156*DefaultData!H71+$D$157*DefaultData!H72+$D$158*DefaultData!H73+$D$159*DefaultData!H74+$D$160*DefaultData!H75+$D$161*DefaultData!H76+$D$162*DefaultData!H77+$D$163*DefaultData!H78+$D$164*DefaultData!H79+$D$165*DefaultData!H80+$D$166*DefaultData!H81+$D$167*DefaultData!H82+$D$168*DefaultData!H83 -> 0 | G93: 0 | H93: 0 | L93: =$H93*Multipliers!D313 -> 0 | M93: =$H93*Multipliers!E313 -> 0 | N93: =$H93*Multipliers!F313 -> 0 | O93: 0 | P93: =$H93*Multipliers!H313 -> 0 | Q93: =$H93*Multipliers!I313 -> 0 | R93: =$H93*Multipliers!J313 -> 0 | S93: 0 | T93: =$H93*Multipliers!L313 -> 0 | U93: =$H93*Multipliers!M313 -> 0 | V93: =$H93*Multipliers!N313 -> 0 | W93: 0
C94: Fabricated Metals | D94: =$D$147*DefaultData!I62+$D$148*DefaultData!I63+$D$149*DefaultData!I64+$D$150*DefaultData!I65+$D$151*DefaultData!I66+$D$152*DefaultData!I67+$D$153*DefaultData!I68+$D$154*DefaultData!I69+$D$155*DefaultData!I70+$D$156*DefaultData!I71+$D$157*DefaultData!I72+$D$158*DefaultData!I73+$D$159*DefaultData!I74+$D$160*DefaultData!I75+$D$161*DefaultData!I76+$D$162*DefaultData!I77+$D$163*DefaultData!I78+$D$164*DefaultData!I79+$D$165*DefaultData!I80+$D$166*DefaultData!I81+$D$167*DefaultData!I82+$D$168*DefaultData!I83 -> 0 | G94: 0 | H94: 0 | L94: =$H94*Multipliers!D314 -> 0 | M94: =$H94*Multipliers!E314 -> 0 | N94: =$H94*Multipliers!F314 -> 0 | O94: 0 | P94: =$H94*Multipliers!H314 -> 0 | Q94: =$H94*Multipliers!I314 -> 0 | R94: =$H94*Multipliers!J314 -> 0 | S94: 0 | T94: =$H94*Multipliers!L314 -> 0 | U94: =$H94*Multipliers!M314 -> 0 | V94: =$H94*Multipliers!N314 -> 0 | W94: 0
C95: Machinery | D95: =$D$147*DefaultData!J62+$D$148*DefaultData!J63+$D$149*DefaultData!J64+$D$150*DefaultData!J65+$D$151*DefaultData!J66+$D$152*DefaultData!J67+$D$153*DefaultData!J68+$D$154*DefaultData!J69+$D$155*DefaultData!J70+$D$156*DefaultData!J71+$D$157*DefaultData!J72+$D$158*DefaultData!J73+$D$159*DefaultData!J74+$D$160*DefaultData!J75+$D$161*DefaultData!J76+$D$162*DefaultData!J77+$D$163*DefaultData!J78+$D$164*DefaultData!J79+$D$165*DefaultData!J80+$D$166*DefaultData!J81+$D$167*DefaultData!J82+$D$168*DefaultData!J83 -> 0 | G95: 0 | H95: 0 | L95: =$H95*Multipliers!D315 -> 0 | M95: =$H95*Multipliers!E315 -> 0 | N95: =$H95*Multipliers!F315 -> 0 | O95: 0 | P95: =$H95*Multipliers!H315 -> 0 | Q95: =$H95*Multipliers!I315 -> 0 | R95: =$H95*Multipliers!J315 -> 0 | S95: 0 | T95: =$H95*Multipliers!L315 -> 0 | U95: =$H95*Multipliers!M315 -> 0 | V95: =$H95*Multipliers!N315 -> 0 | W95: 0
C96: Electrical Equip | D96: =$D$147*DefaultData!K62+$D$148*DefaultData!K63+$D$149*DefaultData!K64+$D$150*DefaultData!K65+$D$151*DefaultData!K66+$D$152*DefaultData!K67+$D$153*DefaultData!K68+$D$154*DefaultData!K69+$D$155*DefaultData!K70+$D$156*DefaultData!K71+$D$157*DefaultData!K72+$D$158*DefaultData!K73+$D$159*DefaultData!K74+$D$160*DefaultData!K75+$D$161*DefaultData!K76+$D$162*DefaultData!K77+$D$163*DefaultData!K78+$D$164*DefaultData!K79+$D$165*DefaultData!K80+$D$166*DefaultData!K81+$D$167*DefaultData!K82+$D$168*DefaultData!K83 -> 0 | G96: 0 | H96: 0 | L96: =$H96*Multipliers!D316 -> 0 | M96: =$H96*Multipliers!E316 -> 0 | N96: =$H96*Multipliers!F316 -> 0 | O96: 0 | P96: =$H96*Multipliers!H316 -> 0 | Q96: =$H96*Multipliers!I316 -> 0 | R96: =$H96*Multipliers!J316 -> 0 | S96: 0 | T96: =$H96*Multipliers!L316 -> 0 | U96: =$H96*Multipliers!M316 -> 0 | V96: =$H96*Multipliers!N316 -> 0 | W96: 0
C97: Battery Manufacturing | D97: =$D$147*DefaultData!L62+$D$148*DefaultData!L63+$D$149*DefaultData!L64+$D$150*DefaultData!L65+$D$151*DefaultData!L66+$D$152*DefaultData!L67+$D$153*DefaultData!L68+$D$154*DefaultData!L69+$D$155*DefaultData!L70+$D$156*DefaultData!L71+$D$157*DefaultData!L72+$D$158*DefaultData!L73+$D$159*DefaultData!L74+$D$160*DefaultData!L75+$D$161*DefaultData!L76+$D$162*DefaultData!L77+$D$163*DefaultData!L78+$D$164*DefaultData!L79+$D$165*DefaultData!L80+$D$166*DefaultData!L81+$D$167*DefaultData!L82+$D$168*DefaultData!L83 -> 0 | G97: 0 | H97: 0 | L97: =$H97*Multipliers!D317 -> 0 | M97: =$H97*Multipliers!E317 -> 0 | N97: =$H97*Multipliers!F317 -> 0 | O97: 0 | P97: =$H97*Multipliers!H317 -> 0 | Q97: =$H97*Multipliers!I317 -> 0 | R97: =$H97*Multipliers!J317 -> 0 | S97: 0 | T97: =$H97*Multipliers!L317 -> 0 | U97: =$H97*Multipliers!M317 -> 0 | V97: =$H97*Multipliers!N317 -> 0 | W97: 0
C98: Energy Wire Manufacturing | D98: =$D$147*DefaultData!M62+$D$148*DefaultData!M63+$D$149*DefaultData!M64+$D$150*DefaultData!M65+$D$151*DefaultData!M66+$D$152*DefaultData!M67+$D$153*DefaultData!M68+$D$154*DefaultData!M69+$D$155*DefaultData!M70+$D$156*DefaultData!M71+$D$157*DefaultData!M72+$D$158*DefaultData!M73+$D$159*DefaultData!M74+$D$160*DefaultData!M75+$D$161*DefaultData!M76+$D$162*DefaultData!M77+$D$163*DefaultData!M78+$D$164*DefaultData!M79+$D$165*DefaultData!M80+$D$166*DefaultData!M81+$D$167*DefaultData!M82+$D$168*DefaultData!M83 -> 0 | G98: 0 | H98: 0 | L98: =$H98*Multipliers!D318 -> 0 | M98: =$H98*Multipliers!E318 -> 0 | N98: =$H98*Multipliers!F318 -> 0 | O98: 0 | P98: =$H98*Multipliers!H318 -> 0 | Q98: =$H98*Multipliers!I318 -> 0 | R98: =$H98*Multipliers!J318 -> 0 | S98: 0 | T98: =$H98*Multipliers!L318 -> 0 | U98: =$H98*Multipliers!M318 -> 0 | V98: =$H98*Multipliers!N318 -> 0 | W98: 0
C99: Wholesale Trade | D99: =$D$147*DefaultData!N62+$D$148*DefaultData!N63+$D$149*DefaultData!N64+$D$150*DefaultData!N65+$D$151*DefaultData!N66+$D$152*DefaultData!N67+$D$153*DefaultData!N68+$D$154*DefaultData!N69+$D$155*DefaultData!N70+$D$156*DefaultData!N71+$D$157*DefaultData!N72+$D$158*DefaultData!N73+$D$159*DefaultData!N74+$D$160*DefaultData!N75+$D$161*DefaultData!N76+$D$162*DefaultData!N77+$D$163*DefaultData!N78+$D$164*DefaultData!N79+$D$165*DefaultData!N80+$D$166*DefaultData!N81+$D$167*DefaultData!N82+$D$168*DefaultData!N83 -> 270440.7264 | G99: 270440.7264 | H99: 0.2330415696 | L99: =$H99*Multipliers!D319 -> 1.072122139 | M99: =$H99*Multipliers!E319 -> 0.4226213792 | N99: =$H99*Multipliers!F319 -> 0.5224550784 | O99: 2.017198597 | P99: =$H99*Multipliers!H319 -> 0.07682045525 | Q99: =$H99*Multipliers!I319 -> 0.02003839477 | R99: =$H99*Multipliers!J319 -> 0.02119133632 | S99: 0.1180501863 | T99: =$H99*Multipliers!L319 -> 0.2330415696 | U99: =$H99*Multipliers!M319 -> 0.05555546703 | V99: =$H99*Multipliers!N319 -> 0.06020338983 | W99: 0.3488004264
C100: Retail trade | D100: =$D$147*DefaultData!O62+$D$148*DefaultData!O63+$D$149*DefaultData!O64+$D$150*DefaultData!O65+$D$151*DefaultData!O66+$D$152*DefaultData!O67+$D$153*DefaultData!O68+$D$154*DefaultData!O69+$D$155*DefaultData!O70+$D$156*DefaultData!O71+$D$157*DefaultData!O72+$D$158*DefaultData!O73+$D$159*DefaultData!O74+$D$160*DefaultData!O75+$D$161*DefaultData!O76+$D$162*DefaultData!O77+$D$163*DefaultData!O78+$D$164*DefaultData!O79+$D$165*DefaultData!O80+$D$166*DefaultData!O81+$D$167*DefaultData!O82+$D$168*DefaultData!O83 -> 0 | G100: 0 | H100: 0 | L100: =$H100*Multipliers!D320 -> 0 | M100: =$H100*Multipliers!E320 -> 0 | N100: =$H100*Multipliers!F320 -> 0 | O100: 0 | P100: =$H100*Multipliers!H320 -> 0 | Q100: =$H100*Multipliers!I320 -> 0 | R100: =$H100*Multipliers!J320 -> 0 | S100: 0 | T100: =$H100*Multipliers!L320 -> 0 | U100: =$H100*Multipliers!M320 -> 0 | V100: =$H100*Multipliers!N320 -> 0 | W100: 0
C101: TCPU | D101: =$D$147*DefaultData!P62+$D$148*DefaultData!P63+$D$149*DefaultData!P64+$D$150*DefaultData!P65+$D$151*DefaultData!P66+$D$152*DefaultData!P67+$D$153*DefaultData!P68+$D$154*DefaultData!P69+$D$155*DefaultData!P70+$D$156*DefaultData!P71+$D$157*DefaultData!P72+$D$158*DefaultData!P73+$D$159*DefaultData!P74+$D$160*DefaultData!P75+$D$161*DefaultData!P76+$D$162*DefaultData!P77+$D$163*DefaultData!P78+$D$164*DefaultData!P79+$D$165*DefaultData!P80+$D$166*DefaultData!P81+$D$167*DefaultData!P82+$D$168*DefaultData!P83 -> 103959.2736 | G101: 103959.2736 | H101: 0.08958278071 | L101: 0 | M101: =$H101*Multipliers!E321 -> 0.1554464965 | N101: =$H101*Multipliers!F321 -> 0.1503848766 | O101: 0.3058313731 | P101: 0 | Q101: =$H101*Multipliers!I321 -> 0.007626059189 | R101: =$H101*Multipliers!J321 -> 0.006255217208 | S101: 0.0138812764 | T101: 0 | U101: =$H101*Multipliers!M321 -> 0.02358635071 | V101: =$H101*Multipliers!N321 -> 0.01777073864 | W101: 0.04135708936
C102: Insurance and Real Estate | D102: =$D$147*DefaultData!Q62+$D$148*DefaultData!Q63+$D$149*DefaultData!Q64+$D$150*DefaultData!Q65+$D$151*DefaultData!Q66+$D$152*DefaultData!Q67+$D$153*DefaultData!Q68+$D$154*DefaultData!Q69+$D$155*DefaultData!Q70+$D$156*DefaultData!Q71+$D$157*DefaultData!Q72+$D$158*DefaultData!Q73+$D$159*DefaultData!Q74+$D$160*DefaultData!Q75+$D$161*DefaultData!Q76+$D$162*DefaultData!Q77+$D$163*DefaultData!Q78+$D$164*DefaultData!Q79+$D$165*DefaultData!Q80+$D$166*DefaultData!Q81+$D$167*DefaultData!Q82+$D$168*DefaultData!Q83 -> 0 | G102: 0 | H102: 0 | L102: 0 | M102: =$H102*Multipliers!E322 -> 0 | N102: =$H102*Multipliers!F322 -> 0 | O102: =+N102+M102+L102 -> 0 | P102: 0 | Q102: =$H102*Multipliers!I322 -> 0 | R102: =$H102*Multipliers!J322 -> 0 | S102: =+R102+Q102+P102 -> 0 | T102: 0 | U102: =$H102*Multipliers!M322 -> 0 | V102: =$H102*Multipliers!N322 -> 0 | W102: =+V102+U102+T102 -> 0
C103: Finance | D103: =$D$147*DefaultData!R62+$D$148*DefaultData!R63+$D$149*DefaultData!R64+$D$150*DefaultData!R65+$D$151*DefaultData!R66+$D$152*DefaultData!R67+$D$153*DefaultData!R68+$D$154*DefaultData!R69+$D$155*DefaultData!R70+$D$156*DefaultData!R71+$D$157*DefaultData!R72+$D$158*DefaultData!R73+$D$159*DefaultData!R74+$D$160*DefaultData!R75+$D$161*DefaultData!R76+$D$162*DefaultData!R77+$D$163*DefaultData!R78+$D$164*DefaultData!R79+$D$165*DefaultData!R80+$D$166*DefaultData!R81+$D$167*DefaultData!R82+$D$168*DefaultData!R83 -> 0 | G103: 0 | H103: 0 | L103: 0 | M103: =$H103*Multipliers!E323 -> 0 | N103: =$H103*Multipliers!F323 -> 0 | O103: 0 | P103: 0 | Q103: =$H103*Multipliers!I323 -> 0 | R103: =$H103*Multipliers!J323 -> 0 | S103: 0 | T103: 0 | U103: =$H103*Multipliers!M323 -> 0 | V103: =$H103*Multipliers!N323 -> 0 | W103: 0
C104: Other Professional Services | D104: =$D$147*DefaultData!S62+$D$148*DefaultData!S63+$D$149*DefaultData!S64+$D$150*DefaultData!S65+$D$151*DefaultData!S66+$D$152*DefaultData!S67+$D$153*DefaultData!S68+$D$154*DefaultData!S69+$D$155*DefaultData!S70+$D$156*DefaultData!S71+$D$157*DefaultData!S72+$D$158*DefaultData!S73+$D$159*DefaultData!S74+$D$160*DefaultData!S75+$D$161*DefaultData!S76+$D$162*DefaultData!S77+$D$163*DefaultData!S78+$D$164*DefaultData!S79+$D$165*DefaultData!S80+$D$166*DefaultData!S81+$D$167*DefaultData!S82+$D$168*DefaultData!S83 -> 0 | G104: 0 | H104: 0 | L104: 0 | M104: =$H104*Multipliers!E324 -> 0 | N104: =$H104*Multipliers!F324 -> 0 | O104: 0 | P104: 0 | Q104: =$H104*Multipliers!I324 -> 0 | R104: =$H104*Multipliers!J324 -> 0 | S104: 0 | T104: 0 | U104: =$H104*Multipliers!M324 -> 0 | V104: =$H104*Multipliers!N324 -> 0 | W104: 0
C105: Office Services | D105: =$D$147*DefaultData!T62+$D$148*DefaultData!T63+$D$149*DefaultData!T64+$D$150*DefaultData!T65+$D$151*DefaultData!T66+$D$152*DefaultData!T67+$D$153*DefaultData!T68+$D$154*DefaultData!T69+$D$155*DefaultData!T70+$D$156*DefaultData!T71+$D$157*DefaultData!T72+$D$158*DefaultData!T73+$D$159*DefaultData!T74+$D$160*DefaultData!T75+$D$161*DefaultData!T76+$D$162*DefaultData!T77+$D$163*DefaultData!T78+$D$164*DefaultData!T79+$D$165*DefaultData!T80+$D$166*DefaultData!T81+$D$167*DefaultData!T82+$D$168*DefaultData!T83 -> 0 | G105: 0 | H105: 0 | L105: 0 | M105: =$H105*Multipliers!E325 -> 0 | N105: =$H105*Multipliers!F325 -> 0 | O105: 0 | P105: 0 | Q105: =$H105*Multipliers!I325 -> 0 | R105: =$H105*Multipliers!J325 -> 0 | S105: 0 | T105: 0 | U105: =$H105*Multipliers!M325 -> 0 | V105: =$H105*Multipliers!N325 -> 0 | W105: 0
C106: Architectural and Engineering Services | D106: =$D$147*DefaultData!U62+$D$148*DefaultData!U63+$D$149*DefaultData!U64+$D$150*DefaultData!U65+$D$151*DefaultData!U66+$D$152*DefaultData!U67+$D$153*DefaultData!U68+$D$154*DefaultData!U69+$D$155*DefaultData!U70+$D$156*DefaultData!U71+$D$157*DefaultData!U72+$D$158*DefaultData!U73+$D$159*DefaultData!U74+$D$160*DefaultData!U75+$D$161*DefaultData!U76+$D$162*DefaultData!U77+$D$163*DefaultData!U78+$D$164*DefaultData!U79+$D$165*DefaultData!U80+$D$166*DefaultData!U81+$D$167*DefaultData!U82+$D$168*DefaultData!U83 -> 0 | G106: 0 | H106: 0 | L106: 0 | M106: =$H106*Multipliers!E326 -> 0 | N106: =$H106*Multipliers!F326 -> 0 | O106: 0 | P106: 0 | Q106: =$H106*Multipliers!I326 -> 0 | R106: =$H106*Multipliers!J326 -> 0 | S106: 0 | T106: 0 | U106: =$H106*Multipliers!M326 -> 0 | V106: =$H106*Multipliers!N326 -> 0 | W106: 0
C107: Other services | D107: =$D$147*DefaultData!V62+$D$148*DefaultData!V63+$D$149*DefaultData!V64+$D$150*DefaultData!V65+$D$151*DefaultData!V66+$D$152*DefaultData!V67+$D$153*DefaultData!V68+$D$154*DefaultData!V69+$D$155*DefaultData!V70+$D$156*DefaultData!V71+$D$157*DefaultData!V72+$D$158*DefaultData!V73+$D$159*DefaultData!V74+$D$160*DefaultData!V75+$D$161*DefaultData!V76+$D$162*DefaultData!V77+$D$163*DefaultData!V78+$D$164*DefaultData!V79+$D$165*DefaultData!V80+$D$166*DefaultData!V81+$D$167*DefaultData!V82+$D$168*DefaultData!V83 -> 0 | G107: 0 | H107: 0 | L107: 0 | M107: =$H107*Multipliers!E327 -> 0 | N107: =$H107*Multipliers!F327 -> 0 | O107: 0 | P107: 0 | Q107: =$H107*Multipliers!I327 -> 0 | R107: =$H107*Multipliers!J327 -> 0 | S107: 0 | T107: 0 | U107: =$H107*Multipliers!M327 -> 0 | V107: =$H107*Multipliers!N327 -> 0 | W107: 0
C108: Government | D108: =$D$147*DefaultData!W62+$D$148*DefaultData!W63+$D$149*DefaultData!W64+$D$150*DefaultData!W65+$D$151*DefaultData!W66+$D$152*DefaultData!W67+$D$153*DefaultData!W68+$D$154*DefaultData!W69+$D$155*DefaultData!W70+$D$156*DefaultData!W71+$D$157*DefaultData!W72+$D$158*DefaultData!W73+$D$159*DefaultData!W74+$D$160*DefaultData!W75+$D$161*DefaultData!W76+$D$162*DefaultData!W77+$D$163*DefaultData!W78+$D$164*DefaultData!W79+$D$165*DefaultData!W80+$D$166*DefaultData!W81+$D$167*DefaultData!W82+$D$168*DefaultData!W83 -> 0 | G108: 0 | H108: 0 | L108: 0 | M108: =$H108*Multipliers!E328 -> 0 | N108: =$H108*Multipliers!F328 -> 0 | O108: 0 | P108: 0 | Q108: =$H108*Multipliers!I328 -> 0 | R108: =$H108*Multipliers!J328 -> 0 | S108: 0 | T108: 0 | U108: =$H108*Multipliers!M328 -> 0 | V108: =$H108*Multipliers!N328 -> 0 | W108: 0
C109: Semiconductor (solar cell/module) manufacturing | D109: =$D$147*DefaultData!X62+$D$148*DefaultData!X63+$D$149*DefaultData!X64+$D$150*DefaultData!X65+$D$151*DefaultData!X66+$D$152*DefaultData!X67+$D$153*DefaultData!X68+$D$154*DefaultData!X69+$D$155*DefaultData!X70+$D$156*DefaultData!X71+$D$157*DefaultData!X72+$D$158*DefaultData!X73+$D$159*DefaultData!X74+$D$160*DefaultData!X75+$D$161*DefaultData!X76+$D$162*DefaultData!X77+$D$163*DefaultData!X78+$D$164*DefaultData!X79+$D$165*DefaultData!X80+$D$166*DefaultData!X81+$D$167*DefaultData!X82+$D$168*DefaultData!X83 -> 0 | G109: 0 | H109: 0 | L109: 0 | M109: =$H109*Multipliers!E329 -> 0 | N109: =$H109*Multipliers!F329 -> 0 | O109: 0 | P109: 0 | Q109: =$H109*Multipliers!I329 -> 0 | R109: =$H109*Multipliers!J329 -> 0 | S109: 0 | T109: 0 | U109: =$H109*Multipliers!M329 -> 0 | V109: =$H109*Multipliers!N329 -> 0 | W109: 0
C110: Total | D110: =SUM(D88:D109) -> 374400 | G110: =SUM(G88:G109) -> 374400 | H110: =SUM(H88:H109) -> 0.3226243503 | K110: Total | L110: =SUM(L88:L109) -> 1.072122139 | M110: =SUM(M88:M109) -> 0.5780678757 | N110: =SUM(N88:N109) -> 0.672839955 | O110: =SUM(O88:O109) -> 2.32302997 | P110: =SUM(P88:P109) -> 0.07682045525 | Q110: =SUM(Q88:Q109) -> 0.02766445396 | R110: 0.02744655353 | S110: 0.1319314627 | T110: 0.2330415696 | U110: 0.07914181774 | V110: 0.07797412848 | W110: 0.3901575158
C112: Plant Employees | E112: Earnings - Gross | G112: =G68 -> 1404000 | H112: =G112*G35/10^6 -> 1.209841314
C113: Plant Employees | E113: Employee - (SSI, Med, Inc Tax) | F113: =IF(ProjectData!B$26="y",Calculations!K22,Calculations!L22) -> 0.07118694551 | G113: =G$112*F113 -> 99946.4715 | H113: 0 | O113: Inflate to | P113: =D35 -> 2020 | Q113: Dollars | T113: =P113 -> 2020 | U113: Dollars
C114: Technicians | D114: =IF(ProjectData!B26="y",Calculations!H29,I29) -> 21.67809456 | E114: Other benefits | F114: =IF(ProjectData!B$26="y",Calculations!K23,Calculations!L23) -> 0.3845130545 | G114: =G$112*F114 -> 539856.3285 | H114: =IF(ProjectData!B12="MyCounty",0,IF(ProjectData!B12="MyRegion",0,1)) -> 1 | J114: Without Plant Employees | L114: =L110 -> 1.072122139 | M114: =M110 -> 0.5780678757 | N114: =N110 -> 0.672839955 | O114: =O110 -> 2.32302997 | P114: =P110*$G64 -> 0.08914881478 | Q114: =Q110*$G64 -> 0.03210412219 | R114: =R110*$G64 -> 0.03185125249 | S114: =+R114+Q114+P114 -> 0.1531041895 | T114: =T110*$G64 -> 0.2704407264 | U114: =U110*$G64 -> 0.09184271596 | V114: =V110*$G64 -> 0.09048763268 | W114: =+V114+U114+T114 -> 0.452771075
E115: Earnings (minus taxes, benefits, etc) | G115: =G112-G113-G114 -> 764197.2 | J115: With Plant Employees | L115: =L114+L143 -> 22.75021669 | M115: =M114+M143 -> 2.443399179 | N115: =N114+N143 -> 2.816114703 | O115: =O114+O143 -> 6.331636022 | P115: =(P110+P143)*$G64 -> 1.393202343 | Q115: =(Q110+Q143)*$G64 -> 0.1332035889 | R115: =(R110+R143)*$G64 -> 0.1381225659 | S115: =+R115+Q115+P115 -> 1.664528498 | T115: =(T110+T143)*$G64 -> 1.574494255 | U115: =(U110+U143)*$G64 -> 0.416029641 | V115: =(V110+V143)*$G64 -> 0.3923854044 | W115: =+V115+U115+T115 -> 2.3829093
C117: Total | D117: =SUM(D114:D116) -> 21.67809456
L118: Plant Employees Only
C119: Plant Employee Spending | F119: PCE | H119: Adj Demand - Million | L119: Jobs | P119: Earnings | T119: Output
F120: Plant Emp | H120: =H87 -> 2012 | I120: Dollars | L120: Direct | M120: Indirect | N120: Induced | O120: Total | P120: Direct | Q120: Indirect | R120: Induced | S120: Total | T120: Direct | U120: Indirect | V120: Induced | W120: Total
C121: Ag, Forestry, Fish & Hunting | F121: =G$115*Multipliers!Q308 -> 2356.634475 | H121: =F121*G$35/10^6 -> 0.002030736289 | M121: =$H121*Multipliers!E308 -> 0.004323051131 | N121: =$H121*Multipliers!F308 -> 0.003174809315 | O121: =N121+M121 -> 0.007497860446 | Q121: =$H121*Multipliers!I308 -> 0.0001548276228 | R121: =$H121*Multipliers!J308 -> 0.0001444856713 | S121: =R121+Q121 -> 0.000299313294 | T121: =$H121*Multipliers!L308 -> 0.002030736289 | U121: =$H121*Multipliers!M308 -> 0.0006075901211 | V121: =$H121*Multipliers!N308 -> 0.000410089065 | W121: =V121+U121 -> 0.001017679186
C122: Mining | F122: =G$115*Multipliers!Q309 -> 3.524211345 | H122: 3.036849347e-06 | M122: =$H122*Multipliers!E309 -> 6.978750872e-06 | N122: =$H122*Multipliers!F309 -> 6.006110802e-06 | O122: =N122+M122 -> 1.298486167e-05 | Q122: =$H122*Multipliers!I309 -> 3.442505073e-07 | R122: =$H122*Multipliers!J309 -> 2.380372679e-07 | S122: =R122+Q122 -> 5.822877752e-07 | T122: =$H122*Multipliers!L309 -> 3.036849347e-06 | U122: =$H122*Multipliers!M309 -> 1.014715653e-06 | V122: =$H122*Multipliers!N309 -> 6.761642106e-07 | W122: =V122+U122 -> 1.690879864e-06
C123: Construction | F123: =G$115*Multipliers!Q310 -> 0 | H123: 0 | M123: =$H123*Multipliers!E310 -> 0 | N123: =$H123*Multipliers!F310 -> 0 | O123: 0 | Q123: =$H123*Multipliers!I310 -> 0 | R123: =$H123*Multipliers!J310 -> 0 | S123: 0 | T123: =$H123*Multipliers!L310 -> 0 | U123: =$H123*Multipliers!M310 -> 0 | V123: =$H123*Multipliers!N310 -> 0 | W123: 0
C124: Construction/Installations - Non Residential | F124: =G$115*Multipliers!Q311 -> 0 | H124: 0 | M124: =$H124*Multipliers!E311 -> 0 | N124: =$H124*Multipliers!F311 -> 0 | O124: 0 | Q124: =$H124*Multipliers!I311 -> 0 | R124: =$H124*Multipliers!J311 -> 0 | S124: 0 | T124: =$H124*Multipliers!L311 -> 0 | U124: =$H124*Multipliers!M311 -> 0 | V124: =$H124*Multipliers!N311 -> 0 | W124: 0
C125: Construction/Installation Residential | F125: =G$115*Multipliers!Q312 -> 0 | H125: 0 | M125: =$H125*Multipliers!E312 -> 0 | N125: =$H125*Multipliers!F312 -> 0 | O125: 0 | Q125: =$H125*Multipliers!I312 -> 0 | R125: =$H125*Multipliers!J312 -> 0 | S125: 0 | T125: =$H125*Multipliers!L312 -> 0 | U125: =$H125*Multipliers!M312 -> 0 | V125: =$H125*Multipliers!N312 -> 0 | W125: 0
C126: Manufacturing | F126: =G$115*Multipliers!Q313 -> 43586.85182 | H126: 0.03755924078 | M126: =$H126*Multipliers!E313 -> 0.06554117386 | N126: =$H126*Multipliers!F313 -> 0.04012254088 | O126: 0.1056637147 | Q126: =$H126*Multipliers!I313 -> 0.003237935882 | R126: =$H126*Multipliers!J313 -> 0.001613788836 | S126: 0.004851724718 | T126: =$H126*Multipliers!L313 -> 0.03755924078 | U126: =$H126*Multipliers!M313 -> 0.01140500307 | V126: =$H126*Multipliers!N313 -> 0.004585053233 | W126: 0.01599005631
C127: Fabricated Metals | F127: =G$115*Multipliers!Q314 -> 1.074612247 | H127: 9.260044821e-07 | M127: =$H127*Multipliers!E314 -> 1.638804627e-06 | N127: =$H127*Multipliers!F314 -> 1.524374362e-06 | O127: 3.163178989e-06 | Q127: =$H127*Multipliers!I314 -> 8.375650174e-08 | R127: =$H127*Multipliers!J314 -> 6.132129353e-08 | S127: 1.450777953e-07 | T127: =$H127*Multipliers!L314 -> 9.260044821e-07 | U127: =$H127*Multipliers!M314 -> 2.84453412e-07 | V127: =$H127*Multipliers!N314 -> 1.742266703e-07 | W127: 4.586800823e-07
C128: Machinery | F128: =G$115*Multipliers!Q315 -> 2.86742307 | H128: 2.470888101e-06 | M128: =$H128*Multipliers!E315 -> 3.932882733e-06 | N128: =$H128*Multipliers!F315 -> 3.992810455e-06 | O128: 7.925693188e-06 | Q128: =$H128*Multipliers!I315 -> 2.05306184e-07 | R128: =$H128*Multipliers!J315 -> 1.601881854e-07 | S128: 3.654943694e-07 | T128: =$H128*Multipliers!L315 -> 2.470888101e-06 | U128: =$H128*Multipliers!M315 -> 6.732254958e-07 | V128: =$H128*Multipliers!N315 -> 4.551086208e-07 | W128: 1.128334117e-06
C129: Electrical Equip | F129: =G$115*Multipliers!Q316 -> 6.402958055 | H129: 5.517495145e-06 | M129: =$H129*Multipliers!E316 -> 8.312835084e-06 | N129: =$H129*Multipliers!F316 -> 8.4611624e-06 | O129: 1.677399748e-05 | Q129: =$H129*Multipliers!I316 -> 4.512382736e-07 | R129: =$H129*Multipliers!J316 -> 3.377863842e-07 | S129: 7.890246578e-07 | T129: =$H129*Multipliers!L316 -> 5.517495145e-06 | U129: =$H129*Multipliers!M316 -> 1.48932368e-06 | V129: =$H129*Multipliers!N316 -> 9.597922967e-07 | W129: 2.449115977e-06
C130: Battery Manufacturing | F130: =G$115*Multipliers!Q317 -> 37.4386387 | H130: 3.226126198e-05 | M130: =$H130*Multipliers!E317 -> 7.868289545e-05 | N130: =$H130*Multipliers!F317 -> 4.952518196e-05 | O130: 0.0001282080774 | Q130: =$H130*Multipliers!I317 -> 3.883409268e-06 | R130: =$H130*Multipliers!J317 -> 1.977097558e-06 | S130: 5.860506826e-06 | T130: =$H130*Multipliers!L317 -> 3.226126198e-05 | U130: =$H130*Multipliers!M317 -> 1.271503861e-05 | V130: =$H130*Multipliers!N317 -> 5.617527362e-06 | W130: 1.833256597e-05
C131: Energy Wire Manufacturing | F131: =(G$115*Multipliers!Q318) -> 0 | H131: 0 | M131: =$H131*Multipliers!E318 -> 0 | N131: =$H131*Multipliers!F318 -> 0 | O131: 0 | Q131: =$H131*Multipliers!I318 -> 0 | R131: =$H131*Multipliers!J318 -> 0 | S131: 0 | T131: =$H131*Multipliers!L318 -> 0 | U131: =$H131*Multipliers!M318 -> 0 | V131: =$H131*Multipliers!N318 -> 0 | W131: 0
C132: Wholesale Trade | F132: =G$115*Multipliers!Q319 -> 48803.26418 | H132: 0.04205427724 | M132: =$H132*Multipliers!E319 -> 0.0762655207 | N132: =$H132*Multipliers!F319 -> 0.09428133681 | O132: 0.1705468575 | Q132: =$H132*Multipliers!I319 -> 0.003616093947 | R132: =$H132*Multipliers!J319 -> 0.003824151778 | S132: 0.007440245725 | T132: =$H132*Multipliers!L319 -> 0.04205427724 | U132: =$H132*Multipliers!M319 -> 0.01002544317 | V132: =$H132*Multipliers!N319 -> 0.01086419926 | W132: 0.02088964243
C133: Retail trade | F133: =G$115*Multipliers!Q320 -> 101549.8834 | H133: 0.0875065843 | M133: =$H133*Multipliers!E320 -> 0.1259455045 | N133: =$H133*Multipliers!F320 -> 0.2336486259 | O133: 0.3595941304 | Q133: =$H133*Multipliers!I320 -> 0.006283242755 | R133: =$H133*Multipliers!J320 -> 0.01062808406 | S133: 0.01691132682 | T133: =$H133*Multipliers!L320 -> 0.0875065843 | U133: =$H133*Multipliers!M320 -> 0.01863168896 | V133: =$H133*Multipliers!N320 -> 0.03019173001 | W133: 0.04882341898
C134: TCPU | F134: =(G$115*Multipliers!Q321) -> 32983.21244 | H134: 0.02842197511 | M134: =$H134*Multipliers!E321 -> 0.04931859025 | N134: =$H134*Multipliers!F321 -> 0.04771268749 | O134: 0.09703127774 | Q134: =$H134*Multipliers!I321 -> 0.002419523738 | R134: =$H134*Multipliers!J321 -> 0.001984595995 | S134: 0.004404119733 | T134: =$H134*Multipliers!L321 -> 0.02842197511 | U134: =$H134*Multipliers!M321 -> 0.007483253675 | V134: =$H134*Multipliers!N321 -> 0.005638131429 | W134: 0.0131213851
C135: Insurance and Real Estate | F135: =G$115*Multipliers!Q322+(G114*H114) -> 601343.4264 | H135: =F135*G$35/10^6 -> 0.5181838468 | M135: =$H135*Multipliers!E322 -> 0.8342006236 | N135: =$H135*Multipliers!F322 -> 0.7697382565 | O135: =N135+M135 -> 1.60393888 | Q135: =$H135*Multipliers!I322 -> 0.03709100531 | R135: =$H135*Multipliers!J322 -> 0.03199884976 | S135: =R135+Q135 -> 0.06908985507 | T135: =$H135*Multipliers!L322 -> 0.5181838468 | U135: =$H135*Multipliers!M322 -> 0.1285437057 | V135: =$H135*Multipliers!N322 -> 0.0909037181 | W135: =V135+U135 -> 0.2194474238
C136: Finance | F136: =G$115*Multipliers!Q323 -> 27747.93702 | H136: 0.02391068417 | M136: =$H136*Multipliers!E323 -> 0.05838506257 | N136: =$H136*Multipliers!F323 -> 0.04789865785 | O136: 0.1062837204 | Q136: =$H136*Multipliers!I323 -> 0.002738716481 | R136: =$H136*Multipliers!J323 -> 0.001940435104 | S136: 0.004679151584 | T136: =$H136*Multipliers!L323 -> 0.02391068417 | U136: =$H136*Multipliers!M323 -> 0.008543681835 | V136: =$H136*Multipliers!N323 -> 0.005512943654 | W136: 0.01405662549
C137: Other Professional Services | F137: =G$115*Multipliers!Q324 -> 4625.336814 | H137: 0.003985700546 | M137: =$H137*Multipliers!E324 -> 0.007701317554 | N137: =$H137*Multipliers!F324 -> 0.01287929715 | O137: 0.0205806147 | Q137: =$H137*Multipliers!I324 -> 0.0003588894564 | R137: =$H137*Multipliers!J324 -> 0.0005312724679 | S137: 0.0008901619243 | T137: =$H137*Multipliers!L324 -> 0.003985700546 | U137: =$H137*Multipliers!M324 -> 0.0009948210891 | V137: =$H137*Multipliers!N324 -> 0.001509374772 | W137: 0.002504195861
C138: Office Services | F138: =G$115*Multipliers!Q325 -> 784.9370045 | H138: 0.0006763883308 | M138: =$H138*Multipliers!E325 -> 0.0007101768646 | N138: =$H138*Multipliers!F325 -> 0.002153403515 | O138: 0.00286358038 | Q138: =$H138*Multipliers!I325 -> 3.320043465e-05 | R138: =$H138*Multipliers!J325 -> 8.928841962e-05 | S138: 0.0001224888543 | T138: =$H138*Multipliers!L325 -> 0.0006763883308 | U138: =$H138*Multipliers!M325 -> 9.29865757e-05 | V138: =$H138*Multipliers!N325 -> 0.0002535947253 | W138: 0.000346581301
C139: Architectural and Engineering Services | F139: =G$115*Multipliers!Q326 -> 60.70499257 | H139: 5.231011962e-05 | M139: =$H139*Multipliers!E326 -> 0.0001106302597 | N139: =$H139*Multipliers!F326 -> 0.0001871086144 | O139: 0.0002977388741 | Q139: =$H139*Multipliers!I326 -> 5.264545335e-06 | R139: =$H139*Multipliers!J326 -> 7.758607549e-06 | S139: 1.302315288e-05 | T139: =$H139*Multipliers!L326 -> 5.231011962e-05 | U139: =$H139*Multipliers!M326 -> 1.436221523e-05 | V139: =$H139*Multipliers!N326 -> 2.203818449e-05 | W139: 3.640039972e-05
C140: Other services | F140: =G$115*Multipliers!Q327 -> 435827.7074 | H140: 0.3755572407 | M140: =$H140*Multipliers!E327 -> 0.6421304121 | N140: =$H140*Multipliers!F327 -> 0.8799701746 | O140: 1.522100587 | Q140: =$H140*Multipliers!I327 -> 0.03113991645 | R140: =$H140*Multipliers!J327 -> 0.0382755017 | S140: 0.06941541815 | T140: =$H140*Multipliers!L327 -> 0.3755572407 | U140: =$H140*Multipliers!M327 -> 0.09289062776 | V140: =$H140*Multipliers!N327 -> 0.1087319574 | W140: 0.2016225852
C141: Government | F141: =G$115*Multipliers!Q328+(G113*H113) -> 4332.324673 | H141: 0.003733208955 | M141: =$H141*Multipliers!E328 -> 0.0005996941121 | N141: =$H141*Multipliers!F328 -> 0.01143834027 | O141: 0.01203803438 | Q141: =$H141*Multipliers!I328 -> 3.48709335e-05 | R141: =$H141*Multipliers!J328 -> 0.0005341024631 | S141: 0.0005689733967 | T141: =$H141*Multipliers!L328 -> 0.003733208955 | U141: =$H141*Multipliers!M328 -> 0.000105883631 | V141: =$H141*Multipliers!N328 -> 0.00151771804 | W141: 0.001623601671
C142: Semiconductor (solar cell/module) manufacturing | F142: =G$115*Multipliers!Q329 -> 0 | H142: 0 | M142: =$H142*Multipliers!E329 -> 0 | N142: =$H142*Multipliers!F329 -> 0 | O142: 0 | Q142: =$H142*Multipliers!I329 -> 0 | R142: =$H142*Multipliers!J329 -> 0 | S142: 0 | T142: =$H142*Multipliers!L329 -> 0 | U142: =$H142*Multipliers!M329 -> 0 | V142: =$H142*Multipliers!N329 -> 0 | W142: 0
C143: Total | F143: =SUM(F121:F142) -> 1304053.528 | H143: =SUM(H121:H142) -> 1.123716406 | L143: =IF(L145=0,0,D117) -> 21.67809456 | M143: =SUM(M121:M142) -> 1.865331304 | N143: =SUM(N121:N142) -> 2.143274748 | O143: =SUM(O121:O142) -> 4.008606052 | P143: =H143 -> 1.123716406 | Q143: =SUM(Q121:Q142) -> 0.08711845552 | R143: =SUM(R121:R142) -> 0.09157508929 | S143: 0.1786935448 | T143: 1.123716406 | U143: 0.2793552245 | V143: 0.2601484307 | W143: 0.5395036552
O144: Inflate to | P144: =P113 -> 2020 | Q144: Dollars
C145: Annual O&M Costs Local Demand | E145: Construction Costs Local Demand | L145: =SUM(M150:M171) -> 2.443399179 | P145: =P143*$G64 -> 1.304053528 | Q145: 0.1010994667 | R145: 0.1062713134 | S145: 0.20737078 | T145: 1.304053528 | U145: 0.3241869251 | V145: 0.3018977717 | W145: 0.6260846968
D146: Demand | E146: Demand
C147: Ag, Forestry, Fish & Hunting | D147: 0 | E147: 0 | L147: With Plant Employees
C148: Mining | D148: 0 | E148: 0 | L148: Jobs | P148: Earnings | T148: Output
C149: Construction | D149: 0 | E149: 0 | L149: Direct | M149: Indirect | N149: Induced | O149: Total | P149: Direct | Q149: Indirect | R149: Induced | S149: Total | T149: Direct | U149: Indirect | V149: Induced | W149: Total
C150: Construction/Installations - Non Residential | D150: 0 | E150: =IF(DefaultData!E$2=2,Calculations!G$13,0) -> 2496000 | J150: Ag, Forestry, Fish & Hunting | L150: =L88+L121 -> 0 | M150: =M88+M121 -> 0.004323051131 | N150: 0.003174809315 | O150: =N150+M150+L150 -> 0.007497860446 | P150: 0 | Q150: 0.0001548276228 | R150: 0.0001444856713 | S150: =R150+Q150+P150 -> 0.000299313294 | T150: 0.002030736289 | U150: 0.0006075901211 | V150: 0.000410089065 | W150: =V150+U150+T150 -> 0.003048415475
C151: Construction/Installation Residential | D151: 0 | E151: =IF(DefaultData!E$2=1,Calculations!G$13,0) -> 0 | J151: Mining | L151: =L89+L122 -> 0 | M151: 6.978750872e-06 | N151: 6.006110802e-06 | O151: =N151+M151+L151 -> 1.298486167e-05 | P151: 0 | Q151: 3.442505073e-07 | R151: 2.380372679e-07 | S151: =R151+Q151+P151 -> 5.822877752e-07 | T151: 3.036849347e-06 | U151: 1.014715653e-06 | V151: 6.761642106e-07 | W151: =V151+U151+T151 -> 4.72772921e-06
C152: Manufacturing | D152: 0 | E152: 0 | J152: Construction | L152: =L90+L123 -> 0 | M152: 0 | N152: 0 | O152: 0 | P152: 0 | Q152: 0 | R152: 0 | S152: 0 | T152: 0 | U152: 0 | V152: 0 | W152: 0
C153: Fabricated Metals | D153: 0 | E153: =J7 -> 0 | J153: Construction/Installations - Non Residential | L153: =L91+L124 -> 0 | M153: 0 | N153: 0 | O153: 0 | P153: 0 | Q153: 0 | R153: 0 | S153: 0 | T153: 0 | U153: 0 | V153: 0 | W153: 0
C154: Machinery | D154: 0 | E154: 0 | J154: Construction/Installation Residential | L154: =L92+L125 -> 0 | M154: 0 | N154: 0 | O154: 0 | P154: 0 | Q154: 0 | R154: 0 | S154: 0 | T154: 0 | U154: 0 | V154: 0 | W154: 0
C155: Electrical Equip | D155: =J71 -> 0 | E155: =J10 -> 0 | J155: Manufacturing | L155: =L93+L126 -> 0 | M155: 0.06554117386 | N155: 0.04012254088 | O155: 0.1056637147 | P155: 0 | Q155: 0.003237935882 | R155: 0.001613788836 | S155: 0.004851724718 | T155: 0.03755924078 | U155: 0.01140500307 | V155: 0.004585053233 | W155: 0.05354929709
C156: Battery Manufacturing | D156: 0 | E156: 0 | J156: Fabricated Metals | L156: =L94+L127 -> 0 | M156: 1.638804627e-06 | N156: 1.524374362e-06 | O156: 3.163178989e-06 | P156: 0 | Q156: 8.375650174e-08 | R156: 6.132129353e-08 | S156: 1.450777953e-07 | T156: 9.260044821e-07 | U156: 2.84453412e-07 | V156: 1.742266703e-07 | W156: 1.384684564e-06
C157: Energy Wire Manufacturing | D157: 0 | E157: =J9 -> 0 | J157: Machinery | L157: =L95+L128 -> 0 | M157: 3.932882733e-06 | N157: 3.992810455e-06 | O157: 7.925693188e-06 | P157: 0 | Q157: 2.05306184e-07 | R157: 1.601881854e-07 | S157: 3.654943694e-07 | T157: 2.470888101e-06 | U157: 6.732254958e-07 | V157: 4.551086208e-07 | W157: 3.599222217e-06
C158: Wholesale Trade | D158: =I71 -> 374400 | E158: =I7+I8+I9+I10 -> 0 | J158: Electrical Equip | L158: =L96+L129 -> 0 | M158: 8.312835084e-06 | N158: 8.4611624e-06 | O158: 1.677399748e-05 | P158: 0 | Q158: 4.512382736e-07 | R158: 3.377863842e-07 | S158: 7.890246578e-07 | T158: 5.517495145e-06 | U158: 1.48932368e-06 | V158: 9.597922967e-07 | W158: 7.966611122e-06
C159: Retail trade | D159: 0 | E159: 0 | J159: Battery Manufacturing | L159: =L97+L130 -> 0 | M159: 7.868289545e-05 | N159: 4.952518196e-05 | O159: 0.0001282080774 | P159: 0 | Q159: 3.883409268e-06 | R159: 1.977097558e-06 | S159: 5.860506826e-06 | T159: 3.226126198e-05 | U159: 1.271503861e-05 | V159: 5.617527362e-06 | W159: 5.059382795e-05
C160: TCPU | D160: 0 | E160: 0 | J160: Energy Wire Manufacturing | L160: =L98+L131 -> 0 | M160: 0 | N160: 0 | O160: 0 | P160: 0 | Q160: 0 | R160: 0 | S160: 0 | T160: 0 | U160: 0 | V160: 0 | W160: 0
C161: Insurance and Real Estate | D161: 0 | E161: 0 | J161: Wholesale Trade | L161: =L99+L132 -> 1.072122139 | M161: 0.4988868999 | N161: 0.6167364152 | O161: =N161+M161+L161 -> 2.187745454 | P161: =P99+P132 -> 0.07682045525 | Q161: 0.02365448872 | R161: 0.0250154881 | S161: =R161+Q161+P161 -> 0.1254904321 | T161: =T99+T132 -> 0.2750958468 | U161: 0.0655809102 | V161: 0.07106758909 | W161: =V161+U161+T161 -> 0.4117443461
C162: Finance | D162: =H75 -> 0 | E162: 0 | J162: Retail trade | L162: 0 | M162: 0.1259455045 | N162: 0.2336486259 | O162: 0.3595941304 | P162: 0 | Q162: 0.006283242755 | R162: 0.01062808406 | S162: 0.01691132682 | T162: 0.0875065843 | U162: 0.01863168896 | V162: 0.03019173001 | W162: 0.1363300033
C163: Other Professional Services | D163: 0 | E163: 0 | J163: TCPU | L163: 0 | M163: 0.2047650868 | N163: 0.1980975641 | O163: 0.4028626509 | P163: 0 | Q163: 0.01004558293 | R163: 0.008239813202 | S163: 0.01828539613 | T163: 0.02842197511 | U163: 0.03106960439 | V163: 0.02340887007 | W163: 0.08290044957
C164: Office Services | D164: =G72 -> 0 | E164: =(G18+G19)*0.5 -> 10192000 | J164: Insurance and Real Estate | L164: 0 | M164: 0.8342006236 | N164: 0.7697382565 | O164: 1.60393888 | P164: 0 | Q164: 0.03709100531 | R164: 0.03199884976 | S164: 0.06908985507 | T164: 0.5181838468 | U164: 0.1285437057 | V164: 0.0909037181 | W164: 0.7376312705
C165: Architectural and Engineering Services | D165: 0 | E165: =G17*0.8 -> 1331200 | J165: Finance | L165: 0 | M165: 0.05838506257 | N165: 0.04789865785 | O165: 0.1062837204 | P165: 0 | Q165: 0.002738716481 | R165: 0.001940435104 | S165: 0.004679151584 | T165: 0.02391068417 | U165: 0.008543681835 | V165: 0.005512943654 | W165: 0.03796730965
C166: Other services | D166: 0 | E166: =(G18+G19)-E164 -> 10192000 | J166: Other Professional Services | L166: 0 | M166: 0.007701317554 | N166: 0.01287929715 | O166: 0.0205806147 | P166: 0 | Q166: 0.0003588894564 | R166: 0.0005312724679 | S166: 0.0008901619243 | T166: 0.003985700546 | U166: 0.0009948210891 | V166: 0.001509374772 | W166: 0.006489896407
C167: Government | D167: =G76+G74 -> 0 | E167: =(G17-E165)+G22 -> 332800 | J167: Office Services | L167: 0 | M167: 0.0007101768646 | N167: 0.002153403515 | O167: 0.00286358038 | P167: 0 | Q167: 3.320043465e-05 | R167: 8.928841962e-05 | S167: 0.0001224888543 | T167: 0.0006763883308 | U167: 9.29865757e-05 | V167: 0.0002535947253 | W167: 0.001022969632
C168: Semiconductor (solar cell/module) manufacturing | D168: 0 | E168: =J8 -> 0 | J168: Architectural and Engineering Services | L168: 0 | M168: 0.0001106302597 | N168: 0.0001871086144 | O168: 0.0002977388741 | P168: 0 | Q168: 5.264545335e-06 | R168: 7.758607549e-06 | S168: 1.302315288e-05 | T168: 5.231011962e-05 | U168: 1.436221523e-05 | V168: 2.203818449e-05 | W168: 8.871051934e-05
C169: Total | D169: =SUM(D147:D168) -> 374400 | E169: =SUM(E147:E168) -> 24544000 | J169: Other services | L169: 0 | M169: 0.6421304121 | N169: 0.8799701746 | O169: 1.522100587 | P169: 0 | Q169: 0.03113991645 | R169: 0.0382755017 | S169: 0.06941541815 | T169: 0.3755572407 | U169: 0.09289062776 | V169: 0.1087319574 | W169: 0.5771798259
J170: Government | L170: 0 | M170: 0.0005996941121 | N170: 0.01143834027 | O170: 0.01203803438 | P170: 0 | Q170: 3.48709335e-05 | R170: 0.0005341024631 | S170: 0.0005689733967 | T170: 0.003733208955 | U170: 0.000105883631 | V170: 0.00151771804 | W170: 0.005356810626
J171: Semiconductor (solar cell/module) manufacturing | L171: 0 | M171: 0 | N171: 0 | O171: 0 | P171: 0 | Q171: 0 | R171: 0 | S171: 0 | T171: 0 | U171: 0 | V171: 0 | W171: 0
J172: Plant Employees | L172: =L143 -> 21.67809456 | O172: 21.67809456 | P172: =P143 -> 1.123716406 | S172: 1.123716406 | W172: 0
J173: Total | L173: =SUM(L150:L172) -> 22.75021669 | M173: =SUM(M150:M172) -> 2.443399179 | N173: 2.816114703 | O173: 28.00973058 | P173: 1.200536861 | Q173: 0.1147829095 | R173: 0.1190216428 | S173: 1.434341413 | T173: 1.356757975 | U173: 0.3584970423 | V173: 0.3381225592 | W173: 2.053377577
J174: Inflate to | K174: =P144 -> 2020 | L174: Dollars | P174: =P173*$G64 -> 1.393202343 | Q174: 0.1332035889 | R174: 0.1381225659 | S174: 1.664528498 | T174: 1.574494255 | U174: 0.416029641 | V174: 0.3923854044 | W174: 2.3829093
C176: Default
C177: From DefaultData
C178: Debt - Loan Repayment Schedule
C179: Year | D179: Interest Pmt | E179: Principal Pmt | F179: Total Pmt
C180: 1 | D180: =IF(C180<=DefaultData!C$48,-ISPMT(DefaultData!C$49,C180,DefaultData!C$48,DefaultData!C$30*DefaultData!C$47),0) -> 19468800 | E180: =IF(C180<=DefaultData!C$48,-PPMT(DefaultData!C$49,C180,DefaultData!C$48,DefaultData!C$47*DefaultData!C$30),0) -> 13573083.82 | F180: =E180+D180 -> 33041883.82
C181: 2 | D181: =IF(C181<=DefaultData!C$48,-ISPMT(DefaultData!C$49,C181,DefaultData!C$48,DefaultData!C$30*DefaultData!C$47),0) -> 17305600 | E181: =IF(C181<=DefaultData!C$48,-PPMT(DefaultData!C$49,C181,DefaultData!C$48,DefaultData!C$47*DefaultData!C$30),0) -> 14930392.2 | F181: 32235992.2
C182: 3 | D182: =IF(C182<=DefaultData!C$48,-ISPMT(DefaultData!C$49,C182,DefaultData!C$48,DefaultData!C$30*DefaultData!C$47),0) -> 15142400 | E182: =IF(C182<=DefaultData!C$48,-PPMT(DefaultData!C$49,C182,DefaultData!C$48,DefaultData!C$47*DefaultData!C$30),0) -> 16423431.42 | F182: 31565831.42
C183: 4 | D183: =IF(C183<=DefaultData!C$48,-ISPMT(DefaultData!C$49,C183,DefaultData!C$48,DefaultData!C$30*DefaultData!C$47),0) -> 12979200 | E183: =IF(C183<=DefaultData!C$48,-PPMT(DefaultData!C$49,C183,DefaultData!C$48,DefaultData!C$47*DefaultData!C$30),0) -> 18065774.57 | F183: 31044974.57
C184: 5 | D184: =IF(C184<=DefaultData!C$48,-ISPMT(DefaultData!C$49,C184,DefaultData!C$48,DefaultData!C$30*DefaultData!C$47),0) -> 10816000 | E184: =IF(C184<=DefaultData!C$48,-PPMT(DefaultData!C$49,C184,DefaultData!C$48,DefaultData!C$47*DefaultData!C$30),0) -> 19872352.02 | F184: 30688352.02
C185: 6 | D185: =IF(C185<=DefaultData!C$48,-ISPMT(DefaultData!C$49,C185,DefaultData!C$48,DefaultData!C$30*DefaultData!C$47),0) -> 8652800 | E185: =IF(C185<=DefaultData!C$48,-PPMT(DefaultData!C$49,C185,DefaultData!C$48,DefaultData!C$47*DefaultData!C$30),0) -> 21859587.22 | F185: 30512387.22
C186: 7 | D186: =IF(C186<=DefaultData!C$48,-ISPMT(DefaultData!C$49,C186,DefaultData!C$48,DefaultData!C$30*DefaultData!C$47),0) -> 6489600 | E186: =IF(C186<=DefaultData!C$48,-PPMT(DefaultData!C$49,C186,DefaultData!C$48,DefaultData!C$47*DefaultData!C$30),0) -> 24045545.95 | F186: 30535145.95
C187: 8 | D187: =IF(C187<=DefaultData!C$48,-ISPMT(DefaultData!C$49,C187,DefaultData!C$48,DefaultData!C$30*DefaultData!C$47),0) -> 4326400 | E187: =IF(C187<=DefaultData!C$48,-PPMT(DefaultData!C$49,C187,DefaultData!C$48,DefaultData!C$47*DefaultData!C$30),0) -> 26450100.54 | F187: 30776500.54
C188: 9 | D188: =IF(C188<=DefaultData!C$48,-ISPMT(DefaultData!C$49,C188,DefaultData!C$48,DefaultData!C$30*DefaultData!C$47),0) -> 2163200 | E188: =IF(C188<=DefaultData!C$48,-PPMT(DefaultData!C$49,C188,DefaultData!C$48,DefaultData!C$47*DefaultData!C$30),0) -> 29095110.6 | F188: 31258310.6
C189: 10 | D189: =IF(C189<=DefaultData!C$48,-ISPMT(DefaultData!C$49,C189,DefaultData!C$48,DefaultData!C$30*DefaultData!C$47),0) -> 0 | E189: =IF(C189<=DefaultData!C$48,-PPMT(DefaultData!C$49,C189,DefaultData!C$48,DefaultData!C$47*DefaultData!C$30),0) -> 32004621.66 | F189: 32004621.66
C190: 11 | D190: =IF(C190<=DefaultData!C$48,-ISPMT(DefaultData!C$49,C190,DefaultData!C$48,DefaultData!C$30*DefaultData!C$47),0) -> 0 | E190: =IF(C190<=DefaultData!C$48,-PPMT(DefaultData!C$49,C190,DefaultData!C$48,DefaultData!C$47*DefaultData!C$30),0) -> 0 | F190: 0
C191: 12 | D191: =IF(C191<=DefaultData!C$48,-ISPMT(DefaultData!C$49,C191,DefaultData!C$48,DefaultData!C$30*DefaultData!C$47),0) -> 0 | E191: =IF(C191<=DefaultData!C$48,-PPMT(DefaultData!C$49,C191,DefaultData!C$48,DefaultData!C$47*DefaultData!C$30),0) -> 0 | F191: 0
C192: 13 | D192: =IF(C192<=DefaultData!C$48,-ISPMT(DefaultData!C$49,C192,DefaultData!C$48,DefaultData!C$30*DefaultData!C$47),0) -> 0 | E192: =IF(C192<=DefaultData!C$48,-PPMT(DefaultData!C$49,C192,DefaultData!C$48,DefaultData!C$47*DefaultData!C$30),0) -> 0 | F192: 0
C193: 14 | D193: =IF(C193<=DefaultData!C$48,-ISPMT(DefaultData!C$49,C193,DefaultData!C$48,DefaultData!C$30*DefaultData!C$47),0) -> 0 | E193: =IF(C193<=DefaultData!C$48,-PPMT(DefaultData!C$49,C193,DefaultData!C$48,DefaultData!C$47*DefaultData!C$30),0) -> 0 | F193: 0
C194: 15 | D194: =IF(C194<=DefaultData!C$48,-ISPMT(DefaultData!C$49,C194,DefaultData!C$48,DefaultData!C$30*DefaultData!C$47),0) -> 0 | E194: =IF(C194<=DefaultData!C$48,-PPMT(DefaultData!C$49,C194,DefaultData!C$48,DefaultData!C$47*DefaultData!C$30),0) -> 0 | F194: 0
C195: 16 | D195: =IF(C195<=DefaultData!C$48,-ISPMT(DefaultData!C$49,C195,DefaultData!C$48,DefaultData!C$30*DefaultData!C$47),0) -> 0 | E195: =IF(C195<=DefaultData!C$48,-PPMT(DefaultData!C$49,C195,DefaultData!C$48,DefaultData!C$47*DefaultData!C$30),0) -> 0 | F195: 0
C196: 17 | D196: =IF(C196<=DefaultData!C$48,-ISPMT(DefaultData!C$49,C196,DefaultData!C$48,DefaultData!C$30*DefaultData!C$47),0) -> 0 | E196: =IF(C196<=DefaultData!C$48,-PPMT(DefaultData!C$49,C196,DefaultData!C$48,DefaultData!C$47*DefaultData!C$30),0) -> 0 | F196: 0
C197: 18 | D197: =IF(C197<=DefaultData!C$48,-ISPMT(DefaultData!C$49,C197,DefaultData!C$48,DefaultData!C$30*DefaultData!C$47),0) -> 0 | E197: =IF(C197<=DefaultData!C$48,-PPMT(DefaultData!C$49,C197,DefaultData!C$48,DefaultData!C$47*DefaultData!C$30),0) -> 0 | F197: 0
C198: 19 | D198: =IF(C198<=DefaultData!C$48,-ISPMT(DefaultData!C$49,C198,DefaultData!C$48,DefaultData!C$30*DefaultData!C$47),0) -> 0 | E198: =IF(C198<=DefaultData!C$48,-PPMT(DefaultData!C$49,C198,DefaultData!C$48,DefaultData!C$47*DefaultData!C$30),0) -> 0 | F198: 0
C199: 20 | D199: =IF(C199<=DefaultData!C$48,-ISPMT(DefaultData!C$49,C199,DefaultData!C$48,DefaultData!C$30*DefaultData!C$47),0) -> 0 | E199: =IF(C199<=DefaultData!C$48,-PPMT(DefaultData!C$49,C199,DefaultData!C$48,DefaultData!C$47*DefaultData!C$30),0) -> 0 | F199: 0
C200: 21 | D200: =IF(C200<=DefaultData!C$48,-ISPMT(DefaultData!C$49,C200,DefaultData!C$48,DefaultData!C$30*DefaultData!C$47),0) -> 0 | E200: =IF(C200<=DefaultData!C$48,-PPMT(DefaultData!C$49,C200,DefaultData!C$48,DefaultData!C$47*DefaultData!C$30),0) -> 0 | F200: 0
C201: 22 | D201: =IF(C201<=DefaultData!C$48,-ISPMT(DefaultData!C$49,C201,DefaultData!C$48,DefaultData!C$30*DefaultData!C$47),0) -> 0 | E201: =IF(C201<=DefaultData!C$48,-PPMT(DefaultData!C$49,C201,DefaultData!C$48,DefaultData!C$47*DefaultData!C$30),0) -> 0 | F201: 0
C202: 23 | D202: =IF(C202<=DefaultData!C$48,-ISPMT(DefaultData!C$49,C202,DefaultData!C$48,DefaultData!C$30*DefaultData!C$47),0) -> 0 | E202: =IF(C202<=DefaultData!C$48,-PPMT(DefaultData!C$49,C202,DefaultData!C$48,DefaultData!C$47*DefaultData!C$30),0) -> 0 | F202: 0
C203: 24 | D203: =IF(C203<=DefaultData!C$48,-ISPMT(DefaultData!C$49,C203,DefaultData!C$48,DefaultData!C$30*DefaultData!C$47),0) -> 0 | E203: =IF(C203<=DefaultData!C$48,-PPMT(DefaultData!C$49,C203,DefaultData!C$48,DefaultData!C$47*DefaultData!C$30),0) -> 0 | F203: 0
C204: 25 | D204: =IF(C204<=DefaultData!C$48,-ISPMT(DefaultData!C$49,C204,DefaultData!C$48,DefaultData!C$30*DefaultData!C$47),0) -> 0 | E204: =IF(C204<=DefaultData!C$48,-PPMT(DefaultData!C$49,C204,DefaultData!C$48,DefaultData!C$47*DefaultData!C$30),0) -> 0 | F204: 0
C205: 26 | D205: =IF(C205<=DefaultData!C$48,-ISPMT(DefaultData!C$49,C205,DefaultData!C$48,DefaultData!C$30*DefaultData!C$47),0) -> 0 | E205: =IF(C205<=DefaultData!C$48,-PPMT(DefaultData!C$49,C205,DefaultData!C$48,DefaultData!C$47*DefaultData!C$30),0) -> 0 | F205: 0
C206: 27 | D206: =IF(C206<=DefaultData!C$48,-ISPMT(DefaultData!C$49,C206,DefaultData!C$48,DefaultData!C$30*DefaultData!C$47),0) -> 0 | E206: =IF(C206<=DefaultData!C$48,-PPMT(DefaultData!C$49,C206,DefaultData!C$48,DefaultData!C$47*DefaultData!C$30),0) -> 0 | F206: 0
C207: 28 | D207: =IF(C207<=DefaultData!C$48,-ISPMT(DefaultData!C$49,C207,DefaultData!C$48,DefaultData!C$30*DefaultData!C$47),0) -> 0 | E207: =IF(C207<=DefaultData!C$48,-PPMT(DefaultData!C$49,C207,DefaultData!C$48,DefaultData!C$47*DefaultData!C$30),0) -> 0 | F207: 0
C208: 29 | D208: =IF(C208<=DefaultData!C$48,-ISPMT(DefaultData!C$49,C208,DefaultData!C$48,DefaultData!C$30*DefaultData!C$47),0) -> 0 | E208: =IF(C208<=DefaultData!C$48,-PPMT(DefaultData!C$49,C208,DefaultData!C$48,DefaultData!C$47*DefaultData!C$30),0) -> 0 | F208: 0
C209: 30 | D209: =IF(C209<=DefaultData!C$48,-ISPMT(DefaultData!C$49,C209,DefaultData!C$48,DefaultData!C$30*DefaultData!C$47),0) -> 0 | E209: =IF(C209<=DefaultData!C$48,-PPMT(DefaultData!C$49,C209,DefaultData!C$48,DefaultData!C$47*DefaultData!C$30),0) -> 0 | F209: 0
... 37 more rows

Sheet Deflators
B2: =CONCATENATE("Conversion to Year ",D4," dollars and back for consistency with multiplier data.") -> Conversion to Year 2012 dollars and back for consistency with multiplier data.
B4: Year of Multiplier Data | D4: =IF(ProjectData!B12="MYCOUNTY",'User Add-in Location'!D3,IF(ProjectData!B12="MYREGION",'User Add-in Location'!D4,Multipliers!D2)) -> 2012 | E4: =IF(D4=0,"ERROR","") ->  | F4: Region of Analysis | H4: =ProjectData!B12 -> KENTUCKY
A5: Warning | B5: Year of Construction $s | D5: =+ProjectData!B24 -> 2020
A7: This Worksheet contains Data and Formulas that are an integral part of the JEDI model. | C7: Deflator | E7: =HLOOKUP($D$5,$C$11:$AL$43,$C$41) -> 0.8617103373
C8: Inflator | E8: =HLOOKUP($D$5,$C$11:$AL$43,$C$42) -> 1.160482771
A9: Although the data and formulas are available for review they must not be changed.
A11: Any changes to the data or formulas will impact the analysis and may invalidate the model results. | C11: 1996 | D11: 1997 | E11: 1998 | F11: 1999 | G11: 2000 | H11: 2001 | I11: 2002 | J11: 2003 | K11: 2004 | L11: 2005 | M11: 2006 | N11: 2007 | O11: 2008 | P11: 2009 | Q11: 2010 | R11: 2011 | S11: 2012 | T11: 2013 | U11: 2014 | V11: 2015 | W11: 2016 | X11: 2017 | Y11: 2018 | Z11: 2019 | AA11: 2020 | AB11: 2021 | AC11: 2022 | AD11: 2023 | AE11: 2024 | AF11: 2025 | AG11: 2026 | AH11: 2027 | AI11: 2028 | AJ11: 2029 | AK11: 2030 | AL11: 2031
B12: 2007$ | C12: 0.782992 | D12: 0.797353 | E12: 0.80749 | F12: 0.81819 | G12: 0.834335 | H12: 0.854045 | I12: 0.868125 | J12: 0.88624 | K12: 0.908954 | L12: 0.938615 | M12: 0.970715 | N12: 1 | O12: 1.022902 | P12: 1.036512 | Q12: 1.044396 | R12: 1.058288 | S12: 1.073024 | T12: 1.090482 | U12: 1.108504 | V12: 1.127839 | W12: 1.15039578 | X12: 1.173403696 | Y12: 1.19687177 | Z12: 1.220809205 | AA12: 1.245225389 | AB12: 1.270129897 | AC12: 1.295532495 | AD12: 1.321443145 | AE12: 1.347872008 | AF12: 1.374829448 | AG12: 1.402326037 | AH12: 1.430372557 | AI12: 1.458980008 | AJ12: 1.488159609 | AK12: 1.517922801 | AL12: 1.548281257
C13: 1.277152257 | D13: 1.254149668 | E13: 1.238405429 | F13: 1.22221 | G13: 1.198559332 | H13: 1.170898489 | I13: 1.151907847 | J13: 1.12836252 | K13: 1.100165685 | L13: 1.065399551 | M13: 1.030168484 | N13: 1 | O13: 0.9776107584 | P13: 0.9647741657 | Q13: 0.9574912198 | R13: 0.9449223652 | S13: 0.9319456042 | T13: 0.9170256822 | U13: 0.9021167267 | V13: 0.8866513749 | W13: 0.8692660538 | X13: 0.8522216214 | Y13: 0.8355113935 | Z13: 0.8191288172 | AA13: 0.8030674678 | AB13: 0.7873210469 | AC13: 0.7718833793 | AD13: 0.7567484111 | AE13: 0.7419102069 | AF13: 0.727362948 | AG13: 0.7131009294 | AH13: 0.6991185582 | AI13: 0.6854103512 | AJ13: 0.6719709325 | AK13: 0.6587950319 | AL13: 0.6458774823
B14: 2008$ | C14: 0.765462 | D14: 0.779501 | E14: 0.789411 | F14: 0.799872 | G14: 0.815654 | H14: 0.834924 | I14: 0.848688 | J14: 0.866398 | K14: 0.888603 | L14: 0.9176 | M14: 0.948981 | N14: 0.977611 | O14: 1 | P14: 1.013305 | Q14: 1.021013 | R14: 1.034594 | S14: 1.049 | T14: 1.066067 | U14: 1.083685 | V14: 1.102588 | W14: 1.12463976 | X14: 1.147132555 | Y14: 1.170075206 | Z14: 1.19347671 | AA14: 1.217346245 | AB14: 1.24169317 | AC14: 1.266527033 | AD14: 1.291857574 | AE14: 1.317694725 | AF14: 1.34404862 | AG14: 1.370929592 | AH14: 1.398348184 | AI14: 1.426315147 | AJ14: 1.45484145 | AK14: 1.483938279 | AL14: 1.513617045
C15: 1.306400579 | D15: 1.282871991 | E15: 1.266767248 | F15: 1.250200032 | G15: 1.226010048 | H15: 1.197713804 | I15: 1.178289312 | J15: 1.154203957 | K15: 1.125361945 | L15: 1.089799477 | M15: 1.053761877 | N15: 1.022901747 | O15: 1 | P15: 0.9868696987 | Q15: 0.9794194589 | R15: 0.966562729 | S15: 0.9532888465 | T15: 0.9380273472 | U15: 0.9227773753 | V15: 0.9069570864 | W15: 0.8891736141 | X15: 0.8717388374 | Y15: 0.854645919 | Z15: 0.8378881559 | AA15: 0.8214589764 | AB15: 0.8053519376 | AC15: 0.7895607231 | AD15: 0.7740791403 | AE15: 0.758901118 | AF15: 0.7440207039 | AG15: 0.7294320627 | AH15: 0.7151294732 | AI15: 0.7011073267 | AJ15: 0.6873601242 | AK15: 0.6738824747 | AL15: 0.6606690928
B16: 2009$ | C16: 0.755411 | D16: 0.769266 | E16: 0.779046 | F16: 0.789369 | G16: 0.804944 | H16: 0.823961 | I16: 0.837544 | J16: 0.855021 | K16: 0.876936 | L16: 0.905551 | M16: 0.936521 | N16: 0.964774 | O16: 0.98687 | P16: 1 | Q16: 1.007607 | R16: 1.021009 | S16: 1.035226 | T16: 1.052069 | U16: 1.069456 | V16: 1.08811 | W16: 1.1098722 | X16: 1.132069644 | Y16: 1.154711037 | Z16: 1.177805258 | AA16: 1.201361363 | AB16: 1.22538859 | AC16: 1.249896362 | AD16: 1.274894289 | AE16: 1.300392175 | AF16: 1.326400018 | AG16: 1.352928019 | AH16: 1.379986579 | AI16: 1.407586311 | AJ16: 1.435738037 | AK16: 1.464452798 | AL16: 1.493741854
C17: 1.323782683 | D17: 1.299940463 | E17: 1.28362125 | F17: 1.266834649 | G17: 1.242322447 | H17: 1.213649675 | I17: 1.193967123 | J17: 1.169561917 | K17: 1.140334072 | L17: 1.104300034 | M17: 1.067781716 | N17: 1.036512178 | O17: 1.013304691 | P17: 1 | Q17: 0.9924504296 | R17: 0.979423296 | S17: 0.9659726475 | T17: 0.950507999 | U17: 0.9350548316 | V17: 0.919024731 | W17: 0.9010046382 | X17: 0.8833378806 | Y17: 0.86601753 | Z17: 0.8490367941 | AA17: 0.8323890138 | AB17: 0.8160676606 | AC17: 0.8000663339 | AD17: 0.7843787588 | AE17: 0.7689987831 | AF17: 0.7539203756 | AG17: 0.7391376231 | AH17: 0.7246447285 | AI17: 0.7104360084 | AJ17: 0.6965058906 | AK17: 0.6828489123 | AL17: 0.669459718
A18: To view the data and formulas simply scroll over to the adjacent columns to the right. | B18: 2010$ | C18: 0.749708 | D18: 0.763458 | E18: 0.773164 | F18: 0.78341 | G18: 0.798868 | H18: 0.817741 | I18: 0.831221 | J18: 0.848567 | K18: 0.870315 | L18: 0.898715 | M18: 0.929451 | N18: 0.957491 | O18: 0.979419 | P18: 0.992451 | Q18: 1 | R18: 1.013301 | S18: 1.027411 | T18: 1.044127 | U18: 1.061382 | V18: 1.079896 | W18: 1.10149392 | X18: 1.123523798 | Y18: 1.145994274 | Z18: 1.16891416 | AA18: 1.192292443 | AB18: 1.216138292 | AC18: 1.240461058 | AD18: 1.265270279 | AE18: 1.290575684 | AF18: 1.316387198 | AG18: 1.342714942 | AH18: 1.369569241 | AI18: 1.396960626 | AJ18: 1.424899838 | AK18: 1.453397835 | AL18: 1.482465792
C19: 1.333852647 | D19: 1.309829748 | E19: 1.293386655 | F19: 1.276470813 | G19: 1.251771256 | H19: 1.222881083 | I19: 1.20304949 | J19: 1.178457329 | K19: 1.149009267 | L19: 1.112699799 | M19: 1.075903948 | N19: 1.04439624 | O19: 1.021013478 | P19: 1.007606421 | Q19: 1 | R19: 0.9868735943 | S19: 0.9733203168 | T19: 0.9577378997 | U19: 0.9421678529 | V19: 0.9260150978 | W19: 0.907857939 | X19: 0.8900568029 | Y19: 0.8726047087 | Z19: 0.8554948125 | AA19: 0.8387204044 | AB19: 0.8222749063 | AC19: 0.8061518689 | AD19: 0.7903449695 | AE19: 0.7748480093 | AF19: 0.7596549111 | AG19: 0.7447597168 | AH19: 0.7301565851 | AI19: 0.7158397893 | AJ19: 0.701803715 | AK19: 0.6880428578 | AL19: 0.6745518214
B20: 2011$ | C20: 0.739867 | D20: 0.753437 | E20: 0.763016 | F20: 0.773126 | G20: 0.788381 | H20: 0.807007 | I20: 0.82031 | J20: 0.837428 | K20: 0.858891 | L20: 0.886918 | M20: 0.917251 | N20: 0.944922 | O20: 0.966563 | P20: 0.979424 | Q20: 0.986874 | R20: 1 | S20: 1.013925 | T20: 1.030421 | U20: 1.04745 | V20: 1.065721 | W20: 1.08703542 | X20: 1.108776128 | Y20: 1.130951651 | Z20: 1.153570684 | AA20: 1.176642098 | AB20: 1.20017494 | AC20: 1.224178438 | AD20: 1.248662007 | AE20: 1.273635247 | AF20: 1.299107952 | AG20: 1.325090111 | AH20: 1.351591914 | AI20: 1.378623752 | AJ20: 1.406196227 | AK20: 1.434320151 | AL20: 1.463006554
C21: 1.351594273 | D21: 1.327250984 | E21: 1.310588507 | F21: 1.293450227 | G21: 1.268422248 | H21: 1.239146625 | I21: 1.219051334 | J21: 1.19413251 | K21: 1.164292093 | L21: 1.127499949 | M21: 1.090214129 | N21: 1.058288409 | O21: 1.03459371 | P21: 1.021008266 | Q21: 1.013300583 | R21: 1 | S21: 0.9862662426 | T21: 0.9704771157 | U21: 0.9546995083 | V21: 0.9383318899 | W21: 0.9199332254 | X21: 0.901895319 | Y21: 0.884211097 | Z21: 0.8668736245 | AA21: 0.8498761025 | AB21: 0.8332118652 | AC21: 0.8168743776 | AD21: 0.800857233 | AE21: 0.78515415 | AF21: 0.7697589706 | AG21: 0.7546656574 | AH21: 0.7398682916 | AI21: 0.7253610702 | AJ21: 0.7111383041 | AK21: 0.6971944158 | AL21: 0.683523937
B22: 2012$ | C22: 0.729706 | D22: 0.74309 | E22: 0.752537 | F22: 0.762509 | G22: 0.777554 | H22: 0.795924 | I22: 0.809045 | J22: 0.825927 | K22: 0.847096 | L22: 0.874738 | M22: 0.904654 | N22: 0.931945 | O22: 0.953289 | P22: 0.965973 | Q22: 0.973321 | R22: 0.986267 | S22: 1 | T22: 1.01627 | U22: 1.033065 | V22: 1.051085 | W22: 1.0721067 | X22: 1.093548834 | Y22: 1.115419811 | Z22: 1.137728207 | AA22: 1.160482771 | AB22: 1.183692426 | AC22: 1.207366275 | AD22: 1.2315136 | AE22: 1.256143872 | AF22: 1.28126675 | AG22: 1.306892085 | AH22: 1.333029927 | AI22: 1.359690525 | AJ22: 1.386884336 | AK22: 1.414622022 | AL22: 1.442914463
C23: 1.370414934 | D23: 1.345732011 | E23: 1.328838316 | F23: 1.31145993 | G23: 1.286084311 | H23: 1.256401365 | I23: 1.23602519 | J23: 1.210760757 | K23: 1.180503745 | L23: 1.143199449 | M23: 1.105394991 | N23: 1.073024696 | O23: 1.048999831 | P23: 1.035225622 | Q23: 1.027410279 | R23: 1.013924221 | S23: 1 | T23: 0.983990475 | U23: 0.9679933015 | V23: 0.9513978413 | W23: 0.9327429816 | X23: 0.9144539036 | Y23: 0.8965234349 | Z23: 0.878944544 | AA23: 0.8617103373 | AB23: 0.8448140561 | AC23: 0.8282490746 | AD23: 0.8120088967 | AE23: 0.7960871536 | AF23: 0.7804776016 | AG23: 0.7651741192 | AH23: 0.7501707051 | AI23: 0.7354614756 | AJ23: 0.7210406624 | AK23: 0.7069026101 | AL23: 0.6930417747
B24: 2013$ | C24: 0.718024 | D24: 0.731193 | E24: 0.740489 | F24: 0.750301 | G24: 0.765106 | H24: 0.783181 | I24: 0.796092 | J24: 0.812704 | K24: 0.833534 | L24: 0.860733 | M24: 0.89017 | N24: 0.917025 | O24: 0.938027 | P24: 0.950508 | Q24: 0.957738 | R24: 0.970477 | S24: 0.98399 | T24: 1 | U24: 1.016526 | V24: 1.034257 | W24: 1.05494214 | X24: 1.076040983 | Y24: 1.097561802 | Z24: 1.119513039 | AA24: 1.141903299 | AB24: 1.164741365 | AC24: 1.188036193 | AD24: 1.211796916 | AE24: 1.236032855 | AF24: 1.260753512 | AG24: 1.285968582 | AH24: 1.311687954 | AI24: 1.337921713 | AJ24: 1.364680147 | AK24: 1.39197375 | AL24: 1.419813225
C25: 1.392711107 | D25: 1.367627972 | E25: 1.350458953 | F25: 1.332798437 | G25: 1.307008441 | H25: 1.27684405 | I25: 1.256136225 | J25: 1.230460291 | K25: 1.19971111 | L25: 1.161800465 | M25: 1.123380927 | N25: 1.090482811 | O25: 1.066067395 | P25: 1.052068999 | Q25: 1.044126891 | R25: 1.030421123 | S25: 1.016270491 | T25: 1 | U25: 0.9837426687 | V25: 0.9668776716 | W25: 0.9479192859 | X25: 0.9293326332 | Y25: 0.9111104247 | Z25: 0.8932455144 | AA25: 0.8757308965 | AB25: 0.8585597025 | AC25: 0.8417251985 | AD25: 0.8252207828 | AE25: 0.8090399832 | AF25: 0.7931764541 | AG25: 0.7776239746 | AH25: 0.7623764457 | AI25: 0.7474278879 | AJ25: 0.7327724391 | AK25: 0.7184043521 | AL25: 0.7043179923
B26: 2014$ | C26: 0.706351 | D26: 0.719306 | E26: 0.72845 | F26: 0.738103 | G26: 0.752667 | H26: 0.770449 | I26: 0.78315 | J26: 0.799492 | K26: 0.819983 | L26: 0.84674 | M26: 0.875699 | N26: 0.902117 | O26: 0.922777 | P26: 0.935055 | Q26: 0.942168 | R26: 0.954699 | S26: 0.967993 | T26: 0.983743 | U26: 1 | V26: 1.017443 | W26: 1.03779186 | X26: 1.058547697 | Y26: 1.079718651 | Z26: 1.101313024 | AA26: 1.123339285 | AB26: 1.14580607 | AC26: 1.168722192 | AD26: 1.192096636 | AE26: 1.215938568 | AF26: 1.24025734 | AG26: 1.265062486 | AH26: 1.290363736 | AI26: 1.316171011 | AJ26: 1.342494431 | AK26: 1.36934432 | AL26: 1.396731206
C27: 1.415726742 | D27: 1.390228915 | E27: 1.372777816 | F27: 1.354824462 | G27: 1.3286088 | H27: 1.297944445 | I27: 1.276894592 | J27: 1.250794254 | K27: 1.219537478 | L27: 1.181000071 | M27: 1.141944892 | N27: 1.108503664 | O27: 1.083685441 | P27: 1.069455807 | Q27: 1.061381834 | R27: 1.047450558 | S27: 1.033065322 | T27: 1.016525658 | U27: 1 | V27: 0.9828560421 | W27: 0.963584355 | X27: 0.9446905441 | Y27: 0.9261672001 | Z27: 0.9080070589 | AA27: 0.8902029989 | AB27: 0.8727480382 | AC27: 0.8556353315 | AD27: 0.8388581682 | AE27: 0.8224099688 | AF27: 0.8062842831 | AG27: 0.7904747874 | AH27: 0.7749752817 | AI27: 0.759779688 | AJ27: 0.744882047 | AK27: 0.7302765167 | AL27: 0.7159573693
B28: 2015$ | C28: 0.694241 | D28: 0.706974 | E28: 0.715962 | F28: 0.725449 | G28: 0.739764 | H28: 0.75724 | I28: 0.769724 | J28: 0.785786 | K28: 0.805925 | L28: 0.832224 | M28: 0.860686 | N28: 0.886651 | O28: 0.906957 | P28: 0.919025 | Q28: 0.926015 | R28: 0.938332 | S28: 0.951398 | T28: 0.966877 | U28: 0.982856 | V28: 1 | W28: 1.02 | X28: 1.0404 | Y28: 1.061208 | Z28: 1.08243216 | AA28: 1.104080803 | AB28: 1.126162419 | AC28: 1.148685668 | AD28: 1.171659381 | AE28: 1.195092569 | AF28: 1.21899442 | AG28: 1.243374308 | AH28: 1.268241795 | AI28: 1.29360663 | AJ28: 1.319478763 | AK28: 1.345868338 | AL28: 1.372785705
C29: 1.440421986 | D29: 1.414479175 | E29: 1.396722172 | F29: 1.378456652 | G29: 1.35178246 | H29: 1.320585283 | I29: 1.299166974 | J29: 1.272611118 | K29: 1.240810249 | L29: 1.201599569 | M29: 1.161863909 | N29: 1.127839477 | O29: 1.102588105 | P29: 1.088109681 | Q29: 1.079896114 | R29: 1.065720875 | S29: 1.051084825 | T29: 1.034257718 | U29: 1.017443044 | V29: 1 | W29: 0.9803921569 | X29: 0.9611687812 | Y29: 0.9423223345 | Z29: 0.923845426 | AA29: 0.9057308098 | AB29: 0.8879713822 | AC29: 0.8705601786 | AD29: 0.8534903712 | AE29: 0.8367552659 | AF29: 0.8203482999 | AG29: 0.8042630391 | AH29: 0.7884931756 | AI29: 0.7730325251 | AJ29: 0.7578750246 | AK29: 0.74301473 | AL29: 0.7284458137
B33: Source: Deflators and Inflators derived from data contained in the Budget of the United States Government: Table 10.1 - Gross
B34: Domestic Product and Deflators Used in the Historical Tables 1940-2016. http://www.gpoaccess.gov/usbudget/fy12/hist.html.
B35: Updated May 2012. Deflators for 2016-2031 assume average annual inflation rate of 2.0 percent.
C41: =HLOOKUP($D$4,D$41:L$43,3) -> 13 | D41: 2007 | E41: 2008 | F41: 2009 | G41: 2010 | H41: 2011 | I41: 2012 | J41: 2013 | K41: 2014 | L41: 2015
C42: =HLOOKUP($D$4,D$41:L$43,2) -> 12 | D42: 2 | E42: 4 | F42: 6 | G42: 8 | H42: 10 | I42: 12 | J42: 14 | K42: 16 | L42: 18
D43: 3 | E43: 5 | F43: 7 | G43: 9 | H43: 11 | I43: 13 | J43: 15 | K43: 17 | L43: 19
B45: =B43*100 -> 0

Sheet Household Exp (hidden)
B1: Personal Consumption Expenditures
B2: Year of Data | C2: 2012
C3: Alabama | D3: Alaska | E3: Arizona | F3: Arkansas | G3: California | H3: Colorado | I3: Connecticut | J3: Delaware | K3: District of Columbia | L3: Florida | M3: Georgia | N3: Hawaii | O3: Idaho | P3: Illinois | Q3: Indiana | R3: Iowa | S3: Kansas | T3: Kentucky | U3: Louisiana | V3: Maine | W3: Maryland | X3: Massachusetts | Y3: Michigan | Z3: Minnesota | AA3: Mississippi | AB3: Missouri | AC3: Montana | AD3: ='User Add-in Location'!E10 -> MyCounty | AE3: ='User Add-in Location'!F10 -> MyRegion | AF3: Nebraska | AG3: Nevada | AH3: New Hampshire | AI3: New Jersey | AJ3: New Mexico | AK3: New York | AL3: North Carolina | AM3: North Dakota | AN3: Ohio | AO3: Oklahoma | AP3: Oregon | AQ3: Pennsylvania | AR3: REGION1 | AS3: REGION2 | AT3: REGION3 | AU3: REGION4 | AV3: REGION5 | AW3: REGION6 | AX3: REGION7 | AY3: REGION8 | AZ3: Rhode Island | BA3: South Carolina | BB3: South Dakota | BC3: Tennessee | BD3: Texas | BE3: United States | BF3: Utah | BG3: Vermont | BH3: Virginia | BI3: Washington | BJ3: West Virginia | BK3: Wisconsin | BL3: Wyoming
B4: Ag, Forestry, Fish & Hunting | C4: 0.002969968692 | D4: 0.001208689401 | E4: 0.003047765182 | F4: 0.005355242329 | G4: 0.005322634341 | H4: 0.003586811119 | I4: 0.0005699187558 | J4: 0.003303379031 | K4: 0.0001338184948 | L4: 0.003238262446 | M4: 0.003647145163 | N4: 0.00394262811 | O4: 0.00693753364 | P4: 0.002310547567 | Q4: 0.001832727321 | R4: 0.006789004909 | S4: 0.006665990382 | T4: 0.003083804122 | U4: 0.002055115525 | V4: 0.003768107455 | W4: 0.002006198625 | X4: 0.0006182772616 | Y4: 0.002060015049 | Z4: 0.004405163749 | AA4: 0.005095206148 | AB4: 0.004078671125 | AC4: 0.005048608274 | AD4: ='User Add-in Location'!E11 -> 0 | AE4: 1 | AF4: 0.008623519557 | AG4: 0.001930790109 | AH4: 0.001087955593 | AI4: 0.0006165038501 | AJ4: 0.005546377183 | AK4: 0.002462306836 | AL4: 0.003963070708 | AM4: 0.003852146229 | AN4: 0.001701652951 | AO4: 0.004456402391 | AP4: 0.005696953849 | AQ4: 0.002154263916 | AR4: 0.002007783399 | AS4: 0.001827523059 | AT4: 0.003774949586 | AU4: 0.003922634488 | AV4: 0.004141496947 | AW4: 0.003542232536 | AX4: 0.006258781537 | AY4: 0.003615763098 | AZ4: 0.0003531213187 | BA4: 0.002400196094 | BB4: 0.00629437432 | BC4: 0.002054035183 | BD4: 0.002370746374 | BE4: 0.005317265571 | BF4: 0.002303878179 | BG4: 0.007092688255 | BH4: 0.003014364966 | BI4: 0.002928870086 | BJ4: 0.001728924124 | BK4: 0.005317712926 | BL4: 0.004073204273
A5: Warning | B5: Mining | C5: 3.595154151e-06 | D5: 2.725041693e-05 | E5: 7.301199828e-06 | F5: 6.977768092e-06 | G5: 1.017529455e-05 | H5: 6.796328171e-06 | I5: 1.447878972e-06 | J5: 6.552727025e-07 | K5: 6.114980554e-09 | L5: 3.510126616e-06 | M5: 8.757706597e-07 | N5: 2.069074475e-06 | O5: 5.082194154e-06 | P5: 1.831034249e-06 | Q5: 9.908076037e-07 | R5: 6.029556285e-07 | S5: 6.306991326e-06 | T5: 4.611651737e-06 | U5: 2.592592405e-05 | V5: 1.817328664e-06 | W5: 2.567980935e-06 | X5: 1.074583682e-06 | Y5: 2.097864732e-06 | Z5: 2.106343162e-06 | AA5: 5.708857783e-06 | AB5: 1.726003293e-06 | AC5: 1.126943464e-05 | AD5: ='User Add-in Location'!E12 -> 0 | AE5: ='User Add-in Location'!F12 -> 0 | AF5: 1.603519128e-06 | AG5: 1.398726055e-05 | AH5: 1.642367461e-06 | AI5: 8.558634703e-07 | AJ5: 1.748039536e-05 | AK5: 2.182382755e-06 | AL5: 7.66498282e-07 | AM5: 2.053950308e-05 | AN5: 2.574277712e-06 | AO5: 1.832558229e-05 | AP5: 2.154026678e-06 | AQ5: 7.208027908e-06 | AR5: 1.772945549e-06 | AS5: 6.19416133e-06 | AT5: 1.916774935e-06 | AU5: 3.302799169e-06 | AV5: 2.214964395e-06 | AW5: 1.943279955e-05 | AX5: 1.043930933e-05 | AY5: 6.697544176e-06 | AZ5: 4.777923999e-07 | BA5: 9.385987378e-07 | BB5: 1.612428916e-06 | BC5: 1.362140062e-06 | BD5: 1.970103756e-05 | BE5: 1.063622806e-05 | BF5: 7.940176293e-06 | BG5: 2.98705871e-06 | BH5: 3.772265447e-06 | BI5: 1.693623177e-06 | BJ5: 1.239806117e-05 | BK5: 1.003998779e-06 | BL5: 2.359130074e-05
B6: Construction | C6: 0 | D6: 0 | E6: 0 | F6: 0 | G6: 0 | H6: 0 | I6: 0 | J6: 0 | K6: 0 | L6: 0 | M6: 0 | N6: 0 | O6: 0 | P6: 0 | Q6: 0 | R6: 0 | S6: 0 | T6: 0 | U6: 0 | V6: 0 | W6: 0 | X6: 0 | Y6: 0 | Z6: 0 | AA6: 0 | AB6: 0 | AC6: 0 | AD6: ='User Add-in Location'!E13 -> 0 | AE6: ='User Add-in Location'!F13 -> 0 | AF6: 0 | AG6: 0 | AH6: 0 | AI6: 0 | AJ6: 0 | AK6: 0 | AL6: 0 | AM6: 0 | AN6: 0 | AO6: 0 | AP6: 0 | AQ6: 0 | AR6: 0 | AS6: 0 | AT6: 0 | AU6: 0 | AV6: 0 | AW6: 0 | AX6: 0 | AY6: 0 | AZ6: 0 | BA6: 0 | BB6: 0 | BC6: 0 | BD6: 0 | BE6: 0 | BF6: 0 | BG6: 0 | BH6: 0 | BI6: 0 | BJ6: 0 | BK6: 0 | BL6: 0
A7: This Worksheet contains Data and Formulas that are an integral part of the JEDI model. | B7: Construction/Installations - Non Residential | C7: 0 | D7: 0 | E7: 0 | F7: 0 | G7: 0 | H7: 0 | I7: 0 | J7: 0 | K7: 0 | L7: 0 | M7: 0 | N7: 0 | O7: 0 | P7: 0 | Q7: 0 | R7: 0 | S7: 0 | T7: 0 | U7: 0 | V7: 0 | W7: 0 | X7: 0 | Y7: 0 | Z7: 0 | AA7: 0 | AB7: 0 | AC7: 0 | AD7: ='User Add-in Location'!E14 -> 0 | AE7: ='User Add-in Location'!F14 -> 0 | AF7: 0 | AG7: 0 | AH7: 0 | AI7: 0 | AJ7: 0 | AK7: 0 | AL7: 0 | AM7: 0 | AN7: 0 | AO7: 0 | AP7: 0 | AQ7: 0 | AR7: 0 | AS7: 0 | AT7: 0 | AU7: 0 | AV7: 0 | AW7: 0 | AX7: 0 | AY7: 0 | AZ7: 0 | BA7: 0 | BB7: 0 | BC7: 0 | BD7: 0 | BE7: 0 | BF7: 0 | BG7: 0 | BH7: 0 | BI7: 0 | BJ7: 0 | BK7: 0 | BL7: 0
B8: Construction/Installation Residential | C8: 0 | D8: 0 | E8: 0 | F8: 0 | G8: 0 | H8: 0 | I8: 0 | J8: 0 | K8: 0 | L8: 0 | M8: 0 | N8: 0 | O8: 0 | P8: 0 | Q8: 0 | R8: 0 | S8: 0 | T8: 0 | U8: 0 | V8: 0 | W8: 0 | X8: 0 | Y8: 0 | Z8: 0 | AA8: 0 | AB8: 0 | AC8: 0 | AD8: ='User Add-in Location'!E15 -> 0 | AE8: ='User Add-in Location'!F15 -> 0 | AF8: 0 | AG8: 0 | AH8: 0 | AI8: 0 | AJ8: 0 | AK8: 0 | AL8: 0 | AM8: 0 | AN8: 0 | AO8: 0 | AP8: 0 | AQ8: 0 | AR8: 0 | AS8: 0 | AT8: 0 | AU8: 0 | AV8: 0 | AW8: 0 | AX8: 0 | AY8: 0 | AZ8: 0 | BA8: 0 | BB8: 0 | BC8: 0 | BD8: 0 | BE8: 0 | BF8: 0 | BG8: 0 | BH8: 0 | BI8: 0 | BJ8: 0 | BK8: 0 | BL8: 0
A9: Although the data and formulas are available for review they must not be changed. | B9: Manufacturing | C9: 0.06011710312 | D9: 0.05183442483 | E9: 0.03170511853 | F9: 0.05617008173 | G9: 0.040786765 | H9: 0.09908088996 | I9: 0.0348702638 | J9: 0.04521941145 | K9: 0.001589042258 | L9: 0.04274462998 | M9: 0.05333209436 | N9: 0.05335534508 | O9: 0.04502497093 | P9: 0.06548107668 | Q9: 0.06542346501 | R9: 0.05248916609 | S9: 0.03792047892 | T9: 0.05703613128 | U9: 0.09842666898 | V9: 0.03182059641 | W9: 0.03248134194 | X9: 0.04057361174 | Y9: 0.07403667186 | Z9: 0.06953258339 | AA9: 0.05202582225 | AB9: 0.04688184044 | AC9: 0.02532716799 | AD9: ='User Add-in Location'!E16 -> 0 | AE9: ='User Add-in Location'!F16 -> 0 | AF9: 0.03881955473 | AG9: 0.02102141599 | AH9: 0.02675463009 | AI9: 0.05477984819 | AJ9: 0.02293980945 | AK9: 0.04221976789 | AL9: 0.06345807269 | AM9: 0.02564472586 | AN9: 0.06639407956 | AO9: 0.04802426604 | AP9: 0.05606656692 | AQ9: 0.06742620978 | AR9: 0.06267546414 | AS9: 0.07723938657 | AT9: 0.06809808877 | AU9: 0.07650729806 | AV9: 0.1113282317 | AW9: 0.1076775401 | AX9: 0.07183304889 | AY9: 0.09850984178 | AZ9: 0.01504585926 | BA9: 0.04876999649 | BB9: 0.03124051048 | BC9: 0.05376791411 | BD9: 0.1010757161 | BE9: 0.1499404632 | BF9: 0.06167328441 | BG9: 0.03241033358 | BH9: 0.03897825406 | BI9: 0.08017814186 | BJ9: 0.04761834281 | BK9: 0.07182114571 | BL9: 0.01593749593
B10: Fabricated Metals | C10: 3.384141168e-06 | D10: 3.172303676e-06 | E10: 2.126323366e-06 | F10: 1.500103175e-06 | G10: 1.936956612e-06 | H10: 2.818757694e-06 | I10: 1.006251694e-06 | J10: 1.456914262e-07 | K10: 4.482521433e-09 | L10: 1.950873719e-06 | M10: 1.288185975e-06 | N10: 1.471967875e-06 | O10: 1.229370696e-06 | P10: 2.466486588e-06 | Q10: 2.039668879e-06 | R10: 1.570004189e-06 | S10: 1.556338604e-06 | T10: 1.406197572e-06 | U10: 2.7929467e-06 | V10: 1.161081212e-06 | W10: 6.200043245e-07 | X10: 1.391983317e-06 | Y10: 3.119320723e-06 | Z10: 1.426515138e-06 | AA10: 1.605051406e-06 | AB10: 1.150419734e-06 | AC10: 9.867661951e-07 | AD10: ='User Add-in Location'!E17 -> 0 | AE10: ='User Add-in Location'!F17 -> 0 | AF10: 2.56824452e-06 | AG10: 1.148454296e-06 | AH10: 8.578224087e-07 | AI10: 5.887072596e-07 | AJ10: 7.777428605e-07 | AK10: 1.256831693e-06 | AL10: 2.985509726e-06 | AM10: 1.078234253e-06 | AN10: 2.356173394e-06 | AO10: 2.948692169e-06 | AP10: 3.463408128e-06 | AQ10: 3.1480954e-06 | AR10: 2.300222305e-06 | AS10: 2.650020549e-06 | AT10: 3.692136289e-06 | AU10: 3.329221143e-06 | AV10: 4.527688382e-06 | AW10: 4.712491936e-06 | AX10: 3.625200577e-06 | AY10: 2.791881672e-06 | AZ10: 2.232586591e-07 | BA10: 1.991294724e-06 | BB10: 9.174634525e-07 | BC10: 2.243244787e-06 | BD10: 4.416744555e-06 | BE10: 5.829109197e-06 | BF10: 5.323830664e-06 | BG10: 4.248530656e-07 | BH10: 2.934862196e-06 | BI10: 2.992470596e-06 | BJ10: 8.170472355e-07 | BK10: 3.336165257e-06 | BL10: 5.051158818e-07
A11: Any changes to the data or formulas will impact the analysis and may invalidate the model results. | B11: Machinery | C11: 3.03865878e-06 | D11: 3.363945213e-07 | E11: 1.576651589e-06 | F11: 2.56633092e-06 | G11: 4.745541183e-06 | H11: 1.333623247e-05 | I11: 6.093744268e-06 | J11: 8.000685648e-07 | K11: 3.317394234e-07 | L11: 3.686694226e-06 | M11: 5.07439235e-06 | N11: 1.778646548e-07 | O11: 2.770814041e-06 | P11: 1.198892934e-05 | Q11: 5.002815621e-06 | R11: 6.760830987e-06 | S11: 4.848847225e-06 | T11: 3.752203057e-06 | U11: 2.079711358e-06 | V11: 2.333125086e-06 | W11: 1.577805881e-06 | X11: 4.449601959e-06 | Y11: 7.604886148e-06 | Z11: 8.759107697e-06 | AA11: 3.768307658e-06 | AB11: 3.320162403e-06 | AC11: 2.898425621e-06 | AD11: ='User Add-in Location'!E18 -> 0 | AE11: ='User Add-in Location'!F18 -> 0 | AF11: 2.61116987e-06 | AG11: 2.518984978e-06 | AH11: 6.675676794e-06 | AI11: 5.492446952e-06 | AJ11: 1.948069116e-06 | AK11: 8.672083147e-06 | AL11: 8.255645867e-06 | AM11: 6.447875825e-06 | AN11: 1.020021644e-05 | AO11: 9.14733583e-06 | AP11: 8.824015338e-06 | AQ11: 5.537566716e-06 | AR11: 1.334320745e-05 | AS11: 7.739918538e-06 | AT11: 1.319010734e-05 | AU11: 7.582722618e-06 | AV11: 2.372316574e-05 | AW11: 9.424995108e-06 | AX11: 1.060052497e-05 | AY11: 1.323622814e-05 | AZ11: 2.419459975e-06 | BA11: 1.178347156e-05 | BB11: 4.225028313e-06 | BC11: 3.496307515e-06 | BD11: 8.165030235e-06 | BE11: 3.071515522e-05 | BF11: 4.066179553e-06 | BG11: 2.258343714e-06 | BH11: 4.702058728e-06 | BI11: 9.956696376e-06 | BJ11: 2.2012388e-06 | BK11: 1.753126913e-05 | BL11: 9.631654495e-07
B12: Electrical Equip | C12: 7.981120856e-06 | D12: 5.952806197e-06 | E12: 6.846746903e-06 | F12: 9.562041882e-06 | G12: 6.974168275e-06 | H12: 3.208490319e-05 | I12: 1.922605158e-05 | J12: 2.417965001e-06 | K12: 1.326143959e-07 | L12: 1.442843808e-05 | M12: 1.621710257e-05 | N12: 6.395453172e-07 | O12: 6.449868848e-06 | P12: 2.563864512e-05 | Q12: 7.728400507e-06 | R12: 6.929908979e-06 | S12: 5.820853146e-06 | T12: 8.378672488e-06 | U12: 4.546939193e-06 | V12: 6.878872998e-06 | W12: 5.690256145e-06 | X12: 1.672859239e-05 | Y12: 8.19800718e-06 | Z12: 2.043697058e-05 | AA12: 2.123613688e-05 | AB12: 1.524947181e-05 | AC12: 3.072692361e-06 | AD12: ='User Add-in Location'!E19 -> 0 | AE12: ='User Add-in Location'!F19 -> 0 | AF12: 7.942995707e-06 | AG12: 4.356157446e-06 | AH12: 1.025889847e-05 | AI12: 9.230735946e-06 | AJ12: 6.665198432e-06 | AK12: 1.431494834e-05 | AL12: 2.926060331e-05 | AM12: 3.988113511e-06 | AN12: 1.937687026e-05 | AO12: 6.946028862e-06 | AP12: 2.062278016e-05 | AQ12: 2.438074894e-05 | AR12: 3.205278996e-05 | AS12: 2.296503249e-05 | AT12: 3.055769155e-05 | AU12: 2.599360406e-05 | AV12: 3.990120823e-05 | AW12: 2.245461474e-05 | AX12: 1.648393984e-05 | AY12: 3.157175113e-05 | AZ12: 5.408446396e-06 | BA12: 2.080826353e-05 | BB12: 5.980742968e-06 | BC12: 1.617158838e-05 | BD12: 2.030780829e-05 | BE12: 6.026072696e-05 | BF12: 6.406307284e-06 | BG12: 7.867032056e-06 | BH12: 1.52921811e-05 | BI12: 1.737659265e-05 | BJ12: 4.734014902e-06 | BK12: 3.734888447e-05 | BL12: 3.917657954e-06
B13: Battery Manufacturing | C13: 1.161315151e-06 | D13: 0 | E13: 1.533299168e-05 | F13: 1.002586019e-05 | G13: 3.058432624e-06 | H13: 6.817376342e-05 | I13: 3.071514173e-05 | J13: 2.645056665e-05 | K13: 2.742865382e-07 | L13: 4.152639962e-05 | M13: 7.603660276e-05 | N13: 0 | O13: 3.564093247e-07 | P13: 3.3937093e-05 | Q13: 4.241070359e-05 | R13: 7.187767431e-05 | S13: 5.864047355e-05 | T13: 4.899080852e-05 | U13: 1.392489117e-07 | V13: 5.135070052e-06 | W13: 5.604698194e-06 | X13: 4.484247051e-05 | Y13: 3.176447357e-05 | Z13: 1.637146652e-05 | AA13: 4.978307855e-06 | AB13: 9.320758866e-05 | AC13: 1.412268495e-07 | AD13: ='User Add-in Location'!E20 -> 0 | AE13: ='User Add-in Location'!F20 -> 0 | AF13: 7.053015425e-07 | AG13: 2.160225291e-06 | AH13: 4.66110573e-06 | AI13: 4.89142701e-06 | AJ13: 1.317842446e-06 | AK13: 7.476322038e-06 | AL13: 7.199137258e-05 | AM13: 1.673273698e-05 | AN13: 5.735882519e-05 | AO13: 1.295164362e-05 | AP13: 8.434547691e-05 | AQ13: 3.986151808e-05 | AR13: 3.622734416e-05 | AS13: 4.352486989e-05 | AT13: 4.983852326e-05 | AU13: 8.269017264e-05 | AV13: 9.128480674e-05 | AW13: 5.456023634e-05 | AX13: 3.721682533e-05 | AY13: 6.709458731e-05 | AZ13: 4.535070248e-06 | BA13: 2.415854526e-05 | BB13: 0 | BC13: 4.454382828e-05 | BD13: 1.86140243e-05 | BE13: 0.0001095044977 | BF13: 1.0976827e-05 | BG13: 0 | BH13: 6.398743507e-07 | BI13: 8.121318487e-06 | BJ13: 4.860217256e-06 | BK13: 6.355056854e-05 | BL13: 1.455869334e-06
B14: Energy Wire Manufacturing | C14: 0 | D14: 0 | E14: 0 | F14: 0 | G14: 0 | H14: 0 | I14: 0 | J14: 0 | K14: 0 | L14: 0 | M14: 0 | N14: 0 | O14: 0 | P14: 0 | Q14: 0 | R14: 0 | S14: 0 | T14: 0 | U14: 0 | V14: 0 | W14: 0 | X14: 0 | Y14: 0 | Z14: 0 | AA14: 0 | AB14: 0 | AC14: 0 | AD14: ='User Add-in Location'!E21 -> 0 | AE14: ='User Add-in Location'!F21 -> 0 | AF14: 0 | AG14: 0 | AH14: 0 | AI14: 0 | AJ14: 0 | AK14: 0 | AL14: 0 | AM14: 0 | AN14: 0 | AO14: 0 | AP14: 0 | AQ14: 0 | AR14: 0 | AS14: 0 | AT14: 0 | AU14: 0 | AV14: 0 | AW14: 0 | AX14: 0 | AY14: 0 | AZ14: 0 | BA14: 0 | BB14: 0 | BC14: 0 | BD14: 0 | BE14: 0 | BF14: 0 | BG14: 0 | BH14: 0 | BI14: 0 | BJ14: 0 | BK14: 0 | BL14: 0
B15: Wholesale Trade | C15: 0.05895202625 | D15: 0.04608314454 | E15: 0.0673955372 | F15: 0.06758377302 | G15: 0.07124933906 | H15: 0.0660438503 | I15: 0.0698620116 | J15: 0.04734661143 | K15: 0.03338751264 | L15: 0.06736843834 | M15: 0.06771600648 | N15: 0.05703427172 | O15: 0.06445472193 | P15: 0.06624484967 | Q15: 0.05625597174 | R15: 0.0654526711 | S15: 0.0626455751 | T15: 0.06386213425 | U15: 0.05163234168 | V15: 0.06360981076 | W15: 0.06366857924 | X15: 0.07163909757 | Y15: 0.06256182647 | Z15: 0.06911628637 | AA15: 0.0525280777 | AB15: 0.06615371842 | AC15: 0.06457551311 | AD15: ='User Add-in Location'!E22 -> 0 | AE15: ='User Add-in Location'!F22 -> 0 | AF15: 0.06758627662 | AG15: 0.06511913082 | AH15: 0.0731235666 | AI15: 0.07137063737 | AJ15: 0.05399102808 | AK15: 0.0685562307 | AL15: 0.06604028949 | AM15: 0.08244036499 | AN15: 0.06459138357 | AO15: 0.06520888471 | AP15: 0.07082535989 | AQ15: 0.06368666317 | AR15: 0.06694854798 | AS15: 0.0664829718 | AT15: 0.06027981314 | AU15: 0.06524361377 | AV15: 0.06287102161 | AW15: 0.06273277909 | AX15: 0.06355340729 | AY15: 0.06591676065 | AZ15: 0.06968547105 | BA15: 0.06139878203 | BB15: 0.07638536315 | BC15: 0.0658806529 | BD15: 0.06317501241 | BE15: 0.05646032136 | BF15: 0.06456368027 | BG15: 0.05294945448 | BH15: 0.06028602878 | BI15: 0.06708571404 | BJ15: 0.0568175075 | BK15: 0.0650111263 | BL15: 0.06317209424
B16: Retail trade | C16: 0.1319846819 | D16: 0.1272279994 | E16: 0.1287103891 | F16: 0.1316099718 | G16: 0.1155648666 | H16: 0.1150302251 | I16: 0.1176503289 | J16: 0.1247139419 | K16: 0.104672131 | L16: 0.1242179862 | M16: 0.1223687656 | N16: 0.1265069151 | O16: 0.1360100469 | P16: 0.1164686463 | Q16: 0.1311041816 | R16: 0.1336017517 | S16: 0.1369998591 | T16: 0.1328843961 | U16: 0.1336757537 | V16: 0.1390823465 | W16: 0.115165087 | X16: 0.1045672018 | Y16: 0.1224780325 | Z16: 0.1130713696 | AA16: 0.1410218992 | AB16: 0.1258175337 | AC16: 0.130884263 | AD16: ='User Add-in Location'!E23 -> 0 | AE16: ='User Add-in Location'!F23 -> 0 | AF16: 0.1347828248 | AG16: 0.1420497741 | AH16: 0.1332403456 | AI16: 0.1156915072 | AJ16: 0.141431726 | AK16: 0.1112447862 | AL16: 0.1207881931 | AM16: 0.145814571 | AN16: 0.1273051499 | AO16: 0.1324165392 | AP16: 0.1147709516 | AQ16: 0.1154150188 | AR16: 0.1082989649 | AS16: 0.1130091189 | AT16: 0.1141149055 | AU16: 0.120567264 | AV16: 0.1141187157 | AW16: 0.1201731494 | AX16: 0.1211708307 | AY16: 0.1149926306 | AZ16: 0.1133601289 | BA16: 0.1365970523 | BB16: 0.1400652442 | BC16: 0.130285276 | BD16: 0.1216691719 | BE16: 0.1039968784 | BF16: 0.1275173572 | BG16: 0.1322972141 | BH16: 0.1188264524 | BI16: 0.1205691597 | BJ16: 0.1397693593 | BK16: 0.1198567134 | BL16: 0.1479206196
B17: TCPU | C17: 0.0496990205 | D17: 0.05644658218 | E17: 0.04773916172 | F17: 0.05486667617 | G17: 0.04117689476 | H17: 0.03392182891 | I17: 0.03129475651 | J17: 0.03084077203 | K17: 0.03716889705 | L17: 0.04282599866 | M17: 0.04528624396 | N17: 0.05342751447 | O17: 0.04850212603 | P17: 0.04374328189 | Q17: 0.04478735859 | R17: 0.04312412831 | S17: 0.04271228107 | T17: 0.04316060362 | U17: 0.04101532054 | V17: 0.04061568731 | W17: 0.03830496672 | X17: 0.03472574145 | Y17: 0.04244739535 | Z17: 0.04291847452 | AA17: 0.04862518745 | AB17: 0.04447208468 | AC17: 0.05342001233 | AD17: ='User Add-in Location'!E24 -> 0 | AE17: ='User Add-in Location'!F24 -> 0 | AF17: 0.04930683471 | AG17: 0.04802040438 | AH17: 0.03506380196 | AI17: 0.03936514506 | AJ17: 0.04638972454 | AK17: 0.03991449302 | AL17: 0.03968590512 | AM17: 0.04959326815 | AN17: 0.04308378667 | AO17: 0.05078069368 | AP17: 0.04517280582 | AQ17: 0.04264257785 | AR17: 0.03855202848 | AS17: 0.04226262051 | AT17: 0.04183761201 | AU17: 0.04404853556 | AV17: 0.04256775738 | AW17: 0.04596057669 | AX17: 0.04531982122 | AY17: 0.03475981385 | AZ17: 0.03220806404 | BA17: 0.04472912761 | BB17: 0.04595970535 | BC17: 0.04124972174 | BD17: 0.04426565008 | BE17: 0.04073961631 | BF17: 0.04172884181 | BG17: 0.04378656642 | BH17: 0.04067657058 | BI17: 0.03986880811 | BJ17: 0.05298703098 | BK17: 0.0424228197 | BL17: 0.05959434418
B18: Insurance and Real Estate | C18: 0.08041229648 | D18: 0.09062543933 | E18: 0.10519936 | F18: 0.07286658904 | G18: 0.09935386099 | H18: 0.09057858109 | I18: 0.1058582937 | J18: 0.1152381174 | K18: 0.147347273 | L18: 0.1029511397 | M18: 0.09212390276 | N18: 0.1062376209 | O18: 0.09108766186 | P18: 0.1004113254 | Q18: 0.0888319167 | R18: 0.09635788237 | S18: 0.07906494849 | T18: 0.08045972677 | U18: 0.07769951173 | V18: 0.09262055753 | W18: 0.1031581547 | X18: 0.1026973776 | Y18: 0.09434843911 | Z18: 0.09992877256 | AA18: 0.0746110229 | AB18: 0.0809601481 | AC18: 0.08510690448 | AD18: ='User Add-in Location'!E25 -> 0 | AE18: ='User Add-in Location'!F25 -> 0 | AF18: 0.08930661054 | AG18: 0.08712765616 | AH18: 0.1001523631 | AI18: 0.09668549683 | AJ18: 0.09414938119 | AK18: 0.100674302 | AL18: 0.08513270711 | AM18: 0.08411946414 | AN18: 0.09147774126 | AO18: 0.07838447842 | AP18: 0.09731007095 | AQ18: 0.09256806665 | AR18: 0.1058751473 | AS18: 0.09831741684 | AT18: 0.0953722627 | AU18: 0.0940586858 | AV18: 0.09550154318 | AW18: 0.08488795592 | AX18: 0.09459545771 | AY18: 0.09073226985 | AZ18: 0.1072955767 | BA18: 0.08821072562 | BB18: 0.08327920254 | BC18: 0.08213374895 | BD18: 0.0903941446 | BE18: 0.09274325295 | BF18: 0.09541018764 | BG18: 0.09542211152 | BH18: 0.1003746677 | BI18: 0.09376346392 | BJ18: 0.06864659688 | BK18: 0.09613268761 | BL18: 0.09298242329
B19: Finance | C19: 0.042119949 | D19: 0.03312071644 | E19: 0.04219703899 | F19: 0.03830655359 | G19: 0.03782112063 | H19: 0.03802592768 | I19: 0.0401590209 | J19: 0.05226841941 | K19: 0.05462859822 | L19: 0.03914672193 | M19: 0.04227475581 | N19: 0.03002728264 | O19: 0.03926526916 | P19: 0.04511168638 | Q19: 0.0342900447 | R19: 0.0390943398 | S19: 0.04177192712 | T19: 0.03630991715 | U19: 0.03069680124 | V19: 0.03792158197 | W19: 0.03720214619 | X19: 0.04431698835 | Y19: 0.03296660056 | Z19: 0.04290177935 | AA19: 0.04195225229 | AB19: 0.03966022244 | AC19: 0.03845892228 | AD19: ='User Add-in Location'!E26 -> 0 | AE19: ='User Add-in Location'!F26 -> 0 | AF19: 0.03893496385 | AG19: 0.05035889489 | AH19: 0.04187006674 | AI19: 0.04311876907 | AJ19: 0.03413085505 | AK19: 0.04576110614 | AL19: 0.04676603565 | AM19: 0.04800066688 | AN19: 0.03788588097 | AO19: 0.04149526183 | AP19: 0.03387817119 | AQ19: 0.03574588062 | AR19: 0.04365148094 | AS19: 0.03944828961 | AT19: 0.04213819164 | AU19: 0.03793212862 | AV19: 0.03819177807 | AW19: 0.03880395362 | AX19: 0.03856337788 | AY19: 0.03766230992 | AZ19: 0.04945761145 | BA19: 0.03070920463 | BB19: 0.05151654671 | BC19: 0.03728315289 | BD19: 0.04191643191 | BE19: 0.03737783494 | BF19: 0.04547590524 | BG19: 0.03513434951 | BH19: 0.04047434053 | BI19: 0.03363519574 | BJ19: 0.0295670943 | BK19: 0.03783785597 | BL19: 0.03700218418
B20: Other Professional Services | C20: 0.006788686381 | D20: 0.005856222587 | E20: 0.008464448461 | F20: 0.007408312821 | G20: 0.01121511714 | H20: 0.0105878553 | I20: 0.01228416127 | J20: 0.01085771596 | K20: 0.01150674329 | L20: 0.01106159517 | M20: 0.008873343756 | N20: 0.007490221805 | O20: 0.007525168224 | P20: 0.01083492611 | Q20: 0.005841287767 | R20: 0.005603254315 | S20: 0.006054792231 | T20: 0.006052543525 | U20: 0.006049508176 | V20: 0.009177551121 | W20: 0.01098307674 | X20: 0.01246477289 | Y20: 0.008956513046 | Z20: 0.009951447144 | AA20: 0.005621171333 | AB20: 0.0102246233 | AC20: 0.006044835601 | AD20: ='User Add-in Location'!E27 -> 0 | AE20: ='User Add-in Location'!F27 -> 0 | AF20: 0.008895511543 | AG20: 0.01139080338 | AH20: 0.009389960066 | AI20: 0.01228078132 | AJ20: 0.008278924801 | AK20: 0.01180243807 | AL20: 0.01044448283 | AM20: 0.005282151258 | AN20: 0.009396814087 | AO20: 0.006953715488 | AP20: 0.009104972529 | AQ20: 0.01131691489 | AR20: 0.01143322872 | AS20: 0.01159213616 | AT20: 0.01138810111 | AU20: 0.008646804047 | AV20: 0.009483727837 | AW20: 0.007408337389 | AX20: 0.008606092488 | AY20: 0.01052474513 | AZ20: 0.01047230446 | BA20: 0.006874394155 | BB20: 0.006184342174 | BC20: 0.008174556126 | BD20: 0.006890206684 | BE20: 0.009594534469 | BF20: 0.008869119439 | BG20: 0.006352426876 | BH20: 0.0109525428 | BI20: 0.009789765541 | BJ20: 0.007369873377 | BK20: 0.008779753868 | BL20: 0.004289528287
B21: Office Services | C21: 0.0008209654669 | D21: 0.0007679977099 | E21: 0.001100704557 | F21: 0.0008154861209 | G21: 0.001189944584 | H21: 0.00109155873 | I21: 0.001255087312 | J21: 0.001093409775 | K21: 0.00172259443 | L21: 0.001178124167 | M21: 0.001240867944 | N21: 0.0008286017997 | O21: 0.0008670239992 | P21: 0.001120228003 | Q21: 0.0008618060942 | R21: 0.0007901093674 | S21: 0.0009830310282 | T21: 0.001027139336 | U21: 0.001035505893 | V21: 0.001073985796 | W21: 0.001195639797 | X21: 0.001203821277 | Y21: 0.001091225556 | Z21: 0.0009395127462 | AA21: 0.0009006313312 | AB21: 0.001082604365 | AC21: 0.001018988492 | AD21: ='User Add-in Location'!E28 -> 0 | AE21: ='User Add-in Location'!F28 -> 0 | AF21: 0.0008713775142 | AG21: 0.001028673037 | AH21: 0.0013750085 | AI21: 0.001200691165 | AJ21: 0.0006419964929 | AK21: 0.001135562738 | AL21: 0.0008844696226 | AM21: 0.0007026038416 | AN21: 0.001025550475 | AO21: 0.001350078621 | AP21: 0.0008875762477 | AQ21: 0.0009908246175 | AR21: 0.001106850523 | AS21: 0.001064159421 | AT21: 0.001141045233 | AU21: 0.001157892411 | AV21: 0.0009333863285 | AW21: 0.0009846818005 | AX21: 0.0008981784009 | AY21: 0.001079319828 | AZ21: 0.001195799633 | BA21: 0.0008765429662 | BB21: 0.0006625926819 | BC21: 0.001221082845 | BD21: 0.001035771417 | BE21: 0.0009549599868 | BF21: 0.0009118529498 | BG21: 0.001169337358 | BH21: 0.001334270524 | BI21: 0.0008774050367 | BJ21: 0.0008175363272 | BK21: 0.0008089455197 | BL21: 0.0008953476791
B22: Architectural and Engineering Services | C22: 0.0001403878344 | D22: 0.000164133364 | E22: 0.0001419105776 | F22: 7.75009089e-05 | G22: 0.0001427146806 | H22: 0.0001286074043 | I22: 0.0001345931342 | J22: 0.0001287962569 | K22: 0.0002027057181 | L22: 0.0001312938513 | M22: 0.0001201787897 | N22: 8.740113e-05 | O22: 0.0001227125333 | P22: 0.0001225754071 | Q22: 0.0001064450273 | R22: 8.764210296e-05 | S22: 0.0001085131569 | T22: 7.943629284e-05 | U22: 0.0001305342239 | V22: 0.0001251766651 | W22: 0.0001570573699 | X22: 0.0001448572083 | Y22: 0.0001409215184 | Z22: 0.0001147804419 | AA22: 9.593897629e-05 | AB22: 0.0001219731587 | AC22: 0.0001264863755 | AD22: ='User Add-in Location'!E29 -> 0 | AE22: ='User Add-in Location'!F29 -> 0 | AF22: 0.000101300577 | AG22: 0.0001530997148 | AH22: 0.0001450170748 | AI22: 0.0001406182839 | AJ22: 0.0001169603777 | AK22: 0.0001319731844 | AL22: 9.117955819e-05 | AM22: 0.0001116977877 | AN22: 0.0001220704116 | AO22: 9.557960167e-05 | AP22: 0.0001369570635 | AQ22: 0.0001327221022 | AR22: 0.0001322497971 | AS22: 0.0001289011136 | AT22: 0.0001346172881 | AU22: 0.0001160345508 | AV22: 0.0001211345988 | AW22: 0.0001250591579 | AX22: 0.0001300915402 | AY22: 0.0001288836184 | AZ22: 0.0001234403947 | BA22: 0.0001405141547 | BB22: 9.616029684e-05 | BC22: 0.0001182884051 | BD22: 0.0001292684039 | BE22: 0.0001118899983 | BF22: 0.0001258227133 | BG22: 0.0001193652184 | BH22: 0.0001480545125 | BI22: 0.0001395747307 | BJ22: 9.905164492e-05 | BK22: 0.0001168143367 | BL22: 0.0001091364311
B23: Other services | C23: 0.5603294843 | D23: 0.5808436712 | E23: 0.5594600734 | F23: 0.5593379436 | G23: 0.5715156812 | H23: 0.5376059383 | I23: 0.5812437301 | J23: 0.5636028581 | K23: 0.6007795265 | L23: 0.5605581403 | M23: 0.5582689596 | N23: 0.5558027994 | O23: 0.5547395866 | P23: 0.5435392589 | Q23: 0.5654084016 | R23: 0.5511866173 | S23: 0.5795088009 | T23: 0.5703079093 | U23: 0.5522592255 | V23: 0.574795784 | W23: 0.5905250726 | X23: 0.5822128542 | Y23: 0.5539367306 | Z23: 0.5424775808 | AA23: 0.5716425737 | AB23: 0.5753349647 | AC23: 0.5843545489 | AD23: ='User Add-in Location'!E30 -> 0 | AE23: ='User Add-in Location'!F30 -> 0 | AF23: 0.5575058961 | AG23: 0.5662239411 | AH23: 0.5724598492 | AI23: 0.5600258164 | AJ23: 0.5862979242 | AK23: 0.5714411381 | AL23: 0.5577013222 | AM23: 0.5486007839 | AN23: 0.5520719815 | AO23: 0.5653388521 | AP23: 0.5611628177 | AQ23: 0.5630009665 | AR23: 0.5548608841 | AS23: 0.5439661337 | AT23: 0.5569549065 | AU23: 0.5431973545 | AV23: 0.5162385424 | AW23: 0.5230696988 | AX23: 0.5444106067 | AY23: 0.5377485737 | AZ23: 0.5954841252 | BA23: 0.5737792991 | BB23: 0.5527848067 | BC23: 0.5728039144 | BD23: 0.5225495956 | BE23: 0.4988354623 | BF23: 0.5466869885 | BG23: 0.5875521168 | BH23: 0.579712326 | BI23: 0.5464791046 | BJ23: 0.5880742235 | BK23: 0.5468035023 | BL23: 0.5674585737
B24: Government | C24: 0.005646269706 | D24: 0.005784267156 | E24: 0.004805308326 | F24: 0.005571236786 | G24: 0.00463417062 | H24: 0.004194716097 | I24: 0.004759345023 | J24: 0.005356097648 | K24: 0.006860408138 | L24: 0.004512566757 | M24: 0.004648243813 | N24: 0.005255039451 | O24: 0.005447289593 | P24: 0.004535735592 | Q24: 0.005198221395 | R24: 0.005335691334 | S24: 0.005486628966 | T24: 0.005669118747 | U24: 0.005288228049 | V24: 0.005371488974 | W24: 0.005136618391 | X24: 0.004766911437 | Y24: 0.004922843816 | Z24: 0.004593148955 | AA24: 0.005842920093 | AB24: 0.005096961924 | AC24: 0.005615380566 | AD24: ='User Add-in Location'!E31 -> 0 | AE24: ='User Add-in Location'!F31 -> 0 | AF24: 0.005249898234 | AG24: 0.00555124517 | AH24: 0.005313339545 | AI24: 0.0047031261 | AJ24: 0.006057103389 | AK24: 0.004621992565 | AL24: 0.00493101223 | AM24: 0.005788769454 | AN24: 0.004852042249 | AO24: 0.005444928583 | AP24: 0.004867386548 | AQ24: 0.004839755233 | AR24: 0.004371673213 | AS24: 0.0045782684 | AT24: 0.004666311247 | AU24: 0.004478855698 | AV24: 0.004341012362 | AW24: 0.004523450308 | AX24: 0.004581939928 | AY24: 0.004207695997 | AZ24: 0.005305433558 | BA24: 0.005454484661 | BB24: 0.005518415731 | BC24: 0.004959839351 | BD24: 0.004457079919 | BE24: 0.003710574779 | BF24: 0.004698368339 | BG24: 0.00570049857 | BH24: 0.005194785926 | BI24: 0.004644655906 | BJ24: 0.006479448618 | BK24: 0.004968151389 | BL24: 0.006534615157
B25: Semiconductor (solar cell/module) manufacturing | C25: 0 | D25: 0 | E25: 0 | F25: 0 | G25: 0 | H25: 0 | I25: 0 | J25: 0 | K25: 0 | L25: 0 | M25: 0 | N25: 0 | O25: 0 | P25: 0 | Q25: 0 | R25: 0 | S25: 0 | T25: 0 | U25: 0 | V25: 0 | W25: 0 | X25: 0 | Y25: 0 | Z25: 0 | AA25: 0 | AB25: 0 | AC25: 0 | AD25: ='User Add-in Location'!E32 -> 0 | AE25: ='User Add-in Location'!F32 -> 0 | AF25: 0 | AG25: 0 | AH25: 0 | AI25: 0 | AJ25: 0 | AK25: 0 | AL25: 0 | AM25: 0 | AN25: 0 | AO25: 0 | AP25: 0 | AQ25: 0 | AR25: 0 | AS25: 0 | AT25: 0 | AU25: 0 | AV25: 0 | AW25: 0 | AX25: 0 | AY25: 0 | AZ25: 0 | BA25: 0 | BB25: 0 | BC25: 0 | BD25: 0 | BE25: 0 | BF25: 0 | BG25: 0 | BH25: 0 | BI25: 0 | BJ25: 0 | BK25: 0 | BL25: 0
A26: To view the data and formulas simply scroll over to the adjacent columns to the right. | B26: Total | C26: =SUM(C4:C25) -> 1 | D26: =SUM(D4:D25) -> 1 | E26: 1 | F26: 1 | G26: 1 | H26: 1 | I26: 1 | J26: 1 | K26: 1 | L26: 1 | M26: 1 | N26: 1 | O26: 1 | P26: 1 | Q26: 1 | R26: 1 | S26: 1 | T26: 1 | U26: 1 | V26: 1 | W26: 1 | X26: 1 | Y26: 1 | Z26: 1 | AA26: 1 | AB26: 1 | AC26: 1 | AD26: 0 | AE26: 1 | AF26: 1 | AG26: 1 | AH26: 1 | AI26: 1 | AJ26: 1 | AK26: 1 | AL26: 1 | AM26: 1 | AN26: 1 | AO26: 1 | AP26: 1 | AQ26: 1 | AR26: =SUM(AR4:AR25) -> 1 | AS26: 1 | AT26: 1 | AU26: 1 | AV26: 1 | AW26: 1 | AX26: 1 | AY26: 1 | AZ26: 1 | BA26: 1 | BB26: 1 | BC26: 1 | BD26: 1 | BF26: 1 | BG26: 1 | BH26: 1 | BI26: 1 | BJ26: 1 | BK26: 1 | BL26: 1
B28: =CONCATENATE("Source: All values are averages for all income classes and are derived from IMPLAN™ using ", C2," state data.") -> Source: All values are averages for all income classes and are derived from IMPLAN™ using 2012 state data.

Sheet Multipliers (hidden)
C1: Multipliers For Economic Input-Output Analysis
C2: Year of Data | D2: 2012
C3: Jobs Per Million Dollars Change in Final Demand
C4: Jobs Direct Multipliers | D4: Alabama | E4: Alaska | F4: Arizona | G4: Arkansas | H4: California | I4: Colorado | J4: Connecticut | K4: Delaware | L4: District of Columbia | M4: Florida | N4: Georgia | O4: Hawaii | P4: Idaho | Q4: Illinois | R4: Indiana | S4: Iowa | T4: Kansas | U4: Kentucky | V4: Louisiana | W4: Maine | X4: Maryland | Y4: Massachusetts | Z4: Michigan | AA4: Minnesota | AB4: Mississippi | AC4: Missouri | AD4: Montana | AE4: MyCounty | AF4: MyRegion | AG4: Nebraska | AH4: Nevada | AI4: New Hampshire | AJ4: New Jersey | AK4: New Mexico | AL4: New York | AM4: North Carolina | AN4: North Dakota | AO4: Ohio | AP4: Oklahoma | AQ4: Oregon | AR4: Pennsylvania | AS4: REGION1 | AT4: REGION2 | AU4: REGION3 | AV4: REGION4 | AW4: REGION5 | AX4: REGION6 | AY4: REGION7 | AZ4: REGION8 | BA4: Rhode Island | BB4: South Carolina | BC4: South Dakota | BD4: Tennessee | BE4: Texas | BF4: United States | BG4: Utah | BH4: Vermont | BI4: Virginia | BJ4: Washington | BK4: West Virginia | BL4: Wisconsin | BM4: Wyoming
A5: Warning | C5: Ag, Forestry, Fish & Hunting | D5: 7.906336011 | E5: 13.25236383 | F5: 5.838743198 | G5: 6.034228348 | H5: 5.511236907 | I5: 6.171652701 | J5: 12.40777331 | K5: 2.93620284 | L5: 0 | M5: 9.556818321 | N5: 5.093644909 | O5: 15.25783321 | P5: 4.214624863 | Q5: 4.615229963 | R5: 5.811256282 | S5: 3.240685551 | T5: 4.217944189 | U5: 14.3336615 | V5: 8.537821224 | W5: 12.89517588 | X5: 6.856678307 | Y5: 12.79698699 | Z5: 8.420280919 | AA5: 4.40932784 | AB5: 7.376588919 | AC5: 10.13054464 | AD5: 6.780472488 | AE5: ='User Add-in Location'!B11 -> 0 | AF5: ='User Add-in Location'!C11 -> 0 | AG5: 2.335612642 | AH5: 3.853887266 | AI5: 16.81297306 | AJ5: 10.94880147 | AK5: 5.011624338 | AL5: 8.43108816 | AM5: 5.491854808 | AN5: 4.259514309 | AO5: 8.105232941 | AP5: 11.19649257 | AQ5: 9.793304552 | AR5: 9.947430261 | AS5: 10.36126521 | AT5: 10.13600022 | AU5: 7.073951801 | AV5: 9.238658833 | AW5: 5.212447654 | AX5: 8.866543319 | AY5: 4.926196896 | AZ5: 6.301802273 | BA5: 14.71881296 | BB5: 8.33795476 | BC5: 3.431661838 | BD5: 16.22275483 | BE5: 9.610371805 | BF5: 6.553086381 | BG5: 7.224772093 | BH5: 10.29026747 | BI5: 10.83622174 | BJ5: 7.496520743 | BK5: 20.61474273 | BL5: 7.338297626 | BM5: 6.093266452
C6: Mining | D6: 3.089800171 | E6: 1.312245245 | F6: 1.72676915 | G6: 3.671291185 | H6: 2.871129755 | I6: 2.193072609 | J6: 6.762249021 | K6: 6.940144387 | L6: 0 | M6: 5.315458187 | N6: 6.852530825 | O6: 6.355728315 | P6: 2.83242708 | Q6: 4.695421219 | R6: 4.299102147 | S6: 7.195032037 | T6: 4.955367157 | U6: 3.608877196 | V6: 2.049127316 | W6: 6.095874952 | X6: 5.30873072 | Y6: 6.055463155 | Z6: 3.710244096 | AA6: 2.122698065 | AB6: 4.007505721 | AC6: 6.030790605 | AD6: 3.193858575 | AE6: ='User Add-in Location'!B12 -> 0 | AF6: ='User Add-in Location'!C12 -> 0 | AG6: 5.780354569 | AH6: 2.049144233 | AI6: 7.289015922 | AJ6: 6.401059303 | AK6: 2.863086258 | AL6: 5.153325095 | AM6: 6.494138579 | AN6: 2.843152447 | AO6: 4.70084793 | AP6: 3.240399858 | AQ6: 6.126159834 | AR6: 2.980822577 | AS6: 5.59691689 | AT6: 3.269362132 | AU6: 4.230256979 | AV6: 4.237362267 | AW6: 4.041597947 | AX6: 2.430930359 | AY6: 2.574992194 | AZ6: 2.21818924 | BA6: 7.159629656 | BB6: 5.172455801 | BC6: 5.710901159 | BD6: 5.83595251 | BE6: 2.275019563 | BF6: 2.71795722 | BG6: 2.907287542 | BH6: 5.722017896 | BI6: 3.318717805 | BJ6: 4.766728802 | BK6: 3.500715864 | BL6: 4.334379058 | BM6: 2.062414487
A7: This Worksheet contains Data and Formulas that are an integral part of the JEDI model. | C7: Construction | D7: 6.094962927 | E7: 5.074485419 | F7: 5.115367417 | G7: 6.309576487 | H7: 6.086999852 | I7: 5.482047447 | J7: 5.604052195 | K7: 5.982694109 | L7: 5.398402435 | M7: 5.669988659 | N7: 5.911479983 | O7: 4.619099038 | P7: 6.32685966 | Q7: 5.555600232 | R7: 5.942301566 | S7: 6.129692879 | T7: 6.141006699 | U7: 6.276006321 | V7: 5.884673569 | W7: 6.64370889 | X7: 5.533130744 | Y7: 5.681753759 | Z7: 6.284921948 | AA7: 5.52488363 | AB7: 5.808274492 | AC7: 6.108326823 | AD7: 6.350490297 | AE7: ='User Add-in Location'!B13 -> 0 | AF7: ='User Add-in Location'!C13 -> 0 | AG7: 5.9744679 | AH7: 5.271120934 | AI7: 6.141619768 | AJ7: 5.432069856 | AK7: 5.959119825 | AL7: 5.323638511 | AM7: 6.17730318 | AN7: 5.719704935 | AO7: 6.163601164 | AP7: 6.319691437 | AQ7: 5.730415684 | AR7: 5.829907771 | AS7: 5.565663374 | AT7: 5.710971547 | AU7: 5.947407441 | AV7: 5.897597092 | AW7: 5.92410538 | AX7: 5.740426109 | AY7: 5.727108568 | AZ7: 5.43849776 | BA7: 5.372554935 | BB7: 6.003087616 | BC7: 6.518153936 | BD7: 6.190538464 | BE7: 5.527364081 | BF7: 5.755202017 | BG7: 5.655738562 | BH7: 6.595765923 | BI7: 6.06210672 | BJ7: 5.647750492 | BK7: 5.975925813 | BL7: 6.026953665 | BM7: 5.843841107
C8: Construction/Installations - Non Residential | D8: 7.140452181 | E8: 5.886514593 | F8: 5.86202366 | G8: 7.39060827 | H8: 7.182773913 | I8: 6.26984564 | J8: 7.019341359 | K8: 6.855188937 | L8: 5.93645719 | M8: 6.546540011 | N8: 6.879709865 | O8: 5.192579525 | P8: 7.43090583 | Q8: 6.322376851 | R8: 6.797438236 | S8: 7.281462966 | T8: 7.226195896 | U8: 7.309736382 | V8: 6.752286117 | W8: 8.147675772 | X8: 6.387322133 | Y8: 6.719934817 | Z8: 7.304842286 | AA8: 6.320736699 | AB8: 6.781298488 | AC8: 7.257528294 | AD8: 7.378916792 | AE8: ='User Add-in Location'!B14 -> 0 | AF8: ='User Add-in Location'!C14 -> 0 | AG8: 6.907487464 | AH8: 6.002145517 | AI8: 8.187098494 | AJ8: 6.284047109 | AK8: 6.880854199 | AL8: 6.038294298 | AM8: 7.221193638 | AN8: 6.59757877 | AO8: 7.15518128 | AP8: 7.408643122 | AQ8: 6.581095904 | AR8: 6.923130485 | AS8: 6.530064871 | AT8: 6.691529607 | AU8: 6.888752286 | AV8: 6.905526008 | AW8: 6.843212967 | AX8: 6.656309745 | AY8: 6.631288001 | AZ8: 6.214848521 | BA8: 6.168443906 | BB8: 6.978359834 | BC8: 7.772834222 | BD8: 7.634368721 | BE8: 6.383152903 | BF8: 6.679523641 | BG8: 6.51465817 | BH8: 8.445670756 | BI8: 6.988635664 | BJ8: 6.47434334 | BK8: 6.808756146 | BL8: 7.104097984 | BM8: 6.781849295
A9: Although the data and formulas are available for review they must not be changed. | C9: Construction/Installation Residential | D9: 5.950522321 | E9: 1.841865863 | F9: 4.855160456 | G9: 6.389771681 | H9: 2.812271252 | I9: 5.510290415 | J9: 1.407041709 | K9: 6.428160957 | L9: 5.668329874 | M9: 5.713658778 | N9: 5.959803335 | O9: 4.472152531 | P9: 6.331188406 | Q9: 5.77463752 | R9: 6.385073458 | S9: 2.577868618 | T9: 2.599697088 | U9: 6.49065033 | V9: 6.352413578 | W9: 2.511776275 | X9: 3.458771667 | Y9: 1.904524863 | Z9: 5.904193147 | AA9: 5.758536856 | AB9: 5.621874814 | AC9: 2.394896035 | AD9: 6.364894456 | AE9: ='User Add-in Location'!B15 -> 0 | AF9: ='User Add-in Location'!C15 -> 0 | AG9: 3.029016009 | AH9: 5.373316612 | AI9: 1.049149033 | AJ9: 4.047201895 | AK9: 5.96820542 | AL9: 5.429987513 | AM9: 6.259072629 | AN9: 1.84556268 | AO9: 5.979834637 | AP9: 6.457584161 | AQ9: 5.730566566 | AR9: 1.993387434 | AS9: 2.592169841 | AT9: 2.651134637 | AU9: 5.286186789 | AV9: 4.465270165 | AW9: 4.858944758 | AX9: 4.909448615 | AY9: 3.771466892 | AZ9: 5.456021343 | BA9: 5.295575056 | BB9: 6.127981831 | BC9: 3.354529331 | BD9: 1.915223002 | BE9: 5.398897798 | BF9: 4.111145089 | BG9: 5.776011812 | BH9: 1.390370127 | BI9: 6.340776636 | BJ9: 4.795684618 | BK9: 6.642474118 | BL9: 2.703910803 | BM9: 2.3295481
C10: Manufacturing | D10: 1.712889398 | E10: 1.739258707 | F10: 2.28412637 | G10: 2.008616415 | H10: 1.9963228 | I10: 1.658604758 | J10: 2.123238957 | K10: 1.41394241 | L10: 2.113391609 | M10: 2.343224585 | N10: 1.885832282 | O10: 1.509540577 | P10: 1.955754152 | Q10: 1.669804904 | R10: 1.597085864 | S10: 1.837062449 | T10: 1.702302497 | U10: 1.537348355 | V10: 0.5961128786 | W10: 2.445544252 | X10: 2.050915394 | Y10: 2.087966885 | Z10: 1.72070263 | AA10: 2.1073615 | AB10: 1.685760971 | AC10: 1.865078733 | AD10: 1.202066854 | AE10: ='User Add-in Location'!B16 -> 0 | AF10: ='User Add-in Location'!C16 -> 0 | AG10: 2.05019807 | AH10: 2.592942124 | AI10: 2.558551541 | AJ10: 1.649393346 | AK10: 1.661221209 | AL10: 2.061863736 | AM10: 1.774296225 | AN10: 1.349785994 | AO10: 1.824468869 | AP10: 1.735933962 | AQ10: 2.428201814 | AR10: 1.895001437 | AS10: 2.146290352 | AT10: 1.761959197 | AU10: 1.885952685 | AV10: 1.850926397 | AW10: 1.807096215 | AX10: 1.107106013 | AY10: 1.897828941 | AZ10: 1.656504304 | BA10: 2.587854401 | BB10: 1.909752315 | BC10: 2.477210738 | BD10: 1.873451144 | BE10: 0.9820970868 | BF10: 1.690136348 | BG10: 1.759849712 | BH10: 2.429673741 | BI10: 2.01922346 | BJ10: 1.747108291 | BK10: 1.336128005 | BL10: 2.23957076 | BM10: 0.7046883518
A11: Any changes to the data or formulas will impact the analysis and may invalidate the model results. | C11: Fabricated Metals | D11: 3.558683979 | E11: 3.962475116 | F11: 3.814214781 | G11: 3.084857101 | H11: 3.633319424 | I11: 3.493727174 | J11: 3.413795171 | K11: 3.442505581 | L11: 0 | M11: 3.648365233 | N11: 3.617491332 | O11: 4.075701722 | P11: 3.66524208 | Q11: 3.394243189 | R11: 3.3621976 | S11: 3.587901635 | T11: 3.575223974 | U11: 3.523226118 | V11: 3.53115035 | W11: 3.410108555 | X11: 3.437548653 | Y11: 3.060983696 | Z11: 3.543746287 | AA11: 3.447357634 | AB11: 3.615094245 | AC11: 3.630366243 | AD11: 3.856663182 | AE11: ='User Add-in Location'!B17 -> 0 | AF11: ='User Add-in Location'!C17 -> 0 | AG11: 3.483185916 | AH11: 3.463501741 | AI11: 3.429153754 | AJ11: 3.447063612 | AK11: 3.925860846 | AL11: 3.524680021 | AM11: 3.497636274 | AN11: 3.771642288 | AO11: 3.396161508 | AP11: 3.4356051 | AQ11: 3.701756336 | AR11: 3.438518924 | AS11: 3.393171284 | AT11: 3.469067781 | AU11: 3.3348045 | AV11: 3.519930528 | AW11: 3.434458183 | AX11: 3.465040841 | AY11: 3.618328947 | AZ11: 3.50433858 | BA11: 3.82651739 | BB11: 3.299558242 | BC11: 3.551723619 | BD11: 3.262442514 | BE11: 3.470251508 | BF11: 3.470267019 | BG11: 3.604950496 | BH11: 3.911091232 | BI11: 3.156748652 | BJ11: 3.494461302 | BK11: 3.89245396 | BL11: 3.409488794 | BM11: 3.840649417
C12: Machinery | D12: 2.652531385 | E12: 1.787365571 | F12: 2.776957004 | G12: 2.541761869 | H12: 2.289682601 | I12: 2.385536234 | J12: 2.546664036 | K12: 2.890803897 | L12: 1.227924532 | M12: 2.931618068 | N12: 2.431680392 | O12: 0 | P12: 2.736782125 | Q12: 2.324030267 | R12: 2.748477639 | S12: 2.143589535 | T12: 2.747799349 | U12: 2.698164852 | V12: 2.449231208 | W12: 2.286445518 | X12: 2.811251976 | Y12: 2.518682826 | Z12: 2.9403019 | AA12: 2.547797073 | AB12: 2.890931337 | AC12: 2.658614873 | AD12: 3.538401067 | AE12: ='User Add-in Location'!B18 -> 0 | AF12: ='User Add-in Location'!C18 -> 0 | AG12: 2.926306188 | AH12: 2.6376545 | AI12: 2.477374213 | AJ12: 2.533608923 | AK12: 2.766622249 | AL12: 2.401799877 | AM12: 1.863371557 | AN12: 1.479956212 | AO12: 2.712464193 | AP12: 2.384936405 | AQ12: 2.877438424 | AR12: 2.608743833 | AS12: 2.452796061 | AT12: 2.603594446 | AU12: 1.926005454 | AV12: 2.6398962 | AW12: 2.568141599 | AX12: 2.375689885 | AY12: 2.452794204 | AZ12: 2.385536234 | BA12: 2.58643338 | BB12: 1.817030783 | BC12: 2.438349464 | BD12: 2.37685867 | BE12: 2.294041115 | BF12: 2.440426203 | BG12: 3.071469333 | BH12: 2.586489556 | BI12: 2.285410905 | BJ12: 2.134097187 | BK12: 3.715993073 | BL12: 2.624005362 | BM12: 3.09228648
C13: Electrical Equip | D13: 2.802935921 | E13: 1.487321258 | F13: 3.015566241 | G13: 3.007219545 | H13: 2.769170505 | I13: 2.85383495 | J13: 2.256577966 | K13: 2.531473967 | L13: 2.730325404 | M13: 2.96627039 | N13: 2.124397683 | O13: 0 | P13: 2.707638992 | Q13: 2.619576659 | R13: 3.017917351 | S13: 2.710012031 | T13: 2.801139811 | U13: 2.519053772 | V13: 2.626792592 | W13: 3.052540113 | X13: 2.983837458 | Y13: 2.685369471 | Z13: 2.646909301 | AA13: 2.658925203 | AB13: 2.689753248 | AC13: 2.393801074 | AD13: 3.312868939 | AE13: ='User Add-in Location'!B19 -> 0 | AF13: ='User Add-in Location'!C19 -> 0 | AG13: 2.797580952 | AH13: 3.15420916 | AI13: 2.683096981 | AJ13: 2.565079345 | AK13: 3.13254713 | AL13: 2.779472182 | AM13: 2.352986295 | AN13: 3.218025061 | AO13: 2.645564377 | AP13: 2.845428531 | AQ13: 2.657452901 | AR13: 2.690954231 | AS13: 2.5673684 | AT13: 2.664999408 | AU13: 2.423984535 | AV13: 2.502408671 | AW13: 2.590755619 | AX13: 2.613241867 | AY13: 2.792824376 | AZ13: 2.85383495 | BA13: 2.217679208 | BB13: 2.368786414 | BC13: 2.604838796 | BD13: 2.27955366 | BE13: 2.659479036 | BF13: 2.598779207 | BG13: 2.51459021 | BH13: 2.544811697 | BI13: 2.534302391 | BJ13: 2.811871911 | BK13: 2.872614899 | BL13: 2.410760418 | BM13: 2.469907694
C14: Battery Manufacturing | D14: 0 | E14: 0 | F14: 2.717413897 | G14: 2.494757416 | H14: 2.751574275 | I14: 2.587287277 | J14: 2.536067006 | K14: 2.227689971 | L14: 0 | M14: 2.519506124 | N14: 2.255007216 | O14: 0 | P14: 0 | Q14: 2.42873038 | R14: 2.552057492 | S14: 2.704139856 | T14: 2.620172719 | U14: 2.646663645 | V14: 0 | W14: 0 | X14: 2.725407857 | Y14: 2.565428583 | Z14: 2.216461194 | AA14: 2.499835935 | AB14: 2.932741065 | AC14: 2.471251685 | AD14: 0 | AE14: ='User Add-in Location'!B20 -> 0 | AF14: ='User Add-in Location'!C20 -> 0 | AG14: 0 | AH14: 0 | AI14: 0 | AJ14: 2.345059056 | AK14: 0 | AL14: 2.73421437 | AM14: 2.40360934 | AN14: 2.947205592 | AO14: 2.511377322 | AP14: 2.744229332 | AQ14: 2.493803022 | AR14: 2.525865178 | AS14: 2.580111004 | AT14: 2.427372858 | AU14: 2.396213539 | AV14: 2.429705304 | AW14: 2.49853277 | AX14: 2.476922997 | AY14: 2.602268545 | AZ14: 2.587287277 | BA14: 2.547780096 | BB14: 2.340958495 | BC14: 0 | BD14: 2.568389749 | BE14: 2.434408224 | BF14: 2.486276811 | BG14: 2.602674938 | BH14: 0 | BI14: 0 | BJ14: 2.782200524 | BK14: 2.671261646 | BL14: 2.426879914 | BM14: 0
C15: Energy Wire Manufacturing | D15: 1.783727766 | E15: 0 | F15: 1.755429065 | G15: 1.612316402 | H15: 1.751253618 | I15: 1.634215456 | J15: 1.669538442 | K15: 1.433615968 | L15: 1.743222331 | M15: 1.802501067 | N15: 1.708743161 | O15: 0 | P15: 1.675513382 | Q15: 1.564677386 | R15: 1.738572603 | S15: 0 | T15: 1.643579536 | U15: 1.657359236 | V15: 1.634255816 | W15: 1.876956801 | X15: 1.645956657 | Y15: 1.710308779 | Z15: 1.621748486 | AA15: 1.633733126 | AB15: 1.835113907 | AC15: 1.601882799 | AD15: 1.823459607 | AE15: ='User Add-in Location'!B21 -> 0 | AF15: ='User Add-in Location'!C21 -> 0 | AG15: 1.668529807 | AH15: 1.880085004 | AI15: 1.628905746 | AJ15: 1.492107928 | AK15: 1.870200219 | AL15: 1.796735856 | AM15: 1.47722721 | AN15: 1.837184601 | AO15: 1.698951458 | AP15: 1.735613069 | AQ15: 1.575062231 | AR15: 1.717415065 | AS15: 1.683839198 | AT15: 1.6396165 | AU15: 1.478493865 | AV15: 1.737666499 | AW15: 1.621187654 | AX15: 1.555551497 | AY15: 1.677705387 | AZ15: 1.634215456 | BA15: 1.610999473 | BB15: 1.379904262 | BC15: 0 | BD15: 1.546307796 | BE15: 1.529610088 | BF15: 1.613314889 | BG15: 1.597942042 | BH15: 1.551331257 | BI15: 1.592387376 | BJ15: 1.77042328 | BK15: 1.725225541 | BL15: 1.546280267 | BM15: 1.746898069
C16: Wholesale Trade | D16: 4.921691801 | E16: 4.260486744 | F16: 4.577143739 | G16: 4.381937491 | H16: 4.558265758 | I16: 4.352015402 | J16: 3.799356553 | K16: 4.095817447 | L16: 3.676022187 | M16: 4.475908609 | N16: 4.37458715 | O16: 5.664863232 | P16: 5.354001283 | Q16: 4.203310951 | R16: 5.025120507 | S16: 4.973101937 | T16: 4.680273049 | U16: 4.600561784 | V16: 4.686772041 | W16: 4.979202807 | X16: 4.380828534 | Y16: 4.285566158 | Z16: 4.493899424 | AA16: 4.490441224 | AB16: 5.061705062 | AC16: 4.893162911 | AD16: 5.15888366 | AE16: ='User Add-in Location'!B22 -> 0 | AF16: ='User Add-in Location'!C22 -> 0 | AG16: 5.071233366 | AH16: 4.779350879 | AI16: 4.638708062 | AJ16: 3.978092611 | AK16: 5.641691775 | AL16: 4.003042073 | AM16: 4.892455291 | AN16: 4.417106805 | AO16: 4.750043653 | AP16: 4.815254447 | AQ16: 4.596028607 | AR16: 4.477479057 | AS16: 4.116399961 | AT16: 4.253573098 | AU16: 4.653117154 | AV16: 4.544747046 | AW16: 4.588309993 | AX16: 4.334299185 | AY16: 4.638236009 | AZ16: 4.379681923 | BA16: 4.543849319 | BB16: 4.724928422 | BC16: 4.893087878 | BD16: 4.646615866 | BE16: 4.100054902 | BF16: 4.443991316 | BG16: 5.117152444 | BH16: 5.153517503 | BI16: 4.538788527 | BJ16: 4.285967036 | BK16: 5.07334245 | BL16: 4.992719682 | BM16: 4.510960369
C17: Retail trade | D17: 13.08306556 | E17: 12.97846864 | F17: 11.38340744 | G17: 12.92111919 | H17: 12.45814632 | I17: 10.09459816 | J17: 11.05154185 | K17: 14.0597391 | L17: 10.2018647 | M17: 11.96752399 | N17: 12.70737307 | O17: 11.78160258 | P17: 12.94433347 | Q17: 11.3050179 | R17: 13.25336393 | S17: 14.27237724 | T17: 12.87010805 | U17: 14.02547126 | V17: 12.41532258 | W17: 13.04748665 | X17: 12.54279802 | Y17: 13.0799701 | Z17: 12.90597275 | AA17: 13.32912479 | AB17: 12.96580512 | AC17: 13.352778 | AD17: 15.33131455 | AE17: ='User Add-in Location'!B23 -> 0 | AF17: ='User Add-in Location'!C23 -> 0 | AG17: 13.79420961 | AH17: 11.21124033 | AI17: 12.60771496 | AJ17: 10.70488359 | AK17: 13.25440393 | AL17: 10.67830526 | AM17: 13.55770698 | AN17: 12.86424879 | AO17: 12.38122916 | AP17: 12.68829589 | AQ17: 14.37284852 | AR17: 13.32034123 | AS17: 11.43749766 | AT17: 12.29722276 | AU17: 13.07429183 | AV17: 12.47830854 | AW17: 12.64314892 | AX17: 12.29546703 | AY17: 11.72647481 | AZ17: 10.15582594 | BA17: 12.6027696 | BB17: 13.41769003 | BC17: 13.3614135 | BD17: 12.25913146 | BE17: 11.85417709 | BF17: 11.98814726 | BG17: 11.52009227 | BH17: 12.99567299 | BI17: 12.91945026 | BJ17: 9.006794494 | BK17: 13.74059599 | BL17: 13.62988842 | BM17: 11.70963815
A18: To view the data and formulas simply scroll over to the adjacent columns to the right. | C18: TCPU | D18: 2.840306719 | E18: 1.933800075 | F18: 2.735444918 | G18: 3.722200923 | H18: 2.963514226 | I18: 2.814326523 | J18: 2.01368315 | K18: 2.626304765 | L18: 1.405186184 | M18: 2.713116623 | N18: 3.117086629 | O18: 2.171589428 | P18: 3.643494177 | Q18: 3.01116134 | R18: 3.307263571 | S18: 3.862335556 | T18: 2.814899687 | U18: 3.347983245 | V18: 2.632657251 | W18: 3.432011455 | X18: 2.181079984 | Y18: 2.42968063 | Z18: 2.912032963 | AA18: 3.049653961 | AB18: 3.43247312 | AC18: 3.37013265 | AD18: 2.665624666 | AE18: ='User Add-in Location'!B24 -> 0 | AF18: ='User Add-in Location'!C24 -> 0 | AG18: 3.094652209 | AH18: 2.411898909 | AI18: 2.363229281 | AJ18: 2.661657525 | AK18: 2.859598592 | AL18: 2.237650311 | AM18: 3.24169346 | AN18: 3.154468074 | AO18: 3.304926363 | AP18: 2.596016216 | AQ18: 2.384737459 | AR18: 2.93913732 | AS18: 2.310742295 | AT18: 2.804597076 | AU18: 2.77970992 | AV18: 3.15017808 | AW18: 3.199584985 | AX18: 2.952967125 | AY18: 2.856911889 | AZ18: 2.775829425 | BA18: 2.514549778 | BB18: 2.890816963 | BC18: 3.651035079 | BD18: 4.523826063 | BE18: 2.903960987 | BF18: 2.917426072 | BG18: 3.643473579 | BH18: 2.760230874 | BI18: 2.828091176 | BJ18: 2.995814892 | BK18: 2.688662698 | BL18: 3.566679542 | BM18: 2.302166338
C19: Insurance and Real Estate | D19: 6.495380638 | E19: 4.311379181 | F19: 5.857213424 | G19: 6.99888576 | H19: 5.847848641 | I19: 4.73632981 | J19: 2.917949131 | K19: 2.215397582 | L19: 3.136370961 | M19: 5.628375278 | N19: 5.922266895 | O19: 4.713283002 | P19: 7.546401596 | Q19: 4.076179417 | R19: 5.021949397 | S19: 3.747438238 | T19: 6.323062282 | U19: 6.323797056 | V19: 6.917290917 | W19: 5.317947665 | X19: 4.736885371 | Y19: 4.188144614 | Z19: 5.360639818 | AA19: 4.312610375 | AB19: 6.863198121 | AC19: 6.585655222 | AD19: 8.068256799 | AE19: ='User Add-in Location'!B25 -> 0 | AF19: ='User Add-in Location'!C25 -> 0 | AG19: 4.815141922 | AH19: 6.783838065 | AI19: 4.628424687 | AJ19: 4.74263184 | AK19: 5.946807893 | AL19: 4.140006174 | AM19: 6.6066478 | AN19: 5.915441563 | AO19: 5.195175916 | AP19: 6.718667657 | AQ19: 5.868011911 | AR19: 4.427349344 | AS19: 3.975016739 | AT19: 4.418495319 | AU19: 5.493254848 | AV19: 5.881983815 | AW19: 4.601840211 | AX19: 6.118119072 | AY19: 5.936796152 | AZ19: 4.735553818 | BA19: 4.45868924 | BB19: 6.993124954 | BC19: 6.729433311 | BD19: 5.968974318 | BE19: 5.810098739 | BF19: 5.046921851 | BG19: 7.029895457 | BH19: 5.099104236 | BI19: 5.068503145 | BJ19: 5.089426278 | BK19: 6.051127858 | BL19: 4.531872267 | BM19: 7.552048602
C20: Finance | D20: 4.138733328 | E20: 3.929924179 | F20: 5.102635182 | G20: 4.105660692 | H20: 5.310984101 | I20: 4.120720458 | J20: 3.95407176 | K20: 3.087953793 | L20: 3.715833423 | M20: 4.950171767 | N20: 3.692064692 | O20: 4.923392923 | P20: 4.675001254 | Q20: 3.874652468 | R20: 4.381916722 | S20: 4.746588824 | T20: 4.504560373 | U20: 4.834864667 | V20: 5.179218613 | W20: 4.586750699 | X20: 4.770719394 | Y20: 3.366360167 | Z20: 5.092647598 | AA20: 3.701888828 | AB20: 4.189394006 | AC20: 4.979966703 | AD20: 4.590556675 | AE20: ='User Add-in Location'!B26 -> 0 | AF20: ='User Add-in Location'!C26 -> 0 | AG20: 4.879851323 | AH20: 2.994854733 | AI20: 3.849726036 | AJ20: 3.961525092 | AK20: 4.677646311 | AL20: 2.697160547 | AM20: 1.921443709 | AN20: 2.876846254 | AO20: 4.346690523 | AP20: 4.620162646 | AQ20: 4.704898259 | AR20: 4.53305324 | AS20: 2.97099152 | AT20: 4.109332875 | AU20: 3.109294937 | AV20: 4.470808196 | AW20: 4.231575146 | AX20: 4.615047245 | AY20: 4.433799469 | AZ20: 4.13883034 | BA20: 2.722710656 | BB20: 5.422459018 | BC20: 3.349752661 | BD20: 4.432071653 | BE20: 4.522319909 | BF20: 3.934726937 | BG20: 4.412794416 | BH20: 4.52889462 | BI20: 4.013992206 | BJ20: 4.186873087 | BK20: 4.31778846 | BL20: 4.524353932 | BM20: 5.097042079
C21: Other Professional Services | D21: 6.320127369 | E21: 7.264590012 | F21: 6.986692564 | G21: 5.611576293 | H21: 5.265560439 | I21: 5.467833633 | J21: 4.551955795 | K21: 4.30142672 | L21: 3.543753044 | M21: 6.687456526 | N21: 5.705006335 | O21: 6.429511007 | P21: 6.332202289 | Q21: 4.691838743 | R21: 6.328370572 | S21: 6.673780016 | T21: 6.619468162 | U21: 6.587051188 | V21: 6.845664075 | W21: 7.118422164 | X21: 5.670799932 | Y21: 4.69324482 | Z21: 5.514170946 | AA21: 5.021984986 | AB21: 6.996169358 | AC21: 5.234670101 | AD21: 8.534194097 | AE21: ='User Add-in Location'!B27 -> 0 | AF21: ='User Add-in Location'!C27 -> 0 | AG21: 5.80352968 | AH21: 5.887518148 | AI21: 6.242045416 | AJ21: 4.648852263 | AK21: 6.187948944 | AL21: 4.349542174 | AM21: 5.738820355 | AN21: 7.072559865 | AO21: 5.214730363 | AP21: 7.167939179 | AQ21: 6.498747862 | AR21: 4.864001398 | AS21: 4.590624708 | AT21: 4.796059542 | AU21: 5.243382899 | AV21: 6.33367158 | AW21: 5.216697245 | AX21: 5.974929243 | AY21: 6.10665523 | AZ21: 5.488143628 | BA21: 5.322239233 | BB21: 7.318175799 | BC21: 6.771514039 | BD21: 5.905534351 | BE21: 5.97306215 | BF21: 5.393261002 | BG21: 7.060189642 | BH21: 7.80233168 | BI21: 5.074371499 | BJ21: 5.418843558 | BK21: 6.687676423 | BL21: 5.721979495 | BM21: 8.343904161
C22: Office Services | D22: 9.757000118 | E22: 9.627156256 | F22: 9.585471225 | G22: 9.826117951 | H22: 8.026972984 | I22: 8.105772559 | J22: 6.428282666 | K22: 7.684957211 | L22: 5.175284812 | M22: 8.417850206 | N22: 8.655206504 | O22: 10.19058103 | P22: 10.98707727 | Q22: 7.793453272 | R22: 9.60026602 | S22: 8.787527844 | T22: 10.96555969 | U22: 9.284008641 | V22: 9.521492496 | W22: 9.981342926 | X22: 7.78476773 | Y22: 6.95000624 | Z22: 9.071726241 | AA22: 8.354502075 | AB22: 10.56658351 | AC22: 9.338448455 | AD22: 11.94421606 | AE22: ='User Add-in Location'!B28 -> 0 | AF22: ='User Add-in Location'!C28 -> 0 | AG22: 9.777443345 | AH22: 8.508991353 | AI22: 7.482657031 | AJ22: 6.384106684 | AK22: 12.97002174 | AL22: 6.186457388 | AM22: 9.850772349 | AN22: 8.311121976 | AO22: 8.727802506 | AP22: 10.14708864 | AQ22: 10.76935125 | AR22: 8.466497863 | AS22: 6.544323892 | AT22: 7.42963157 | AU22: 7.82372556 | AV22: 8.241413969 | AW22: 8.588512252 | AX22: 8.771754814 | AY22: 9.509791403 | AZ22: 8.152154735 | BA22: 9.406905148 | BB22: 10.65357726 | BC22: 11.33028261 | BD22: 6.317390873 | BE22: 8.127897379 | BF22: 8.079648562 | BG22: 9.725386687 | BH22: 9.26342618 | BI22: 6.574389125 | BJ22: 9.335253247 | BK22: 12.27897277 | BL22: 9.406250296 | BM22: 10.21995054
C23: Architectural and Engineering Services | D23: 7.780174786 | E23: 7.667297778 | F23: 7.811137857 | G23: 9.353822646 | H23: 7.542453783 | I23: 7.347255464 | J23: 8.07880507 | K23: 6.724470057 | L23: 5.720615829 | M23: 8.690140905 | N23: 8.074927163 | O23: 8.38714674 | P23: 8.980534791 | Q23: 7.655977559 | R23: 8.739610495 | S23: 8.328578396 | T23: 7.839850719 | U23: 8.876063058 | V23: 7.673265101 | W23: 9.1868849 | X23: 7.319293571 | Y23: 7.284221733 | Z23: 7.82287578 | AA23: 8.382089382 | AB23: 9.278670118 | AC23: 7.686120494 | AD23: 9.787371218 | AE23: ='User Add-in Location'!B29 -> 0 | AF23: ='User Add-in Location'!C29 -> 0 | AG23: 8.027360146 | AH23: 8.689548933 | AI23: 8.512663552 | AJ23: 7.412003128 | AK23: 8.903475199 | AL23: 6.823367467 | AM23: 8.711933359 | AN23: 7.648260371 | AO23: 8.166640519 | AP23: 8.43974776 | AQ23: 8.949778326 | AR23: 8.040294587 | AS23: 7.282671289 | AT23: 7.781936328 | AU23: 7.438496769 | AV23: 8.394457902 | AW23: 8.093163297 | AX23: 7.52934193 | AY23: 8.141262101 | AZ23: 7.376788911 | BA23: 8.857552048 | BB23: 8.196489713 | BC23: 9.679618661 | BD23: 8.211213543 | BE23: 7.303789129 | BF23: 7.757571178 | BG23: 8.860170556 | BH23: 9.6177961 | BI23: 6.89497086 | BJ23: 8.196414257 | BK23: 8.959800519 | BL23: 9.081001059 | BM23: 9.210607774
C24: Other services | D24: 9.458429597 | E24: 7.298257407 | F24: 7.988992815 | G24: 9.126460566 | H24: 6.981214423 | I24: 6.951750702 | J24: 6.830639388 | K24: 8.311336006 | L24: 7.080357582 | M24: 8.520191051 | N24: 7.894148313 | O24: 8.152291259 | P24: 9.582494177 | Q24: 7.91053879 | R24: 8.965302245 | S24: 9.242636924 | T24: 8.150977554 | U24: 8.974773078 | V24: 8.995682733 | W24: 9.391843445 | X24: 7.748451284 | Y24: 7.27352739 | Z24: 8.727219414 | AA24: 7.918429581 | AB24: 9.544407878 | AC24: 8.320217642 | AD24: 9.42320022 | AE24: ='User Add-in Location'!B30 -> 0 | AF24: ='User Add-in Location'!C30 -> 0 | AG24: 8.978488105 | AH24: 8.081282701 | AI24: 7.940081727 | AJ24: 6.914094312 | AK24: 8.807592612 | AL24: 7.024376983 | AM24: 8.821669119 | AN24: 8.509830427 | AO24: 8.86083961 | AP24: 8.548779112 | AQ24: 8.372167206 | AR24: 8.170463886 | AS24: 7.228714992 | AT24: 7.714876455 | AU24: 8.187574588 | AV24: 8.502612759 | AW24: 8.493409976 | AX24: 8.220856531 | AY24: 7.719043656 | AZ24: 7.001073714 | BA24: 8.321113427 | BB24: 10.010278 | BC24: 9.115762078 | BD24: 8.293151389 | BE24: 7.918519502 | BF24: 7.891162076 | BG24: 8.509332007 | BH24: 9.740451307 | BI24: 7.458590167 | BJ24: 6.339169154 | BK24: 9.086130521 | BL24: 8.690875871 | BM24: 8.511619429
C25: Government | D25: 10.16360994 | E25: 7.968629317 | F25: 10.13384502 | G25: 12.21799587 | H25: 9.063046674 | I25: 9.011169096 | J25: 10.40406783 | K25: 9.189500914 | L25: 4.746764902 | M25: 9.799262123 | N25: 9.80491974 | O25: 7.060423432 | P25: 12.39410485 | Q25: 10.25252811 | R25: 12.75368067 | S25: 12.60608237 | T25: 10.2029715 | U25: 9.282687632 | V25: 10.85569262 | W25: 12.23808914 | X25: 7.262264958 | Y25: 9.891072535 | Z25: 11.15289264 | AA25: 11.88065876 | AB25: 11.96008481 | AC25: 12.28557132 | AD25: 11.24024063 | AE25: ='User Add-in Location'!B31 -> 0 | AF25: ='User Add-in Location'!C31 -> 0 | AG25: 11.2410321 | AH25: 8.877151952 | AI25: 11.48151074 | AJ25: 9.622068051 | AK25: 9.530440349 | AL25: 9.830256544 | AM25: 9.547436337 | AN25: 10.98908345 | AO25: 11.47311567 | AP25: 10.26293458 | AQ25: 10.89911848 | AR25: 11.1049134 | AS25: 10.01329254 | AT25: 10.38758806 | AU25: 7.969242072 | AV25: 10.01937302 | AW25: 11.48667767 | AX25: 10.88204989 | AY25: 9.931550306 | AZ25: 8.857148036 | BA25: 8.293406525 | BB25: 10.45197526 | BC25: 11.941161 | BD25: 10.54532714 | BE25: 10.73169978 | BF25: 9.897216846 | BG25: 11.20211814 | BH25: 11.46872027 | BI25: 7.773272787 | BJ25: 8.968205196 | BK25: 11.02365786 | BL25: 12.79281325 | BM25: 11.10747852
C26: Semiconductor (solar cell/module) manufacturing | D26: 1.073418633 | E26: 0 | F26: 0.9573411739 | G26: 1.168158383 | H26: 1.064153136 | I26: 0.9365307623 | J26: 1.103214028 | K26: 1.138868991 | L26: 0.9551252847 | M26: 0.9878412542 | N26: 1.024278158 | O26: 1.261511759 | P26: 0.8007396029 | Q26: 1.00442731 | R26: 1.009769495 | S26: 1.149392163 | T26: 0.8920962436 | U26: 1.084890574 | V26: 0.9262530251 | W26: 0.9559167281 | X26: 1.113122675 | Y26: 0.9682890453 | Z26: 1.2293181 | AA26: 1.155070001 | AB26: 0.9677409243 | AC26: 1.063049151 | AD26: 1.181310471 | AE26: ='User Add-in Location'!B32 -> 0 | AF26: ='User Add-in Location'!C32 -> 0 | AG26: 1.027750255 | AH26: 1.144716123 | AI26: 1.084928821 | AJ26: 1.171162724 | AK26: 0.5864805645 | AL26: 1.053256651 | AM26: 0.8993047615 | AN26: 0 | AO26: 1.157211216 | AP26: 0.7017022297 | AQ26: 0.3241578766 | AR26: 1.073508618 | AS26: 1.032260873 | AT26: 1.118667824 | AU26: 0.9531178151 | AV26: 0.9856314069 | AW26: 1.147622736 | AX26: 0.8481769962 | AY26: 0.5393266761 | AZ26: 0.9370344188 | BA26: 1.186332957 | BB26: 1.119443782 | BC26: 1.185244354 | BD26: 0.6494490683 | BE26: 0.8994030174 | BF26: 0.7591902864 | BG26: 1.101837156 | BH26: 1.144604434 | BI26: 1.050707161 | BJ26: 1.1251269 | BK26: 1.221553131 | BL26: 1.046493129 | BM26: 0
C28: Jobs Per Million Dollars Change in Final Demand
C29: Jobs Indirect Multipliers | D29: Alabama | E29: Alaska | F29: Arizona | G29: Arkansas | H29: Colorado | I29: California | J29: Connecticut | K29: Delaware | L29: District of Columbia | M29: Florida | N29: Georgia | O29: Hawaii | P29: Idaho | Q29: Illinois | R29: Indiana | S29: Iowa | T29: Kansas | U29: Kentucky | V29: Louisiana | W29: Maine | X29: Maryland | Y29: Massachusetts | Z29: Michigan | AA29: Minnesota | AB29: Mississippi | AC29: Missouri | AD29: Montana | AE29: MyCounty | AF29: MyRegion | AG29: Nebraska | AH29: Nevada | AI29: New Hampshire | AJ29: New Jersey | AK29: New Mexico | AL29: New York | AM29: North Carolina | AN29: North Dakota | AO29: Ohio | AP29: Oklahoma | AQ29: Oregon | AR29: Pennsylvania | AS29: REGION1 | AT29: REGION2 | AU29: REGION3 | AV29: REGION4 | AW29: REGION5 | AX29: REGION6 | AY29: REGION7 | AZ29: REGION8 | BA29: Rhode Island | BB29: South Carolina | BC29: South Dakota | BD29: Tennessee | BE29: Texas | BF29: United States | BG29: Utah | BH29: Vermont | BI29: Virginia | BJ29: Washington | BK29: West Virginia | BL29: Wisconsin | BM29: Wyoming
C30: Ag, Forestry, Fish & Hunting | D30: 1.801967776 | E30: 0.6087457427 | F30: 1.646769851 | G30: 2.324091545 | H30: 2.762385763 | I30: 1.660602695 | J30: 0.7952080857 | K30: 1.209531894 | L30: 0 | M30: 1.68287867 | N30: 1.950671864 | O30: 2.455311286 | P30: 2.197957564 | Q30: 1.680111201 | R30: 1.334917247 | S30: 1.8909062 | T30: 2.429254127 | U30: 2.128809711 | V30: 1.419846012 | W30: 1.89394428 | X30: 1.32318997 | Y30: 0.6976770084 | Z30: 1.598371263 | AA30: 2.027866445 | AB30: 2.186591511 | AC30: 2.688647553 | AD30: 2.38962103 | AE30: ='User Add-in Location'!B36 -> 0 | AF30: ='User Add-in Location'!C36 -> 0 | AG30: 2.412419408 | AH30: 1.133085123 | AI30: 1.163225373 | AJ30: 0.8126138886 | AK30: 1.716211429 | AL30: 1.395587196 | AM30: 1.698617037 | AN30: 1.390743205 | AO30: 1.602291128 | AP30: 2.956338067 | AQ30: 2.635121068 | AR30: 1.708657651 | AS30: 1.480542143 | AT30: 1.715165395 | AU30: 2.014941364 | AV30: 2.677959765 | AW30: 2.473696032 | AX30: 2.801589728 | AY30: 2.867326211 | AZ30: 1.679908703 | BA30: 0.5825388577 | BB30: 1.600493603 | BC30: 2.034518869 | BD30: 2.164524579 | BE30: 2.365591302 | BF30: 4.099247806 | BG30: 1.910491819 | BH30: 2.877893319 | BI30: 1.838384636 | BJ30: 1.435842104 | BK30: 1.64134414 | BL30: 2.483201152 | BM30: 1.56247967
C31: Mining | D31: 1.879689217 | E31: 0.5686837556 | F31: 1.470650998 | G31: 2.216482936 | H31: 2.156328823 | I31: 1.56105557 | J31: 3.697003213 | K31: 3.554532784 | L31: 0 | M31: 4.382485901 | N31: 20.50837332 | O31: 3.252012446 | P31: 1.990973915 | Q31: 3.316640964 | R31: 2.649208622 | S31: 3.581073761 | T31: 3.008830195 | U31: 2.298023404 | V31: 1.26539616 | W31: 4.023252957 | X31: 5.480774562 | Y31: 3.589626423 | Z31: 3.000641961 | AA31: 3.033986534 | AB31: 2.526734034 | AC31: 4.440668438 | AD31: 2.340760162 | AE31: ='User Add-in Location'!B37 -> 0 | AF31: ='User Add-in Location'!C37 -> 0 | AG31: 3.484820131 | AH31: 1.370247329 | AI31: 3.851326127 | AJ31: 3.741881661 | AK31: 1.677879057 | AL31: 2.740354151 | AM31: 3.876900936 | AN31: 1.726403195 | AO31: 3.392964543 | AP31: 2.107551395 | AQ31: 3.699836399 | AR31: 2.183626617 | AS31: 5.79779824 | AT31: 2.48029684 | AU31: 3.286526666 | AV31: 4.553108685 | AW31: 3.6134235 | AX31: 1.928117959 | AY31: 2.005333693 | AZ31: 1.576115774 | BA31: 137.1592071 | BB31: 4.177836681 | BC31: 3.281040406 | BD31: 4.189477699 | BE31: 1.748056232 | BF31: 2.949877214 | BG31: 2.389401781 | BH31: 3.439139518 | BI31: 2.118415625 | BJ31: 2.777267815 | BK31: 1.916190991 | BL31: 2.570792461 | BM31: 0.9916346177
C32: Construction | D32: 2.356229537 | E32: 1.715298775 | F32: 2.253514864 | G32: 2.316153754 | H32: 2.733647131 | I32: 2.648639643 | J32: 2.087725018 | K32: 2.017463444 | L32: 1.158956487 | M32: 2.894900997 | N32: 2.564747859 | O32: 1.670383431 | P32: 2.665621054 | Q32: 2.449466415 | R32: 2.309574969 | S32: 2.358367324 | T32: 2.235124169 | U32: 2.24256734 | V32: 2.268925655 | W32: 2.89413023 | X32: 2.114075607 | Y32: 2.312973887 | Z32: 2.833091044 | AA32: 2.52144449 | AB32: 2.088386714 | AC32: 2.615217177 | AD32: 2.698105511 | AE32: ='User Add-in Location'!B38 -> 0 | AF32: ='User Add-in Location'!C38 -> 0 | AG32: 2.426182077 | AH32: 2.001760889 | AI32: 2.456371958 | AJ32: 2.158161559 | AK32: 2.046597611 | AL32: 1.980672055 | AM32: 2.502871555 | AN32: 1.890355547 | AO32: 2.778678817 | AP32: 2.445917524 | AQ32: 2.741911969 | AR32: 2.626640068 | AS32: 2.441615591 | AT32: 2.620639358 | AU32: 2.646006039 | AV32: 3.004503943 | AW32: 3.211207145 | AX32: 2.824500812 | AY32: 2.75282859 | AZ32: 2.629211866 | BA32: 1.974482288 | BB32: 2.485415232 | BC32: 2.540967396 | BD32: 2.644508588 | BE32: 2.597454093 | BF32: 4.109067746 | BG32: 2.779943129 | BH32: 2.613767445 | BI32: 2.258292618 | BJ32: 2.339791208 | BK32: 1.876869855 | BL32: 2.788569718 | BM32: 1.674179094
C33: Construction/Installations - Non Residential | D33: 2.212812833 | E33: 1.603797543 | F33: 2.074289316 | G33: 2.209598427 | H33: 2.596713321 | I33: 2.410960796 | J33: 2.105172251 | K33: 1.880458283 | L33: 1.03254937 | M33: 2.688690431 | N33: 2.41478509 | O33: 1.51752347 | P33: 2.532140242 | Q33: 2.233309049 | R33: 2.130626188 | S33: 2.260655364 | T33: 2.134099638 | U33: 2.119685481 | V33: 2.111477451 | W33: 2.877642365 | X33: 1.975675704 | Y33: 2.203450471 | Z33: 2.635093508 | AA33: 2.317619393 | AB33: 1.979398653 | AC33: 2.510312909 | AD33: 2.555659991 | AE33: ='User Add-in Location'!B39 -> 0 | AF33: ='User Add-in Location'!C39 -> 0 | AG33: 2.258701179 | AH33: 1.851489995 | AI33: 2.645077119 | AJ33: 2.008942744 | AK33: 1.935858964 | AL33: 1.814000553 | AM33: 2.359178538 | AN33: 1.787505899 | AO33: 2.593925199 | AP33: 2.333216513 | AQ33: 2.513672288 | AR33: 2.502420275 | AS33: 2.295772063 | AT33: 2.460827954 | AU33: 2.453797433 | AV33: 2.813006116 | AW33: 2.936350617 | AX33: 2.617349965 | AY33: 2.546812988 | AZ33: 2.391935218 | BA33: 1.856602688 | BB33: 2.329253608 | BC33: 2.454776063 | BD33: 2.627414925 | BE33: 2.396631624 | BF33: 3.741893261 | BG33: 2.546927967 | BH33: 2.722906387 | BI33: 2.094900057 | BJ33: 2.13460818 | BK33: 1.755465451 | BL33: 2.620832959 | BM33: 1.589089803
C34: Construction/Installation Residential | D34: 2.172961554 | E34: 0.5825008675 | F34: 1.960068131 | G34: 2.318767817 | H34: 1.167541266 | I34: 2.412056958 | J34: 0.4788256899 | K34: 2.168957293 | L34: 1.052883798 | M34: 2.657110352 | N34: 2.461541004 | O34: 1.570723194 | P34: 2.534433001 | Q34: 2.343197398 | R34: 2.408344916 | S34: 1.00771191 | T34: 0.9399076102 | U34: 2.350703739 | V34: 2.332061272 | W34: 1.036362757 | X34: 1.210120451 | Y34: 0.7121963549 | Z34: 2.465370751 | AA34: 2.48976852 | AB34: 1.997278534 | AC34: 0.9869225666 | AD34: 2.606496515 | AE34: ='User Add-in Location'!B40 -> 0 | AF34: ='User Add-in Location'!C40 -> 0 | AG34: 1.221402459 | AH34: 1.871904863 | AI34: 0.3947947265 | AJ34: 1.46205053 | AK34: 2.010554265 | AL34: 1.856906722 | AM34: 2.460702068 | AN34: 0.6208478788 | AO34: 2.534602515 | AP34: 2.446367441 | AQ34: 2.5392612 | AR34: 0.8343627777 | AS34: 1.039429918 | AT34: 1.12277294 | AU34: 2.186752644 | AV34: 2.117928533 | AW34: 2.428804775 | AX34: 2.251032595 | AY34: 1.661883182 | AZ34: 2.389809247 | BA34: 1.793651128 | BB34: 2.412420527 | BC34: 1.291313628 | BD34: 0.775437293 | BE34: 2.362230248 | BF34: 2.662305757 | BG34: 2.555420944 | BH34: 0.5195683952 | BI34: 2.227114284 | BJ34: 1.743067739 | BK34: 2.096365241 | BL34: 1.17767894 | BM34: 0.6583968556
C35: Manufacturing | D35: 1.800311272 | E35: 1.42223957 | F35: 1.881485153 | G35: 2.012537386 | H35: 2.073176528 | I35: 2.332587671 | J35: 1.378551671 | K35: 1.354382265 | L35: 0.5705988363 | M35: 2.411008722 | N35: 1.843318198 | O35: 2.144750119 | P35: 2.075867768 | Q35: 1.954023821 | R35: 1.566266157 | S35: 1.740151195 | T35: 1.854485928 | U35: 1.745007953 | V35: 1.750118715 | W35: 2.006074058 | X35: 1.516396952 | Y35: 1.536986567 | Z35: 2.073743349 | AA35: 2.062667426 | AB35: 1.796562801 | AC35: 2.085085316 | AD35: 2.173547286 | AE35: ='User Add-in Location'!B41 -> 0 | AF35: ='User Add-in Location'!C41 -> 0 | AG35: 1.957016763 | AH35: 1.467949313 | AI35: 1.516948953 | AJ35: 1.713167135 | AK35: 1.876189503 | AL35: 1.627109405 | AM35: 1.662743034 | AN35: 1.711706207 | AO35: 2.077954214 | AP35: 2.124583072 | AQ35: 2.271749632 | AR35: 2.128500802 | AS35: 1.94313707 | AT35: 2.24119157 | AU35: 1.891143214 | AV35: 2.565899137 | AW35: 2.697416543 | AX35: 2.662130809 | AY35: 2.473831095 | AZ35: 2.339380718 | BA35: 1.563960786 | BB35: 1.75970326 | BC35: 1.8106394 | BD35: 2.001004627 | BE35: 2.42593731 | BF35: 4.232216637 | BG35: 2.208783238 | BH35: 2.200806999 | BI35: 1.44001789 | BJ35: 1.900218131 | BK35: 1.682385402 | BL35: 2.208932816 | BM35: 1.40462854
C36: Fabricated Metals | D36: 1.917098225 | E36: 1.700663746 | F36: 2.382385046 | G36: 1.656777879 | H36: 2.30562894 | I36: 2.623401129 | J36: 1.748504321 | K36: 1.5381422 | L36: 0 | M36: 2.696013612 | N36: 2.216804748 | O36: 2.137882837 | P36: 2.17025185 | Q36: 2.210569635 | R36: 1.82792468 | S36: 1.937866577 | T36: 1.764234483 | U36: 1.76975885 | V36: 1.893834625 | W36: 2.055948245 | X36: 1.80868501 | Y36: 1.767931748 | Z36: 2.288500902 | AA36: 2.281037843 | AB36: 1.799248996 | AC36: 2.220775199 | AD36: 2.144791421 | AE36: ='User Add-in Location'!B42 -> 0 | AF36: ='User Add-in Location'!C42 -> 0 | AG36: 1.991761915 | AH36: 1.737900786 | AI36: 1.823928531 | AJ36: 1.962781329 | AK36: 1.781729006 | AL36: 1.894033263 | AM36: 2.073247371 | AN36: 1.61630197 | AO36: 2.221448902 | AP36: 1.889234227 | AQ36: 2.482171849 | AR36: 2.227764813 | AS36: 2.196063021 | AT36: 2.343689241 | AU36: 2.14928486 | AV36: 2.668566338 | AW36: 2.859064166 | AX36: 2.559007595 | AY36: 2.55352629 | AZ36: 2.628197388 | BA36: 1.920677882 | BB36: 1.866651044 | BC36: 1.906806093 | BD36: 1.997376341 | BE36: 2.410642153 | BF36: 4.155687667 | BG36: 2.607501037 | BH36: 2.134211038 | BI36: 1.619466061 | BJ36: 2.123963571 | BK36: 1.643575378 | BL36: 2.280425028 | BM36: 1.394694792
C37: Machinery | D37: 1.700443222 | E37: 1.076055089 | F37: 2.293562226 | G37: 1.806604451 | H37: 1.991426213 | I37: 2.327754828 | J37: 1.739971846 | K37: 1.648522224 | L37: 0.4953926447 | M37: 2.717541619 | N37: 1.895205347 | O37: 0 | P37: 2.141254982 | Q37: 1.747037484 | R37: 1.644699472 | S37: 1.482425402 | T37: 1.62394825 | U37: 1.591687916 | V37: 1.644385397 | W37: 1.924833767 | X37: 1.81050845 | Y37: 1.827841293 | Z37: 2.128759541 | AA37: 2.075595707 | AB37: 1.59932901 | AC37: 2.039710165 | AD37: 2.458891387 | AE37: ='User Add-in Location'!B43 -> 0 | AF37: ='User Add-in Location'!C43 -> 0 | AG37: 1.804253649 | AH37: 1.72843511 | AI37: 1.778493016 | AJ37: 1.825788781 | AK37: 1.798835452 | AL37: 1.674874794 | AM37: 1.481347032 | AN37: 0.9452114804 | AO37: 2.193031827 | AP37: 1.457500212 | AQ37: 2.528804716 | AR37: 2.060256878 | AS37: 2.075977332 | AT37: 2.165459402 | AU37: 1.613864545 | AV37: 2.423769096 | AW37: 2.549050122 | AX37: 2.05667299 | AY37: 2.201860277 | AZ37: 2.323879149 | BA37: 1.712819812 | BB37: 1.329926765 | BC37: 1.585142373 | BD37: 1.79115536 | BE37: 1.839394975 | BF37: 3.607334102 | BG37: 2.521870929 | BH37: 1.918509326 | BI37: 1.458235839 | BJ37: 1.685289867 | BK37: 1.646016821 | BL37: 2.133250137 | BM37: 1.1942338
C38: Electrical Equip | D38: 1.655204791 | E38: 0.6510732033 | F38: 2.128498944 | G38: 1.874664948 | H38: 2.085250937 | I38: 2.603692088 | J38: 1.328803903 | K38: 1.224417012 | L38: 0.7104067623 | M38: 2.627307 | N38: 1.633110939 | O38: 0 | P38: 1.964337457 | Q38: 1.998185691 | R38: 1.808123271 | S38: 1.742276335 | T38: 1.611120901 | U38: 1.506632061 | V38: 1.623208423 | W38: 2.185581125 | X38: 1.848749317 | Y38: 1.854362072 | Z38: 1.881714777 | AA38: 2.0778661 | AB38: 1.666766708 | AC38: 1.741595125 | AD38: 1.951179827 | AE38: ='User Add-in Location'!B44 -> 0 | AF38: ='User Add-in Location'!C44 -> 0 | AG38: 1.840564525 | AH38: 1.767658195 | AI38: 1.633554892 | AJ38: 1.708689387 | AK38: 1.677343202 | AL38: 1.762428971 | AM38: 1.718797899 | AN38: 1.663650402 | AO38: 2.004595603 | AP38: 1.79641508 | AQ38: 2.045907292 | AR38: 2.012684045 | AS38: 1.987723043 | AT38: 2.101884139 | AU38: 1.876466656 | AV38: 2.323135507 | AW38: 2.545614686 | AX38: 2.208245841 | AY38: 2.278468388 | AZ38: 2.596818393 | BA38: 1.239865329 | BB38: 1.52115981 | BC38: 1.733909108 | BD38: 1.673551052 | BE38: 2.087584083 | BF38: 3.780192934 | BG38: 2.007465786 | BH38: 1.462082988 | BI38: 1.58772295 | BJ38: 1.998426681 | BK38: 1.464690719 | BL38: 1.973610319 | BM38: 1.052937177
C39: Battery Manufacturing | D39: 0 | E39: 0 | F39: 2.970936683 | G39: 2.459315802 | H39: 3.095143303 | I39: 3.268158195 | J39: 2.314093136 | K39: 1.862400591 | L39: 0 | M39: 3.254000446 | N39: 2.473523709 | O39: 0 | P39: 0 | Q39: 2.745998147 | R39: 2.498453684 | S39: 2.717737939 | T39: 2.33790098 | U39: 2.438928009 | V39: 0 | W39: 0 | X39: 2.562403494 | Y39: 2.630344686 | Z39: 2.462219579 | AA39: 2.905618619 | AB39: 2.670286489 | AC39: 2.747212428 | AD39: 0 | AE39: ='User Add-in Location'!B45 -> 0 | AF39: ='User Add-in Location'!C45 -> 0 | AG39: 0 | AH39: 0 | AI39: 0 | AJ39: 2.35672922 | AK39: 0 | AL39: 2.586772403 | AM39: 2.559803929 | AN39: 2.357083123 | AO39: 2.885969426 | AP39: 2.667550682 | AQ39: 2.882525113 | AR39: 2.846521734 | AS39: 2.882610498 | AT39: 2.834826841 | AU39: 2.685274522 | AV39: 3.17726114 | AW39: 3.482930596 | AX39: 3.090994684 | AY39: 3.133612805 | AZ39: 3.265770692 | BA39: 2.281966125 | BB39: 2.370157701 | BC39: 0 | BD39: 2.830775271 | BE39: 2.865153077 | BF39: 4.762476675 | BG39: 3.191883372 | BH39: 0 | BI39: 0 | BJ39: 2.852108594 | BK39: 2.064729468 | BL39: 2.82573198 | BM39: 0
C40: Energy Wire Manufacturing | D40: 1.502333669 | E40: 0 | F40: 1.656259501 | G40: 1.448958137 | H40: 1.751572294 | I40: 2.274843042 | J40: 1.317787422 | K40: 0.9532733848 | L40: 0.5736560693 | M40: 2.127840596 | N40: 1.695419895 | O40: 0 | P40: 1.56707702 | Q40: 1.681114006 | R40: 1.50743435 | S40: 0 | T40: 1.249517406 | U40: 1.335818039 | V40: 1.37444443 | W40: 1.714364431 | X40: 1.284601968 | Y40: 1.569405267 | Z40: 1.702391689 | AA40: 1.875180988 | AB40: 1.430749868 | AC40: 1.561810119 | AD40: 1.463101538 | AE40: ='User Add-in Location'!B46 -> 0 | AF40: ='User Add-in Location'!C46 -> 0 | AG40: 1.495729309 | AH40: 1.381020328 | AI40: 1.328792822 | AJ40: 1.372366737 | AK40: 1.249932081 | AL40: 1.556633619 | AM40: 1.498621888 | AN40: 1.203537908 | AO40: 1.838230796 | AP40: 1.507650145 | AQ40: 1.727698429 | AR40: 1.85741224 | AS40: 1.894747362 | AT40: 1.921060055 | AU40: 1.606197521 | AV40: 2.274528098 | AW40: 2.49621852 | AX40: 2.030240382 | AY40: 2.012460319 | AZ40: 2.267127165 | BA40: 1.171008586 | BB40: 1.204593784 | BC40: 0 | BD40: 1.527765337 | BE40: 1.81911829 | BF40: 4.0649049 | BG40: 1.852267583 | BH40: 1.265083768 | BI40: 1.246998443 | BJ40: 1.851882536 | BK40: 1.135045682 | BL40: 1.769654819 | BM40: 0.8728782874
C41: Wholesale Trade | D41: 1.967232918 | E41: 1.361502794 | F41: 2.226487278 | G41: 1.802137029 | H41: 2.174880147 | I41: 2.092769586 | J41: 1.517292401 | K41: 1.473277376 | L41: 0.9083304598 | M41: 2.513820515 | N41: 2.035692979 | O41: 2.284344058 | P41: 2.481280554 | Q41: 1.980069266 | R41: 2.083519554 | S41: 2.056399476 | T41: 1.838681634 | U41: 1.813502115 | V41: 1.878138914 | W41: 2.422138945 | X41: 1.848884955 | Y41: 1.933740586 | Z41: 2.077952729 | AA41: 2.114125385 | AB41: 1.966492236 | AC41: 2.318586716 | AD41: 2.390933405 | AE41: ='User Add-in Location'!B47 -> 0 | AF41: ='User Add-in Location'!C47 -> 0 | AG41: 2.272400845 | AH41: 1.973886659 | AI41: 1.979106792 | AJ41: 1.700173615 | AK41: 2.155597155 | AL41: 1.676894706 | AM41: 2.251937263 | AN41: 1.584379237 | AO41: 2.282819988 | AP41: 2.035832574 | AQ41: 2.235549957 | AR41: 2.073415878 | AS41: 1.907893397 | AT41: 1.988816478 | AU41: 2.177586185 | AV41: 2.385463011 | AW41: 2.361498523 | AX41: 2.060575398 | AY41: 2.245262399 | AZ41: 2.107704456 | BA41: 1.959159345 | BB41: 2.104934589 | BC41: 2.11756351 | BD41: 2.129186993 | BE41: 1.879051335 | BF41: 2.702824412 | BG41: 2.692699154 | BH41: 2.274312935 | BI41: 1.804610715 | BJ41: 1.740572706 | BK41: 1.760935725 | BL41: 2.326464212 | BM41: 1.42793413
C42: Retail trade | D42: 1.368019367 | E42: 1.01317207 | F42: 1.444704773 | G42: 1.359723873 | H42: 1.545286605 | I42: 1.2146592 | J42: 1.114572805 | K42: 1.312871124 | L42: 0.6941165913 | M42: 1.74734451 | N42: 1.551331751 | O42: 1.206780528 | P42: 1.569281298 | Q42: 1.362311609 | R42: 1.417881586 | S42: 1.514732493 | T42: 1.330425141 | U42: 1.439268891 | V42: 1.311942488 | W42: 1.585594676 | X42: 1.36157869 | Y42: 1.48452314 | Z42: 1.521375439 | AA42: 1.574795795 | AB42: 1.325457672 | AC42: 1.628330797 | AD42: 1.85400752 | AE42: ='User Add-in Location'!B48 -> 0 | AF42: ='User Add-in Location'!C48 -> 0 | AG42: 1.587757401 | AH42: 1.189409946 | AI42: 1.362287042 | AJ42: 1.192179478 | AK42: 1.275272805 | AL42: 1.150675807 | AM42: 1.580429852 | AN42: 1.218052736 | AO42: 1.519688498 | AP42: 1.385834614 | AQ42: 1.758900059 | AR42: 1.56345398 | AS42: 1.352730437 | AT42: 1.472442675 | AU42: 1.564267971 | AV42: 1.712820355 | AW42: 1.64787475 | AX42: 1.543199219 | AY42: 1.46692654 | AZ42: 1.222093206 | BA42: 1.381605796 | BB42: 1.572487306 | BC42: 1.512468137 | BD42: 1.458803017 | BE42: 1.469116289 | BF42: 1.857098062 | BG42: 1.597754576 | BH42: 1.511865512 | BI42: 1.332575582 | BJ42: 0.9117205626 | BK42: 1.19305898 | BL42: 1.598427714 | BM42: 1.00738324
C43: TCPU | D43: 1.645909977 | E43: 1.139207829 | F43: 1.759503564 | G43: 1.912712142 | H43: 2.053562781 | I43: 2.191000635 | J43: 1.297650553 | K43: 1.409718988 | L43: 0.7574462238 | M43: 2.017826942 | N43: 1.991514266 | O43: 1.501999183 | P43: 1.970507829 | Q43: 1.883679179 | R43: 1.632752072 | S43: 1.716025542 | T43: 1.798794807 | U43: 1.735227409 | V43: 2.012859899 | W43: 1.864871809 | X43: 1.310125587 | Y43: 1.78917238 | Z43: 1.812593267 | AA43: 1.978331061 | AB43: 1.812862161 | AC43: 2.037177698 | AD43: 2.013227754 | AE43: ='User Add-in Location'!B49 -> 0 | AF43: ='User Add-in Location'!C49 -> 0 | AG43: 1.636062986 | AH43: 1.59674689 | AI43: 1.457622234 | AJ43: 1.495603262 | AK43: 1.778586097 | AL43: 1.550436411 | AM43: 1.755035353 | AN43: 1.704503615 | AO43: 1.97497425 | AP43: 2.213197729 | AQ43: 1.446598467 | AR43: 1.911177363 | AS43: 1.771445288 | AT43: 1.899191084 | AU43: 1.708960632 | AV43: 2.175812926 | AW43: 2.150097818 | AX43: 2.335727963 | AY43: 1.980879623 | AZ43: 2.170032932 | BA43: 1.66510871 | BB43: 1.652480533 | BC43: 1.887507014 | BD43: 2.009630706 | BE43: 2.146134259 | BF43: 2.889855571 | BG43: 2.342072613 | BH43: 1.881019791 | BI43: 1.539669224 | BJ43: 1.485036458 | BK43: 1.660183311 | BL43: 1.78976435 | BM43: 1.310738156
C44: Insurance and Real Estate | D44: 1.57647924 | E44: 0.9293406165 | F44: 2.000820097 | G44: 1.65597953 | H44: 2.193749308 | I44: 1.357158656 | J44: 0.8886126398 | K44: 0.516753229 | L44: 0.5753084321 | M44: 2.089788665 | N44: 1.815637375 | O44: 1.12154491 | P44: 2.311236509 | Q44: 1.385467163 | R44: 1.251020574 | S44: 1.135695803 | T44: 1.664839828 | U44: 1.60985455 | V44: 1.682240527 | W44: 1.493051495 | X44: 1.222372907 | Y44: 1.251661261 | Z44: 1.480269118 | AA44: 1.407265752 | AB44: 1.669659765 | AC44: 1.954538754 | AD44: 2.054788788 | AE44: ='User Add-in Location'!B50 -> 0 | AF44: ='User Add-in Location'!C50 -> 0 | AG44: 1.562901157 | AH44: 1.943613025 | AI44: 1.276326364 | AJ44: 1.365304341 | AK44: 1.279607309 | AL44: 1.075285968 | AM44: 1.599747378 | AN44: 1.326340718 | AO44: 1.637370935 | AP44: 2.048215699 | AQ44: 1.675759732 | AR44: 1.448056453 | AS44: 1.200748602 | AT44: 1.417390846 | AU44: 1.478416502 | AV44: 2.014645942 | AW44: 1.588599425 | AX44: 2.176895209 | AY44: 1.991468308 | AZ44: 1.353876816 | BA44: 1.112223587 | BB44: 1.921358338 | BC44: 1.942499435 | BD44: 1.699182889 | BE44: 2.258971687 | BF44: 1.989158251 | BG44: 3.037929187 | BH44: 1.223125602 | BI44: 1.217146604 | BJ44: 1.259634005 | BK44: 1.009370929 | BL44: 1.467661474 | BM44: 1.757425813
C45: Finance | D45: 2.176465261 | E45: 1.632751359 | F45: 3.449338999 | G45: 2.205551231 | H45: 3.852286495 | I45: 2.692152962 | J45: 2.372884067 | K45: 1.270364774 | L45: 1.444332781 | M45: 3.919120963 | N45: 2.219853527 | O45: 2.649702396 | P45: 2.993186917 | Q45: 2.66696676 | R45: 2.323530055 | S45: 2.596501489 | T45: 2.58282517 | U45: 2.441798075 | V45: 2.697195259 | W45: 2.795234318 | X45: 2.773277081 | Y45: 2.123588951 | Z45: 3.177750554 | AA45: 2.385048662 | AB45: 2.095314474 | AC45: 3.324420407 | AD45: 2.856130396 | AE45: ='User Add-in Location'!B51 -> 0 | AF45: ='User Add-in Location'!C51 -> 0 | AG45: 2.88323016 | AH45: 1.606114814 | AI45: 2.307332358 | AJ45: 2.549888626 | AK45: 2.239886856 | AL45: 1.493540126 | AM45: 0.9468933516 | AN45: 1.249325698 | AO45: 2.679648597 | AP45: 2.737731802 | AQ45: 2.955119799 | AR45: 2.871581887 | AS45: 1.84369522 | AT45: 2.664751129 | AU45: 1.725301224 | AV45: 3.103148272 | AW45: 2.918527624 | AX45: 3.066717016 | AY45: 2.913105096 | AZ45: 2.697809972 | BA45: 1.485748174 | BB45: 2.89212671 | BC45: 1.652999906 | BD45: 2.540788858 | BE45: 3.043937251 | BF45: 3.095643906 | BG45: 3.249952837 | BH45: 2.661184233 | BI45: 2.024623456 | BJ45: 2.284804087 | BK45: 1.752242367 | BL45: 2.837203044 | BM45: 2.483921284
C46: Other Professional Services | D46: 1.916526652 | E46: 1.599706981 | F46: 2.498753441 | G46: 2.059987555 | H46: 1.961876912 | I46: 1.915149474 | J46: 1.4532646 | K46: 1.370027484 | L46: 0.5493576033 | M46: 2.495483432 | N46: 1.957629784 | O46: 2.030112265 | P46: 2.550867678 | Q46: 1.706346196 | R46: 2.006505621 | S46: 2.165923731 | T46: 1.970165268 | U46: 1.932236871 | V46: 1.93997842 | W46: 2.688958488 | X46: 1.939340854 | Y46: 1.787201019 | Z46: 2.064684862 | AA46: 2.03303685 | AB46: 1.95674839 | AC46: 2.178880497 | AD46: 2.557030213 | AE46: ='User Add-in Location'!B52 -> 0 | AF46: ='User Add-in Location'!C52 -> 0 | AG46: 2.146135709 | AH46: 1.914683491 | AI46: 2.015412579 | AJ46: 1.612131388 | AK46: 2.245871874 | AL46: 1.337296694 | AM46: 2.152221483 | AN46: 1.952479588 | AO46: 2.190490788 | AP46: 2.102380719 | AQ46: 2.416488478 | AR46: 1.858227754 | AS46: 1.631651199 | AT46: 1.822526774 | AU46: 1.893114619 | AV46: 2.342344803 | AW46: 2.176899166 | AX46: 2.13690455 | AY46: 2.285535064 | AZ46: 1.926729512 | BA46: 1.850180517 | BB46: 2.285271369 | BC46: 2.248525196 | BD46: 2.11825936 | BE46: 1.919158192 | BF46: 2.464682498 | BG46: 2.964093452 | BH46: 2.169931998 | BI46: 1.617175925 | BJ46: 1.761413917 | BK46: 1.634333762 | BL46: 2.255541021 | BM46: 1.512057024
C47: Office Services | D47: 1.110771997 | E47: 0.8860528074 | F47: 1.372621002 | G47: 1.134248741 | H47: 1.121478686 | I47: 1.092156786 | J47: 0.7289054969 | K47: 0.7906043727 | L47: 0.3983298643 | M47: 1.367883434 | N47: 1.163373916 | O47: 1.165214507 | P47: 1.461431991 | Q47: 1.051618868 | R47: 1.121055592 | S47: 1.010371304 | T47: 1.257801896 | U47: 1.049954342 | V47: 1.108641259 | W47: 1.377593023 | X47: 0.954437637 | Y47: 0.8831639149 | Z47: 1.202522183 | AA47: 1.101216913 | AB47: 1.181203126 | AC47: 1.270445292 | AD47: 1.608904745 | AE47: ='User Add-in Location'!B53 -> 0 | AF47: ='User Add-in Location'!C53 -> 0 | AG47: 1.232295921 | AH47: 1.006087371 | AI47: 0.905989849 | AJ47: 0.783502961 | AK47: 1.406157667 | AL47: 0.7252045525 | AM47: 1.249636463 | AN47: 0.8201759966 | AO47: 1.18421688 | AP47: 1.256211927 | AQ47: 1.481545546 | AR47: 1.104139043 | AS47: 0.8461643518 | AT47: 0.9812730772 | AU47: 1.036518656 | AV47: 1.237481735 | AW47: 1.235247694 | AX47: 1.196770448 | AY47: 1.317804805 | AZ47: 1.098627151 | BA47: 1.157823397 | BB47: 1.366257534 | BC47: 1.369503794 | BD47: 0.815068334 | BE47: 1.085946924 | BF47: 1.353424599 | BG47: 1.490730535 | BH47: 1.171133323 | BI47: 0.7545516045 | BJ47: 1.074381473 | BK47: 1.188714606 | BL47: 1.21993818 | BM47: 0.9665133156
C48: Architectural and Engineering Services | D48: 1.977936514 | E48: 1.646564549 | F48: 2.409993031 | G48: 2.288867947 | H48: 2.282605985 | I48: 2.156241639 | J48: 2.046263853 | K48: 1.535701951 | L48: 0.9588432879 | M48: 3.044593613 | N48: 2.314157434 | O48: 2.058848861 | P48: 2.5791217 | Q48: 2.204097455 | R48: 2.218871589 | S48: 2.050638513 | T48: 1.908083883 | U48: 2.114892118 | V48: 1.964160377 | W48: 2.810569063 | X48: 1.988768513 | Y48: 2.047098811 | Z48: 2.275854456 | AA48: 2.405610286 | AB48: 2.249246282 | AC48: 2.229593549 | AD48: 2.880377678 | AE48: ='User Add-in Location'!B54 -> 0 | AF48: ='User Add-in Location'!C54 -> 0 | AG48: 2.168901653 | AH48: 2.295381429 | AI48: 2.290805553 | AJ48: 1.985608338 | AK48: 2.11805409 | AL48: 1.690629144 | AM48: 2.377988844 | AN48: 1.662301648 | AO48: 2.368877514 | AP48: 2.18607691 | AQ48: 2.677156304 | AR48: 2.337819225 | AS48: 2.047045812 | AT48: 2.270650677 | AU48: 2.178498058 | AV48: 2.722346453 | AW48: 2.551507444 | AX48: 2.241151365 | AY48: 2.472928848 | AZ48: 2.168848654 | BA48: 2.382515315 | BB48: 2.316728333 | BC48: 2.559461109 | BD48: 2.318760259 | BE48: 2.118030286 | BF48: 2.877579513 | BG48: 2.889357858 | BH48: 2.588751342 | BI48: 1.75005625 | BJ48: 2.123757318 | BK48: 1.896552566 | BL48: 2.597929145 | BM48: 1.858262164
C49: Other services | D49: 1.741349646 | E49: 1.367471385 | F49: 1.904498221 | G49: 1.785077853 | H49: 1.898790372 | I49: 1.700461662 | J49: 1.316737896 | K49: 1.420790319 | L49: 0.8733116526 | M49: 2.303169873 | N49: 1.919235863 | O49: 1.60189828 | P49: 2.179844359 | Q49: 1.808698843 | R49: 1.745516847 | S49: 1.811921444 | T49: 1.673896826 | U49: 1.709807035 | V49: 1.741475536 | W49: 2.124764684 | X49: 1.642676218 | Y49: 1.687870566 | Z49: 1.960787122 | AA49: 1.822447352 | AB49: 1.750963497 | AC49: 1.977210141 | AD49: 2.180144953 | AE49: ='User Add-in Location'!B55 -> 0 | AF49: ='User Add-in Location'!C55 -> 0 | AG49: 1.917115437 | AH49: 1.605968709 | AI49: 1.709430222 | AJ49: 1.515098292 | AK49: 1.650334071 | AL49: 1.474883004 | AM49: 1.900625619 | AN49: 1.555296024 | AO49: 2.022831829 | AP49: 1.798020497 | AQ49: 2.070875392 | AR49: 1.805894161 | AS49: 1.686191183 | AT49: 1.777138247 | AU49: 1.858748075 | AV49: 2.189751096 | AW49: 2.129903889 | AX49: 1.97363642 | AY49: 2.002746023 | AZ49: 1.709436645 | BA49: 1.729721563 | BB49: 1.96186018 | BC49: 1.994936766 | BD49: 1.785247418 | BE49: 1.859070078 | BF49: 2.469736307 | BG49: 2.379991616 | BH49: 2.008073635 | BI49: 1.530216599 | BJ49: 1.557279427 | BK49: 1.513769601 | BL49: 1.977490181 | BM49: 1.403054451
C50: Government | D50: 0.2580746158 | E50: 0.1170091872 | F50: 0.1851503197 | G50: 0.2417272864 | H50: 0.1898704525 | I50: 0.2164024496 | J50: 0.1482828594 | K50: 0.2695653785 | L50: 0.02981598407 | M50: 0.2852074006 | N50: 0.1813174059 | O50: 0.1153671938 | P50: 0.2092304967 | Q50: 0.2865047191 | R50: 0.1832338628 | S50: 0.2209709892 | T50: 0.1817985148 | U50: 0.1606377032 | V50: 0.151116056 | W50: 0.2647662577 | X50: 0.1116786925 | Y50: 0.3323121874 | Z50: 0.2232760034 | AA50: 0.2628386308 | AB50: 0.1704649303 | AC50: 0.2693563395 | AD50: 0.2334088104 | AE50: ='User Add-in Location'!B56 -> 0 | AF50: ='User Add-in Location'!C56 -> 0 | AG50: 0.2350133044 | AH50: 0.1715907091 | AI50: 0.3293401633 | AJ50: 0.2647798213 | AK50: 0.1480123852 | AL50: 0.3964991316 | AM50: 0.1356854665 | AN50: 0.1898951861 | AO50: 0.2776022103 | AP50: 0.1585576853 | AQ50: 0.3562359841 | AR50: 0.3927978645 | AS50: 0.3884519275 | AT50: 0.3422112218 | AU50: 0.1286371817 | AV50: 0.2857379767 | AW50: 0.2982803174 | AX50: 0.2158662885 | AY50: 0.2561414038 | AZ50: 0.2109403082 | BA50: 0.187279007 | BB50: 0.1657144789 | BC50: 0.2787795631 | BD50: 0.4449770334 | BE50: 0.1953836569 | BF50: 0.3497573705 | BG50: 0.2339497586 | BH50: 0.2601745802 | BI50: 0.1194482417 | BJ50: 0.2877852825 | BK50: 0.1792054736 | BL50: 0.2787072448 | BM50: 0.1566835149
C51: Semiconductor (solar cell/module) manufacturing | D51: 2.240426572 | E51: 0 | F51: 2.632186874 | G51: 2.520914566 | H51: 2.889497282 | I51: 3.074290302 | J51: 2.459101258 | K51: 2.125912936 | L51: 1.052280193 | M51: 3.228656274 | N51: 2.591796977 | O51: 2.754777552 | P51: 2.001042254 | Q51: 2.625572115 | R51: 2.135702855 | S51: 2.464104504 | T51: 1.749400064 | U51: 2.158673018 | V51: 1.887289088 | W51: 2.52343015 | X51: 2.563564758 | Y51: 2.56386416 | Z51: 3.093800217 | AA51: 3.129720911 | AB51: 1.879446453 | AC51: 2.723123566 | AD51: 2.741531608 | AE51: ='User Add-in Location'!B57 -> 0 | AF51: ='User Add-in Location'!C57 -> 0 | AG51: 2.466783633 | AH51: 2.595653064 | AI51: 2.545683016 | AJ51: 2.854528995 | AK51: 1.179613783 | AL51: 2.499930872 | AM51: 2.389042436 | AN51: 0 | AO51: 3.054720554 | AP51: 1.546306233 | AQ51: 0.9232532595 | AR51: 2.816903871 | AS51: 2.92266822 | AT51: 3.058614419 | AU51: 2.605213504 | AV51: 2.970946508 | AW51: 3.551166796 | AX51: 2.376345787 | AY51: 1.570510607 | AZ51: 3.06955572 | BA51: 2.669118401 | BB51: 2.561925792 | BC51: 2.653412583 | BD51: 1.62023698 | BE51: 2.373579606 | BF51: 3.380346872 | BG51: 3.278501024 | BH51: 2.624913947 | BI51: 2.322769544 | BJ51: 2.769533878 | BK51: 2.164723466 | BL51: 2.754423479 | BM51: 0
C53: Jobs Per Million Dollars Change in Final Demand
C54: Jobs Induced Multipliers | D54: Alabama | E54: Alaska | F54: Arizona | G54: Arkansas | H54: Colorado | I54: California | J54: Connecticut | K54: Delaware | L54: District of Columbia | M54: Florida | N54: Georgia | O54: Hawaii | P54: Idaho | Q54: Illinois | R54: Indiana | S54: Iowa | T54: Kansas | U54: Kentucky | V54: Louisiana | W54: Maine | X54: Maryland | Y54: Massachusetts | Z54: Michigan | AA54: Minnesota | AB54: Mississippi | AC54: Missouri | AD54: Montana | AE54: MyCounty | AF54: MyRegion | AG54: Nebraska | AH54: Nevada | AI54: New Hampshire | AJ54: New Jersey | AK54: New Mexico | AL54: New York | AM54: North Carolina | AN54: North Dakota | AO54: Ohio | AP54: Oklahoma | AQ54: Oregon | AR54: Pennsylvania | AS54: REGION1 | AT54: REGION2 | AU54: REGION3 | AV54: REGION4 | AW54: REGION5 | AX54: REGION6 | AY54: REGION7 | AZ54: REGION8 | BA54: Rhode Island | BB54: South Carolina | BC54: South Dakota | BD54: Tennessee | BE54: Texas | BF54: United States | BG54: Utah | BH54: Vermont | BI54: Virginia | BJ54: Washington | BK54: West Virginia | BL54: Wisconsin | BM54: Wyoming
C55: Ag, Forestry, Fish & Hunting | D55: 1.382324517 | E55: 1.738882581 | F55: 2.385554917 | G55: 1.440994954 | H55: 1.864769269 | I55: 2.810241085 | J55: 1.556140366 | K55: 0.9633219887 | L55: 0 | M55: 2.852201882 | N55: 2.308126339 | O55: 2.10338684 | P55: 2.346295521 | Q55: 2.092644029 | R55: 1.672920078 | S55: 1.97236571 | T55: 1.709994135 | U55: 1.563378432 | V55: 1.637641603 | W55: 3.083598467 | X55: 1.451118408 | Y55: 2.322582426 | Z55: 2.608832161 | AA55: 2.099054207 | AB55: 1.565440738 | AC55: 2.058457507 | AD55: 1.506788198 | AE55: ='User Add-in Location'!B61 -> 0 | AF55: ='User Add-in Location'!C61 -> 0 | AG55: 2.021347246 | AH55: 1.2856876 | AI55: 2.992782336 | AJ55: 1.823919345 | AK55: 2.22506178 | AL55: 1.992887727 | AM55: 1.868165912 | AN55: 1.54823324 | AO55: 2.412938743 | AP55: 1.359356777 | AQ55: 2.608235509 | AR55: 2.326133908 | AS55: 2.494158528 | AT55: 2.207055438 | AU55: 1.879293264 | AV55: 2.527811806 | AW55: 2.765460251 | AX55: 2.122326307 | AY55: 2.641673607 | AZ55: 2.812630558 | BA55: 2.146348058 | BB55: 1.509433145 | BC55: 2.70926302 | BD55: 1.399203416 | BE55: 1.949517423 | BF55: 4.295206269 | BG55: 1.374706614 | BH55: 3.554815335 | BI55: 1.346456343 | BJ55: 2.397840391 | BK55: 1.579253332 | BL55: 2.490854952 | BM55: 0.7354382285
C56: Mining | D56: 1.659614777 | E56: 0.7735402722 | F56: 1.348837714 | G56: 1.683479758 | H56: 2.599991577 | I56: 1.676068548 | J56: 2.553005039 | K56: 2.969786824 | L56: 0 | M56: 2.468580398 | N56: 9.455162214 | O56: 1.787657524 | P56: 1.505149005 | Q56: 2.451653176 | R56: 2.308351918 | S56: 2.386518548 | T56: 1.73894424 | U56: 1.977744075 | V56: 1.287071401 | W56: 2.187768079 | X56: 3.120992481 | Y56: 2.632882671 | Z56: 2.106479023 | AA56: 2.081056235 | AB56: 1.996488972 | AC56: 3.581661169 | AD56: 2.217220486 | AE56: ='User Add-in Location'!B62 -> 0 | AF56: ='User Add-in Location'!C62 -> 0 | AG56: 2.354990005 | AH56: 1.343807504 | AI56: 2.690840818 | AJ56: 3.155340582 | AK56: 1.526616891 | AL56: 2.209563034 | AM56: 2.317038508 | AN56: 1.605858478 | AO56: 2.960044073 | AP56: 2.071856015 | AQ56: 2.379683702 | AR56: 2.238247816 | AS56: 3.797028237 | AT56: 2.467883027 | AU56: 2.701959748 | AV56: 3.349189952 | AW56: 2.993114209 | AX56: 2.345315394 | AY56: 2.102016131 | AZ56: 1.680729866 | BA56: 46.86984629 | BB56: 2.135363524 | BC56: 1.77850058 | BD56: 3.006335355 | BE56: 2.257398495 | BF56: 3.748383563 | BG56: 2.326531023 | BH56: 2.187842798 | BI56: 2.056823302 | BJ56: 1.56171476 | BK56: 1.722917398 | BL56: 2.109398441 | BM56: 0.9314003233
C57: Construction | D57: 2.494903481 | E57: 2.143417463 | F57: 2.882946613 | G57: 2.239000726 | H57: 3.173179166 | I57: 3.164758448 | J57: 2.436101382 | K57: 2.185791458 | L57: 0.5706331722 | M57: 3.07225848 | N57: 2.81130802 | O57: 2.137452882 | P57: 2.559572678 | Q57: 3.110211019 | R57: 2.781520111 | S57: 2.61383107 | T57: 2.381439656 | U57: 2.291536708 | V57: 2.508690481 | W57: 2.957188361 | X57: 2.831195031 | Y57: 2.943640407 | Z57: 3.163996771 | AA57: 2.984454236 | AB57: 2.081010348 | AC57: 3.128162477 | AD57: 2.618712668 | AE57: ='User Add-in Location'!B63 -> 0 | AF57: ='User Add-in Location'!C63 -> 0 | AG57: 2.755692152 | AH57: 2.402638696 | AI57: 2.865799778 | AJ57: 2.813482165 | AK57: 2.07276119 | AL57: 2.370254902 | AM57: 2.658279682 | AN57: 1.992794135 | AO57: 3.253985611 | AP57: 2.393978477 | AQ57: 3.082757224 | AR57: 3.304819408 | AS57: 2.987865879 | AT57: 3.337467926 | AU57: 3.125274829 | AV57: 3.326355205 | AW57: 3.855512739 | AX57: 3.249374872 | AY57: 3.22726509 | AZ57: 3.15054539 | BA57: 2.433985182 | BB57: 2.667338691 | BC57: 2.275222461 | BD57: 3.105520294 | BE57: 3.072071924 | BF57: 5.343286247 | BG57: 3.166164098 | BH57: 2.516255902 | BI57: 2.525237426 | BJ57: 2.627188149 | BK57: 2.110761901 | BL57: 3.249832969 | BM57: 1.634773755
C58: Construction/Installations - Non Residential | D58: 2.731854735 | E58: 2.389447495 | F58: 3.133418552 | G58: 2.498825029 | H58: 3.524443861 | I58: 3.394806431 | J58: 2.777911004 | K58: 2.422654092 | L58: 0.6305106403 | M58: 3.36165187 | N58: 3.063713467 | O58: 2.350974144 | P58: 2.825487903 | Q58: 3.388896159 | R58: 3.107867133 | S58: 2.963119993 | T58: 2.721734103 | U58: 2.562815715 | V58: 2.78946978 | W58: 3.347998027 | X58: 3.121421676 | Y58: 3.276962278 | Z58: 3.479664855 | AA58: 3.258038727 | AB58: 2.29095727 | AC58: 3.522856881 | AD58: 2.950089671 | AE58: ='User Add-in Location'!B64 -> 0 | AF58: ='User Add-in Location'!C64 -> 0 | AG58: 3.129077308 | AH58: 2.647817068 | AI58: 3.453466056 | AJ58: 3.050607023 | AK58: 2.347174845 | AL58: 2.567625509 | AM58: 2.923034893 | AN58: 2.301822764 | AO58: 3.575830738 | AP58: 2.655969426 | AQ58: 3.372094261 | AR58: 3.707850228 | AS58: 3.272654892 | AT58: 3.677464701 | AU58: 3.414037881 | AV58: 3.628933206 | AW58: 4.177478297 | AX58: 3.520152608 | AY58: 3.544176354 | AZ58: 3.380493392 | BA58: 2.664345835 | BB58: 2.943536336 | BC58: 2.583982528 | BD58: 3.522013628 | BE58: 3.305587448 | BF58: 5.648685773 | BG58: 3.450560001 | BH58: 2.990075925 | BI58: 2.78873537 | BJ58: 2.872112477 | BK58: 2.405420001 | BL58: 3.623955489 | BM58: 1.90239696
C59: Construction/Installation Residential | D59: 2.68776492 | E59: 0.7979819944 | F59: 2.521300198 | G59: 2.419865516 | H59: 1.382152894 | I59: 2.955511398 | J59: 0.77175303 | K59: 2.149903311 | L59: 0.4328519617 | M59: 2.546629158 | N59: 2.889824888 | O59: 1.861068227 | P59: 2.758136473 | Q59: 2.848157808 | R59: 2.537760341 | S59: 1.144048331 | T59: 0.9708475799 | U59: 2.404342018 | V59: 2.330182528 | W59: 1.256579714 | X59: 1.687061148 | Y59: 0.9464940646 | Z59: 2.647664369 | AA59: 2.76623566 | AB59: 2.289403466 | AC59: 1.233982863 | AD59: 2.685214027 | AE59: ='User Add-in Location'!B65 -> 0 | AF59: ='User Add-in Location'!C65 -> 0 | AG59: 1.637829214 | AH59: 2.238111117 | AI59: 0.6360345636 | AJ59: 2.192195276 | AK59: 1.853368171 | AL59: 2.176151874 | AM59: 2.672741784 | AN59: 0.4909404419 | AO59: 3.021200179 | AP59: 2.511391119 | AQ59: 2.846967346 | AR59: 1.097707 | AS59: 1.365978494 | AT59: 1.519607177 | AU59: 2.548528353 | AV59: 2.45654079 | AW59: 2.862616275 | AX59: 2.787939835 | AY59: 1.995065079 | AZ59: 2.929188757 | BA59: 2.473312694 | BB59: 2.580955548 | BC59: 1.208512382 | BD59: 1.13700429 | BE59: 3.119752212 | BF59: 3.584142158 | BG59: 3.056839736 | BH59: 0.6117579092 | BI59: 2.265049553 | BJ59: 2.009269048 | BK59: 1.91856443 | BL59: 1.408528366 | BM59: 0.6006386553
C60: Manufacturing | D60: 1.15648226 | E60: 0.6808465805 | F60: 1.968227676 | G60: 1.220302011 | H60: 1.831993481 | I60: 1.914123988 | J60: 1.518386728 | K60: 0.9243747086 | L60: 0.2775524951 | M60: 2.142962829 | N60: 1.578306114 | O60: 0.8749527312 | P60: 1.367573461 | Q60: 1.728848938 | R60: 1.262691293 | S60: 1.287957062 | T60: 1.21381055 | U60: 1.068246856 | V60: 0.8260105136 | W60: 1.788524276 | X60: 1.513755031 | Y60: 1.761023294 | Z60: 1.745622587 | AA60: 1.896741608 | AB60: 1.002763691 | AC60: 1.611778161 | AD60: 1.039441122 | AE60: ='User Add-in Location'!B66 -> 0 | AF60: ='User Add-in Location'!C66 -> 0 | AG60: 1.354528369 | AH60: 1.385671891 | AI60: 1.751847656 | AJ60: 1.577192965 | AK60: 1.026440024 | AL60: 1.291898293 | AM60: 1.37037642 | AN60: 0.7817326984 | AO60: 1.747737281 | AP60: 1.325257578 | AQ60: 1.797412684 | AR60: 1.762429926 | AS60: 1.808478766 | AT60: 1.859272991 | AU60: 1.627017482 | AV60: 1.968506687 | AW60: 2.28687758 | AX60: 1.65518948 | AY60: 1.900390747 | AZ60: 1.903581659 | BA60: 1.556550094 | BB60: 1.396492536 | BC60: 1.28488246 | BD60: 1.581305539 | BE60: 1.52238434 | BF60: 3.698141601 | BG60: 1.60355116 | BH60: 1.498130999 | BI60: 1.255065381 | BJ60: 1.437451221 | BK60: 0.895198735 | BL60: 1.852377022 | BM60: 0.4629846772
C61: Fabricated Metals | D61: 1.745934525 | E61: 1.253738466 | F61: 2.513926889 | G61: 1.550876582 | H61: 2.36354682 | I61: 2.456572281 | J61: 1.717135676 | K61: 1.497283137 | L61: 0 | M61: 2.65021591 | N61: 2.045203719 | O61: 1.592199829 | P61: 1.948958372 | Q61: 2.30145962 | R61: 1.860053266 | S61: 1.922153431 | T61: 1.62456398 | U61: 1.646184647 | V61: 1.968185772 | W61: 2.136067774 | X61: 1.900284698 | Y61: 1.949923551 | Z61: 2.315521729 | AA61: 2.383452784 | AB61: 1.589473415 | AC61: 2.267677682 | AD61: 1.831823014 | AE61: ='User Add-in Location'!B67 -> 0 | AF61: ='User Add-in Location'!C67 -> 0 | AG61: 1.931499733 | AH61: 1.714701431 | AI61: 1.995354999 | AJ61: 2.085779179 | AK61: 1.383070169 | AL61: 1.774144751 | AM61: 2.029842357 | AN61: 1.291078414 | AO61: 2.328079466 | AP61: 1.798911334 | AQ61: 2.490655186 | AR61: 2.316762177 | AS61: 2.198227669 | AT61: 2.379806221 | AU61: 2.324907736 | AV61: 2.644221108 | AW61: 2.943855167 | AX61: 2.494718705 | AY61: 2.463407013 | AZ61: 2.450556643 | BA61: 1.861167655 | BB61: 2.035470442 | BC61: 1.655946559 | BD61: 2.206011836 | BE61: 2.335189698 | BF61: 4.467983181 | BG61: 2.49815274 | BH61: 2.023357674 | BI61: 1.919659571 | BJ61: 1.859542895 | BK61: 1.364928566 | BL61: 2.416993717 | BM61: 0.9494896553
C62: Machinery | D62: 1.492164042 | E62: 0.7362569115 | F62: 2.102404185 | G62: 1.454075914 | H62: 1.912056981 | I62: 2.374793391 | J62: 1.865175455 | K62: 1.484565544 | L62: 0.2472071619 | M62: 2.889859119 | N62: 1.820849473 | O62: 0 | P62: 1.698449671 | Q62: 1.983673928 | R62: 1.686082367 | S62: 1.277612535 | T62: 1.468596361 | U62: 1.615941432 | V62: 1.429144457 | W62: 1.984388663 | X62: 1.613652028 | Y62: 2.030387274 | Z62: 2.42526867 | AA62: 2.418149409 | AB62: 1.524143263 | AC62: 2.017214935 | AD62: 1.456212923 | AE62: ='User Add-in Location'!B68 -> 0 | AF62: ='User Add-in Location'!C68 -> 0 | AG62: 1.59674004 | AH62: 1.518323594 | AI62: 2.145813361 | AJ62: 1.959638269 | AK62: 1.406152116 | AL62: 1.677927448 | AM62: 1.496609837 | AN62: 0.7000007711 | AO62: 2.298567459 | AP62: 1.638003155 | AQ62: 2.157967336 | AR62: 2.105095757 | AS62: 2.203328512 | AT62: 2.247978203 | AU62: 1.729633144 | AV62: 2.45969735 | AW62: 2.727346882 | AX62: 2.06569852 | AY62: 1.993065531 | AZ62: 2.367504441 | BA62: 1.698593709 | BB62: 1.558912714 | BC62: 1.26334115 | BD62: 1.856987574 | BE62: 1.901173581 | BF62: 4.005381316 | BG62: 2.48292194 | BH62: 1.859988346 | BI62: 1.398285157 | BJ62: 1.388764373 | BK62: 1.288323809 | BL62: 2.260448575 | BM62: 1.084486593
C63: Electrical Equip | D63: 1.538644643 | E63: 0.5628730539 | F63: 2.378217215 | G63: 1.624381761 | H63: 2.298188735 | I63: 2.587813816 | J63: 2.163028156 | K63: 1.520291967 | L63: 0.5131034467 | M63: 2.795398512 | N63: 2.287270469 | O63: 0 | P63: 1.736425973 | Q63: 2.368485702 | R63: 1.767543066 | S63: 1.778908318 | T63: 1.328967091 | U63: 1.533515151 | V63: 1.742013883 | W63: 2.208840968 | X63: 1.885929068 | Y63: 2.477877858 | Z63: 2.178873767 | AA63: 2.327854523 | AB63: 1.409427859 | AC63: 1.841217391 | AD63: 2.029543541 | AE63: ='User Add-in Location'!B69 -> 0 | AF63: ='User Add-in Location'!C69 -> 0 | AG63: 1.827223646 | AH63: 1.898935408 | AI63: 2.298638521 | AJ63: 1.935892482 | AK63: 1.190606688 | AL63: 1.878858709 | AM63: 1.972740143 | AN63: 0.8985385805 | AO63: 2.367568167 | AP63: 1.67058417 | AQ63: 2.232496472 | AR63: 2.481388192 | AS63: 2.563921521 | AT63: 2.488905771 | AU63: 2.145013402 | AV63: 2.585134698 | AW63: 2.985014646 | AX63: 2.234146774 | AY63: 2.304673067 | AZ63: 2.578263337 | BA63: 2.181212512 | BB63: 1.744843123 | BC63: 1.196108892 | BD63: 1.979171284 | BE63: 2.205908962 | BF63: 4.450072099 | BG63: 2.067483938 | BH63: 1.937784474 | BI63: 1.785871247 | BJ63: 1.872353497 | BK63: 1.393437841 | BL63: 2.512566408 | BM63: 0.9181311419
C64: Battery Manufacturing | D64: 0 | E64: 0 | F64: 2.305480954 | G64: 1.9378253 | H64: 2.155453887 | I64: 2.540863009 | J64: 1.787848974 | K64: 1.7593073 | L64: 0 | M64: 2.95410075 | N64: 2.378279271 | O64: 0 | P64: 0 | Q64: 2.489403381 | R64: 2.003786315 | S64: 1.736774277 | T64: 1.499737487 | U64: 1.535128477 | V64: 0 | W64: 0 | X64: 1.864098951 | Y64: 2.261784795 | Z64: 2.555319137 | AA64: 2.400174359 | AB64: 1.18130443 | AC64: 2.040184657 | AD64: 0 | AE64: ='User Add-in Location'!B70 -> 0 | AF64: ='User Add-in Location'!C70 -> 0 | AG64: 0 | AH64: 0 | AI64: 0 | AJ64: 2.091827885 | AK64: 0 | AL64: 1.672186181 | AM64: 2.041268295 | AN64: 0.8878859749 | AO64: 2.386836862 | AP64: 1.577106796 | AQ64: 2.26473313 | AR64: 2.465679989 | AS64: 2.331362758 | AT64: 2.579955165 | AU64: 2.243732014 | AV64: 2.749585234 | AW64: 3.033746865 | AX64: 2.275559013 | AY64: 2.291053521 | AZ64: 2.532058595 | BA64: 1.766052918 | BB64: 1.914196041 | BC64: 0 | BD64: 2.04588093 | BE64: 2.408179516 | BF64: 4.499191115 | BG64: 2.078709215 | BH64: 0 | BI64: 0 | BJ64: 1.681193558 | BK64: 1.3722943 | BL64: 2.439735897 | BM64: 0
C65: Energy Wire Manufacturing | D65: 0.9429057446 | E65: 0 | F65: 1.54389533 | G65: 1.368616346 | H65: 1.431478786 | I65: 2.031966971 | J65: 1.192557586 | K65: 1.203601946 | L65: 0.3452670382 | M65: 1.77409027 | N65: 1.266845001 | O65: 0 | P65: 1.137884371 | Q65: 1.763857763 | R65: 1.243628084 | S65: 0 | T65: 0.9985877698 | U65: 1.024339513 | V65: 1.279172346 | W65: 1.241723844 | X65: 1.525850249 | Y65: 1.552326128 | Z65: 1.511541094 | AA65: 1.651484845 | AB65: 0.7608385086 | AC65: 1.229251041 | AD65: 1.238036908 | AE65: ='User Add-in Location'!B71 -> 0 | AF65: ='User Add-in Location'!C71 -> 0 | AG65: 1.240515628 | AH65: 0.9879521362 | AI65: 1.50806342 | AJ65: 1.472013266 | AK65: 0.6773175995 | AL65: 1.081135096 | AM65: 1.394112752 | AN65: 0.555704129 | AO65: 1.509796191 | AP65: 1.057988283 | AQ65: 1.567949413 | AR65: 1.615795009 | AS65: 1.638700131 | AT65: 1.765948403 | AU65: 1.556879974 | AV65: 1.771207606 | AW65: 2.258563275 | AX65: 1.924010256 | AY65: 1.584165958 | AZ65: 2.022295647 | BA65: 1.151477555 | BB65: 1.290738695 | BC65: 0 | BD65: 1.378103604 | BE65: 1.812798778 | BF65: 3.773110444 | BG65: 1.377780728 | BH65: 1.179857674 | BI65: 1.193345411 | BJ65: 1.19910094 | BK65: 0.9484447215 | BL65: 1.735508555 | BM65: 0.4786954589
C66: Wholesale Trade | D66: 2.417341042 | E66: 1.384130565 | F66: 3.369298966 | G66: 2.252593682 | H66: 3.317350882 | I66: 2.835783742 | J66: 2.288501383 | K66: 2.24061052 | L66: 0.5859788683 | M66: 3.496414346 | N66: 3.111004095 | O66: 2.022232355 | P66: 2.73635899 | Q66: 3.08820757 | R66: 2.692104955 | S66: 2.579980696 | T66: 2.382576968 | U66: 2.241896497 | V66: 2.332631895 | W66: 3.060546789 | X66: 2.600206874 | Y66: 3.045413776 | Z66: 3.095873608 | AA66: 3.351592622 | AB66: 2.14263407 | AC66: 3.15919022 | AD66: 2.641945897 | AE66: ='User Add-in Location'!B72 -> 0 | AF66: ='User Add-in Location'!C72 -> 0 | AG66: 2.632826965 | AH66: 2.375747815 | AI66: 3.18775952 | AJ66: 2.614415986 | AK66: 2.125265694 | AL66: 2.219534141 | AM66: 3.016589394 | AN66: 1.767069312 | AO66: 3.227841076 | AP66: 2.336227624 | AQ66: 3.282806762 | AR66: 3.159802328 | AS66: 2.843067499 | AT66: 3.129917664 | AU66: 3.15549829 | AV66: 3.470467053 | AW66: 3.689410946 | AX66: 3.047254002 | AY66: 3.173200501 | AZ66: 2.832294776 | BA66: 2.677640989 | BB66: 2.714178936 | BC66: 2.291996966 | BD66: 2.987435539 | BE66: 2.89321944 | BF66: 4.706995006 | BG66: 3.298719259 | BH66: 2.646571371 | BI66: 2.622921432 | BJ66: 2.324248135 | BK66: 1.885741238 | BL66: 3.195198255 | BM66: 1.39068225
